Workbook

Sheet Inversion
B1: Haz los números correctamente
I3: Año proyectado | J3: 3
I4: IPC Proyectado | J4: 0.06
B6: Inversión | F6: Estimación rentabilidad primer año | I6: Estimación rentabilidad proyectada
B7: Fecha | C7: =TODAY() -> 2025-07-10 | F7: Renta mensual | I7: =F7 -> Renta mensual
B8: Valor comercial el inmueble | C8: 188000000 | F8: 2300000 | G8: =F8/C14 -> 0.01191240755 | I8: =$F$8*(1+$J$4)^(J3) -> 2739336.8 | J8: =I8/C14 -> 0.01418786799
B9: Gasto avalúo | C9: 188000 | F9: Renta anual | I9: =F9 -> Renta anual
B10: Gasto estudio de títulos | C10: 188000 | F10: =F8*12 -> 27600000 | G10: =F10/C14 -> 0.1429488906 | I10: =$F$10*(1+$J$4)^(J3) -> 32872041.6 | J10: =I10/C14 -> 0.1702544159
B11: Gasto escrituración | C11: =C8*2.5% -> 4700000
B12: Gastos remodelación | C12: 0 | F12: Gastos mensuales primer año | I12: Gastos mensuales año proyectado
B13: Otro(s) | C13: 0 | F13: Cuota de Crédito(s) (Sin seguros) | G13: 1216000 | I13: =F13 -> Cuota de Crédito(s) (Sin seguros) | J13: 0
B14: Total | C14: =SUM(C8:C13) -> 193076000 | F14: Seguro(s) (Vida e Incendio y terremoto) | G14: 80000 | I14: =F14 -> Seguro(s) (Vida e Incendio y terremoto) | J14: 0
F15: Administración (Si aplica) | G15: 150000 | I15: =F15 -> Administración (Si aplica) | J15: =$G$15*(1+$J$4)^(J3) -> 178652.4
B16: Calculadora de crédito | F16: Comisión agencia arrendamiento (Si aplica) | G16: 230000 | I16: =F16 -> Comisión agencia arrendamiento (Si aplica) | J16: =$G$16*(1+$J$4)^(J3) -> 273933.68
B17: Valor comercial el inmueble | C17: =C8 -> 188000000 | F17: Impuestos (Predial) | G17: 99000 | I17: =F17 -> Impuestos (Predial) | J17: =$G$17*(1+$J$4)^(J3) -> 117910.584
B18: Valor del préstamo en $ | C18: 131600000 | F18: Otro(s) | G18: 0 | I18: =F18 -> Otro(s) | J18: =$G$18*(1+$J$4)^(J3) -> 0
B19: Cuota inicial | C19: =C17-C18 -> 56400000 | F19: Total gastos anuales | G19: =SUM(G13:G18)*12 -> 21300000 | I19: =F19 -> Total gastos anuales | J19: =SUM(J13:J18)*12 -> 6845959.968
B20: % de financiacion | C20: =C18/C8 -> 0.7
B21: Tasa efectiva anual | C21: 0.098 | F21: Utilidad mensual primer año | I21: Utilidad mensual año proyectado
B22: Tasa nominal mensual | C22: =((1+C21)^(1/12))-1 -> 0.007821289657 | F22: =F8-SUM(G13:G18) -> 525000 | G22: =F22/C14 -> 0.002719136506 | I22: =I8-SUM(J13:J18) -> 2168840.136 | J22: =I22/C14 -> 0.01123309026
B23: Plazo meses | C23: 240
B24: Tipo de crédito | C24: Hipotecario (Pesos) | D24: =IF(OR(C24="Hipotecario (Pesos)",C24="Leasing H. (Pesos)"),"Cuota Fija",IF(C24="Hipotecario (UVR)","Cuota Integral","")) -> Cuota Fija | F24: Utilidad anual primer año | I24: Utilidad anual año proyectado
B25: =IF(C24="Leasing H. (Pesos)","% Opcion de compra","") ->  | C25: 0 | F25: =F10-G19 -> 6300000 | G25: =F25/C14 -> 0.03262963807 | I25: =I10-J19 -> 26026081.63 | J25: =I25/C14 -> 0.1347970832
B26: =IF(C24="Hipotecario (UVR)","UVR teórico E.A","") ->  | C26: 0.06
B27: =IF(C24="Hipotecario (UVR)","UVR nominal mensual","") ->  | C27: =(1+C26)^(1/12)-1 -> 0.004867550565
B28: =IF(C24="Hipotecario (UVR)","UVR fecha contabilización","") ->  | C28: 375.8595
B29: Valor de cuota mensual | C29: =IF(Inversion!C24="Hipotecario (Pesos)",'Hipotecario (Pesos)'!E6,IF(Inversion!C24="Leasing H. (Pesos)",'Leasing H. (Pesos)'!D6,IF(Inversion!C24="Hipotecario (UVR)",'Hipotecario (UVR)'!F6,""))) -> 1216865.75
B31: Consideraciones Generales: • Si puedes acceder a algún descuento, considéralo como una gran ventaja para mejorar tus números. • Ten en cuenta el tiempo: Analiza cómo la valorización y la rentabilidad futura pueden impactar positivamente tu inversión. • Reduce gastos para aumentar rentabilidad: Ajustar tus gastos puede ayudarte a generar mayores rendimientos en el mediano y largo plazo. • Reconoce el poder del apalancamiento: Al financiarte con un banco, no necesitas poner todo el dinero de tu bolsillo; recuerda que estás utilizando recursos externos para alcanzar tus objetivos. • Piensa más allá del uso inicial: Si compras para vivir, considera la posibilidad de arrendar o vender la propiedad en el futuro. Planificar cómo manejar esta opción te dará más flexibilidad. •Aprovecha las herramientas disponibles: Investiga y utiliza subsidios u otras ayudas que puedan facilitar tu proceso y optimizar tu inversión. | I31: Valorización proyectada
I32: Valor del inmueble valorizado | J32: 0
I33: Diferencia | J33: =IF(J32=0,0,J32-C14) -> 0
I34: Porcentaje de valorización total | J34: =IF(J32=0,0,(J32/C14)-1) -> 0
I35: Notas : - - - -

Sheet An (hidden)
A1: Años Proyeccion
A2: 0
A3: 1
A4: 2
A5: 3
A6: 4
A7: 5
A8: 6
A9: 7
A10: 8
A11: 9
A12: 10
A13: 11
A14: 12
A15: 13
A16: 14
A17: 15
A18: 16
A19: 17
A20: 18
A21: 19
A22: 20
A23: 21
A24: 22
A25: 23
A26: 24
A27: 25
A28: 26
A29: 27
A30: 28
A31: 29
A32: 30

Sheet Hipotecario (Pesos) (hidden)
A1: Hipotecario (Pesos) - Cuota Fija Esta es una simulación, los datos son aproximados
A4: Mes | C4: Saldo inicial | D4: Factor cuota integral fija | E4: Cuota mensual sin seguros | F4: Capital mensual | G4: Intereses mensual | H4: Saldo final
A5: 0 | B5: =IF(A5<>"-",DATE(YEAR(Inversion!$C$7),MONTH(Inversion!$C$7)+A5,DAY(Inversion!$C$7)),"-") -> 2025-07-10 | C5: 0 | D5: NA | E5: 0 | F5: 0 | G5: 0 | H5: 0
A6: =IF(A5<Inversion!$C$23,A5+1,"-") -> 1 | B6: =IF(A6<>"-",DATE(YEAR(Inversion!$C$7),MONTH(Inversion!$C$7)+A6,DAY(Inversion!$C$7)),"-") -> 2025-08-10 | C6: =IF(A6<=Inversion!C23,Inversion!C18,"0") -> 131600000 | D6: =IF(A6<=Inversion!$C$23,(1-(1+Inversion!$C$22)^-(Inversion!$C$23))/Inversion!$C$22,0) -> 108.1466875 | E6: =IF(C6>=1,$C$6/D6,0) -> 1216865.75 | F6: =E6-G6 -> 187584.0315 | G6: =C6*Inversion!$C$22 -> 1029281.719 | H6: =C6-F6 -> 131412416
A7: =IF(A6<Inversion!$C$23,A6+1,"-") -> 2 | B7: =IF(A7<>"-",DATE(YEAR(Inversion!$C$7),MONTH(Inversion!$C$7)+A7,DAY(Inversion!$C$7)),"-") -> 2025-09-10 | C7: =IF(A7<=Inversion!$C$23,IF(H6>0,H6,0),0) -> 131412416 | D7: =IF(A7<=Inversion!$C$23,(1-(1+Inversion!$C$22)^-(Inversion!$C$23))/Inversion!$C$22,0) -> 108.1466875 | E7: =IF(C7<E6-G7,C7+G7,IF(C7=0,0,$C$6/D7)) -> 1216865.75 | F7: =E7-G7 -> 189051.1806 | G7: =C7*Inversion!$C$22 -> 1027814.57 | H7: =C7-F7 -> 131223364.8
A8: =IF(A7<Inversion!$C$23,A7+1,"-") -> 3 | B8: =IF(A8<>"-",DATE(YEAR(Inversion!$C$7),MONTH(Inversion!$C$7)+A8,DAY(Inversion!$C$7)),"-") -> 2025-10-10 | C8: =IF(A8<=Inversion!$C$23,IF(H7>0,H7,0),0) -> 131223364.8 | D8: =IF(A8<=Inversion!$C$23,(1-(1+Inversion!$C$22)^-(Inversion!$C$23))/Inversion!$C$22,0) -> 108.1466875 | E8: =IF(C8<E7-G8,C8+G8,IF(C8=0,0,$C$6/D8)) -> 1216865.75 | F8: =E8-G8 -> 190529.8046 | G8: =C8*Inversion!$C$22 -> 1026335.946 | H8: =C8-F8 -> 131032835
A9: =IF(A8<Inversion!$C$23,A8+1,"-") -> 4 | B9: =IF(A9<>"-",DATE(YEAR(Inversion!$C$7),MONTH(Inversion!$C$7)+A9,DAY(Inversion!$C$7)),"-") -> 2025-11-10 | C9: =IF(A9<=Inversion!$C$23,IF(H8>0,H8,0),0) -> 131032835 | D9: =IF(A9<=Inversion!$C$23,(1-(1+Inversion!$C$22)^-(Inversion!$C$23))/Inversion!$C$22,0) -> 108.1466875 | E9: =IF(C9<E8-G9,C9+G9,IF(C9=0,0,$C$6/D9)) -> 1216865.75 | F9: =E9-G9 -> 192019.9934 | G9: =C9*Inversion!$C$22 -> 1024845.757 | H9: =C9-F9 -> 130840815
A10: =IF(A9<Inversion!$C$23,A9+1,"-") -> 5 | B10: =IF(A10<>"-",DATE(YEAR(Inversion!$C$7),MONTH(Inversion!$C$7)+A10,DAY(Inversion!$C$7)),"-") -> 2025-12-10 | C10: =IF(A10<=Inversion!$C$23,IF(H9>0,H9,0),0) -> 130840815 | D10: =IF(A10<=Inversion!$C$23,(1-(1+Inversion!$C$22)^-(Inversion!$C$23))/Inversion!$C$22,0) -> 108.1466875 | E10: 1216865.75 | F10: 193521.8374 | G10: =C10*Inversion!$C$22 -> 1023343.913 | H10: 130647293.2
A11: =IF(A10<Inversion!$C$23,A10+1,"-") -> 6 | B11: =IF(A11<>"-",DATE(YEAR(Inversion!$C$7),MONTH(Inversion!$C$7)+A11,DAY(Inversion!$C$7)),"-") -> 2026-01-10 | C11: =IF(A11<=Inversion!$C$23,IF(H10>0,H10,0),0) -> 130647293.2 | D11: =IF(A11<=Inversion!$C$23,(1-(1+Inversion!$C$22)^-(Inversion!$C$23))/Inversion!$C$22,0) -> 108.1466875 | E11: 1216865.75 | F11: 195035.4278 | G11: =C11*Inversion!$C$22 -> 1021830.323 | H11: 130452257.7
A12: =IF(A11<Inversion!$C$23,A11+1,"-") -> 7 | B12: =IF(A12<>"-",DATE(YEAR(Inversion!$C$7),MONTH(Inversion!$C$7)+A12,DAY(Inversion!$C$7)),"-") -> 2026-02-10 | C12: =IF(A12<=Inversion!$C$23,IF(H11>0,H11,0),0) -> 130452257.7 | D12: =IF(A12<=Inversion!$C$23,(1-(1+Inversion!$C$22)^-(Inversion!$C$23))/Inversion!$C$22,0) -> 108.1466875 | E12: 1216865.75 | F12: 196560.8563 | G12: =C12*Inversion!$C$22 -> 1020304.894 | H12: 130255696.9
A13: =IF(A12<Inversion!$C$23,A12+1,"-") -> 8 | B13: =IF(A13<>"-",DATE(YEAR(Inversion!$C$7),MONTH(Inversion!$C$7)+A13,DAY(Inversion!$C$7)),"-") -> 2026-03-10 | C13: =IF(A13<=Inversion!$C$23,IF(H12>0,H12,0),0) -> 130255696.9 | D13: =IF(A13<=Inversion!$C$23,(1-(1+Inversion!$C$22)^-(Inversion!$C$23))/Inversion!$C$22,0) -> 108.1466875 | E13: 1216865.75 | F13: 198098.2157 | G13: =C13*Inversion!$C$22 -> 1018767.535 | H13: 130057598.7
A14: =IF(A13<Inversion!$C$23,A13+1,"-") -> 9 | B14: =IF(A14<>"-",DATE(YEAR(Inversion!$C$7),MONTH(Inversion!$C$7)+A14,DAY(Inversion!$C$7)),"-") -> 2026-04-10 | C14: =IF(A14<=Inversion!$C$23,IF(H13>0,H13,0),0) -> 130057598.7 | D14: =IF(A14<=Inversion!$C$23,(1-(1+Inversion!$C$22)^-(Inversion!$C$23))/Inversion!$C$22,0) -> 108.1466875 | E14: 1216865.75 | F14: 199647.5992 | G14: =C14*Inversion!$C$22 -> 1017218.151 | H14: 129857951.1
A15: =IF(A14<Inversion!$C$23,A14+1,"-") -> 10 | B15: =IF(A15<>"-",DATE(YEAR(Inversion!$C$7),MONTH(Inversion!$C$7)+A15,DAY(Inversion!$C$7)),"-") -> 2026-05-10 | C15: =IF(A15<=Inversion!$C$23,IF(H14>0,H14,0),0) -> 129857951.1 | D15: =IF(A15<=Inversion!$C$23,(1-(1+Inversion!$C$22)^-(Inversion!$C$23))/Inversion!$C$22,0) -> 108.1466875 | E15: 1216865.75 | F15: 201209.1009 | G15: =C15*Inversion!$C$22 -> 1015656.649 | H15: 129656742
A16: =IF(A15<Inversion!$C$23,A15+1,"-") -> 11 | B16: =IF(A16<>"-",DATE(YEAR(Inversion!$C$7),MONTH(Inversion!$C$7)+A16,DAY(Inversion!$C$7)),"-") -> 2026-06-10 | C16: =IF(A16<=Inversion!$C$23,IF(H15>0,H15,0),0) -> 129656742 | D16: =IF(A16<=Inversion!$C$23,(1-(1+Inversion!$C$22)^-(Inversion!$C$23))/Inversion!$C$22,0) -> 108.1466875 | E16: =IF(C16<E15-G16,C16+G16,IF(C16=0,0,$C$6/D16)) -> 1216865.75 | F16: 202782.8156 | G16: =C16*Inversion!$C$22 -> 1014082.935 | H16: =C16-F16 -> 129453959.1
A17: =IF(A16<Inversion!$C$23,A16+1,"-") -> 12 | B17: =IF(A17<>"-",DATE(YEAR(Inversion!$C$7),MONTH(Inversion!$C$7)+A17,DAY(Inversion!$C$7)),"-") -> 2026-07-10 | C17: =IF(A17<=Inversion!$C$23,IF(H16>0,H16,0),0) -> 129453959.1 | D17: =IF(A17<=Inversion!$C$23,(1-(1+Inversion!$C$22)^-(Inversion!$C$23))/Inversion!$C$22,0) -> 108.1466875 | E17: 1216865.75 | F17: 204368.8387 | G17: =C17*Inversion!$C$22 -> 1012496.912 | H17: 129249590.3
A18: =IF(A17<Inversion!$C$23,A17+1,"-") -> 13 | B18: =IF(A18<>"-",DATE(YEAR(Inversion!$C$7),MONTH(Inversion!$C$7)+A18,DAY(Inversion!$C$7)),"-") -> 2026-08-10 | C18: =IF(A18<=Inversion!$C$23,IF(H17>0,H17,0),0) -> 129249590.3 | D18: =IF(A18<=Inversion!$C$23,(1-(1+Inversion!$C$22)^-(Inversion!$C$23))/Inversion!$C$22,0) -> 108.1466875 | E18: 1216865.75 | F18: 205967.2666 | G18: =C18*Inversion!$C$22 -> 1010898.484 | H18: 129043623
A19: =IF(A18<Inversion!$C$23,A18+1,"-") -> 14 | B19: =IF(A19<>"-",DATE(YEAR(Inversion!$C$7),MONTH(Inversion!$C$7)+A19,DAY(Inversion!$C$7)),"-") -> 2026-09-10 | C19: =IF(A19<=Inversion!$C$23,IF(H18>0,H18,0),0) -> 129043623 | D19: =IF(A19<=Inversion!$C$23,(1-(1+Inversion!$C$22)^-(Inversion!$C$23))/Inversion!$C$22,0) -> 108.1466875 | E19: 1216865.75 | F19: 207578.1963 | G19: =C19*Inversion!$C$22 -> 1009287.554 | H19: 128836044.8
A20: =IF(A19<Inversion!$C$23,A19+1,"-") -> 15 | B20: =IF(A20<>"-",DATE(YEAR(Inversion!$C$7),MONTH(Inversion!$C$7)+A20,DAY(Inversion!$C$7)),"-") -> 2026-10-10 | C20: =IF(A20<=Inversion!$C$23,IF(H19>0,H19,0),0) -> 128836044.8 | D20: =IF(A20<=Inversion!$C$23,(1-(1+Inversion!$C$22)^-(Inversion!$C$23))/Inversion!$C$22,0) -> 108.1466875 | E20: 1216865.75 | F20: 209201.7255 | G20: =C20*Inversion!$C$22 -> 1007664.025 | H20: 128626843.1
A21: =IF(A20<Inversion!$C$23,A20+1,"-") -> 16 | B21: =IF(A21<>"-",DATE(YEAR(Inversion!$C$7),MONTH(Inversion!$C$7)+A21,DAY(Inversion!$C$7)),"-") -> 2026-11-10 | C21: =IF(A21<=Inversion!$C$23,IF(H20>0,H20,0),0) -> 128626843.1 | D21: =IF(A21<=Inversion!$C$23,(1-(1+Inversion!$C$22)^-(Inversion!$C$23))/Inversion!$C$22,0) -> 108.1466875 | E21: 1216865.75 | F21: 210837.9528 | G21: =C21*Inversion!$C$22 -> 1006027.798 | H21: 128416005.2
A22: =IF(A21<Inversion!$C$23,A21+1,"-") -> 17 | B22: =IF(A22<>"-",DATE(YEAR(Inversion!$C$7),MONTH(Inversion!$C$7)+A22,DAY(Inversion!$C$7)),"-") -> 2026-12-10 | C22: =IF(A22<=Inversion!$C$23,IF(H21>0,H21,0),0) -> 128416005.2 | D22: =IF(A22<=Inversion!$C$23,(1-(1+Inversion!$C$22)^-(Inversion!$C$23))/Inversion!$C$22,0) -> 108.1466875 | E22: 1216865.75 | F22: 212486.9775 | G22: =C22*Inversion!$C$22 -> 1004378.773 | H22: 128203518.2
A23: =IF(A22<Inversion!$C$23,A22+1,"-") -> 18 | B23: =IF(A23<>"-",DATE(YEAR(Inversion!$C$7),MONTH(Inversion!$C$7)+A23,DAY(Inversion!$C$7)),"-") -> 2027-01-10 | C23: =IF(A23<=Inversion!$C$23,IF(H22>0,H22,0),0) -> 128203518.2 | D23: =IF(A23<=Inversion!$C$23,(1-(1+Inversion!$C$22)^-(Inversion!$C$23))/Inversion!$C$22,0) -> 108.1466875 | E23: 1216865.75 | F23: 214148.8997 | G23: =C23*Inversion!$C$22 -> 1002716.851 | H23: 127989369.3
A24: =IF(A23<Inversion!$C$23,A23+1,"-") -> 19 | B24: =IF(A24<>"-",DATE(YEAR(Inversion!$C$7),MONTH(Inversion!$C$7)+A24,DAY(Inversion!$C$7)),"-") -> 2027-02-10 | C24: =IF(A24<=Inversion!$C$23,IF(H23>0,H23,0),0) -> 127989369.3 | D24: =IF(A24<=Inversion!$C$23,(1-(1+Inversion!$C$22)^-(Inversion!$C$23))/Inversion!$C$22,0) -> 108.1466875 | E24: 1216865.75 | F24: 215823.8202 | G24: =C24*Inversion!$C$22 -> 1001041.93 | H24: 127773545.5
A25: =IF(A24<Inversion!$C$23,A24+1,"-") -> 20 | B25: =IF(A25<>"-",DATE(YEAR(Inversion!$C$7),MONTH(Inversion!$C$7)+A25,DAY(Inversion!$C$7)),"-") -> 2027-03-10 | C25: =IF(A25<=Inversion!$C$23,IF(H24>0,H24,0),0) -> 127773545.5 | D25: =IF(A25<=Inversion!$C$23,(1-(1+Inversion!$C$22)^-(Inversion!$C$23))/Inversion!$C$22,0) -> 108.1466875 | E25: 1216865.75 | F25: 217511.8409 | G25: =C25*Inversion!$C$22 -> 999353.9095 | H25: 127556033.6
A26: =IF(A25<Inversion!$C$23,A25+1,"-") -> 21 | B26: =IF(A26<>"-",DATE(YEAR(Inversion!$C$7),MONTH(Inversion!$C$7)+A26,DAY(Inversion!$C$7)),"-") -> 2027-04-10 | C26: =IF(A26<=Inversion!$C$23,IF(H25>0,H25,0),0) -> 127556033.6 | D26: =IF(A26<=Inversion!$C$23,(1-(1+Inversion!$C$22)^-(Inversion!$C$23))/Inversion!$C$22,0) -> 108.1466875 | E26: 1216865.75 | F26: 219213.064 | G26: =C26*Inversion!$C$22 -> 997652.6864 | H26: 127336820.6
A27: =IF(A26<Inversion!$C$23,A26+1,"-") -> 22 | B27: =IF(A27<>"-",DATE(YEAR(Inversion!$C$7),MONTH(Inversion!$C$7)+A27,DAY(Inversion!$C$7)),"-") -> 2027-05-10 | C27: =IF(A27<=Inversion!$C$23,IF(H26>0,H26,0),0) -> 127336820.6 | D27: =IF(A27<=Inversion!$C$23,(1-(1+Inversion!$C$22)^-(Inversion!$C$23))/Inversion!$C$22,0) -> 108.1466875 | E27: 1216865.75 | F27: 220927.5928 | G27: =C27*Inversion!$C$22 -> 995938.1575 | H27: 127115893
A28: =IF(A27<Inversion!$C$23,A27+1,"-") -> 23 | B28: =IF(A28<>"-",DATE(YEAR(Inversion!$C$7),MONTH(Inversion!$C$7)+A28,DAY(Inversion!$C$7)),"-") -> 2027-06-10 | C28: =IF(A28<=Inversion!$C$23,IF(H27>0,H27,0),0) -> 127115893 | D28: =IF(A28<=Inversion!$C$23,(1-(1+Inversion!$C$22)^-(Inversion!$C$23))/Inversion!$C$22,0) -> 108.1466875 | E28: 1216865.75 | F28: 222655.5315 | G28: =C28*Inversion!$C$22 -> 994210.2188 | H28: 126893237.4
A29: =IF(A28<Inversion!$C$23,A28+1,"-") -> 24 | B29: =IF(A29<>"-",DATE(YEAR(Inversion!$C$7),MONTH(Inversion!$C$7)+A29,DAY(Inversion!$C$7)),"-") -> 2027-07-10 | C29: =IF(A29<=Inversion!$C$23,IF(H28>0,H28,0),0) -> 126893237.4 | D29: =IF(A29<=Inversion!$C$23,(1-(1+Inversion!$C$22)^-(Inversion!$C$23))/Inversion!$C$22,0) -> 108.1466875 | E29: 1216865.75 | F29: 224396.9849 | G29: =C29*Inversion!$C$22 -> 992468.7654 | H29: 126668840.4
A30: =IF(A29<Inversion!$C$23,A29+1,"-") -> 25 | B30: =IF(A30<>"-",DATE(YEAR(Inversion!$C$7),MONTH(Inversion!$C$7)+A30,DAY(Inversion!$C$7)),"-") -> 2027-08-10 | C30: =IF(A30<=Inversion!$C$23,IF(H29>0,H29,0),0) -> 126668840.4 | D30: =IF(A30<=Inversion!$C$23,(1-(1+Inversion!$C$22)^-(Inversion!$C$23))/Inversion!$C$22,0) -> 108.1466875 | E30: 1216865.75 | F30: 226152.0588 | G30: =C30*Inversion!$C$22 -> 990713.6916 | H30: 126442688.4
A31: =IF(A30<Inversion!$C$23,A30+1,"-") -> 26 | B31: =IF(A31<>"-",DATE(YEAR(Inversion!$C$7),MONTH(Inversion!$C$7)+A31,DAY(Inversion!$C$7)),"-") -> 2027-09-10 | C31: =IF(A31<=Inversion!$C$23,IF(H30>0,H30,0),0) -> 126442688.4 | D31: =IF(A31<=Inversion!$C$23,(1-(1+Inversion!$C$22)^-(Inversion!$C$23))/Inversion!$C$22,0) -> 108.1466875 | E31: 1216865.75 | F31: 227920.8595 | G31: =C31*Inversion!$C$22 -> 988944.8909 | H31: 126214767.5
A32: =IF(A31<Inversion!$C$23,A31+1,"-") -> 27 | B32: =IF(A32<>"-",DATE(YEAR(Inversion!$C$7),MONTH(Inversion!$C$7)+A32,DAY(Inversion!$C$7)),"-") -> 2027-10-10 | C32: =IF(A32<=Inversion!$C$23,IF(H31>0,H31,0),0) -> 126214767.5 | D32: =IF(A32<=Inversion!$C$23,(1-(1+Inversion!$C$22)^-(Inversion!$C$23))/Inversion!$C$22,0) -> 108.1466875 | E32: 1216865.75 | F32: 229703.4946 | G32: =C32*Inversion!$C$22 -> 987162.2558 | H32: 125985064
A33: =IF(A32<Inversion!$C$23,A32+1,"-") -> 28 | B33: =IF(A33<>"-",DATE(YEAR(Inversion!$C$7),MONTH(Inversion!$C$7)+A33,DAY(Inversion!$C$7)),"-") -> 2027-11-10 | C33: =IF(A33<=Inversion!$C$23,IF(H32>0,H32,0),0) -> 125985064 | D33: =IF(A33<=Inversion!$C$23,(1-(1+Inversion!$C$22)^-(Inversion!$C$23))/Inversion!$C$22,0) -> 108.1466875 | E33: 1216865.75 | F33: 231500.0721 | G33: =C33*Inversion!$C$22 -> 985365.6782 | H33: 125753564
A34: =IF(A33<Inversion!$C$23,A33+1,"-") -> 29 | B34: =IF(A34<>"-",DATE(YEAR(Inversion!$C$7),MONTH(Inversion!$C$7)+A34,DAY(Inversion!$C$7)),"-") -> 2027-12-10 | C34: =IF(A34<=Inversion!$C$23,IF(H33>0,H33,0),0) -> 125753564 | D34: =IF(A34<=Inversion!$C$23,(1-(1+Inversion!$C$22)^-(Inversion!$C$23))/Inversion!$C$22,0) -> 108.1466875 | E34: 1216865.75 | F34: 233310.7013 | G34: =C34*Inversion!$C$22 -> 983555.0491 | H34: 125520253.3
A35: =IF(A34<Inversion!$C$23,A34+1,"-") -> 30 | B35: =IF(A35<>"-",DATE(YEAR(Inversion!$C$7),MONTH(Inversion!$C$7)+A35,DAY(Inversion!$C$7)),"-") -> 2028-01-10 | C35: =IF(A35<=Inversion!$C$23,IF(H34>0,H34,0),0) -> 125520253.3 | D35: =IF(A35<=Inversion!$C$23,(1-(1+Inversion!$C$22)^-(Inversion!$C$23))/Inversion!$C$22,0) -> 108.1466875 | E35: 1216865.75 | F35: 235135.4918 | G35: =C35*Inversion!$C$22 -> 981730.2585 | H35: 125285117.8
A36: =IF(A35<Inversion!$C$23,A35+1,"-") -> 31 | B36: =IF(A36<>"-",DATE(YEAR(Inversion!$C$7),MONTH(Inversion!$C$7)+A36,DAY(Inversion!$C$7)),"-") -> 2028-02-10 | C36: =IF(A36<=Inversion!$C$23,IF(H35>0,H35,0),0) -> 125285117.8 | D36: =IF(A36<=Inversion!$C$23,(1-(1+Inversion!$C$22)^-(Inversion!$C$23))/Inversion!$C$22,0) -> 108.1466875 | E36: 1216865.75 | F36: 236974.5546 | G36: =C36*Inversion!$C$22 -> 979891.1957 | H36: 125048143.2
A37: =IF(A36<Inversion!$C$23,A36+1,"-") -> 32 | B37: =IF(A37<>"-",DATE(YEAR(Inversion!$C$7),MONTH(Inversion!$C$7)+A37,DAY(Inversion!$C$7)),"-") -> 2028-03-10 | C37: =IF(A37<=Inversion!$C$23,IF(H36>0,H36,0),0) -> 125048143.2 | D37: =IF(A37<=Inversion!$C$23,(1-(1+Inversion!$C$22)^-(Inversion!$C$23))/Inversion!$C$22,0) -> 108.1466875 | E37: 1216865.75 | F37: 238828.0013 | G37: =C37*Inversion!$C$22 -> 978037.7491 | H37: 124809315.2
A38: =IF(A37<Inversion!$C$23,A37+1,"-") -> 33 | B38: =IF(A38<>"-",DATE(YEAR(Inversion!$C$7),MONTH(Inversion!$C$7)+A38,DAY(Inversion!$C$7)),"-") -> 2028-04-10 | C38: =IF(A38<=Inversion!$C$23,IF(H37>0,H37,0),0) -> 124809315.2 | D38: =IF(A38<=Inversion!$C$23,(1-(1+Inversion!$C$22)^-(Inversion!$C$23))/Inversion!$C$22,0) -> 108.1466875 | E38: 1216865.75 | F38: 240695.9442 | G38: =C38*Inversion!$C$22 -> 976169.8061 | H38: 124568619.3
A39: =IF(A38<Inversion!$C$23,A38+1,"-") -> 34 | B39: =IF(A39<>"-",DATE(YEAR(Inversion!$C$7),MONTH(Inversion!$C$7)+A39,DAY(Inversion!$C$7)),"-") -> 2028-05-10 | C39: =IF(A39<=Inversion!$C$23,IF(H38>0,H38,0),0) -> 124568619.3 | D39: =IF(A39<=Inversion!$C$23,(1-(1+Inversion!$C$22)^-(Inversion!$C$23))/Inversion!$C$22,0) -> 108.1466875 | E39: 1216865.75 | F39: 242578.4969 | G39: =C39*Inversion!$C$22 -> 974287.2534 | H39: 124326040.8
A40: =IF(A39<Inversion!$C$23,A39+1,"-") -> 35 | B40: =IF(A40<>"-",DATE(YEAR(Inversion!$C$7),MONTH(Inversion!$C$7)+A40,DAY(Inversion!$C$7)),"-") -> 2028-06-10 | C40: =IF(A40<=Inversion!$C$23,IF(H39>0,H39,0),0) -> 124326040.8 | D40: =IF(A40<=Inversion!$C$23,(1-(1+Inversion!$C$22)^-(Inversion!$C$23))/Inversion!$C$22,0) -> 108.1466875 | E40: 1216865.75 | F40: 244475.7736 | G40: =C40*Inversion!$C$22 -> 972389.9767 | H40: 124081565
A41: =IF(A40<Inversion!$C$23,A40+1,"-") -> 36 | B41: =IF(A41<>"-",DATE(YEAR(Inversion!$C$7),MONTH(Inversion!$C$7)+A41,DAY(Inversion!$C$7)),"-") -> 2028-07-10 | C41: =IF(A41<=Inversion!$C$23,IF(H40>0,H40,0),0) -> 124081565 | D41: =IF(A41<=Inversion!$C$23,(1-(1+Inversion!$C$22)^-(Inversion!$C$23))/Inversion!$C$22,0) -> 108.1466875 | E41: 1216865.75 | F41: 246387.8895 | G41: =C41*Inversion!$C$22 -> 970477.8609 | H41: 123835177.1
A42: =IF(A41<Inversion!$C$23,A41+1,"-") -> 37 | B42: =IF(A42<>"-",DATE(YEAR(Inversion!$C$7),MONTH(Inversion!$C$7)+A42,DAY(Inversion!$C$7)),"-") -> 2028-08-10 | C42: =IF(A42<=Inversion!$C$23,IF(H41>0,H41,0),0) -> 123835177.1 | D42: =IF(A42<=Inversion!$C$23,(1-(1+Inversion!$C$22)^-(Inversion!$C$23))/Inversion!$C$22,0) -> 108.1466875 | E42: 1216865.75 | F42: 248314.9605 | G42: =C42*Inversion!$C$22 -> 968550.7899 | H42: 123586862.1
A43: =IF(A42<Inversion!$C$23,A42+1,"-") -> 38 | B43: =IF(A43<>"-",DATE(YEAR(Inversion!$C$7),MONTH(Inversion!$C$7)+A43,DAY(Inversion!$C$7)),"-") -> 2028-09-10 | C43: =IF(A43<=Inversion!$C$23,IF(H42>0,H42,0),0) -> 123586862.1 | D43: =IF(A43<=Inversion!$C$23,(1-(1+Inversion!$C$22)^-(Inversion!$C$23))/Inversion!$C$22,0) -> 108.1466875 | E43: 1216865.75 | F43: 250257.1037 | G43: =C43*Inversion!$C$22 -> 966608.6466 | H43: 123336605
A44: =IF(A43<Inversion!$C$23,A43+1,"-") -> 39 | B44: =IF(A44<>"-",DATE(YEAR(Inversion!$C$7),MONTH(Inversion!$C$7)+A44,DAY(Inversion!$C$7)),"-") -> 2028-10-10 | C44: =IF(A44<=Inversion!$C$23,IF(H43>0,H43,0),0) -> 123336605 | D44: =IF(A44<=Inversion!$C$23,(1-(1+Inversion!$C$22)^-(Inversion!$C$23))/Inversion!$C$22,0) -> 108.1466875 | E44: 1216865.75 | F44: 252214.437 | G44: =C44*Inversion!$C$22 -> 964651.3133 | H44: 123084390.6
A45: =IF(A44<Inversion!$C$23,A44+1,"-") -> 40 | B45: =IF(A45<>"-",DATE(YEAR(Inversion!$C$7),MONTH(Inversion!$C$7)+A45,DAY(Inversion!$C$7)),"-") -> 2028-11-10 | C45: =IF(A45<=Inversion!$C$23,IF(H44>0,H44,0),0) -> 123084390.6 | D45: =IF(A45<=Inversion!$C$23,(1-(1+Inversion!$C$22)^-(Inversion!$C$23))/Inversion!$C$22,0) -> 108.1466875 | E45: 1216865.75 | F45: 254187.0792 | G45: =C45*Inversion!$C$22 -> 962678.6712 | H45: 122830203.5
A46: =IF(A45<Inversion!$C$23,A45+1,"-") -> 41 | B46: =IF(A46<>"-",DATE(YEAR(Inversion!$C$7),MONTH(Inversion!$C$7)+A46,DAY(Inversion!$C$7)),"-") -> 2028-12-10 | C46: =IF(A46<=Inversion!$C$23,IF(H45>0,H45,0),0) -> 122830203.5 | D46: =IF(A46<=Inversion!$C$23,(1-(1+Inversion!$C$22)^-(Inversion!$C$23))/Inversion!$C$22,0) -> 108.1466875 | E46: 1216865.75 | F46: 256175.15 | G46: =C46*Inversion!$C$22 -> 960690.6004 | H46: 122574028.4
A47: =IF(A46<Inversion!$C$23,A46+1,"-") -> 42 | B47: =IF(A47<>"-",DATE(YEAR(Inversion!$C$7),MONTH(Inversion!$C$7)+A47,DAY(Inversion!$C$7)),"-") -> 2029-01-10 | C47: =IF(A47<=Inversion!$C$23,IF(H46>0,H46,0),0) -> 122574028.4 | D47: =IF(A47<=Inversion!$C$23,(1-(1+Inversion!$C$22)^-(Inversion!$C$23))/Inversion!$C$22,0) -> 108.1466875 | E47: 1216865.75 | F47: 258178.77 | G47: =C47*Inversion!$C$22 -> 958686.9803 | H47: 122315849.6
A48: =IF(A47<Inversion!$C$23,A47+1,"-") -> 43 | B48: =IF(A48<>"-",DATE(YEAR(Inversion!$C$7),MONTH(Inversion!$C$7)+A48,DAY(Inversion!$C$7)),"-") -> 2029-02-10 | C48: =IF(A48<=Inversion!$C$23,IF(H47>0,H47,0),0) -> 122315849.6 | D48: =IF(A48<=Inversion!$C$23,(1-(1+Inversion!$C$22)^-(Inversion!$C$23))/Inversion!$C$22,0) -> 108.1466875 | E48: 1216865.75 | F48: 260198.061 | G48: =C48*Inversion!$C$22 -> 956667.6894 | H48: 122055651.5
A49: =IF(A48<Inversion!$C$23,A48+1,"-") -> 44 | B49: =IF(A49<>"-",DATE(YEAR(Inversion!$C$7),MONTH(Inversion!$C$7)+A49,DAY(Inversion!$C$7)),"-") -> 2029-03-10 | C49: =IF(A49<=Inversion!$C$23,IF(H48>0,H48,0),0) -> 122055651.5 | D49: =IF(A49<=Inversion!$C$23,(1-(1+Inversion!$C$22)^-(Inversion!$C$23))/Inversion!$C$22,0) -> 108.1466875 | E49: 1216865.75 | F49: 262233.1454 | G49: =C49*Inversion!$C$22 -> 954632.605 | H49: 121793418.4
A50: =IF(A49<Inversion!$C$23,A49+1,"-") -> 45 | B50: =IF(A50<>"-",DATE(YEAR(Inversion!$C$7),MONTH(Inversion!$C$7)+A50,DAY(Inversion!$C$7)),"-") -> 2029-04-10 | C50: =IF(A50<=Inversion!$C$23,IF(H49>0,H49,0),0) -> 121793418.4 | D50: =IF(A50<=Inversion!$C$23,(1-(1+Inversion!$C$22)^-(Inversion!$C$23))/Inversion!$C$22,0) -> 108.1466875 | E50: 1216865.75 | F50: 264284.1468 | G50: =C50*Inversion!$C$22 -> 952581.6036 | H50: 121529134.3
A51: =IF(A50<Inversion!$C$23,A50+1,"-") -> 46 | B51: =IF(A51<>"-",DATE(YEAR(Inversion!$C$7),MONTH(Inversion!$C$7)+A51,DAY(Inversion!$C$7)),"-") -> 2029-05-10 | C51: =IF(A51<=Inversion!$C$23,IF(H50>0,H50,0),0) -> 121529134.3 | D51: =IF(A51<=Inversion!$C$23,(1-(1+Inversion!$C$22)^-(Inversion!$C$23))/Inversion!$C$22,0) -> 108.1466875 | E51: 1216865.75 | F51: 266351.1896 | G51: =C51*Inversion!$C$22 -> 950514.5607 | H51: 121262783.1
A52: =IF(A51<Inversion!$C$23,A51+1,"-") -> 47 | B52: =IF(A52<>"-",DATE(YEAR(Inversion!$C$7),MONTH(Inversion!$C$7)+A52,DAY(Inversion!$C$7)),"-") -> 2029-06-10 | C52: =IF(A52<=Inversion!$C$23,IF(H51>0,H51,0),0) -> 121262783.1 | D52: =IF(A52<=Inversion!$C$23,(1-(1+Inversion!$C$22)^-(Inversion!$C$23))/Inversion!$C$22,0) -> 108.1466875 | E52: 1216865.75 | F52: 268434.3994 | G52: =C52*Inversion!$C$22 -> 948431.3509 | H52: 120994348.7
A53: =IF(A52<Inversion!$C$23,A52+1,"-") -> 48 | B53: =IF(A53<>"-",DATE(YEAR(Inversion!$C$7),MONTH(Inversion!$C$7)+A53,DAY(Inversion!$C$7)),"-") -> 2029-07-10 | C53: =IF(A53<=Inversion!$C$23,IF(H52>0,H52,0),0) -> 120994348.7 | D53: =IF(A53<=Inversion!$C$23,(1-(1+Inversion!$C$22)^-(Inversion!$C$23))/Inversion!$C$22,0) -> 108.1466875 | E53: 1216865.75 | F53: 270533.9026 | G53: =C53*Inversion!$C$22 -> 946331.8477 | H53: 120723814.8
A54: =IF(A53<Inversion!$C$23,A53+1,"-") -> 49 | B54: =IF(A54<>"-",DATE(YEAR(Inversion!$C$7),MONTH(Inversion!$C$7)+A54,DAY(Inversion!$C$7)),"-") -> 2029-08-10 | C54: =IF(A54<=Inversion!$C$23,IF(H53>0,H53,0),0) -> 120723814.8 | D54: =IF(A54<=Inversion!$C$23,(1-(1+Inversion!$C$22)^-(Inversion!$C$23))/Inversion!$C$22,0) -> 108.1466875 | E54: 1216865.75 | F54: 272649.8266 | G54: =C54*Inversion!$C$22 -> 944215.9237 | H54: 120451164.9
A55: =IF(A54<Inversion!$C$23,A54+1,"-") -> 50 | B55: =IF(A55<>"-",DATE(YEAR(Inversion!$C$7),MONTH(Inversion!$C$7)+A55,DAY(Inversion!$C$7)),"-") -> 2029-09-10 | C55: =IF(A55<=Inversion!$C$23,IF(H54>0,H54,0),0) -> 120451164.9 | D55: =IF(A55<=Inversion!$C$23,(1-(1+Inversion!$C$22)^-(Inversion!$C$23))/Inversion!$C$22,0) -> 108.1466875 | E55: 1216865.75 | F55: 274782.2999 | G55: =C55*Inversion!$C$22 -> 942083.4505 | H55: 120176382.6
A56: =IF(A55<Inversion!$C$23,A55+1,"-") -> 51 | B56: =IF(A56<>"-",DATE(YEAR(Inversion!$C$7),MONTH(Inversion!$C$7)+A56,DAY(Inversion!$C$7)),"-") -> 2029-10-10 | C56: =IF(A56<=Inversion!$C$23,IF(H55>0,H55,0),0) -> 120176382.6 | D56: =IF(A56<=Inversion!$C$23,(1-(1+Inversion!$C$22)^-(Inversion!$C$23))/Inversion!$C$22,0) -> 108.1466875 | E56: 1216865.75 | F56: 276931.4519 | G56: =C56*Inversion!$C$22 -> 939934.2985 | H56: 119899451.2
A57: =IF(A56<Inversion!$C$23,A56+1,"-") -> 52 | B57: =IF(A57<>"-",DATE(YEAR(Inversion!$C$7),MONTH(Inversion!$C$7)+A57,DAY(Inversion!$C$7)),"-") -> 2029-11-10 | C57: =IF(A57<=Inversion!$C$23,IF(H56>0,H56,0),0) -> 119899451.2 | D57: =IF(A57<=Inversion!$C$23,(1-(1+Inversion!$C$22)^-(Inversion!$C$23))/Inversion!$C$22,0) -> 108.1466875 | E57: 1216865.75 | F57: 279097.413 | G57: =C57*Inversion!$C$22 -> 937768.3374 | H57: 119620353.8
A58: =IF(A57<Inversion!$C$23,A57+1,"-") -> 53 | B58: =IF(A58<>"-",DATE(YEAR(Inversion!$C$7),MONTH(Inversion!$C$7)+A58,DAY(Inversion!$C$7)),"-") -> 2029-12-10 | C58: =IF(A58<=Inversion!$C$23,IF(H57>0,H57,0),0) -> 119620353.8 | D58: =IF(A58<=Inversion!$C$23,(1-(1+Inversion!$C$22)^-(Inversion!$C$23))/Inversion!$C$22,0) -> 108.1466875 | E58: 1216865.75 | F58: 281280.3147 | G58: =C58*Inversion!$C$22 -> 935585.4357 | H58: 119339073.5
A59: =IF(A58<Inversion!$C$23,A58+1,"-") -> 54 | B59: =IF(A59<>"-",DATE(YEAR(Inversion!$C$7),MONTH(Inversion!$C$7)+A59,DAY(Inversion!$C$7)),"-") -> 2030-01-10 | C59: =IF(A59<=Inversion!$C$23,IF(H58>0,H58,0),0) -> 119339073.5 | D59: =IF(A59<=Inversion!$C$23,(1-(1+Inversion!$C$22)^-(Inversion!$C$23))/Inversion!$C$22,0) -> 108.1466875 | E59: 1216865.75 | F59: 283480.2895 | G59: =C59*Inversion!$C$22 -> 933385.4609 | H59: 119055593.2
A60: =IF(A59<Inversion!$C$23,A59+1,"-") -> 55 | B60: =IF(A60<>"-",DATE(YEAR(Inversion!$C$7),MONTH(Inversion!$C$7)+A60,DAY(Inversion!$C$7)),"-") -> 2030-02-10 | C60: =IF(A60<=Inversion!$C$23,IF(H59>0,H59,0),0) -> 119055593.2 | D60: =IF(A60<=Inversion!$C$23,(1-(1+Inversion!$C$22)^-(Inversion!$C$23))/Inversion!$C$22,0) -> 108.1466875 | E60: 1216865.75 | F60: 285697.471 | G60: =C60*Inversion!$C$22 -> 931168.2794 | H60: 118769895.7
A61: =IF(A60<Inversion!$C$23,A60+1,"-") -> 56 | B61: =IF(A61<>"-",DATE(YEAR(Inversion!$C$7),MONTH(Inversion!$C$7)+A61,DAY(Inversion!$C$7)),"-") -> 2030-03-10 | C61: =IF(A61<=Inversion!$C$23,IF(H60>0,H60,0),0) -> 118769895.7 | D61: =IF(A61<=Inversion!$C$23,(1-(1+Inversion!$C$22)^-(Inversion!$C$23))/Inversion!$C$22,0) -> 108.1466875 | E61: 1216865.75 | F61: 287931.9936 | G61: =C61*Inversion!$C$22 -> 928933.7567 | H61: 118481963.7
A62: =IF(A61<Inversion!$C$23,A61+1,"-") -> 57 | B62: =IF(A62<>"-",DATE(YEAR(Inversion!$C$7),MONTH(Inversion!$C$7)+A62,DAY(Inversion!$C$7)),"-") -> 2030-04-10 | C62: =IF(A62<=Inversion!$C$23,IF(H61>0,H61,0),0) -> 118481963.7 | D62: =IF(A62<=Inversion!$C$23,(1-(1+Inversion!$C$22)^-(Inversion!$C$23))/Inversion!$C$22,0) -> 108.1466875 | E62: 1216865.75 | F62: 290183.9932 | G62: =C62*Inversion!$C$22 -> 926681.7572 | H62: 118191779.7
A63: =IF(A62<Inversion!$C$23,A62+1,"-") -> 58 | B63: =IF(A63<>"-",DATE(YEAR(Inversion!$C$7),MONTH(Inversion!$C$7)+A63,DAY(Inversion!$C$7)),"-") -> 2030-05-10 | C63: =IF(A63<=Inversion!$C$23,IF(H62>0,H62,0),0) -> 118191779.7 | D63: =IF(A63<=Inversion!$C$23,(1-(1+Inversion!$C$22)^-(Inversion!$C$23))/Inversion!$C$22,0) -> 108.1466875 | E63: 1216865.75 | F63: 292453.6062 | G63: =C63*Inversion!$C$22 -> 924412.1442 | H63: 117899326.1
A64: =IF(A63<Inversion!$C$23,A63+1,"-") -> 59 | B64: =IF(A64<>"-",DATE(YEAR(Inversion!$C$7),MONTH(Inversion!$C$7)+A64,DAY(Inversion!$C$7)),"-") -> 2030-06-10 | C64: =IF(A64<=Inversion!$C$23,IF(H63>0,H63,0),0) -> 117899326.1 | D64: =IF(A64<=Inversion!$C$23,(1-(1+Inversion!$C$22)^-(Inversion!$C$23))/Inversion!$C$22,0) -> 108.1466875 | E64: 1216865.75 | F64: 294740.9706 | G64: =C64*Inversion!$C$22 -> 922124.7798 | H64: 117604585.1
A65: =IF(A64<Inversion!$C$23,A64+1,"-") -> 60 | B65: =IF(A65<>"-",DATE(YEAR(Inversion!$C$7),MONTH(Inversion!$C$7)+A65,DAY(Inversion!$C$7)),"-") -> 2030-07-10 | C65: =IF(A65<=Inversion!$C$23,IF(H64>0,H64,0),0) -> 117604585.1 | D65: =IF(A65<=Inversion!$C$23,(1-(1+Inversion!$C$22)^-(Inversion!$C$23))/Inversion!$C$22,0) -> 108.1466875 | E65: 1216865.75 | F65: 297046.2251 | G65: =C65*Inversion!$C$22 -> 919819.5253 | H65: 117307538.9
A66: =IF(A65<Inversion!$C$23,A65+1,"-") -> 61 | B66: =IF(A66<>"-",DATE(YEAR(Inversion!$C$7),MONTH(Inversion!$C$7)+A66,DAY(Inversion!$C$7)),"-") -> 2030-08-10 | C66: =IF(A66<=Inversion!$C$23,IF(H65>0,H65,0),0) -> 117307538.9 | D66: =IF(A66<=Inversion!$C$23,(1-(1+Inversion!$C$22)^-(Inversion!$C$23))/Inversion!$C$22,0) -> 108.1466875 | E66: 1216865.75 | F66: 299369.5097 | G66: =C66*Inversion!$C$22 -> 917496.2407 | H66: 117008169.4
A67: =IF(A66<Inversion!$C$23,A66+1,"-") -> 62 | B67: =IF(A67<>"-",DATE(YEAR(Inversion!$C$7),MONTH(Inversion!$C$7)+A67,DAY(Inversion!$C$7)),"-") -> 2030-09-10 | C67: =IF(A67<=Inversion!$C$23,IF(H66>0,H66,0),0) -> 117008169.4 | D67: =IF(A67<=Inversion!$C$23,(1-(1+Inversion!$C$22)^-(Inversion!$C$23))/Inversion!$C$22,0) -> 108.1466875 | E67: 1216865.75 | F67: 301710.9653 | G67: =C67*Inversion!$C$22 -> 915154.7851 | H67: 116706458.4
A68: =IF(A67<Inversion!$C$23,A67+1,"-") -> 63 | B68: =IF(A68<>"-",DATE(YEAR(Inversion!$C$7),MONTH(Inversion!$C$7)+A68,DAY(Inversion!$C$7)),"-") -> 2030-10-10 | C68: =IF(A68<=Inversion!$C$23,IF(H67>0,H67,0),0) -> 116706458.4 | D68: =IF(A68<=Inversion!$C$23,(1-(1+Inversion!$C$22)^-(Inversion!$C$23))/Inversion!$C$22,0) -> 108.1466875 | E68: 1216865.75 | F68: 304070.7342 | G68: =C68*Inversion!$C$22 -> 912795.0162 | H68: 116402387.7
A69: =IF(A68<Inversion!$C$23,A68+1,"-") -> 64 | B69: =IF(A69<>"-",DATE(YEAR(Inversion!$C$7),MONTH(Inversion!$C$7)+A69,DAY(Inversion!$C$7)),"-") -> 2030-11-10 | C69: =IF(A69<=Inversion!$C$23,IF(H68>0,H68,0),0) -> 116402387.7 | D69: =IF(A69<=Inversion!$C$23,(1-(1+Inversion!$C$22)^-(Inversion!$C$23))/Inversion!$C$22,0) -> 108.1466875 | E69: 1216865.75 | F69: 306448.9594 | G69: =C69*Inversion!$C$22 -> 910416.7909 | H69: 116095938.7
A70: =IF(A69<Inversion!$C$23,A69+1,"-") -> 65 | B70: =IF(A70<>"-",DATE(YEAR(Inversion!$C$7),MONTH(Inversion!$C$7)+A70,DAY(Inversion!$C$7)),"-") -> 2030-12-10 | C70: =IF(A70<=Inversion!$C$23,IF(H69>0,H69,0),0) -> 116095938.7 | D70: =IF(A70<=Inversion!$C$23,(1-(1+Inversion!$C$22)^-(Inversion!$C$23))/Inversion!$C$22,0) -> 108.1466875 | E70: 1216865.75 | F70: 308845.7855 | G70: =C70*Inversion!$C$22 -> 908019.9648 | H70: 115787093
A71: =IF(A70<Inversion!$C$23,A70+1,"-") -> 66 | B71: =IF(A71<>"-",DATE(YEAR(Inversion!$C$7),MONTH(Inversion!$C$7)+A71,DAY(Inversion!$C$7)),"-") -> 2031-01-10 | C71: =IF(A71<=Inversion!$C$23,IF(H70>0,H70,0),0) -> 115787093 | D71: =IF(A71<=Inversion!$C$23,(1-(1+Inversion!$C$22)^-(Inversion!$C$23))/Inversion!$C$22,0) -> 108.1466875 | E71: 1216865.75 | F71: 311261.3579 | G71: =C71*Inversion!$C$22 -> 905604.3925 | H71: 115475831.6
A72: =IF(A71<Inversion!$C$23,A71+1,"-") -> 67 | B72: =IF(A72<>"-",DATE(YEAR(Inversion!$C$7),MONTH(Inversion!$C$7)+A72,DAY(Inversion!$C$7)),"-") -> 2031-02-10 | C72: =IF(A72<=Inversion!$C$23,IF(H71>0,H71,0),0) -> 115475831.6 | D72: =IF(A72<=Inversion!$C$23,(1-(1+Inversion!$C$22)^-(Inversion!$C$23))/Inversion!$C$22,0) -> 108.1466875 | E72: 1216865.75 | F72: 313695.8231 | G72: =C72*Inversion!$C$22 -> 903169.9273 | H72: 115162135.8
A73: =IF(A72<Inversion!$C$23,A72+1,"-") -> 68 | B73: =IF(A73<>"-",DATE(YEAR(Inversion!$C$7),MONTH(Inversion!$C$7)+A73,DAY(Inversion!$C$7)),"-") -> 2031-03-10 | C73: =IF(A73<=Inversion!$C$23,IF(H72>0,H72,0),0) -> 115162135.8 | D73: =IF(A73<=Inversion!$C$23,(1-(1+Inversion!$C$22)^-(Inversion!$C$23))/Inversion!$C$22,0) -> 108.1466875 | E73: 1216865.75 | F73: =E73-G73 -> 316149.329 | G73: =C73*Inversion!$C$22 -> 900716.4214 | H73: 114845986.4
A74: =IF(A73<Inversion!$C$23,A73+1,"-") -> 69 | B74: =IF(A74<>"-",DATE(YEAR(Inversion!$C$7),MONTH(Inversion!$C$7)+A74,DAY(Inversion!$C$7)),"-") -> 2031-04-10 | C74: =IF(A74<=Inversion!$C$23,IF(H73>0,H73,0),0) -> 114845986.4 | D74: =IF(A74<=Inversion!$C$23,(1-(1+Inversion!$C$22)^-(Inversion!$C$23))/Inversion!$C$22,0) -> 108.1466875 | E74: 1216865.75 | F74: 318622.0245 | G74: =C74*Inversion!$C$22 -> 898243.7259 | H74: 114527364.4
A75: =IF(A74<Inversion!$C$23,A74+1,"-") -> 70 | B75: =IF(A75<>"-",DATE(YEAR(Inversion!$C$7),MONTH(Inversion!$C$7)+A75,DAY(Inversion!$C$7)),"-") -> 2031-05-10 | C75: =IF(A75<=Inversion!$C$23,IF(H74>0,H74,0),0) -> 114527364.4 | D75: =IF(A75<=Inversion!$C$23,(1-(1+Inversion!$C$22)^-(Inversion!$C$23))/Inversion!$C$22,0) -> 108.1466875 | E75: 1216865.75 | F75: 321114.0596 | G75: =C75*Inversion!$C$22 -> 895751.6907 | H75: 114206250.4
A76: =IF(A75<Inversion!$C$23,A75+1,"-") -> 71 | B76: =IF(A76<>"-",DATE(YEAR(Inversion!$C$7),MONTH(Inversion!$C$7)+A76,DAY(Inversion!$C$7)),"-") -> 2031-06-10 | C76: =IF(A76<=Inversion!$C$23,IF(H75>0,H75,0),0) -> 114206250.4 | D76: =IF(A76<=Inversion!$C$23,(1-(1+Inversion!$C$22)^-(Inversion!$C$23))/Inversion!$C$22,0) -> 108.1466875 | E76: 1216865.75 | F76: 323625.5857 | G76: =C76*Inversion!$C$22 -> 893240.1647 | H76: 113882624.8
A77: =IF(A76<Inversion!$C$23,A76+1,"-") -> 72 | B77: =IF(A77<>"-",DATE(YEAR(Inversion!$C$7),MONTH(Inversion!$C$7)+A77,DAY(Inversion!$C$7)),"-") -> 2031-07-10 | C77: =IF(A77<=Inversion!$C$23,IF(H76>0,H76,0),0) -> 113882624.8 | D77: =IF(A77<=Inversion!$C$23,(1-(1+Inversion!$C$22)^-(Inversion!$C$23))/Inversion!$C$22,0) -> 108.1466875 | E77: 1216865.75 | F77: 326156.7552 | G77: =C77*Inversion!$C$22 -> 890708.9952 | H77: 113556468
A78: =IF(A77<Inversion!$C$23,A77+1,"-") -> 73 | B78: =IF(A78<>"-",DATE(YEAR(Inversion!$C$7),MONTH(Inversion!$C$7)+A78,DAY(Inversion!$C$7)),"-") -> 2031-08-10 | C78: =IF(A78<=Inversion!$C$23,IF(H77>0,H77,0),0) -> 113556468 | D78: =IF(A78<=Inversion!$C$23,(1-(1+Inversion!$C$22)^-(Inversion!$C$23))/Inversion!$C$22,0) -> 108.1466875 | E78: 1216865.75 | F78: 328707.7216 | G78: =C78*Inversion!$C$22 -> 888158.0288 | H78: 113227760.3
A79: =IF(A78<Inversion!$C$23,A78+1,"-") -> 74 | B79: =IF(A79<>"-",DATE(YEAR(Inversion!$C$7),MONTH(Inversion!$C$7)+A79,DAY(Inversion!$C$7)),"-") -> 2031-09-10 | C79: =IF(A79<=Inversion!$C$23,IF(H78>0,H78,0),0) -> 113227760.3 | D79: =IF(A79<=Inversion!$C$23,(1-(1+Inversion!$C$22)^-(Inversion!$C$23))/Inversion!$C$22,0) -> 108.1466875 | E79: 1216865.75 | F79: 331278.6399 | G79: =C79*Inversion!$C$22 -> 885587.1105 | H79: 112896481.7
A80: =IF(A79<Inversion!$C$23,A79+1,"-") -> 75 | B80: =IF(A80<>"-",DATE(YEAR(Inversion!$C$7),MONTH(Inversion!$C$7)+A80,DAY(Inversion!$C$7)),"-") -> 2031-10-10 | C80: =IF(A80<=Inversion!$C$23,IF(H79>0,H79,0),0) -> 112896481.7 | D80: =IF(A80<=Inversion!$C$23,(1-(1+Inversion!$C$22)^-(Inversion!$C$23))/Inversion!$C$22,0) -> 108.1466875 | E80: =IF(C80<E79-G80,C80+G80,IF(C80=0,0,$C$6/D80)) -> 1216865.75 | F80: 333869.6661 | G80: =C80*Inversion!$C$22 -> 882996.0843 | H80: =C80-F80 -> 112562612
A81: =IF(A80<Inversion!$C$23,A80+1,"-") -> 76 | B81: =IF(A81<>"-",DATE(YEAR(Inversion!$C$7),MONTH(Inversion!$C$7)+A81,DAY(Inversion!$C$7)),"-") -> 2031-11-10 | C81: =IF(A81<=Inversion!$C$23,IF(H80>0,H80,0),0) -> 112562612 | D81: =IF(A81<=Inversion!$C$23,(1-(1+Inversion!$C$22)^-(Inversion!$C$23))/Inversion!$C$22,0) -> 108.1466875 | E81: 1216865.75 | F81: 336480.9575 | G81: =C81*Inversion!$C$22 -> 880384.7929 | H81: 112226131
A82: =IF(A81<Inversion!$C$23,A81+1,"-") -> 77 | B82: =IF(A82<>"-",DATE(YEAR(Inversion!$C$7),MONTH(Inversion!$C$7)+A82,DAY(Inversion!$C$7)),"-") -> 2031-12-10 | C82: =IF(A82<=Inversion!$C$23,IF(H81>0,H81,0),0) -> 112226131 | D82: =IF(A82<=Inversion!$C$23,(1-(1+Inversion!$C$22)^-(Inversion!$C$23))/Inversion!$C$22,0) -> 108.1466875 | E82: 1216865.75 | F82: 339112.6725 | G82: =C82*Inversion!$C$22 -> 877753.0779 | H82: 111887018.4
A83: =IF(A82<Inversion!$C$23,A82+1,"-") -> 78 | B83: =IF(A83<>"-",DATE(YEAR(Inversion!$C$7),MONTH(Inversion!$C$7)+A83,DAY(Inversion!$C$7)),"-") -> 2032-01-10 | C83: =IF(A83<=Inversion!$C$23,IF(H82>0,H82,0),0) -> 111887018.4 | D83: =IF(A83<=Inversion!$C$23,(1-(1+Inversion!$C$22)^-(Inversion!$C$23))/Inversion!$C$22,0) -> 108.1466875 | E83: 1216865.75 | F83: 341764.9709 | G83: =C83*Inversion!$C$22 -> 875100.7794 | H83: 111545253.4
A84: =IF(A83<Inversion!$C$23,A83+1,"-") -> 79 | B84: =IF(A84<>"-",DATE(YEAR(Inversion!$C$7),MONTH(Inversion!$C$7)+A84,DAY(Inversion!$C$7)),"-") -> 2032-02-10 | C84: =IF(A84<=Inversion!$C$23,IF(H83>0,H83,0),0) -> 111545253.4 | D84: =IF(A84<=Inversion!$C$23,(1-(1+Inversion!$C$22)^-(Inversion!$C$23))/Inversion!$C$22,0) -> 108.1466875 | E84: 1216865.75 | F84: 344438.0138 | G84: =C84*Inversion!$C$22 -> 872427.7366 | H84: 111200815.4
A85: =IF(A84<Inversion!$C$23,A84+1,"-") -> 80 | B85: =IF(A85<>"-",DATE(YEAR(Inversion!$C$7),MONTH(Inversion!$C$7)+A85,DAY(Inversion!$C$7)),"-") -> 2032-03-10 | C85: =IF(A85<=Inversion!$C$23,IF(H84>0,H84,0),0) -> 111200815.4 | D85: =IF(A85<=Inversion!$C$23,(1-(1+Inversion!$C$22)^-(Inversion!$C$23))/Inversion!$C$22,0) -> 108.1466875 | E85: 1216865.75 | F85: 347131.9633 | G85: =C85*Inversion!$C$22 -> 869733.7871 | H85: 110853683.4
A86: =IF(A85<Inversion!$C$23,A85+1,"-") -> 81 | B86: =IF(A86<>"-",DATE(YEAR(Inversion!$C$7),MONTH(Inversion!$C$7)+A86,DAY(Inversion!$C$7)),"-") -> 2032-04-10 | C86: =IF(A86<=Inversion!$C$23,IF(H85>0,H85,0),0) -> 110853683.4 | D86: =IF(A86<=Inversion!$C$23,(1-(1+Inversion!$C$22)^-(Inversion!$C$23))/Inversion!$C$22,0) -> 108.1466875 | E86: 1216865.75 | F86: 349846.9829 | G86: =C86*Inversion!$C$22 -> 867018.7675 | H86: 110503836.4
A87: =IF(A86<Inversion!$C$23,A86+1,"-") -> 82 | B87: =IF(A87<>"-",DATE(YEAR(Inversion!$C$7),MONTH(Inversion!$C$7)+A87,DAY(Inversion!$C$7)),"-") -> 2032-05-10 | C87: =IF(A87<=Inversion!$C$23,IF(H86>0,H86,0),0) -> 110503836.4 | D87: =IF(A87<=Inversion!$C$23,(1-(1+Inversion!$C$22)^-(Inversion!$C$23))/Inversion!$C$22,0) -> 108.1466875 | E87: 1216865.75 | F87: 352583.2375 | G87: =C87*Inversion!$C$22 -> 864282.5129 | H87: 110151253.2
A88: =IF(A87<Inversion!$C$23,A87+1,"-") -> 83 | B88: =IF(A88<>"-",DATE(YEAR(Inversion!$C$7),MONTH(Inversion!$C$7)+A88,DAY(Inversion!$C$7)),"-") -> 2032-06-10 | C88: =IF(A88<=Inversion!$C$23,IF(H87>0,H87,0),0) -> 110151253.2 | D88: =IF(A88<=Inversion!$C$23,(1-(1+Inversion!$C$22)^-(Inversion!$C$23))/Inversion!$C$22,0) -> 108.1466875 | E88: 1216865.75 | F88: 355340.8931 | G88: =C88*Inversion!$C$22 -> 861524.8573 | H88: 109795912.3
A89: =IF(A88<Inversion!$C$23,A88+1,"-") -> 84 | B89: =IF(A89<>"-",DATE(YEAR(Inversion!$C$7),MONTH(Inversion!$C$7)+A89,DAY(Inversion!$C$7)),"-") -> 2032-07-10 | C89: =IF(A89<=Inversion!$C$23,IF(H88>0,H88,0),0) -> 109795912.3 | D89: =IF(A89<=Inversion!$C$23,(1-(1+Inversion!$C$22)^-(Inversion!$C$23))/Inversion!$C$22,0) -> 108.1466875 | E89: 1216865.75 | F89: 358120.1172 | G89: =C89*Inversion!$C$22 -> 858745.6332 | H89: 109437792.2
A90: =IF(A89<Inversion!$C$23,A89+1,"-") -> 85 | B90: =IF(A90<>"-",DATE(YEAR(Inversion!$C$7),MONTH(Inversion!$C$7)+A90,DAY(Inversion!$C$7)),"-") -> 2032-08-10 | C90: =IF(A90<=Inversion!$C$23,IF(H89>0,H89,0),0) -> 109437792.2 | D90: =IF(A90<=Inversion!$C$23,(1-(1+Inversion!$C$22)^-(Inversion!$C$23))/Inversion!$C$22,0) -> 108.1466875 | E90: 1216865.75 | F90: 360921.0783 | G90: =C90*Inversion!$C$22 -> 855944.672 | H90: 109076871.1
A91: =IF(A90<Inversion!$C$23,A90+1,"-") -> 86 | B91: =IF(A91<>"-",DATE(YEAR(Inversion!$C$7),MONTH(Inversion!$C$7)+A91,DAY(Inversion!$C$7)),"-") -> 2032-09-10 | C91: =IF(A91<=Inversion!$C$23,IF(H90>0,H90,0),0) -> 109076871.1 | D91: =IF(A91<=Inversion!$C$23,(1-(1+Inversion!$C$22)^-(Inversion!$C$23))/Inversion!$C$22,0) -> 108.1466875 | E91: 1216865.75 | F91: 363743.9466 | G91: =C91*Inversion!$C$22 -> 853121.8038 | H91: 108713127.2
A92: =IF(A91<Inversion!$C$23,A91+1,"-") -> 87 | B92: =IF(A92<>"-",DATE(YEAR(Inversion!$C$7),MONTH(Inversion!$C$7)+A92,DAY(Inversion!$C$7)),"-") -> 2032-10-10 | C92: =IF(A92<=Inversion!$C$23,IF(H91>0,H91,0),0) -> 108713127.2 | D92: =IF(A92<=Inversion!$C$23,(1-(1+Inversion!$C$22)^-(Inversion!$C$23))/Inversion!$C$22,0) -> 108.1466875 | E92: 1216865.75 | F92: 366588.8934 | G92: =C92*Inversion!$C$22 -> 850276.857 | H92: 108346538.3
A93: =IF(A92<Inversion!$C$23,A92+1,"-") -> 88 | B93: =IF(A93<>"-",DATE(YEAR(Inversion!$C$7),MONTH(Inversion!$C$7)+A93,DAY(Inversion!$C$7)),"-") -> 2032-11-10 | C93: =IF(A93<=Inversion!$C$23,IF(H92>0,H92,0),0) -> 108346538.3 | D93: =IF(A93<=Inversion!$C$23,(1-(1+Inversion!$C$22)^-(Inversion!$C$23))/Inversion!$C$22,0) -> 108.1466875 | E93: 1216865.75 | F93: 369456.0913 | G93: =C93*Inversion!$C$22 -> 847409.6591 | H93: 107977082.2
A94: =IF(A93<Inversion!$C$23,A93+1,"-") -> 89 | B94: =IF(A94<>"-",DATE(YEAR(Inversion!$C$7),MONTH(Inversion!$C$7)+A94,DAY(Inversion!$C$7)),"-") -> 2032-12-10 | C94: =IF(A94<=Inversion!$C$23,IF(H93>0,H93,0),0) -> 107977082.2 | D94: =IF(A94<=Inversion!$C$23,(1-(1+Inversion!$C$22)^-(Inversion!$C$23))/Inversion!$C$22,0) -> 108.1466875 | E94: 1216865.75 | F94: 372345.7144 | G94: =C94*Inversion!$C$22 -> 844520.036 | H94: 107604736.5
A95: =IF(A94<Inversion!$C$23,A94+1,"-") -> 90 | B95: =IF(A95<>"-",DATE(YEAR(Inversion!$C$7),MONTH(Inversion!$C$7)+A95,DAY(Inversion!$C$7)),"-") -> 2033-01-10 | C95: =IF(A95<=Inversion!$C$23,IF(H94>0,H94,0),0) -> 107604736.5 | D95: =IF(A95<=Inversion!$C$23,(1-(1+Inversion!$C$22)^-(Inversion!$C$23))/Inversion!$C$22,0) -> 108.1466875 | E95: 1216865.75 | F95: 375257.9381 | G95: =C95*Inversion!$C$22 -> 841607.8123 | H95: 107229478.5
A96: =IF(A95<Inversion!$C$23,A95+1,"-") -> 91 | B96: =IF(A96<>"-",DATE(YEAR(Inversion!$C$7),MONTH(Inversion!$C$7)+A96,DAY(Inversion!$C$7)),"-") -> 2033-02-10 | C96: =IF(A96<=Inversion!$C$23,IF(H95>0,H95,0),0) -> 107229478.5 | D96: =IF(A96<=Inversion!$C$23,(1-(1+Inversion!$C$22)^-(Inversion!$C$23))/Inversion!$C$22,0) -> 108.1466875 | E96: 1216865.75 | F96: 378192.9391 | G96: =C96*Inversion!$C$22 -> 838672.8112 | H96: 106851285.6
A97: =IF(A96<Inversion!$C$23,A96+1,"-") -> 92 | B97: =IF(A97<>"-",DATE(YEAR(Inversion!$C$7),MONTH(Inversion!$C$7)+A97,DAY(Inversion!$C$7)),"-") -> 2033-03-10 | C97: =IF(A97<=Inversion!$C$23,IF(H96>0,H96,0),0) -> 106851285.6 | D97: =IF(A97<=Inversion!$C$23,(1-(1+Inversion!$C$22)^-(Inversion!$C$23))/Inversion!$C$22,0) -> 108.1466875 | E97: 1216865.75 | F97: 381150.8957 | G97: =C97*Inversion!$C$22 -> 835714.8547 | H97: 106470134.7
A98: =IF(A97<Inversion!$C$23,A97+1,"-") -> 93 | B98: =IF(A98<>"-",DATE(YEAR(Inversion!$C$7),MONTH(Inversion!$C$7)+A98,DAY(Inversion!$C$7)),"-") -> 2033-04-10 | C98: =IF(A98<=Inversion!$C$23,IF(H97>0,H97,0),0) -> 106470134.7 | D98: =IF(A98<=Inversion!$C$23,(1-(1+Inversion!$C$22)^-(Inversion!$C$23))/Inversion!$C$22,0) -> 108.1466875 | E98: 1216865.75 | F98: 384131.9872 | G98: =C98*Inversion!$C$22 -> 832733.7632 | H98: 106086002.7
A99: =IF(A98<Inversion!$C$23,A98+1,"-") -> 94 | B99: =IF(A99<>"-",DATE(YEAR(Inversion!$C$7),MONTH(Inversion!$C$7)+A99,DAY(Inversion!$C$7)),"-") -> 2033-05-10 | C99: =IF(A99<=Inversion!$C$23,IF(H98>0,H98,0),0) -> 106086002.7 | D99: =IF(A99<=Inversion!$C$23,(1-(1+Inversion!$C$22)^-(Inversion!$C$23))/Inversion!$C$22,0) -> 108.1466875 | E99: 1216865.75 | F99: 387136.3947 | G99: =C99*Inversion!$C$22 -> 829729.3556 | H99: 105698866.3
A100: =IF(A99<Inversion!$C$23,A99+1,"-") -> 95 | B100: =IF(A100<>"-",DATE(YEAR(Inversion!$C$7),MONTH(Inversion!$C$7)+A100,DAY(Inversion!$C$7)),"-") -> 2033-06-10 | C100: =IF(A100<=Inversion!$C$23,IF(H99>0,H99,0),0) -> 105698866.3 | D100: =IF(A100<=Inversion!$C$23,(1-(1+Inversion!$C$22)^-(Inversion!$C$23))/Inversion!$C$22,0) -> 108.1466875 | E100: 1216865.75 | F100: 390164.3006 | G100: =C100*Inversion!$C$22 -> 826701.4497 | H100: 105308702
A101: =IF(A100<Inversion!$C$23,A100+1,"-") -> 96 | B101: =IF(A101<>"-",DATE(YEAR(Inversion!$C$7),MONTH(Inversion!$C$7)+A101,DAY(Inversion!$C$7)),"-") -> 2033-07-10 | C101: =IF(A101<=Inversion!$C$23,IF(H100>0,H100,0),0) -> 105308702 | D101: =IF(A101<=Inversion!$C$23,(1-(1+Inversion!$C$22)^-(Inversion!$C$23))/Inversion!$C$22,0) -> 108.1466875 | E101: 1216865.75 | F101: 393215.8886 | G101: =C101*Inversion!$C$22 -> 823649.8617 | H101: 104915486.1
A102: =IF(A101<Inversion!$C$23,A101+1,"-") -> 97 | B102: =IF(A102<>"-",DATE(YEAR(Inversion!$C$7),MONTH(Inversion!$C$7)+A102,DAY(Inversion!$C$7)),"-") -> 2033-08-10 | C102: =IF(A102<=Inversion!$C$23,IF(H101>0,H101,0),0) -> 104915486.1 | D102: =IF(A102<=Inversion!$C$23,(1-(1+Inversion!$C$22)^-(Inversion!$C$23))/Inversion!$C$22,0) -> 108.1466875 | E102: 1216865.75 | F102: 396291.344 | G102: =C102*Inversion!$C$22 -> 820574.4064 | H102: 104519194.8
A103: =IF(A102<Inversion!$C$23,A102+1,"-") -> 98 | B103: =IF(A103<>"-",DATE(YEAR(Inversion!$C$7),MONTH(Inversion!$C$7)+A103,DAY(Inversion!$C$7)),"-") -> 2033-09-10 | C103: =IF(A103<=Inversion!$C$23,IF(H102>0,H102,0),0) -> 104519194.8 | D103: =IF(A103<=Inversion!$C$23,(1-(1+Inversion!$C$22)^-(Inversion!$C$23))/Inversion!$C$22,0) -> 108.1466875 | E103: 1216865.75 | F103: 399390.8534 | G103: =C103*Inversion!$C$22 -> 817474.897 | H103: 104119803.9
A104: =IF(A103<Inversion!$C$23,A103+1,"-") -> 99 | B104: =IF(A104<>"-",DATE(YEAR(Inversion!$C$7),MONTH(Inversion!$C$7)+A104,DAY(Inversion!$C$7)),"-") -> 2033-10-10 | C104: =IF(A104<=Inversion!$C$23,IF(H103>0,H103,0),0) -> 104119803.9 | D104: =IF(A104<=Inversion!$C$23,(1-(1+Inversion!$C$22)^-(Inversion!$C$23))/Inversion!$C$22,0) -> 108.1466875 | E104: 1216865.75 | F104: 402514.6049 | G104: =C104*Inversion!$C$22 -> 814351.1454 | H104: 103717289.3
A105: =IF(A104<Inversion!$C$23,A104+1,"-") -> 100 | B105: =IF(A105<>"-",DATE(YEAR(Inversion!$C$7),MONTH(Inversion!$C$7)+A105,DAY(Inversion!$C$7)),"-") -> 2033-11-10 | C105: =IF(A105<=Inversion!$C$23,IF(H104>0,H104,0),0) -> 103717289.3 | D105: =IF(A105<=Inversion!$C$23,(1-(1+Inversion!$C$22)^-(Inversion!$C$23))/Inversion!$C$22,0) -> 108.1466875 | E105: 1216865.75 | F105: 405662.7883 | G105: =C105*Inversion!$C$22 -> 811202.9621 | H105: 103311626.5
A106: =IF(A105<Inversion!$C$23,A105+1,"-") -> 101 | B106: =IF(A106<>"-",DATE(YEAR(Inversion!$C$7),MONTH(Inversion!$C$7)+A106,DAY(Inversion!$C$7)),"-") -> 2033-12-10 | C106: =IF(A106<=Inversion!$C$23,IF(H105>0,H105,0),0) -> 103311626.5 | D106: =IF(A106<=Inversion!$C$23,(1-(1+Inversion!$C$22)^-(Inversion!$C$23))/Inversion!$C$22,0) -> 108.1466875 | E106: 1216865.75 | F106: 408835.5944 | G106: =C106*Inversion!$C$22 -> 808030.1559 | H106: 102902790.9
A107: =IF(A106<Inversion!$C$23,A106+1,"-") -> 102 | B107: =IF(A107<>"-",DATE(YEAR(Inversion!$C$7),MONTH(Inversion!$C$7)+A107,DAY(Inversion!$C$7)),"-") -> 2034-01-10 | C107: =IF(A107<=Inversion!$C$23,IF(H106>0,H106,0),0) -> 102902790.9 | D107: =IF(A107<=Inversion!$C$23,(1-(1+Inversion!$C$22)^-(Inversion!$C$23))/Inversion!$C$22,0) -> 108.1466875 | E107: 1216865.75 | F107: 412033.216 | G107: =C107*Inversion!$C$22 -> 804832.5343 | H107: 102490757.7
A108: =IF(A107<Inversion!$C$23,A107+1,"-") -> 103 | B108: =IF(A108<>"-",DATE(YEAR(Inversion!$C$7),MONTH(Inversion!$C$7)+A108,DAY(Inversion!$C$7)),"-") -> 2034-02-10 | C108: =IF(A108<=Inversion!$C$23,IF(H107>0,H107,0),0) -> 102490757.7 | D108: =IF(A108<=Inversion!$C$23,(1-(1+Inversion!$C$22)^-(Inversion!$C$23))/Inversion!$C$22,0) -> 108.1466875 | E108: 1216865.75 | F108: 415255.8472 | G108: =C108*Inversion!$C$22 -> 801609.9032 | H108: 102075501.9
A109: =IF(A108<Inversion!$C$23,A108+1,"-") -> 104 | B109: =IF(A109<>"-",DATE(YEAR(Inversion!$C$7),MONTH(Inversion!$C$7)+A109,DAY(Inversion!$C$7)),"-") -> 2034-03-10 | C109: =IF(A109<=Inversion!$C$23,IF(H108>0,H108,0),0) -> 102075501.9 | D109: =IF(A109<=Inversion!$C$23,(1-(1+Inversion!$C$22)^-(Inversion!$C$23))/Inversion!$C$22,0) -> 108.1466875 | E109: 1216865.75 | F109: 418503.6834 | G109: =C109*Inversion!$C$22 -> 798362.0669 | H109: 101656998.2
A110: =IF(A109<Inversion!$C$23,A109+1,"-") -> 105 | B110: =IF(A110<>"-",DATE(YEAR(Inversion!$C$7),MONTH(Inversion!$C$7)+A110,DAY(Inversion!$C$7)),"-") -> 2034-04-10 | C110: =IF(A110<=Inversion!$C$23,IF(H109>0,H109,0),0) -> 101656998.2 | D110: =IF(A110<=Inversion!$C$23,(1-(1+Inversion!$C$22)^-(Inversion!$C$23))/Inversion!$C$22,0) -> 108.1466875 | E110: 1216865.75 | F110: 421776.922 | G110: =C110*Inversion!$C$22 -> 795088.8284 | H110: 101235221.3
A111: =IF(A110<Inversion!$C$23,A110+1,"-") -> 106 | B111: =IF(A111<>"-",DATE(YEAR(Inversion!$C$7),MONTH(Inversion!$C$7)+A111,DAY(Inversion!$C$7)),"-") -> 2034-05-10 | C111: =IF(A111<=Inversion!$C$23,IF(H110>0,H110,0),0) -> 101235221.3 | D111: =IF(A111<=Inversion!$C$23,(1-(1+Inversion!$C$22)^-(Inversion!$C$23))/Inversion!$C$22,0) -> 108.1466875 | E111: 1216865.75 | F111: 425075.7614 | G111: =C111*Inversion!$C$22 -> 791789.9889 | H111: 100810145.5
A112: =IF(A111<Inversion!$C$23,A111+1,"-") -> 107 | B112: =IF(A112<>"-",DATE(YEAR(Inversion!$C$7),MONTH(Inversion!$C$7)+A112,DAY(Inversion!$C$7)),"-") -> 2034-06-10 | C112: =IF(A112<=Inversion!$C$23,IF(H111>0,H111,0),0) -> 100810145.5 | D112: =IF(A112<=Inversion!$C$23,(1-(1+Inversion!$C$22)^-(Inversion!$C$23))/Inversion!$C$22,0) -> 108.1466875 | E112: 1216865.75 | F112: 428400.4021 | G112: =C112*Inversion!$C$22 -> 788465.3483 | H112: 100381745.1
A113: =IF(A112<Inversion!$C$23,A112+1,"-") -> 108 | B113: =IF(A113<>"-",DATE(YEAR(Inversion!$C$7),MONTH(Inversion!$C$7)+A113,DAY(Inversion!$C$7)),"-") -> 2034-07-10 | C113: =IF(A113<=Inversion!$C$23,IF(H112>0,H112,0),0) -> 100381745.1 | D113: =IF(A113<=Inversion!$C$23,(1-(1+Inversion!$C$22)^-(Inversion!$C$23))/Inversion!$C$22,0) -> 108.1466875 | E113: 1216865.75 | F113: 431751.0457 | G113: =C113*Inversion!$C$22 -> 785114.7046 | H113: 99949994.05
A114: =IF(A113<Inversion!$C$23,A113+1,"-") -> 109 | B114: =IF(A114<>"-",DATE(YEAR(Inversion!$C$7),MONTH(Inversion!$C$7)+A114,DAY(Inversion!$C$7)),"-") -> 2034-08-10 | C114: =IF(A114<=Inversion!$C$23,IF(H113>0,H113,0),0) -> 99949994.05 | D114: =IF(A114<=Inversion!$C$23,(1-(1+Inversion!$C$22)^-(Inversion!$C$23))/Inversion!$C$22,0) -> 108.1466875 | E114: 1216865.75 | F114: 435127.8957 | G114: =C114*Inversion!$C$22 -> 781737.8547 | H114: 99514866.15
A115: =IF(A114<Inversion!$C$23,A114+1,"-") -> 110 | B115: =IF(A115<>"-",DATE(YEAR(Inversion!$C$7),MONTH(Inversion!$C$7)+A115,DAY(Inversion!$C$7)),"-") -> 2034-09-10 | C115: =IF(A115<=Inversion!$C$23,IF(H114>0,H114,0),0) -> 99514866.15 | D115: =IF(A115<=Inversion!$C$23,(1-(1+Inversion!$C$22)^-(Inversion!$C$23))/Inversion!$C$22,0) -> 108.1466875 | E115: 1216865.75 | F115: 438531.157 | G115: =C115*Inversion!$C$22 -> 778334.5934 | H115: 99076335
A116: =IF(A115<Inversion!$C$23,A115+1,"-") -> 111 | B116: =IF(A116<>"-",DATE(YEAR(Inversion!$C$7),MONTH(Inversion!$C$7)+A116,DAY(Inversion!$C$7)),"-") -> 2034-10-10 | C116: =IF(A116<=Inversion!$C$23,IF(H115>0,H115,0),0) -> 99076335 | D116: =IF(A116<=Inversion!$C$23,(1-(1+Inversion!$C$22)^-(Inversion!$C$23))/Inversion!$C$22,0) -> 108.1466875 | E116: 1216865.75 | F116: 441961.0362 | G116: =C116*Inversion!$C$22 -> 774904.7141 | H116: 98634373.96
A117: =IF(A116<Inversion!$C$23,A116+1,"-") -> 112 | B117: =IF(A117<>"-",DATE(YEAR(Inversion!$C$7),MONTH(Inversion!$C$7)+A117,DAY(Inversion!$C$7)),"-") -> 2034-11-10 | C117: =IF(A117<=Inversion!$C$23,IF(H116>0,H116,0),0) -> 98634373.96 | D117: =IF(A117<=Inversion!$C$23,(1-(1+Inversion!$C$22)^-(Inversion!$C$23))/Inversion!$C$22,0) -> 108.1466875 | E117: 1216865.75 | F117: 445417.7415 | G117: =C117*Inversion!$C$22 -> 771448.0089 | H117: 98188956.22
A118: =IF(A117<Inversion!$C$23,A117+1,"-") -> 113 | B118: =IF(A118<>"-",DATE(YEAR(Inversion!$C$7),MONTH(Inversion!$C$7)+A118,DAY(Inversion!$C$7)),"-") -> 2034-12-10 | C118: =IF(A118<=Inversion!$C$23,IF(H117>0,H117,0),0) -> 98188956.22 | D118: =IF(A118<=Inversion!$C$23,(1-(1+Inversion!$C$22)^-(Inversion!$C$23))/Inversion!$C$22,0) -> 108.1466875 | E118: 1216865.75 | F118: 448901.4827 | G118: =C118*Inversion!$C$22 -> 767964.2677 | H118: 97740054.74
A119: =IF(A118<Inversion!$C$23,A118+1,"-") -> 114 | B119: =IF(A119<>"-",DATE(YEAR(Inversion!$C$7),MONTH(Inversion!$C$7)+A119,DAY(Inversion!$C$7)),"-") -> 2035-01-10 | C119: =IF(A119<=Inversion!$C$23,IF(H118>0,H118,0),0) -> 97740054.74 | D119: =IF(A119<=Inversion!$C$23,(1-(1+Inversion!$C$22)^-(Inversion!$C$23))/Inversion!$C$22,0) -> 108.1466875 | E119: 1216865.75 | F119: 452412.4712 | G119: =C119*Inversion!$C$22 -> 764453.2792 | H119: 97287642.27
A120: =IF(A119<Inversion!$C$23,A119+1,"-") -> 115 | B120: =IF(A120<>"-",DATE(YEAR(Inversion!$C$7),MONTH(Inversion!$C$7)+A120,DAY(Inversion!$C$7)),"-") -> 2035-02-10 | C120: =IF(A120<=Inversion!$C$23,IF(H119>0,H119,0),0) -> 97287642.27 | D120: =IF(A120<=Inversion!$C$23,(1-(1+Inversion!$C$22)^-(Inversion!$C$23))/Inversion!$C$22,0) -> 108.1466875 | E120: 1216865.75 | F120: 455950.9202 | G120: =C120*Inversion!$C$22 -> 760914.8302 | H120: 96831691.35
A121: =IF(A120<Inversion!$C$23,A120+1,"-") -> 116 | B121: =IF(A121<>"-",DATE(YEAR(Inversion!$C$7),MONTH(Inversion!$C$7)+A121,DAY(Inversion!$C$7)),"-") -> 2035-03-10 | C121: =IF(A121<=Inversion!$C$23,IF(H120>0,H120,0),0) -> 96831691.35 | D121: =IF(A121<=Inversion!$C$23,(1-(1+Inversion!$C$22)^-(Inversion!$C$23))/Inversion!$C$22,0) -> 108.1466875 | E121: 1216865.75 | F121: 459517.0444 | G121: =C121*Inversion!$C$22 -> 757348.706 | H121: 96372174.3
A122: =IF(A121<Inversion!$C$23,A121+1,"-") -> 117 | B122: =IF(A122<>"-",DATE(YEAR(Inversion!$C$7),MONTH(Inversion!$C$7)+A122,DAY(Inversion!$C$7)),"-") -> 2035-04-10 | C122: =IF(A122<=Inversion!$C$23,IF(H121>0,H121,0),0) -> 96372174.3 | D122: =IF(A122<=Inversion!$C$23,(1-(1+Inversion!$C$22)^-(Inversion!$C$23))/Inversion!$C$22,0) -> 108.1466875 | E122: 1216865.75 | F122: 463111.0603 | G122: =C122*Inversion!$C$22 -> 753754.6901 | H122: 95909063.24
A123: =IF(A122<Inversion!$C$23,A122+1,"-") -> 118 | B123: =IF(A123<>"-",DATE(YEAR(Inversion!$C$7),MONTH(Inversion!$C$7)+A123,DAY(Inversion!$C$7)),"-") -> 2035-05-10 | C123: =IF(A123<=Inversion!$C$23,IF(H122>0,H122,0),0) -> 95909063.24 | D123: =IF(A123<=Inversion!$C$23,(1-(1+Inversion!$C$22)^-(Inversion!$C$23))/Inversion!$C$22,0) -> 108.1466875 | E123: 1216865.75 | F123: 466733.1861 | G123: =C123*Inversion!$C$22 -> 750132.5643 | H123: 95442330.05
A124: =IF(A123<Inversion!$C$23,A123+1,"-") -> 119 | B124: =IF(A124<>"-",DATE(YEAR(Inversion!$C$7),MONTH(Inversion!$C$7)+A124,DAY(Inversion!$C$7)),"-") -> 2035-06-10 | C124: =IF(A124<=Inversion!$C$23,IF(H123>0,H123,0),0) -> 95442330.05 | D124: =IF(A124<=Inversion!$C$23,(1-(1+Inversion!$C$22)^-(Inversion!$C$23))/Inversion!$C$22,0) -> 108.1466875 | E124: 1216865.75 | F124: 470383.6415 | G124: =C124*Inversion!$C$22 -> 746482.1089 | H124: 94971946.41
A125: =IF(A124<Inversion!$C$23,A124+1,"-") -> 120 | B125: =IF(A125<>"-",DATE(YEAR(Inversion!$C$7),MONTH(Inversion!$C$7)+A125,DAY(Inversion!$C$7)),"-") -> 2035-07-10 | C125: =IF(A125<=Inversion!$C$23,IF(H124>0,H124,0),0) -> 94971946.41 | D125: =IF(A125<=Inversion!$C$23,(1-(1+Inversion!$C$22)^-(Inversion!$C$23))/Inversion!$C$22,0) -> 108.1466875 | E125: 1216865.75 | F125: 474062.6482 | G125: =C125*Inversion!$C$22 -> 742803.1022 | H125: 94497883.77
A126: =IF(A125<Inversion!$C$23,A125+1,"-") -> 121 | B126: =IF(A126<>"-",DATE(YEAR(Inversion!$C$7),MONTH(Inversion!$C$7)+A126,DAY(Inversion!$C$7)),"-") -> 2035-08-10 | C126: =IF(A126<=Inversion!$C$23,IF(H125>0,H125,0),0) -> 94497883.77 | D126: =IF(A126<=Inversion!$C$23,(1-(1+Inversion!$C$22)^-(Inversion!$C$23))/Inversion!$C$22,0) -> 108.1466875 | E126: 1216865.75 | F126: 477770.4295 | G126: =C126*Inversion!$C$22 -> 739095.3209 | H126: 94020113.34
A127: =IF(A126<Inversion!$C$23,A126+1,"-") -> 122 | B127: =IF(A127<>"-",DATE(YEAR(Inversion!$C$7),MONTH(Inversion!$C$7)+A127,DAY(Inversion!$C$7)),"-") -> 2035-09-10 | C127: =IF(A127<=Inversion!$C$23,IF(H126>0,H126,0),0) -> 94020113.34 | D127: =IF(A127<=Inversion!$C$23,(1-(1+Inversion!$C$22)^-(Inversion!$C$23))/Inversion!$C$22,0) -> 108.1466875 | E127: 1216865.75 | F127: 481507.2104 | G127: =C127*Inversion!$C$22 -> 735358.54 | H127: 93538606.13
A128: =IF(A127<Inversion!$C$23,A127+1,"-") -> 123 | B128: =IF(A128<>"-",DATE(YEAR(Inversion!$C$7),MONTH(Inversion!$C$7)+A128,DAY(Inversion!$C$7)),"-") -> 2035-10-10 | C128: =IF(A128<=Inversion!$C$23,IF(H127>0,H127,0),0) -> 93538606.13 | D128: =IF(A128<=Inversion!$C$23,(1-(1+Inversion!$C$22)^-(Inversion!$C$23))/Inversion!$C$22,0) -> 108.1466875 | E128: 1216865.75 | F128: 485273.2178 | G128: =C128*Inversion!$C$22 -> 731592.5326 | H128: 93053332.91
A129: =IF(A128<Inversion!$C$23,A128+1,"-") -> 124 | B129: =IF(A129<>"-",DATE(YEAR(Inversion!$C$7),MONTH(Inversion!$C$7)+A129,DAY(Inversion!$C$7)),"-") -> 2035-11-10 | C129: =IF(A129<=Inversion!$C$23,IF(H128>0,H128,0),0) -> 93053332.91 | D129: =IF(A129<=Inversion!$C$23,(1-(1+Inversion!$C$22)^-(Inversion!$C$23))/Inversion!$C$22,0) -> 108.1466875 | E129: 1216865.75 | F129: 489068.6802 | G129: =C129*Inversion!$C$22 -> 727797.0702 | H129: 92564264.23
A130: =IF(A129<Inversion!$C$23,A129+1,"-") -> 125 | B130: =IF(A130<>"-",DATE(YEAR(Inversion!$C$7),MONTH(Inversion!$C$7)+A130,DAY(Inversion!$C$7)),"-") -> 2035-12-10 | C130: =IF(A130<=Inversion!$C$23,IF(H129>0,H129,0),0) -> 92564264.23 | D130: =IF(A130<=Inversion!$C$23,(1-(1+Inversion!$C$22)^-(Inversion!$C$23))/Inversion!$C$22,0) -> 108.1466875 | E130: 1216865.75 | F130: 492893.828 | G130: =C130*Inversion!$C$22 -> 723971.9224 | H130: 92071370.4
A131: =IF(A130<Inversion!$C$23,A130+1,"-") -> 126 | B131: =IF(A131<>"-",DATE(YEAR(Inversion!$C$7),MONTH(Inversion!$C$7)+A131,DAY(Inversion!$C$7)),"-") -> 2036-01-10 | C131: =IF(A131<=Inversion!$C$23,IF(H130>0,H130,0),0) -> 92071370.4 | D131: =IF(A131<=Inversion!$C$23,(1-(1+Inversion!$C$22)^-(Inversion!$C$23))/Inversion!$C$22,0) -> 108.1466875 | E131: 1216865.75 | F131: 496748.8934 | G131: =C131*Inversion!$C$22 -> 720116.857 | H131: 91574621.51
A132: =IF(A131<Inversion!$C$23,A131+1,"-") -> 127 | B132: =IF(A132<>"-",DATE(YEAR(Inversion!$C$7),MONTH(Inversion!$C$7)+A132,DAY(Inversion!$C$7)),"-") -> 2036-02-10 | C132: =IF(A132<=Inversion!$C$23,IF(H131>0,H131,0),0) -> 91574621.51 | D132: =IF(A132<=Inversion!$C$23,(1-(1+Inversion!$C$22)^-(Inversion!$C$23))/Inversion!$C$22,0) -> 108.1466875 | E132: 1216865.75 | F132: 500634.1104 | G132: =C132*Inversion!$C$22 -> 716231.64 | H132: 91073987.4
A133: =IF(A132<Inversion!$C$23,A132+1,"-") -> 128 | B133: =IF(A133<>"-",DATE(YEAR(Inversion!$C$7),MONTH(Inversion!$C$7)+A133,DAY(Inversion!$C$7)),"-") -> 2036-03-10 | C133: =IF(A133<=Inversion!$C$23,IF(H132>0,H132,0),0) -> 91073987.4 | D133: =IF(A133<=Inversion!$C$23,(1-(1+Inversion!$C$22)^-(Inversion!$C$23))/Inversion!$C$22,0) -> 108.1466875 | E133: 1216865.75 | F133: 504549.7148 | G133: =C133*Inversion!$C$22 -> 712316.0356 | H133: 90569437.68
A134: =IF(A133<Inversion!$C$23,A133+1,"-") -> 129 | B134: =IF(A134<>"-",DATE(YEAR(Inversion!$C$7),MONTH(Inversion!$C$7)+A134,DAY(Inversion!$C$7)),"-") -> 2036-04-10 | C134: =IF(A134<=Inversion!$C$23,IF(H133>0,H133,0),0) -> 90569437.68 | D134: =IF(A134<=Inversion!$C$23,(1-(1+Inversion!$C$22)^-(Inversion!$C$23))/Inversion!$C$22,0) -> 108.1466875 | E134: 1216865.75 | F134: 508495.9442 | G134: =C134*Inversion!$C$22 -> 708369.8062 | H134: 90060941.74
A135: =IF(A134<Inversion!$C$23,A134+1,"-") -> 130 | B135: =IF(A135<>"-",DATE(YEAR(Inversion!$C$7),MONTH(Inversion!$C$7)+A135,DAY(Inversion!$C$7)),"-") -> 2036-05-10 | C135: =IF(A135<=Inversion!$C$23,IF(H134>0,H134,0),0) -> 90060941.74 | D135: =IF(A135<=Inversion!$C$23,(1-(1+Inversion!$C$22)^-(Inversion!$C$23))/Inversion!$C$22,0) -> 108.1466875 | E135: 1216865.75 | F135: 512473.0383 | G135: =C135*Inversion!$C$22 -> 704392.7121 | H135: 89548468.7
A136: =IF(A135<Inversion!$C$23,A135+1,"-") -> 131 | B136: =IF(A136<>"-",DATE(YEAR(Inversion!$C$7),MONTH(Inversion!$C$7)+A136,DAY(Inversion!$C$7)),"-") -> 2036-06-10 | C136: =IF(A136<=Inversion!$C$23,IF(H135>0,H135,0),0) -> 89548468.7 | D136: =IF(A136<=Inversion!$C$23,(1-(1+Inversion!$C$22)^-(Inversion!$C$23))/Inversion!$C$22,0) -> 108.1466875 | E136: 1216865.75 | F136: 516481.2384 | G136: =C136*Inversion!$C$22 -> 700384.512 | H136: 89031987.46
A137: =IF(A136<Inversion!$C$23,A136+1,"-") -> 132 | B137: =IF(A137<>"-",DATE(YEAR(Inversion!$C$7),MONTH(Inversion!$C$7)+A137,DAY(Inversion!$C$7)),"-") -> 2036-07-10 | C137: =IF(A137<=Inversion!$C$23,IF(H136>0,H136,0),0) -> 89031987.46 | D137: =IF(A137<=Inversion!$C$23,(1-(1+Inversion!$C$22)^-(Inversion!$C$23))/Inversion!$C$22,0) -> 108.1466875 | E137: 1216865.75 | F137: =E137-G137 -> 520520.7877 | G137: =C137*Inversion!$C$22 -> 696344.9626 | H137: 88511466.67
A138: =IF(A137<Inversion!$C$23,A137+1,"-") -> 133 | B138: =IF(A138<>"-",DATE(YEAR(Inversion!$C$7),MONTH(Inversion!$C$7)+A138,DAY(Inversion!$C$7)),"-") -> 2036-08-10 | C138: =IF(A138<=Inversion!$C$23,IF(H137>0,H137,0),0) -> 88511466.67 | D138: =IF(A138<=Inversion!$C$23,(1-(1+Inversion!$C$22)^-(Inversion!$C$23))/Inversion!$C$22,0) -> 108.1466875 | E138: 1216865.75 | F138: 524591.9316 | G138: =C138*Inversion!$C$22 -> 692273.8188 | H138: 87986874.74
A139: =IF(A138<Inversion!$C$23,A138+1,"-") -> 134 | B139: =IF(A139<>"-",DATE(YEAR(Inversion!$C$7),MONTH(Inversion!$C$7)+A139,DAY(Inversion!$C$7)),"-") -> 2036-09-10 | C139: =IF(A139<=Inversion!$C$23,IF(H138>0,H138,0),0) -> 87986874.74 | D139: =IF(A139<=Inversion!$C$23,(1-(1+Inversion!$C$22)^-(Inversion!$C$23))/Inversion!$C$22,0) -> 108.1466875 | E139: 1216865.75 | F139: 528694.917 | G139: =C139*Inversion!$C$22 -> 688170.8333 | H139: 87458179.82
A140: =IF(A139<Inversion!$C$23,A139+1,"-") -> 135 | B140: =IF(A140<>"-",DATE(YEAR(Inversion!$C$7),MONTH(Inversion!$C$7)+A140,DAY(Inversion!$C$7)),"-") -> 2036-10-10 | C140: =IF(A140<=Inversion!$C$23,IF(H139>0,H139,0),0) -> 87458179.82 | D140: =IF(A140<=Inversion!$C$23,(1-(1+Inversion!$C$22)^-(Inversion!$C$23))/Inversion!$C$22,0) -> 108.1466875 | E140: 1216865.75 | F140: 532829.9931 | G140: =C140*Inversion!$C$22 -> 684035.7573 | H140: 86925349.83
A141: =IF(A140<Inversion!$C$23,A140+1,"-") -> 136 | B141: =IF(A141<>"-",DATE(YEAR(Inversion!$C$7),MONTH(Inversion!$C$7)+A141,DAY(Inversion!$C$7)),"-") -> 2036-11-10 | C141: =IF(A141<=Inversion!$C$23,IF(H140>0,H140,0),0) -> 86925349.83 | D141: =IF(A141<=Inversion!$C$23,(1-(1+Inversion!$C$22)^-(Inversion!$C$23))/Inversion!$C$22,0) -> 108.1466875 | E141: 1216865.75 | F141: 536997.4108 | G141: =C141*Inversion!$C$22 -> 679868.3395 | H141: 86388352.42
A142: =IF(A141<Inversion!$C$23,A141+1,"-") -> 137 | B142: =IF(A142<>"-",DATE(YEAR(Inversion!$C$7),MONTH(Inversion!$C$7)+A142,DAY(Inversion!$C$7)),"-") -> 2036-12-10 | C142: =IF(A142<=Inversion!$C$23,IF(H141>0,H141,0),0) -> 86388352.42 | D142: =IF(A142<=Inversion!$C$23,(1-(1+Inversion!$C$22)^-(Inversion!$C$23))/Inversion!$C$22,0) -> 108.1466875 | E142: 1216865.75 | F142: 541197.4231 | G142: =C142*Inversion!$C$22 -> 675668.3272 | H142: 85847155
A143: =IF(A142<Inversion!$C$23,A142+1,"-") -> 138 | B143: =IF(A143<>"-",DATE(YEAR(Inversion!$C$7),MONTH(Inversion!$C$7)+A143,DAY(Inversion!$C$7)),"-") -> 2037-01-10 | C143: =IF(A143<=Inversion!$C$23,IF(H142>0,H142,0),0) -> 85847155 | D143: =IF(A143<=Inversion!$C$23,(1-(1+Inversion!$C$22)^-(Inversion!$C$23))/Inversion!$C$22,0) -> 108.1466875 | E143: 1216865.75 | F143: 545430.2849 | G143: =C143*Inversion!$C$22 -> 671435.4654 | H143: 85301724.71
A144: =IF(A143<Inversion!$C$23,A143+1,"-") -> 139 | B144: =IF(A144<>"-",DATE(YEAR(Inversion!$C$7),MONTH(Inversion!$C$7)+A144,DAY(Inversion!$C$7)),"-") -> 2037-02-10 | C144: =IF(A144<=Inversion!$C$23,IF(H143>0,H143,0),0) -> 85301724.71 | D144: =IF(A144<=Inversion!$C$23,(1-(1+Inversion!$C$22)^-(Inversion!$C$23))/Inversion!$C$22,0) -> 108.1466875 | E144: =IF(C144<E143-G144,C144+G144,IF(C144=0,0,$C$6/D144)) -> 1216865.75 | F144: 549696.2532 | G144: =C144*Inversion!$C$22 -> 667169.4972 | H144: =C144-F144 -> 84752028.46
A145: =IF(A144<Inversion!$C$23,A144+1,"-") -> 140 | B145: =IF(A145<>"-",DATE(YEAR(Inversion!$C$7),MONTH(Inversion!$C$7)+A145,DAY(Inversion!$C$7)),"-") -> 2037-03-10 | C145: =IF(A145<=Inversion!$C$23,IF(H144>0,H144,0),0) -> 84752028.46 | D145: =IF(A145<=Inversion!$C$23,(1-(1+Inversion!$C$22)^-(Inversion!$C$23))/Inversion!$C$22,0) -> 108.1466875 | E145: 1216865.75 | F145: 553995.5868 | G145: =C145*Inversion!$C$22 -> 662870.1636 | H145: 84198032.87
A146: =IF(A145<Inversion!$C$23,A145+1,"-") -> 141 | B146: =IF(A146<>"-",DATE(YEAR(Inversion!$C$7),MONTH(Inversion!$C$7)+A146,DAY(Inversion!$C$7)),"-") -> 2037-04-10 | C146: =IF(A146<=Inversion!$C$23,IF(H145>0,H145,0),0) -> 84198032.87 | D146: =IF(A146<=Inversion!$C$23,(1-(1+Inversion!$C$22)^-(Inversion!$C$23))/Inversion!$C$22,0) -> 108.1466875 | E146: 1216865.75 | F146: 558328.5468 | G146: =C146*Inversion!$C$22 -> 658537.2036 | H146: 83639704.32
A147: =IF(A146<Inversion!$C$23,A146+1,"-") -> 142 | B147: =IF(A147<>"-",DATE(YEAR(Inversion!$C$7),MONTH(Inversion!$C$7)+A147,DAY(Inversion!$C$7)),"-") -> 2037-05-10 | C147: =IF(A147<=Inversion!$C$23,IF(H146>0,H146,0),0) -> 83639704.32 | D147: =IF(A147<=Inversion!$C$23,(1-(1+Inversion!$C$22)^-(Inversion!$C$23))/Inversion!$C$22,0) -> 108.1466875 | E147: 1216865.75 | F147: 562695.396 | G147: =C147*Inversion!$C$22 -> 654170.3543 | H147: 83077008.93
A148: =IF(A147<Inversion!$C$23,A147+1,"-") -> 143 | B148: =IF(A148<>"-",DATE(YEAR(Inversion!$C$7),MONTH(Inversion!$C$7)+A148,DAY(Inversion!$C$7)),"-") -> 2037-06-10 | C148: =IF(A148<=Inversion!$C$23,IF(H147>0,H147,0),0) -> 83077008.93 | D148: =IF(A148<=Inversion!$C$23,(1-(1+Inversion!$C$22)^-(Inversion!$C$23))/Inversion!$C$22,0) -> 108.1466875 | E148: 1216865.75 | F148: 567096.3997 | G148: =C148*Inversion!$C$22 -> 649769.3507 | H148: 82509912.53
A149: =IF(A148<Inversion!$C$23,A148+1,"-") -> 144 | B149: =IF(A149<>"-",DATE(YEAR(Inversion!$C$7),MONTH(Inversion!$C$7)+A149,DAY(Inversion!$C$7)),"-") -> 2037-07-10 | C149: =IF(A149<=Inversion!$C$23,IF(H148>0,H148,0),0) -> 82509912.53 | D149: =IF(A149<=Inversion!$C$23,(1-(1+Inversion!$C$22)^-(Inversion!$C$23))/Inversion!$C$22,0) -> 108.1466875 | E149: 1216865.75 | F149: 571531.8249 | G149: =C149*Inversion!$C$22 -> 645333.9254 | H149: 81938380.7
A150: =IF(A149<Inversion!$C$23,A149+1,"-") -> 145 | B150: =IF(A150<>"-",DATE(YEAR(Inversion!$C$7),MONTH(Inversion!$C$7)+A150,DAY(Inversion!$C$7)),"-") -> 2037-08-10 | C150: =IF(A150<=Inversion!$C$23,IF(H149>0,H149,0),0) -> 81938380.7 | D150: =IF(A150<=Inversion!$C$23,(1-(1+Inversion!$C$22)^-(Inversion!$C$23))/Inversion!$C$22,0) -> 108.1466875 | E150: 1216865.75 | F150: 576001.9409 | G150: =C150*Inversion!$C$22 -> 640863.8095 | H150: 81362378.76
A151: =IF(A150<Inversion!$C$23,A150+1,"-") -> 146 | B151: =IF(A151<>"-",DATE(YEAR(Inversion!$C$7),MONTH(Inversion!$C$7)+A151,DAY(Inversion!$C$7)),"-") -> 2037-09-10 | C151: =IF(A151<=Inversion!$C$23,IF(H150>0,H150,0),0) -> 81362378.76 | D151: =IF(A151<=Inversion!$C$23,(1-(1+Inversion!$C$22)^-(Inversion!$C$23))/Inversion!$C$22,0) -> 108.1466875 | E151: 1216865.75 | F151: 580507.0189 | G151: =C151*Inversion!$C$22 -> 636358.7315 | H151: 80781871.74
A152: =IF(A151<Inversion!$C$23,A151+1,"-") -> 147 | B152: =IF(A152<>"-",DATE(YEAR(Inversion!$C$7),MONTH(Inversion!$C$7)+A152,DAY(Inversion!$C$7)),"-") -> 2037-10-10 | C152: =IF(A152<=Inversion!$C$23,IF(H151>0,H151,0),0) -> 80781871.74 | D152: =IF(A152<=Inversion!$C$23,(1-(1+Inversion!$C$22)^-(Inversion!$C$23))/Inversion!$C$22,0) -> 108.1466875 | E152: 1216865.75 | F152: 585047.3324 | G152: =C152*Inversion!$C$22 -> 631818.4179 | H152: 80196824.41
A153: =IF(A152<Inversion!$C$23,A152+1,"-") -> 148 | B153: =IF(A153<>"-",DATE(YEAR(Inversion!$C$7),MONTH(Inversion!$C$7)+A153,DAY(Inversion!$C$7)),"-") -> 2037-11-10 | C153: =IF(A153<=Inversion!$C$23,IF(H152>0,H152,0),0) -> 80196824.41 | D153: =IF(A153<=Inversion!$C$23,(1-(1+Inversion!$C$22)^-(Inversion!$C$23))/Inversion!$C$22,0) -> 108.1466875 | E153: 1216865.75 | F153: 589623.1571 | G153: =C153*Inversion!$C$22 -> 627242.5933 | H153: 79607201.25
A154: =IF(A153<Inversion!$C$23,A153+1,"-") -> 149 | B154: =IF(A154<>"-",DATE(YEAR(Inversion!$C$7),MONTH(Inversion!$C$7)+A154,DAY(Inversion!$C$7)),"-") -> 2037-12-10 | C154: =IF(A154<=Inversion!$C$23,IF(H153>0,H153,0),0) -> 79607201.25 | D154: =IF(A154<=Inversion!$C$23,(1-(1+Inversion!$C$22)^-(Inversion!$C$23))/Inversion!$C$22,0) -> 108.1466875 | E154: 1216865.75 | F154: 594234.7706 | G154: =C154*Inversion!$C$22 -> 622630.9798 | H154: 79012966.48
A155: =IF(A154<Inversion!$C$23,A154+1,"-") -> 150 | B155: =IF(A155<>"-",DATE(YEAR(Inversion!$C$7),MONTH(Inversion!$C$7)+A155,DAY(Inversion!$C$7)),"-") -> 2038-01-10 | C155: =IF(A155<=Inversion!$C$23,IF(H154>0,H154,0),0) -> 79012966.48 | D155: =IF(A155<=Inversion!$C$23,(1-(1+Inversion!$C$22)^-(Inversion!$C$23))/Inversion!$C$22,0) -> 108.1466875 | E155: 1216865.75 | F155: 598882.4529 | G155: =C155*Inversion!$C$22 -> 617983.2975 | H155: 78414084.03
A156: =IF(A155<Inversion!$C$23,A155+1,"-") -> 151 | B156: =IF(A156<>"-",DATE(YEAR(Inversion!$C$7),MONTH(Inversion!$C$7)+A156,DAY(Inversion!$C$7)),"-") -> 2038-02-10 | C156: =IF(A156<=Inversion!$C$23,IF(H155>0,H155,0),0) -> 78414084.03 | D156: =IF(A156<=Inversion!$C$23,(1-(1+Inversion!$C$22)^-(Inversion!$C$23))/Inversion!$C$22,0) -> 108.1466875 | E156: 1216865.75 | F156: 603566.486 | G156: =C156*Inversion!$C$22 -> 613299.2644 | H156: 77810517.55
A157: =IF(A156<Inversion!$C$23,A156+1,"-") -> 152 | B157: =IF(A157<>"-",DATE(YEAR(Inversion!$C$7),MONTH(Inversion!$C$7)+A157,DAY(Inversion!$C$7)),"-") -> 2038-03-10 | C157: =IF(A157<=Inversion!$C$23,IF(H156>0,H156,0),0) -> 77810517.55 | D157: =IF(A157<=Inversion!$C$23,(1-(1+Inversion!$C$22)^-(Inversion!$C$23))/Inversion!$C$22,0) -> 108.1466875 | E157: 1216865.75 | F157: 608287.1543 | G157: =C157*Inversion!$C$22 -> 608578.5961 | H157: 77202230.39
A158: =IF(A157<Inversion!$C$23,A157+1,"-") -> 153 | B158: =IF(A158<>"-",DATE(YEAR(Inversion!$C$7),MONTH(Inversion!$C$7)+A158,DAY(Inversion!$C$7)),"-") -> 2038-04-10 | C158: =IF(A158<=Inversion!$C$23,IF(H157>0,H157,0),0) -> 77202230.39 | D158: =IF(A158<=Inversion!$C$23,(1-(1+Inversion!$C$22)^-(Inversion!$C$23))/Inversion!$C$22,0) -> 108.1466875 | E158: 1216865.75 | F158: 613044.7443 | G158: =C158*Inversion!$C$22 -> 603821.006 | H158: 76589185.65
A159: =IF(A158<Inversion!$C$23,A158+1,"-") -> 154 | B159: =IF(A159<>"-",DATE(YEAR(Inversion!$C$7),MONTH(Inversion!$C$7)+A159,DAY(Inversion!$C$7)),"-") -> 2038-05-10 | C159: =IF(A159<=Inversion!$C$23,IF(H158>0,H158,0),0) -> 76589185.65 | D159: =IF(A159<=Inversion!$C$23,(1-(1+Inversion!$C$22)^-(Inversion!$C$23))/Inversion!$C$22,0) -> 108.1466875 | E159: 1216865.75 | F159: 617839.5449 | G159: =C159*Inversion!$C$22 -> 599026.2055 | H159: 75971346.1
A160: =IF(A159<Inversion!$C$23,A159+1,"-") -> 155 | B160: =IF(A160<>"-",DATE(YEAR(Inversion!$C$7),MONTH(Inversion!$C$7)+A160,DAY(Inversion!$C$7)),"-") -> 2038-06-10 | C160: =IF(A160<=Inversion!$C$23,IF(H159>0,H159,0),0) -> 75971346.1 | D160: =IF(A160<=Inversion!$C$23,(1-(1+Inversion!$C$22)^-(Inversion!$C$23))/Inversion!$C$22,0) -> 108.1466875 | E160: 1216865.75 | F160: 622671.8469 | G160: =C160*Inversion!$C$22 -> 594193.9035 | H160: 75348674.26
A161: =IF(A160<Inversion!$C$23,A160+1,"-") -> 156 | B161: =IF(A161<>"-",DATE(YEAR(Inversion!$C$7),MONTH(Inversion!$C$7)+A161,DAY(Inversion!$C$7)),"-") -> 2038-07-10 | C161: =IF(A161<=Inversion!$C$23,IF(H160>0,H160,0),0) -> 75348674.26 | D161: =IF(A161<=Inversion!$C$23,(1-(1+Inversion!$C$22)^-(Inversion!$C$23))/Inversion!$C$22,0) -> 108.1466875 | E161: 1216865.75 | F161: 627541.9438 | G161: =C161*Inversion!$C$22 -> 589323.8066 | H161: 74721132.31
A162: =IF(A161<Inversion!$C$23,A161+1,"-") -> 157 | B162: =IF(A162<>"-",DATE(YEAR(Inversion!$C$7),MONTH(Inversion!$C$7)+A162,DAY(Inversion!$C$7)),"-") -> 2038-08-10 | C162: =IF(A162<=Inversion!$C$23,IF(H161>0,H161,0),0) -> 74721132.31 | D162: =IF(A162<=Inversion!$C$23,(1-(1+Inversion!$C$22)^-(Inversion!$C$23))/Inversion!$C$22,0) -> 108.1466875 | E162: 1216865.75 | F162: 632450.1311 | G162: =C162*Inversion!$C$22 -> 584415.6193 | H162: 74088682.18
A163: =IF(A162<Inversion!$C$23,A162+1,"-") -> 158 | B163: =IF(A163<>"-",DATE(YEAR(Inversion!$C$7),MONTH(Inversion!$C$7)+A163,DAY(Inversion!$C$7)),"-") -> 2038-09-10 | C163: =IF(A163<=Inversion!$C$23,IF(H162>0,H162,0),0) -> 74088682.18 | D163: =IF(A163<=Inversion!$C$23,(1-(1+Inversion!$C$22)^-(Inversion!$C$23))/Inversion!$C$22,0) -> 108.1466875 | E163: 1216865.75 | F163: 637396.7068 | G163: =C163*Inversion!$C$22 -> 579469.0436 | H163: 73451285.47
A164: =IF(A163<Inversion!$C$23,A163+1,"-") -> 159 | B164: =IF(A164<>"-",DATE(YEAR(Inversion!$C$7),MONTH(Inversion!$C$7)+A164,DAY(Inversion!$C$7)),"-") -> 2038-10-10 | C164: =IF(A164<=Inversion!$C$23,IF(H163>0,H163,0),0) -> 73451285.47 | D164: =IF(A164<=Inversion!$C$23,(1-(1+Inversion!$C$22)^-(Inversion!$C$23))/Inversion!$C$22,0) -> 108.1466875 | E164: 1216865.75 | F164: 642381.971 | G164: =C164*Inversion!$C$22 -> 574483.7794 | H164: 72808903.5
A165: =IF(A164<Inversion!$C$23,A164+1,"-") -> 160 | B165: =IF(A165<>"-",DATE(YEAR(Inversion!$C$7),MONTH(Inversion!$C$7)+A165,DAY(Inversion!$C$7)),"-") -> 2038-11-10 | C165: =IF(A165<=Inversion!$C$23,IF(H164>0,H164,0),0) -> 72808903.5 | D165: =IF(A165<=Inversion!$C$23,(1-(1+Inversion!$C$22)^-(Inversion!$C$23))/Inversion!$C$22,0) -> 108.1466875 | E165: 1216865.75 | F165: 647406.2265 | G165: =C165*Inversion!$C$22 -> 569459.5239 | H165: 72161497.28
A166: =IF(A165<Inversion!$C$23,A165+1,"-") -> 161 | B166: =IF(A166<>"-",DATE(YEAR(Inversion!$C$7),MONTH(Inversion!$C$7)+A166,DAY(Inversion!$C$7)),"-") -> 2038-12-10 | C166: =IF(A166<=Inversion!$C$23,IF(H165>0,H165,0),0) -> 72161497.28 | D166: =IF(A166<=Inversion!$C$23,(1-(1+Inversion!$C$22)^-(Inversion!$C$23))/Inversion!$C$22,0) -> 108.1466875 | E166: 1216865.75 | F166: 652469.7781 | G166: =C166*Inversion!$C$22 -> 564395.9723 | H166: 71509027.5
A167: =IF(A166<Inversion!$C$23,A166+1,"-") -> 162 | B167: =IF(A167<>"-",DATE(YEAR(Inversion!$C$7),MONTH(Inversion!$C$7)+A167,DAY(Inversion!$C$7)),"-") -> 2039-01-10 | C167: =IF(A167<=Inversion!$C$23,IF(H166>0,H166,0),0) -> 71509027.5 | D167: =IF(A167<=Inversion!$C$23,(1-(1+Inversion!$C$22)^-(Inversion!$C$23))/Inversion!$C$22,0) -> 108.1466875 | E167: 1216865.75 | F167: 657572.9332 | G167: =C167*Inversion!$C$22 -> 559292.8171 | H167: 70851454.56
A168: =IF(A167<Inversion!$C$23,A167+1,"-") -> 163 | B168: =IF(A168<>"-",DATE(YEAR(Inversion!$C$7),MONTH(Inversion!$C$7)+A168,DAY(Inversion!$C$7)),"-") -> 2039-02-10 | C168: =IF(A168<=Inversion!$C$23,IF(H167>0,H167,0),0) -> 70851454.56 | D168: =IF(A168<=Inversion!$C$23,(1-(1+Inversion!$C$22)^-(Inversion!$C$23))/Inversion!$C$22,0) -> 108.1466875 | E168: 1216865.75 | F168: 662716.0016 | G168: =C168*Inversion!$C$22 -> 554149.7488 | H168: 70188738.56
A169: =IF(A168<Inversion!$C$23,A168+1,"-") -> 164 | B169: =IF(A169<>"-",DATE(YEAR(Inversion!$C$7),MONTH(Inversion!$C$7)+A169,DAY(Inversion!$C$7)),"-") -> 2039-03-10 | C169: =IF(A169<=Inversion!$C$23,IF(H168>0,H168,0),0) -> 70188738.56 | D169: =IF(A169<=Inversion!$C$23,(1-(1+Inversion!$C$22)^-(Inversion!$C$23))/Inversion!$C$22,0) -> 108.1466875 | E169: 1216865.75 | F169: 667899.2954 | G169: =C169*Inversion!$C$22 -> 548966.4549 | H169: 69520839.27
A170: =IF(A169<Inversion!$C$23,A169+1,"-") -> 165 | B170: =IF(A170<>"-",DATE(YEAR(Inversion!$C$7),MONTH(Inversion!$C$7)+A170,DAY(Inversion!$C$7)),"-") -> 2039-04-10 | C170: =IF(A170<=Inversion!$C$23,IF(H169>0,H169,0),0) -> 69520839.27 | D170: =IF(A170<=Inversion!$C$23,(1-(1+Inversion!$C$22)^-(Inversion!$C$23))/Inversion!$C$22,0) -> 108.1466875 | E170: 1216865.75 | F170: 673123.1293 | G170: =C170*Inversion!$C$22 -> 543742.6211 | H170: 68847716.14
A171: =IF(A170<Inversion!$C$23,A170+1,"-") -> 166 | B171: =IF(A171<>"-",DATE(YEAR(Inversion!$C$7),MONTH(Inversion!$C$7)+A171,DAY(Inversion!$C$7)),"-") -> 2039-05-10 | C171: =IF(A171<=Inversion!$C$23,IF(H170>0,H170,0),0) -> 68847716.14 | D171: =IF(A171<=Inversion!$C$23,(1-(1+Inversion!$C$22)^-(Inversion!$C$23))/Inversion!$C$22,0) -> 108.1466875 | E171: 1216865.75 | F171: 678387.8202 | G171: =C171*Inversion!$C$22 -> 538477.9301 | H171: 68169328.32
A172: =IF(A171<Inversion!$C$23,A171+1,"-") -> 167 | B172: =IF(A172<>"-",DATE(YEAR(Inversion!$C$7),MONTH(Inversion!$C$7)+A172,DAY(Inversion!$C$7)),"-") -> 2039-06-10 | C172: =IF(A172<=Inversion!$C$23,IF(H171>0,H171,0),0) -> 68169328.32 | D172: =IF(A172<=Inversion!$C$23,(1-(1+Inversion!$C$22)^-(Inversion!$C$23))/Inversion!$C$22,0) -> 108.1466875 | E172: 1216865.75 | F172: 683693.6879 | G172: =C172*Inversion!$C$22 -> 533172.0625 | H172: 67485634.63
A173: =IF(A172<Inversion!$C$23,A172+1,"-") -> 168 | B173: =IF(A173<>"-",DATE(YEAR(Inversion!$C$7),MONTH(Inversion!$C$7)+A173,DAY(Inversion!$C$7)),"-") -> 2039-07-10 | C173: =IF(A173<=Inversion!$C$23,IF(H172>0,H172,0),0) -> 67485634.63 | D173: =IF(A173<=Inversion!$C$23,(1-(1+Inversion!$C$22)^-(Inversion!$C$23))/Inversion!$C$22,0) -> 108.1466875 | E173: 1216865.75 | F173: 689041.0543 | G173: =C173*Inversion!$C$22 -> 527824.6961 | H173: 66796593.58
A174: =IF(A173<Inversion!$C$23,A173+1,"-") -> 169 | B174: =IF(A174<>"-",DATE(YEAR(Inversion!$C$7),MONTH(Inversion!$C$7)+A174,DAY(Inversion!$C$7)),"-") -> 2039-08-10 | C174: =IF(A174<=Inversion!$C$23,IF(H173>0,H173,0),0) -> 66796593.58 | D174: =IF(A174<=Inversion!$C$23,(1-(1+Inversion!$C$22)^-(Inversion!$C$23))/Inversion!$C$22,0) -> 108.1466875 | E174: 1216865.75 | F174: 694430.2439 | G174: =C174*Inversion!$C$22 -> 522435.5064 | H174: 66102163.33
A175: =IF(A174<Inversion!$C$23,A174+1,"-") -> 170 | B175: =IF(A175<>"-",DATE(YEAR(Inversion!$C$7),MONTH(Inversion!$C$7)+A175,DAY(Inversion!$C$7)),"-") -> 2039-09-10 | C175: =IF(A175<=Inversion!$C$23,IF(H174>0,H174,0),0) -> 66102163.33 | D175: =IF(A175<=Inversion!$C$23,(1-(1+Inversion!$C$22)^-(Inversion!$C$23))/Inversion!$C$22,0) -> 108.1466875 | E175: 1216865.75 | F175: 699861.584 | G175: =C175*Inversion!$C$22 -> 517004.1664 | H175: 65402301.75
A176: =IF(A175<Inversion!$C$23,A175+1,"-") -> 171 | B176: =IF(A176<>"-",DATE(YEAR(Inversion!$C$7),MONTH(Inversion!$C$7)+A176,DAY(Inversion!$C$7)),"-") -> 2039-10-10 | C176: =IF(A176<=Inversion!$C$23,IF(H175>0,H175,0),0) -> 65402301.75 | D176: =IF(A176<=Inversion!$C$23,(1-(1+Inversion!$C$22)^-(Inversion!$C$23))/Inversion!$C$22,0) -> 108.1466875 | E176: 1216865.75 | F176: 705335.4042 | G176: =C176*Inversion!$C$22 -> 511530.3462 | H176: 64696966.34
A177: =IF(A176<Inversion!$C$23,A176+1,"-") -> 172 | B177: =IF(A177<>"-",DATE(YEAR(Inversion!$C$7),MONTH(Inversion!$C$7)+A177,DAY(Inversion!$C$7)),"-") -> 2039-11-10 | C177: =IF(A177<=Inversion!$C$23,IF(H176>0,H176,0),0) -> 64696966.34 | D177: =IF(A177<=Inversion!$C$23,(1-(1+Inversion!$C$22)^-(Inversion!$C$23))/Inversion!$C$22,0) -> 108.1466875 | E177: 1216865.75 | F177: 710852.0367 | G177: =C177*Inversion!$C$22 -> 506013.7137 | H177: 63986114.31
A178: =IF(A177<Inversion!$C$23,A177+1,"-") -> 173 | B178: =IF(A178<>"-",DATE(YEAR(Inversion!$C$7),MONTH(Inversion!$C$7)+A178,DAY(Inversion!$C$7)),"-") -> 2039-12-10 | C178: =IF(A178<=Inversion!$C$23,IF(H177>0,H177,0),0) -> 63986114.31 | D178: =IF(A178<=Inversion!$C$23,(1-(1+Inversion!$C$22)^-(Inversion!$C$23))/Inversion!$C$22,0) -> 108.1466875 | E178: 1216865.75 | F178: 716411.8164 | G178: =C178*Inversion!$C$22 -> 500453.934 | H178: 63269702.49
A179: =IF(A178<Inversion!$C$23,A178+1,"-") -> 174 | B179: =IF(A179<>"-",DATE(YEAR(Inversion!$C$7),MONTH(Inversion!$C$7)+A179,DAY(Inversion!$C$7)),"-") -> 2040-01-10 | C179: =IF(A179<=Inversion!$C$23,IF(H178>0,H178,0),0) -> 63269702.49 | D179: =IF(A179<=Inversion!$C$23,(1-(1+Inversion!$C$22)^-(Inversion!$C$23))/Inversion!$C$22,0) -> 108.1466875 | E179: 1216865.75 | F179: 722015.0807 | G179: =C179*Inversion!$C$22 -> 494850.6697 | H179: 62547687.41
A180: =IF(A179<Inversion!$C$23,A179+1,"-") -> 175 | B180: =IF(A180<>"-",DATE(YEAR(Inversion!$C$7),MONTH(Inversion!$C$7)+A180,DAY(Inversion!$C$7)),"-") -> 2040-02-10 | C180: =IF(A180<=Inversion!$C$23,IF(H179>0,H179,0),0) -> 62547687.41 | D180: =IF(A180<=Inversion!$C$23,(1-(1+Inversion!$C$22)^-(Inversion!$C$23))/Inversion!$C$22,0) -> 108.1466875 | E180: 1216865.75 | F180: 727662.1698 | G180: =C180*Inversion!$C$22 -> 489203.5806 | H180: 61820025.24
A181: =IF(A180<Inversion!$C$23,A180+1,"-") -> 176 | B181: =IF(A181<>"-",DATE(YEAR(Inversion!$C$7),MONTH(Inversion!$C$7)+A181,DAY(Inversion!$C$7)),"-") -> 2040-03-10 | C181: =IF(A181<=Inversion!$C$23,IF(H180>0,H180,0),0) -> 61820025.24 | D181: =IF(A181<=Inversion!$C$23,(1-(1+Inversion!$C$22)^-(Inversion!$C$23))/Inversion!$C$22,0) -> 108.1466875 | E181: 1216865.75 | F181: 733353.4264 | G181: =C181*Inversion!$C$22 -> 483512.324 | H181: 61086671.81
A182: =IF(A181<Inversion!$C$23,A181+1,"-") -> 177 | B182: =IF(A182<>"-",DATE(YEAR(Inversion!$C$7),MONTH(Inversion!$C$7)+A182,DAY(Inversion!$C$7)),"-") -> 2040-04-10 | C182: =IF(A182<=Inversion!$C$23,IF(H181>0,H181,0),0) -> 61086671.81 | D182: =IF(A182<=Inversion!$C$23,(1-(1+Inversion!$C$22)^-(Inversion!$C$23))/Inversion!$C$22,0) -> 108.1466875 | E182: 1216865.75 | F182: 739089.1959 | G182: =C182*Inversion!$C$22 -> 477776.5544 | H182: 60347582.62
A183: =IF(A182<Inversion!$C$23,A182+1,"-") -> 178 | B183: =IF(A183<>"-",DATE(YEAR(Inversion!$C$7),MONTH(Inversion!$C$7)+A183,DAY(Inversion!$C$7)),"-") -> 2040-05-10 | C183: =IF(A183<=Inversion!$C$23,IF(H182>0,H182,0),0) -> 60347582.62 | D183: =IF(A183<=Inversion!$C$23,(1-(1+Inversion!$C$22)^-(Inversion!$C$23))/Inversion!$C$22,0) -> 108.1466875 | E183: 1216865.75 | F183: 744869.8266 | G183: =C183*Inversion!$C$22 -> 471995.9237 | H183: 59602712.79
A184: =IF(A183<Inversion!$C$23,A183+1,"-") -> 179 | B184: =IF(A184<>"-",DATE(YEAR(Inversion!$C$7),MONTH(Inversion!$C$7)+A184,DAY(Inversion!$C$7)),"-") -> 2040-06-10 | C184: =IF(A184<=Inversion!$C$23,IF(H183>0,H183,0),0) -> 59602712.79 | D184: =IF(A184<=Inversion!$C$23,(1-(1+Inversion!$C$22)^-(Inversion!$C$23))/Inversion!$C$22,0) -> 108.1466875 | E184: 1216865.75 | F184: 750695.6693 | G184: =C184*Inversion!$C$22 -> 466170.0811 | H184: 58852017.12
A185: =IF(A184<Inversion!$C$23,A184+1,"-") -> 180 | B185: =IF(A185<>"-",DATE(YEAR(Inversion!$C$7),MONTH(Inversion!$C$7)+A185,DAY(Inversion!$C$7)),"-") -> 2040-07-10 | C185: =IF(A185<=Inversion!$C$23,IF(H184>0,H184,0),0) -> 58852017.12 | D185: =IF(A185<=Inversion!$C$23,(1-(1+Inversion!$C$22)^-(Inversion!$C$23))/Inversion!$C$22,0) -> 108.1466875 | E185: 1216865.75 | F185: 756567.0776 | G185: =C185*Inversion!$C$22 -> 460298.6728 | H185: 58095450.04
A186: =IF(A185<Inversion!$C$23,A185+1,"-") -> 181 | B186: =IF(A186<>"-",DATE(YEAR(Inversion!$C$7),MONTH(Inversion!$C$7)+A186,DAY(Inversion!$C$7)),"-") -> 2040-08-10 | C186: =IF(A186<=Inversion!$C$23,IF(H185>0,H185,0),0) -> 58095450.04 | D186: =IF(A186<=Inversion!$C$23,(1-(1+Inversion!$C$22)^-(Inversion!$C$23))/Inversion!$C$22,0) -> 108.1466875 | E186: 1216865.75 | F186: 762484.4078 | G186: =C186*Inversion!$C$22 -> 454381.3425 | H186: 57332965.64
A187: =IF(A186<Inversion!$C$23,A186+1,"-") -> 182 | B187: =IF(A187<>"-",DATE(YEAR(Inversion!$C$7),MONTH(Inversion!$C$7)+A187,DAY(Inversion!$C$7)),"-") -> 2040-09-10 | C187: =IF(A187<=Inversion!$C$23,IF(H186>0,H186,0),0) -> 57332965.64 | D187: =IF(A187<=Inversion!$C$23,(1-(1+Inversion!$C$22)^-(Inversion!$C$23))/Inversion!$C$22,0) -> 108.1466875 | E187: 1216865.75 | F187: 768448.0192 | G187: =C187*Inversion!$C$22 -> 448417.7311 | H187: 56564517.62
A188: =IF(A187<Inversion!$C$23,A187+1,"-") -> 183 | B188: =IF(A188<>"-",DATE(YEAR(Inversion!$C$7),MONTH(Inversion!$C$7)+A188,DAY(Inversion!$C$7)),"-") -> 2040-10-10 | C188: =IF(A188<=Inversion!$C$23,IF(H187>0,H187,0),0) -> 56564517.62 | D188: =IF(A188<=Inversion!$C$23,(1-(1+Inversion!$C$22)^-(Inversion!$C$23))/Inversion!$C$22,0) -> 108.1466875 | E188: 1216865.75 | F188: 774458.2738 | G188: =C188*Inversion!$C$22 -> 442407.4766 | H188: 55790059.34
A189: =IF(A188<Inversion!$C$23,A188+1,"-") -> 184 | B189: =IF(A189<>"-",DATE(YEAR(Inversion!$C$7),MONTH(Inversion!$C$7)+A189,DAY(Inversion!$C$7)),"-") -> 2040-11-10 | C189: =IF(A189<=Inversion!$C$23,IF(H188>0,H188,0),0) -> 55790059.34 | D189: =IF(A189<=Inversion!$C$23,(1-(1+Inversion!$C$22)^-(Inversion!$C$23))/Inversion!$C$22,0) -> 108.1466875 | E189: 1216865.75 | F189: 780515.5363 | G189: =C189*Inversion!$C$22 -> 436350.2141 | H189: 55009543.81
A190: =IF(A189<Inversion!$C$23,A189+1,"-") -> 185 | B190: =IF(A190<>"-",DATE(YEAR(Inversion!$C$7),MONTH(Inversion!$C$7)+A190,DAY(Inversion!$C$7)),"-") -> 2040-12-10 | C190: =IF(A190<=Inversion!$C$23,IF(H189>0,H189,0),0) -> 55009543.81 | D190: =IF(A190<=Inversion!$C$23,(1-(1+Inversion!$C$22)^-(Inversion!$C$23))/Inversion!$C$22,0) -> 108.1466875 | E190: 1216865.75 | F190: 786620.1744 | G190: =C190*Inversion!$C$22 -> 430245.576 | H190: 54222923.63
A191: =IF(A190<Inversion!$C$23,A190+1,"-") -> 186 | B191: =IF(A191<>"-",DATE(YEAR(Inversion!$C$7),MONTH(Inversion!$C$7)+A191,DAY(Inversion!$C$7)),"-") -> 2041-01-10 | C191: =IF(A191<=Inversion!$C$23,IF(H190>0,H190,0),0) -> 54222923.63 | D191: =IF(A191<=Inversion!$C$23,(1-(1+Inversion!$C$22)^-(Inversion!$C$23))/Inversion!$C$22,0) -> 108.1466875 | E191: 1216865.75 | F191: 792772.5586 | G191: =C191*Inversion!$C$22 -> 424093.1918 | H191: 53430151.07
A192: =IF(A191<Inversion!$C$23,A191+1,"-") -> 187 | B192: =IF(A192<>"-",DATE(YEAR(Inversion!$C$7),MONTH(Inversion!$C$7)+A192,DAY(Inversion!$C$7)),"-") -> 2041-02-10 | C192: =IF(A192<=Inversion!$C$23,IF(H191>0,H191,0),0) -> 53430151.07 | D192: =IF(A192<=Inversion!$C$23,(1-(1+Inversion!$C$22)^-(Inversion!$C$23))/Inversion!$C$22,0) -> 108.1466875 | E192: 1216865.75 | F192: 798973.0624 | G192: =C192*Inversion!$C$22 -> 417892.688 | H192: 52631178.01
A193: =IF(A192<Inversion!$C$23,A192+1,"-") -> 188 | B193: =IF(A193<>"-",DATE(YEAR(Inversion!$C$7),MONTH(Inversion!$C$7)+A193,DAY(Inversion!$C$7)),"-") -> 2041-03-10 | C193: =IF(A193<=Inversion!$C$23,IF(H192>0,H192,0),0) -> 52631178.01 | D193: =IF(A193<=Inversion!$C$23,(1-(1+Inversion!$C$22)^-(Inversion!$C$23))/Inversion!$C$22,0) -> 108.1466875 | E193: 1216865.75 | F193: 805222.0622 | G193: =C193*Inversion!$C$22 -> 411643.6882 | H193: 51825955.95
A194: =IF(A193<Inversion!$C$23,A193+1,"-") -> 189 | B194: =IF(A194<>"-",DATE(YEAR(Inversion!$C$7),MONTH(Inversion!$C$7)+A194,DAY(Inversion!$C$7)),"-") -> 2041-04-10 | C194: =IF(A194<=Inversion!$C$23,IF(H193>0,H193,0),0) -> 51825955.95 | D194: =IF(A194<=Inversion!$C$23,(1-(1+Inversion!$C$22)^-(Inversion!$C$23))/Inversion!$C$22,0) -> 108.1466875 | E194: 1216865.75 | F194: 811519.9371 | G194: =C194*Inversion!$C$22 -> 405345.8132 | H194: 51014436.01
A195: =IF(A194<Inversion!$C$23,A194+1,"-") -> 190 | B195: =IF(A195<>"-",DATE(YEAR(Inversion!$C$7),MONTH(Inversion!$C$7)+A195,DAY(Inversion!$C$7)),"-") -> 2041-05-10 | C195: =IF(A195<=Inversion!$C$23,IF(H194>0,H194,0),0) -> 51014436.01 | D195: =IF(A195<=Inversion!$C$23,(1-(1+Inversion!$C$22)^-(Inversion!$C$23))/Inversion!$C$22,0) -> 108.1466875 | E195: 1216865.75 | F195: 817867.0696 | G195: =C195*Inversion!$C$22 -> 398998.6807 | H195: 50196568.94
A196: =IF(A195<Inversion!$C$23,A195+1,"-") -> 191 | B196: =IF(A196<>"-",DATE(YEAR(Inversion!$C$7),MONTH(Inversion!$C$7)+A196,DAY(Inversion!$C$7)),"-") -> 2041-06-10 | C196: =IF(A196<=Inversion!$C$23,IF(H195>0,H195,0),0) -> 50196568.94 | D196: =IF(A196<=Inversion!$C$23,(1-(1+Inversion!$C$22)^-(Inversion!$C$23))/Inversion!$C$22,0) -> 108.1466875 | E196: 1216865.75 | F196: 824263.8449 | G196: =C196*Inversion!$C$22 -> 392601.9055 | H196: 49372305.1
A197: =IF(A196<Inversion!$C$23,A196+1,"-") -> 192 | B197: =IF(A197<>"-",DATE(YEAR(Inversion!$C$7),MONTH(Inversion!$C$7)+A197,DAY(Inversion!$C$7)),"-") -> 2041-07-10 | C197: =IF(A197<=Inversion!$C$23,IF(H196>0,H196,0),0) -> 49372305.1 | D197: =IF(A197<=Inversion!$C$23,(1-(1+Inversion!$C$22)^-(Inversion!$C$23))/Inversion!$C$22,0) -> 108.1466875 | E197: 1216865.75 | F197: 830710.6512 | G197: =C197*Inversion!$C$22 -> 386155.0992 | H197: 48541594.45
A198: =IF(A197<Inversion!$C$23,A197+1,"-") -> 193 | B198: =IF(A198<>"-",DATE(YEAR(Inversion!$C$7),MONTH(Inversion!$C$7)+A198,DAY(Inversion!$C$7)),"-") -> 2041-08-10 | C198: =IF(A198<=Inversion!$C$23,IF(H197>0,H197,0),0) -> 48541594.45 | D198: =IF(A198<=Inversion!$C$23,(1-(1+Inversion!$C$22)^-(Inversion!$C$23))/Inversion!$C$22,0) -> 108.1466875 | E198: 1216865.75 | F198: 837207.8798 | G198: =C198*Inversion!$C$22 -> 379657.8706 | H198: 47704386.57
A199: =IF(A198<Inversion!$C$23,A198+1,"-") -> 194 | B199: =IF(A199<>"-",DATE(YEAR(Inversion!$C$7),MONTH(Inversion!$C$7)+A199,DAY(Inversion!$C$7)),"-") -> 2041-09-10 | C199: =IF(A199<=Inversion!$C$23,IF(H198>0,H198,0),0) -> 47704386.57 | D199: =IF(A199<=Inversion!$C$23,(1-(1+Inversion!$C$22)^-(Inversion!$C$23))/Inversion!$C$22,0) -> 108.1466875 | E199: 1216865.75 | F199: 843755.9251 | G199: =C199*Inversion!$C$22 -> 373109.8252 | H199: 46860630.64
A200: =IF(A199<Inversion!$C$23,A199+1,"-") -> 195 | B200: =IF(A200<>"-",DATE(YEAR(Inversion!$C$7),MONTH(Inversion!$C$7)+A200,DAY(Inversion!$C$7)),"-") -> 2041-10-10 | C200: =IF(A200<=Inversion!$C$23,IF(H199>0,H199,0),0) -> 46860630.64 | D200: =IF(A200<=Inversion!$C$23,(1-(1+Inversion!$C$22)^-(Inversion!$C$23))/Inversion!$C$22,0) -> 108.1466875 | E200: 1216865.75 | F200: 850355.1846 | G200: =C200*Inversion!$C$22 -> 366510.5658 | H200: 46010275.46
A201: =IF(A200<Inversion!$C$23,A200+1,"-") -> 196 | B201: =IF(A201<>"-",DATE(YEAR(Inversion!$C$7),MONTH(Inversion!$C$7)+A201,DAY(Inversion!$C$7)),"-") -> 2041-11-10 | C201: =IF(A201<=Inversion!$C$23,IF(H200>0,H200,0),0) -> 46010275.46 | D201: =IF(A201<=Inversion!$C$23,(1-(1+Inversion!$C$22)^-(Inversion!$C$23))/Inversion!$C$22,0) -> 108.1466875 | E201: 1216865.75 | F201: =E201-G201 -> 857006.0588 | G201: =C201*Inversion!$C$22 -> 359859.6915 | H201: 45153269.4
A202: =IF(A201<Inversion!$C$23,A201+1,"-") -> 197 | B202: =IF(A202<>"-",DATE(YEAR(Inversion!$C$7),MONTH(Inversion!$C$7)+A202,DAY(Inversion!$C$7)),"-") -> 2041-12-10 | C202: =IF(A202<=Inversion!$C$23,IF(H201>0,H201,0),0) -> 45153269.4 | D202: =IF(A202<=Inversion!$C$23,(1-(1+Inversion!$C$22)^-(Inversion!$C$23))/Inversion!$C$22,0) -> 108.1466875 | E202: 1216865.75 | F202: 863708.9515 | G202: =C202*Inversion!$C$22 -> 353156.7989 | H202: 44289560.45
... 165 more rows

Sheet Hipotecario (UVR) (hidden)
A1: Hipotecario (UVR) - Cuota Integral Esta es una simulación, los datos son aproximados
A4: Mes | C4: Saldo inicial Pesos | D4: Abono a capital pesos | E4: Intereses pesos | F4: Cuota total pesos sin seguros | G4: Saldo final pesos | I4: Saldo inicial UVR | J4: Abono a capital UVR | K4: Intereses UVR | L4: Cuota total UVR sin seguros | M4: Saldo final UVR | O4: Proyeccion Cotizacion UVR
A5: 0 | B5: =IF(A5<>"-",DATE(YEAR(Inversion!$C$7),MONTH(Inversion!$C$7)+A5,DAY(Inversion!$C$7)),"-") -> 2025-07-10 | C5: 0 | D5: 0 | E5: 0 | F5: 0 | G5: 0 | I5: =Inversion!C18/Inversion!C28 -> 350130.8335 | J5: 0 | K5: 0 | L5: 0 | M5: 0 | O5: =Inversion!C28 -> 375.8595
A6: =IF(A5<Inversion!$C$23,A5+1,"-") -> 1 | B6: =IF(A6<>"-",DATE(YEAR(Inversion!$C$7),MONTH(Inversion!$C$7)+A6,DAY(Inversion!$C$7)),"-") -> 2025-08-10 | C6: ='Hipotecario (Pesos)'!C6 -> 131600000 | D6: =J6*O6 -> 188497.1063 | E6: =K6*O6 -> 1034291.8 | F6: =L6*O6 -> 1222788.906 | G6: =M6*O6 -> 132052072.5 | I6: =I5-J6 -> 349631.7533 | J6: ='Hipotecario (Pesos)'!F6/Inversion!$C$28 -> 499.0801923 | K6: ='Hipotecario (Pesos)'!G6/Inversion!$C$28 -> 2738.474666 | L6: ='Hipotecario (Pesos)'!E6/Inversion!$C$28 -> 3237.554859 | M6: ='Hipotecario (Pesos)'!H6/Inversion!$C$28 -> 349631.7533 | O6: =O5*(1+Inversion!$C$27) -> 377.6890151
A7: =IF(A6<Inversion!$C$23,A6+1,"-") -> 2 | B7: =IF(A7<>"-",DATE(YEAR(Inversion!$C$7),MONTH(Inversion!$C$7)+A7,DAY(Inversion!$C$7)),"-") -> 2025-09-10 | C7: ='Hipotecario (Pesos)'!C7 -> 131412416 | D7: 190896.0921 | E7: 1037844.801 | F7: 1228740.893 | G7: 132503946.6 | I7: =I6-J7 -> 349128.7696 | J7: ='Hipotecario (Pesos)'!F7/Inversion!$C$28 -> 502.983643 | K7: ='Hipotecario (Pesos)'!G7/Inversion!$C$28 -> 2734.571216 | L7: ='Hipotecario (Pesos)'!E7/Inversion!$C$28 -> 3237.554859 | M7: ='Hipotecario (Pesos)'!H7/Inversion!$C$28 -> 349128.7696 | O7: =O6*(1+Inversion!$C$27) -> 379.5274355
A8: =IF(A7<Inversion!$C$23,A7+1,"-") -> 3 | B8: =IF(A8<>"-",DATE(YEAR(Inversion!$C$7),MONTH(Inversion!$C$7)+A8,DAY(Inversion!$C$7)),"-") -> 2025-10-10 | C8: ='Hipotecario (Pesos)'!C8 -> 131223364.8 | D8: 193325.6097 | E8: 1041396.242 | F8: 1234721.851 | G8: 132955590.6 | I8: =I7-J8 -> 348621.852 | J8: ='Hipotecario (Pesos)'!F8/Inversion!$C$28 -> 506.9176238 | K8: ='Hipotecario (Pesos)'!G8/Inversion!$C$28 -> 2730.637235 | L8: ='Hipotecario (Pesos)'!E8/Inversion!$C$28 -> 3237.554859 | M8: ='Hipotecario (Pesos)'!H8/Inversion!$C$28 -> 348621.852 | O8: =O7*(1+Inversion!$C$27) -> 381.3748045
A9: =IF(A8<Inversion!$C$23,A8+1,"-") -> 4 | B9: =IF(A9<>"-",DATE(YEAR(Inversion!$C$7),MONTH(Inversion!$C$7)+A9,DAY(Inversion!$C$7)),"-") -> 2025-11-10 | C9: ='Hipotecario (Pesos)'!C9 -> 131032835 | D9: 195786.0475 | E9: 1044945.875 | F9: 1240731.922 | G9: 133406972.7 | I9: 348110.9696 | J9: ='Hipotecario (Pesos)'!F9/Inversion!$C$28 -> 510.8823734 | K9: ='Hipotecario (Pesos)'!G9/Inversion!$C$28 -> 2726.672485 | L9: ='Hipotecario (Pesos)'!E9/Inversion!$C$28 -> 3237.554859 | M9: ='Hipotecario (Pesos)'!H9/Inversion!$C$28 -> 348110.9696 | O9: =O8*(1+Inversion!$C$27) -> 383.2311656
A10: =IF(A9<Inversion!$C$23,A9+1,"-") -> 5 | B10: =IF(A10<>"-",DATE(YEAR(Inversion!$C$7),MONTH(Inversion!$C$7)+A10,DAY(Inversion!$C$7)),"-") -> 2025-12-10 | C10: ='Hipotecario (Pesos)'!C10 -> 130840815 | D10: 198277.799 | E10: 1048493.449 | F10: 1246771.248 | G10: 133858060 | I10: 347596.0915 | J10: ='Hipotecario (Pesos)'!F10/Inversion!$C$28 -> 514.8781324 | K10: ='Hipotecario (Pesos)'!G10/Inversion!$C$28 -> 2722.676726 | L10: ='Hipotecario (Pesos)'!E10/Inversion!$C$28 -> 3237.554859 | M10: ='Hipotecario (Pesos)'!H10/Inversion!$C$28 -> 347596.0915 | O10: =O9*(1+Inversion!$C$27) -> 385.0965627
A11: =IF(A10<Inversion!$C$23,A10+1,"-") -> 6 | B11: =IF(A11<>"-",DATE(YEAR(Inversion!$C$7),MONTH(Inversion!$C$7)+A11,DAY(Inversion!$C$7)),"-") -> 2026-01-10 | C11: ='Hipotecario (Pesos)'!C11 -> 130647293.2 | D11: 200801.2629 | E11: 1052038.707 | F11: 1252839.97 | G11: 134308819.7 | I11: 347077.1864 | J11: ='Hipotecario (Pesos)'!F11/Inversion!$C$28 -> 518.9051434 | K11: ='Hipotecario (Pesos)'!G11/Inversion!$C$28 -> 2718.649715 | L11: ='Hipotecario (Pesos)'!E11/Inversion!$C$28 -> 3237.554859 | M11: ='Hipotecario (Pesos)'!H11/Inversion!$C$28 -> 347077.1864 | O11: =O10*(1+Inversion!$C$27) -> 386.9710397
A12: =IF(A11<Inversion!$C$23,A11+1,"-") -> 7 | B12: =IF(A12<>"-",DATE(YEAR(Inversion!$C$7),MONTH(Inversion!$C$7)+A12,DAY(Inversion!$C$7)),"-") -> 2026-02-10 | C12: ='Hipotecario (Pesos)'!C12 -> 130452257.7 | D12: 203356.8426 | E12: 1055581.389 | F12: 1258938.232 | G12: 134759217.8 | I12: 346554.2227 | J12: ='Hipotecario (Pesos)'!F12/Inversion!$C$28 -> 522.9636508 | K12: ='Hipotecario (Pesos)'!G12/Inversion!$C$28 -> 2714.591208 | L12: ='Hipotecario (Pesos)'!E12/Inversion!$C$28 -> 3237.554859 | M12: ='Hipotecario (Pesos)'!H12/Inversion!$C$28 -> 346554.2227 | O12: =O11*(1+Inversion!$C$27) -> 388.8546408
A13: =IF(A12<Inversion!$C$23,A12+1,"-") -> 8 | B13: =IF(A13<>"-",DATE(YEAR(Inversion!$C$7),MONTH(Inversion!$C$7)+A13,DAY(Inversion!$C$7)),"-") -> 2026-03-10 | C13: ='Hipotecario (Pesos)'!C13 -> 130255696.9 | D13: 205944.947 | E13: 1059121.23 | F13: 1265066.177 | G13: 135209220.1 | I13: 346027.1688 | J13: ='Hipotecario (Pesos)'!F13/Inversion!$C$28 -> 527.053901 | K13: ='Hipotecario (Pesos)'!G13/Inversion!$C$28 -> 2710.500958 | L13: ='Hipotecario (Pesos)'!E13/Inversion!$C$28 -> 3237.554859 | M13: ='Hipotecario (Pesos)'!H13/Inversion!$C$28 -> 346027.1688 | O13: =O12*(1+Inversion!$C$27) -> 390.7474104
A14: =IF(A13<Inversion!$C$23,A13+1,"-") -> 9 | B14: =IF(A14<>"-",DATE(YEAR(Inversion!$C$7),MONTH(Inversion!$C$7)+A14,DAY(Inversion!$C$7)),"-") -> 2026-04-10 | C14: ='Hipotecario (Pesos)'!C14 -> 130057598.7 | D14: 208565.9899 | E14: 1062657.961 | F14: 1271223.951 | G14: 135658791.9 | I14: 345495.9927 | J14: ='Hipotecario (Pesos)'!F14/Inversion!$C$28 -> 531.1761423 | K14: ='Hipotecario (Pesos)'!G14/Inversion!$C$28 -> 2706.378716 | L14: ='Hipotecario (Pesos)'!E14/Inversion!$C$28 -> 3237.554859 | M14: ='Hipotecario (Pesos)'!H14/Inversion!$C$28 -> 345495.9927 | O14: =O13*(1+Inversion!$C$27) -> 392.6493932
A15: =IF(A14<Inversion!$C$23,A14+1,"-") -> 10 | B15: =IF(A15<>"-",DATE(YEAR(Inversion!$C$7),MONTH(Inversion!$C$7)+A15,DAY(Inversion!$C$7)),"-") -> 2026-05-10 | C15: ='Hipotecario (Pesos)'!C15 -> 129857951.1 | D15: 211220.3907 | E15: 1066191.307 | F15: 1277411.698 | G15: 136107897.5 | I15: 344960.662 | J15: ='Hipotecario (Pesos)'!F15/Inversion!$C$28 -> 535.3306247 | K15: ='Hipotecario (Pesos)'!G15/Inversion!$C$28 -> 2702.224234 | L15: ='Hipotecario (Pesos)'!E15/Inversion!$C$28 -> 3237.554859 | M15: ='Hipotecario (Pesos)'!H15/Inversion!$C$28 -> 344960.662 | O15: =O14*(1+Inversion!$C$27) -> 394.560634
A16: =IF(A15<Inversion!$C$23,A15+1,"-") -> 11 | B16: =IF(A16<>"-",DATE(YEAR(Inversion!$C$7),MONTH(Inversion!$C$7)+A16,DAY(Inversion!$C$7)),"-") -> 2026-06-10 | C16: ='Hipotecario (Pesos)'!C16 -> 129656742 | D16: 213908.5737 | E16: 1069720.99 | F16: 1283629.564 | G16: 136556501 | I16: 344421.1444 | J16: ='Hipotecario (Pesos)'!F16/Inversion!$C$28 -> 539.5176006 | K16: ='Hipotecario (Pesos)'!G16/Inversion!$C$28 -> 2698.037258 | L16: ='Hipotecario (Pesos)'!E16/Inversion!$C$28 -> 3237.554859 | M16: ='Hipotecario (Pesos)'!H16/Inversion!$C$28 -> 344421.1444 | O16: =O15*(1+Inversion!$C$27) -> 396.4811778
A17: =IF(A16<Inversion!$C$23,A16+1,"-") -> 12 | B17: =IF(A17<>"-",DATE(YEAR(Inversion!$C$7),MONTH(Inversion!$C$7)+A17,DAY(Inversion!$C$7)),"-") -> 2026-07-10 | C17: ='Hipotecario (Pesos)'!C17 -> 129453959.1 | D17: 216630.9691 | E17: 1073246.726 | F17: 1289877.695 | G17: 137004565.7 | I17: 343877.4071 | J17: ='Hipotecario (Pesos)'!F17/Inversion!$C$28 -> 543.737324 | K17: ='Hipotecario (Pesos)'!G17/Inversion!$C$28 -> 2693.817535 | L17: ='Hipotecario (Pesos)'!E17/Inversion!$C$28 -> 3237.554859 | M17: ='Hipotecario (Pesos)'!H17/Inversion!$C$28 -> 343877.4071 | O17: =O16*(1+Inversion!$C$27) -> 398.41107
A18: =IF(A17<Inversion!$C$23,A17+1,"-") -> 13 | B18: =IF(A18<>"-",DATE(YEAR(Inversion!$C$7),MONTH(Inversion!$C$7)+A18,DAY(Inversion!$C$7)),"-") -> 2026-08-10 | C18: ='Hipotecario (Pesos)'!C18 -> 129249590.3 | D18: 219388.0121 | E18: 1076768.228 | F18: 1296156.24 | G18: 137452054.4 | I18: 343329.4171 | J18: ='Hipotecario (Pesos)'!F18/Inversion!$C$28 -> 547.9900511 | K18: ='Hipotecario (Pesos)'!G18/Inversion!$C$28 -> 2689.564807 | L18: ='Hipotecario (Pesos)'!E18/Inversion!$C$28 -> 3237.554859 | M18: ='Hipotecario (Pesos)'!H18/Inversion!$C$28 -> 343329.4171 | O18: =O17*(1+Inversion!$C$27) -> 400.350356
A19: =IF(A18<Inversion!$C$23,A18+1,"-") -> 14 | B19: =IF(A19<>"-",DATE(YEAR(Inversion!$C$7),MONTH(Inversion!$C$7)+A19,DAY(Inversion!$C$7)),"-") -> 2026-09-10 | C19: ='Hipotecario (Pesos)'!C19 -> 129043623 | D19: 222180.1437 | E19: 1080285.203 | F19: 1302465.346 | G19: 137898929 | I19: 342777.141 | J19: ='Hipotecario (Pesos)'!F19/Inversion!$C$28 -> 552.2760401 | K19: ='Hipotecario (Pesos)'!G19/Inversion!$C$28 -> 2685.278819 | L19: ='Hipotecario (Pesos)'!E19/Inversion!$C$28 -> 3237.554859 | M19: ='Hipotecario (Pesos)'!H19/Inversion!$C$28 -> 342777.141 | O19: =O18*(1+Inversion!$C$27) -> 402.2990816
A20: =IF(A19<Inversion!$C$23,A19+1,"-") -> 15 | B20: =IF(A20<>"-",DATE(YEAR(Inversion!$C$7),MONTH(Inversion!$C$7)+A20,DAY(Inversion!$C$7)),"-") -> 2026-10-10 | C20: ='Hipotecario (Pesos)'!C20 -> 128836044.8 | D20: 225007.8106 | E20: 1083797.352 | F20: 1308805.162 | G20: 138345151.2 | I20: 342220.5455 | J20: ='Hipotecario (Pesos)'!F20/Inversion!$C$28 -> 556.5955509 | K20: ='Hipotecario (Pesos)'!G20/Inversion!$C$28 -> 2680.959308 | L20: ='Hipotecario (Pesos)'!E20/Inversion!$C$28 -> 3237.554859 | M20: ='Hipotecario (Pesos)'!H20/Inversion!$C$28 -> 342220.5455 | O20: =O19*(1+Inversion!$C$27) -> 404.2572928
A21: =IF(A20<Inversion!$C$23,A20+1,"-") -> 16 | B21: =IF(A21<>"-",DATE(YEAR(Inversion!$C$7),MONTH(Inversion!$C$7)+A21,DAY(Inversion!$C$7)),"-") -> 2026-11-10 | C21: ='Hipotecario (Pesos)'!C21 -> 128626843.1 | D21: 227871.4649 | E21: 1087304.373 | F21: 1315175.838 | G21: 138790681.8 | I21: 341659.5966 | J21: ='Hipotecario (Pesos)'!F21/Inversion!$C$28 -> 560.948846 | K21: ='Hipotecario (Pesos)'!G21/Inversion!$C$28 -> 2676.606013 | L21: ='Hipotecario (Pesos)'!E21/Inversion!$C$28 -> 3237.554859 | M21: ='Hipotecario (Pesos)'!H21/Inversion!$C$28 -> 341659.5966 | O21: =O20*(1+Inversion!$C$27) -> 406.2250356
A22: =IF(A21<Inversion!$C$23,A21+1,"-") -> 17 | B22: =IF(A22<>"-",DATE(YEAR(Inversion!$C$7),MONTH(Inversion!$C$7)+A22,DAY(Inversion!$C$7)),"-") -> 2026-12-10 | C22: ='Hipotecario (Pesos)'!C22 -> 128416005.2 | D22: 230771.5647 | E22: 1090805.958 | F22: 1321577.522 | G22: 139235480.9 | I22: 341094.2604 | J22: ='Hipotecario (Pesos)'!F22/Inversion!$C$28 -> 565.3361894 | K22: ='Hipotecario (Pesos)'!G22/Inversion!$C$28 -> 2672.218669 | L22: ='Hipotecario (Pesos)'!E22/Inversion!$C$28 -> 3237.554859 | M22: ='Hipotecario (Pesos)'!H22/Inversion!$C$28 -> 341094.2604 | O22: =O21*(1+Inversion!$C$27) -> 408.2023565
A23: =IF(A22<Inversion!$C$23,A22+1,"-") -> 18 | B23: =IF(A23<>"-",DATE(YEAR(Inversion!$C$7),MONTH(Inversion!$C$7)+A23,DAY(Inversion!$C$7)),"-") -> 2027-01-10 | C23: ='Hipotecario (Pesos)'!C23 -> 128203518.2 | D23: 233708.5738 | E23: 1094301.794 | F23: 1328010.368 | G23: 139679508.1 | I23: 340524.5026 | J23: ='Hipotecario (Pesos)'!F23/Inversion!$C$28 -> 569.7578475 | K23: ='Hipotecario (Pesos)'!G23/Inversion!$C$28 -> 2667.797011 | L23: ='Hipotecario (Pesos)'!E23/Inversion!$C$28 -> 3237.554859 | M23: ='Hipotecario (Pesos)'!H23/Inversion!$C$28 -> 340524.5026 | O23: =O22*(1+Inversion!$C$27) -> 410.1893021
A24: =IF(A23<Inversion!$C$23,A23+1,"-") -> 19 | B24: =IF(A24<>"-",DATE(YEAR(Inversion!$C$7),MONTH(Inversion!$C$7)+A24,DAY(Inversion!$C$7)),"-") -> 2027-02-10 | C24: ='Hipotecario (Pesos)'!C24 -> 127989369.3 | D24: 236682.962 | E24: 1097791.564 | F24: 1334474.526 | G24: 140122722.2 | I24: 339950.2885 | J24: ='Hipotecario (Pesos)'!F24/Inversion!$C$28 -> 574.2140886 | K24: ='Hipotecario (Pesos)'!G24/Inversion!$C$28 -> 2663.34077 | L24: ='Hipotecario (Pesos)'!E24/Inversion!$C$28 -> 3237.554859 | M24: ='Hipotecario (Pesos)'!H24/Inversion!$C$28 -> 339950.2885 | O24: =O23*(1+Inversion!$C$27) -> 412.1859192
A25: =IF(A24<Inversion!$C$23,A24+1,"-") -> 20 | B25: =IF(A25<>"-",DATE(YEAR(Inversion!$C$7),MONTH(Inversion!$C$7)+A25,DAY(Inversion!$C$7)),"-") -> 2027-03-10 | C25: ='Hipotecario (Pesos)'!C25 -> 127773545.5 | D25: 239695.2049 | E25: 1101274.943 | F25: 1340970.148 | G25: 140565081.4 | I25: 339371.5833 | J25: ='Hipotecario (Pesos)'!F25/Inversion!$C$28 -> 578.7051833 | K25: ='Hipotecario (Pesos)'!G25/Inversion!$C$28 -> 2658.849675 | L25: ='Hipotecario (Pesos)'!E25/Inversion!$C$28 -> 3237.554859 | M25: ='Hipotecario (Pesos)'!H25/Inversion!$C$28 -> 339371.5833 | O25: =O24*(1+Inversion!$C$27) -> 414.1922551
A26: =IF(A25<Inversion!$C$23,A25+1,"-") -> 21 | B26: =IF(A26<>"-",DATE(YEAR(Inversion!$C$7),MONTH(Inversion!$C$7)+A26,DAY(Inversion!$C$7)),"-") -> 2027-04-10 | C26: ='Hipotecario (Pesos)'!C26 -> 127556033.6 | D26: 242745.7844 | E26: 1104751.603 | F26: 1347497.388 | G26: 141006543.3 | I26: 338788.3519 | J26: ='Hipotecario (Pesos)'!F26/Inversion!$C$28 -> 583.2314042 | K26: ='Hipotecario (Pesos)'!G26/Inversion!$C$28 -> 2654.323454 | L26: ='Hipotecario (Pesos)'!E26/Inversion!$C$28 -> 3237.554859 | M26: ='Hipotecario (Pesos)'!H26/Inversion!$C$28 -> 338788.3519 | O26: =O25*(1+Inversion!$C$27) -> 416.2083568
A27: =IF(A26<Inversion!$C$23,A26+1,"-") -> 22 | B27: =IF(A27<>"-",DATE(YEAR(Inversion!$C$7),MONTH(Inversion!$C$7)+A27,DAY(Inversion!$C$7)),"-") -> 2027-05-10 | C27: ='Hipotecario (Pesos)'!C27 -> 127336820.6 | D27: 245835.1883 | E27: 1108221.211 | F27: 1354056.399 | G27: 141447064.5 | I27: 338200.5589 | J27: ='Hipotecario (Pesos)'!F27/Inversion!$C$28 -> 587.793026 | K27: ='Hipotecario (Pesos)'!G27/Inversion!$C$28 -> 2649.761833 | L27: ='Hipotecario (Pesos)'!E27/Inversion!$C$28 -> 3237.554859 | M27: ='Hipotecario (Pesos)'!H27/Inversion!$C$28 -> 338200.5589 | O27: =O26*(1+Inversion!$C$27) -> 418.234272
A28: =IF(A27<Inversion!$C$23,A27+1,"-") -> 23 | B28: =IF(A28<>"-",DATE(YEAR(Inversion!$C$7),MONTH(Inversion!$C$7)+A28,DAY(Inversion!$C$7)),"-") -> 2027-06-10 | C28: ='Hipotecario (Pesos)'!C28 -> 127115893 | D28: 248963.9108 | E28: 1111683.427 | F28: 1360647.337 | G28: 141886601.4 | I28: 337608.1686 | J28: ='Hipotecario (Pesos)'!F28/Inversion!$C$28 -> 592.3903255 | K28: ='Hipotecario (Pesos)'!G28/Inversion!$C$28 -> 2645.164533 | L28: ='Hipotecario (Pesos)'!E28/Inversion!$C$28 -> 3237.554859 | M28: ='Hipotecario (Pesos)'!H28/Inversion!$C$28 -> 337608.1686 | O28: =O27*(1+Inversion!$C$27) -> 420.2700485
A29: =IF(A28<Inversion!$C$23,A28+1,"-") -> 24 | B29: =IF(A29<>"-",DATE(YEAR(Inversion!$C$7),MONTH(Inversion!$C$7)+A29,DAY(Inversion!$C$7)),"-") -> 2027-07-10 | C29: ='Hipotecario (Pesos)'!C29 -> 126893237.4 | D29: 252132.4523 | E29: 1115137.905 | F29: 1367270.357 | G29: 142325109.1 | I29: 337011.145 | J29: ='Hipotecario (Pesos)'!F29/Inversion!$C$28 -> 597.0235818 | K29: ='Hipotecario (Pesos)'!G29/Inversion!$C$28 -> 2640.531277 | L29: ='Hipotecario (Pesos)'!E29/Inversion!$C$28 -> 3237.554859 | M29: ='Hipotecario (Pesos)'!H29/Inversion!$C$28 -> 337011.145 | O29: =O28*(1+Inversion!$C$27) -> 422.3157342
A30: =IF(A29<Inversion!$C$23,A29+1,"-") -> 25 | B30: =IF(A30<>"-",DATE(YEAR(Inversion!$C$7),MONTH(Inversion!$C$7)+A30,DAY(Inversion!$C$7)),"-") -> 2027-08-10 | C30: ='Hipotecario (Pesos)'!C30 -> 126668840.4 | D30: 255341.3195 | E30: 1118584.295 | F30: 1373925.615 | G30: 142762542.5 | I30: 336409.4519 | J30: ='Hipotecario (Pesos)'!F30/Inversion!$C$28 -> 601.6930762 | K30: ='Hipotecario (Pesos)'!G30/Inversion!$C$28 -> 2635.861782 | L30: ='Hipotecario (Pesos)'!E30/Inversion!$C$28 -> 3237.554859 | M30: ='Hipotecario (Pesos)'!H30/Inversion!$C$28 -> 336409.4519 | O30: =O29*(1+Inversion!$C$27) -> 424.3713774
A31: =IF(A30<Inversion!$C$23,A30+1,"-") -> 26 | B31: =IF(A31<>"-",DATE(YEAR(Inversion!$C$7),MONTH(Inversion!$C$7)+A31,DAY(Inversion!$C$7)),"-") -> 2027-09-10 | C31: ='Hipotecario (Pesos)'!C31 -> 126442688.4 | D31: 258591.0257 | E31: 1122022.241 | F31: 1380613.267 | G31: 143198855.3 | I31: 335803.0528 | J31: ='Hipotecario (Pesos)'!F31/Inversion!$C$28 -> 606.399092 | K31: ='Hipotecario (Pesos)'!G31/Inversion!$C$28 -> 2631.155767 | L31: ='Hipotecario (Pesos)'!E31/Inversion!$C$28 -> 3237.554859 | M31: ='Hipotecario (Pesos)'!H31/Inversion!$C$28 -> 335803.0528 | O31: =O30*(1+Inversion!$C$27) -> 426.4370265
A32: =IF(A31<Inversion!$C$23,A31+1,"-") -> 27 | B32: =IF(A32<>"-",DATE(YEAR(Inversion!$C$7),MONTH(Inversion!$C$7)+A32,DAY(Inversion!$C$7)),"-") -> 2027-10-10 | C32: ='Hipotecario (Pesos)'!C32 -> 126214767.5 | D32: 261882.0906 | E32: 1125451.381 | F32: 1387333.472 | G32: 143634000.9 | I32: 335191.9109 | J32: ='Hipotecario (Pesos)'!F32/Inversion!$C$28 -> 611.1419149 | K32: ='Hipotecario (Pesos)'!G32/Inversion!$C$28 -> 2626.412944 | L32: ='Hipotecario (Pesos)'!E32/Inversion!$C$28 -> 3237.554859 | M32: ='Hipotecario (Pesos)'!H32/Inversion!$C$28 -> 335191.9109 | O32: =O31*(1+Inversion!$C$27) -> 428.5127303
A33: =IF(A32<Inversion!$C$23,A32+1,"-") -> 28 | B33: =IF(A33<>"-",DATE(YEAR(Inversion!$C$7),MONTH(Inversion!$C$7)+A33,DAY(Inversion!$C$7)),"-") -> 2027-11-10 | C33: ='Hipotecario (Pesos)'!C33 -> 125985064 | D33: 265215.0406 | E33: 1128871.347 | F33: 1394086.388 | G33: 144067931.6 | I33: 334575.9891 | J33: ='Hipotecario (Pesos)'!F33/Inversion!$C$28 -> 615.9218329 | K33: ='Hipotecario (Pesos)'!G33/Inversion!$C$28 -> 2621.633026 | L33: ='Hipotecario (Pesos)'!E33/Inversion!$C$28 -> 3237.554859 | M33: ='Hipotecario (Pesos)'!H33/Inversion!$C$28 -> 334575.9891 | O33: =O32*(1+Inversion!$C$27) -> 430.5985377
A34: =IF(A33<Inversion!$C$23,A33+1,"-") -> 29 | B34: =IF(A34<>"-",DATE(YEAR(Inversion!$C$7),MONTH(Inversion!$C$7)+A34,DAY(Inversion!$C$7)),"-") -> 2027-12-10 | C34: ='Hipotecario (Pesos)'!C34 -> 125753564 | D34: 268590.4087 | E34: 1132281.765 | F34: 1400872.174 | G34: 144500599.2 | I34: 333955.2499 | J34: ='Hipotecario (Pesos)'!F34/Inversion!$C$28 -> 620.7391359 | K34: ='Hipotecario (Pesos)'!G34/Inversion!$C$28 -> 2616.815723 | L34: ='Hipotecario (Pesos)'!E34/Inversion!$C$28 -> 3237.554859 | M34: ='Hipotecario (Pesos)'!H34/Inversion!$C$28 -> 333955.2499 | O34: =O33*(1+Inversion!$C$27) -> 432.6944979
A35: =IF(A34<Inversion!$C$23,A34+1,"-") -> 30 | B35: =IF(A35<>"-",DATE(YEAR(Inversion!$C$7),MONTH(Inversion!$C$7)+A35,DAY(Inversion!$C$7)),"-") -> 2028-01-10 | C35: ='Hipotecario (Pesos)'!C35 -> 125520253.3 | D35: 272008.7349 | E35: 1135682.255 | F35: 1407690.99 | G35: 144931954.4 | I35: 333329.6558 | J35: ='Hipotecario (Pesos)'!F35/Inversion!$C$28 -> 625.5941165 | K35: ='Hipotecario (Pesos)'!G35/Inversion!$C$28 -> 2611.960742 | L35: ='Hipotecario (Pesos)'!E35/Inversion!$C$28 -> 3237.554859 | M35: ='Hipotecario (Pesos)'!H35/Inversion!$C$28 -> 333329.6558 | O35: =O34*(1+Inversion!$C$27) -> 434.8006602
A36: =IF(A35<Inversion!$C$23,A35+1,"-") -> 31 | B36: =IF(A36<>"-",DATE(YEAR(Inversion!$C$7),MONTH(Inversion!$C$7)+A36,DAY(Inversion!$C$7)),"-") -> 2028-02-10 | C36: ='Hipotecario (Pesos)'!C36 -> 125285117.8 | D36: 275470.5658 | E36: 1139072.431 | F36: 1414542.997 | G36: 145361947.5 | I36: 332699.1687 | J36: ='Hipotecario (Pesos)'!F36/Inversion!$C$28 -> 630.4870693 | K36: ='Hipotecario (Pesos)'!G36/Inversion!$C$28 -> 2607.067789 | L36: ='Hipotecario (Pesos)'!E36/Inversion!$C$28 -> 3237.554859 | M36: ='Hipotecario (Pesos)'!H36/Inversion!$C$28 -> 332699.1687 | O36: =O35*(1+Inversion!$C$27) -> 436.9170744
A37: =IF(A36<Inversion!$C$23,A36+1,"-") -> 32 | B37: =IF(A37<>"-",DATE(YEAR(Inversion!$C$7),MONTH(Inversion!$C$7)+A37,DAY(Inversion!$C$7)),"-") -> 2028-03-10 | C37: ='Hipotecario (Pesos)'!C37 -> 125048143.2 | D37: 278976.4551 | E37: 1142451.902 | F37: 1421428.357 | G37: 145790527.6 | I37: 332063.7504 | J37: ='Hipotecario (Pesos)'!F37/Inversion!$C$28 -> 635.4182913 | K37: ='Hipotecario (Pesos)'!G37/Inversion!$C$28 -> 2602.136567 | L37: ='Hipotecario (Pesos)'!E37/Inversion!$C$28 -> 3237.554859 | M37: ='Hipotecario (Pesos)'!H37/Inversion!$C$28 -> 332063.7504 | O37: =O36*(1+Inversion!$C$27) -> 439.0437904
A38: =IF(A37<Inversion!$C$23,A37+1,"-") -> 33 | B38: =IF(A38<>"-",DATE(YEAR(Inversion!$C$7),MONTH(Inversion!$C$7)+A38,DAY(Inversion!$C$7)),"-") -> 2028-04-10 | C38: ='Hipotecario (Pesos)'!C38 -> 124809315.2 | D38: 282526.9635 | E38: 1145820.267 | F38: 1428347.231 | G38: 146217643.4 | I38: 331423.3624 | J38: ='Hipotecario (Pesos)'!F38/Inversion!$C$28 -> 640.3880818 | K38: ='Hipotecario (Pesos)'!G38/Inversion!$C$28 -> 2597.166777 | L38: ='Hipotecario (Pesos)'!E38/Inversion!$C$28 -> 3237.554859 | M38: ='Hipotecario (Pesos)'!H38/Inversion!$C$28 -> 331423.3624 | O38: =O37*(1+Inversion!$C$27) -> 441.1808582
A39: =IF(A38<Inversion!$C$23,A38+1,"-") -> 34 | B39: =IF(A39<>"-",DATE(YEAR(Inversion!$C$7),MONTH(Inversion!$C$7)+A39,DAY(Inversion!$C$7)),"-") -> 2028-05-10 | C39: ='Hipotecario (Pesos)'!C39 -> 124568619.3 | D39: 286122.659 | E39: 1149177.124 | F39: 1435299.783 | G39: 146643242.6 | I39: 330777.9656 | J39: ='Hipotecario (Pesos)'!F39/Inversion!$C$28 -> 645.3967425 | K39: ='Hipotecario (Pesos)'!G39/Inversion!$C$28 -> 2592.158116 | L39: ='Hipotecario (Pesos)'!E39/Inversion!$C$28 -> 3237.554859 | M39: ='Hipotecario (Pesos)'!H39/Inversion!$C$28 -> 330777.9656 | O39: =O38*(1+Inversion!$C$27) -> 443.3283283
A40: =IF(A39<Inversion!$C$23,A39+1,"-") -> 35 | B40: =IF(A40<>"-",DATE(YEAR(Inversion!$C$7),MONTH(Inversion!$C$7)+A40,DAY(Inversion!$C$7)),"-") -> 2028-06-10 | C40: ='Hipotecario (Pesos)'!C40 -> 124326040.8 | D40: 289764.1165 | E40: 1152522.061 | F40: 1442286.178 | G40: 147067271.8 | I40: 330127.521 | J40: ='Hipotecario (Pesos)'!F40/Inversion!$C$28 -> 650.4445774 | K40: ='Hipotecario (Pesos)'!G40/Inversion!$C$28 -> 2587.110281 | L40: ='Hipotecario (Pesos)'!E40/Inversion!$C$28 -> 3237.554859 | M40: ='Hipotecario (Pesos)'!H40/Inversion!$C$28 -> 330127.521 | O40: =O39*(1+Inversion!$C$27) -> 445.4862514
A41: =IF(A40<Inversion!$C$23,A40+1,"-") -> 36 | B41: =IF(A41<>"-",DATE(YEAR(Inversion!$C$7),MONTH(Inversion!$C$7)+A41,DAY(Inversion!$C$7)),"-") -> 2028-07-10 | C41: ='Hipotecario (Pesos)'!C41 -> 124081565 | D41: 293451.9186 | E41: 1155854.66 | F41: 1449306.579 | G41: 147489677.3 | I41: 329471.9892 | J41: ='Hipotecario (Pesos)'!F41/Inversion!$C$28 -> 655.5318928 | K41: ='Hipotecario (Pesos)'!G41/Inversion!$C$28 -> 2582.022966 | L41: ='Hipotecario (Pesos)'!E41/Inversion!$C$28 -> 3237.554859 | M41: ='Hipotecario (Pesos)'!H41/Inversion!$C$28 -> 329471.9892 | O41: =O40*(1+Inversion!$C$27) -> 447.6546783
A42: =IF(A41<Inversion!$C$23,A41+1,"-") -> 37 | B42: =IF(A42<>"-",DATE(YEAR(Inversion!$C$7),MONTH(Inversion!$C$7)+A42,DAY(Inversion!$C$7)),"-") -> 2028-08-10 | C42: ='Hipotecario (Pesos)'!C42 -> 123835177.1 | D42: 297186.6549 | E42: 1159174.497 | F42: 1456361.152 | G42: 147910404.1 | I42: 328811.3302 | J42: ='Hipotecario (Pesos)'!F42/Inversion!$C$28 -> 660.6589976 | K42: ='Hipotecario (Pesos)'!G42/Inversion!$C$28 -> 2576.895861 | L42: ='Hipotecario (Pesos)'!E42/Inversion!$C$28 -> 3237.554859 | M42: ='Hipotecario (Pesos)'!H42/Inversion!$C$28 -> 328811.3302 | O42: =O41*(1+Inversion!$C$27) -> 449.83366
A43: =IF(A42<Inversion!$C$23,A42+1,"-") -> 38 | B43: =IF(A43<>"-",DATE(YEAR(Inversion!$C$7),MONTH(Inversion!$C$7)+A43,DAY(Inversion!$C$7)),"-") -> 2028-09-10 | C43: ='Hipotecario (Pesos)'!C43 -> 123586862.1 | D43: 300968.923 | E43: 1162481.14 | F43: 1463450.063 | G43: 148329396.6 | I43: 328145.504 | J43: ='Hipotecario (Pesos)'!F43/Inversion!$C$28 -> 665.826203 | K43: ='Hipotecario (Pesos)'!G43/Inversion!$C$28 -> 2571.728656 | L43: ='Hipotecario (Pesos)'!E43/Inversion!$C$28 -> 3237.554859 | M43: ='Hipotecario (Pesos)'!H43/Inversion!$C$28 -> 328145.504 | O43: =O42*(1+Inversion!$C$27) -> 452.0232481
A44: =IF(A43<Inversion!$C$23,A43+1,"-") -> 39 | B44: =IF(A44<>"-",DATE(YEAR(Inversion!$C$7),MONTH(Inversion!$C$7)+A44,DAY(Inversion!$C$7)),"-") -> 2028-10-10 | C44: ='Hipotecario (Pesos)'!C44 -> 123336605 | D44: 304799.3276 | E44: 1165774.153 | F44: 1470573.48 | G44: 148746598.1 | I44: 327474.4701 | J44: ='Hipotecario (Pesos)'!F44/Inversion!$C$28 -> 671.0338226 | K44: ='Hipotecario (Pesos)'!G44/Inversion!$C$28 -> 2566.521036 | L44: ='Hipotecario (Pesos)'!E44/Inversion!$C$28 -> 3237.554859 | M44: ='Hipotecario (Pesos)'!H44/Inversion!$C$28 -> 327474.4701 | O44: =O43*(1+Inversion!$C$27) -> 454.2234941
A45: =IF(A44<Inversion!$C$23,A44+1,"-") -> 40 | B45: =IF(A45<>"-",DATE(YEAR(Inversion!$C$7),MONTH(Inversion!$C$7)+A45,DAY(Inversion!$C$7)),"-") -> 2028-11-10 | C45: ='Hipotecario (Pesos)'!C45 -> 123084390.6 | D45: 308678.4814 | E45: 1169053.09 | F45: 1477731.571 | G45: 149161951.2 | I45: 326798.188 | J45: ='Hipotecario (Pesos)'!F45/Inversion!$C$28 -> 676.2821725 | K45: ='Hipotecario (Pesos)'!G45/Inversion!$C$28 -> 2561.272686 | L45: ='Hipotecario (Pesos)'!E45/Inversion!$C$28 -> 3237.554859 | M45: ='Hipotecario (Pesos)'!H45/Inversion!$C$28 -> 326798.188 | O45: =O44*(1+Inversion!$C$27) -> 456.43445
A46: =IF(A45<Inversion!$C$23,A45+1,"-") -> 41 | B46: =IF(A46<>"-",DATE(YEAR(Inversion!$C$7),MONTH(Inversion!$C$7)+A46,DAY(Inversion!$C$7)),"-") -> 2028-12-10 | C46: ='Hipotecario (Pesos)'!C46 -> 122830203.5 | D46: 312607.0049 | E46: 1172317.499 | F46: 1484924.504 | G46: 149575397.5 | I46: 326116.6164 | J46: ='Hipotecario (Pesos)'!F46/Inversion!$C$28 -> 681.5715713 | K46: ='Hipotecario (Pesos)'!G46/Inversion!$C$28 -> 2555.983287 | L46: ='Hipotecario (Pesos)'!E46/Inversion!$C$28 -> 3237.554859 | M46: ='Hipotecario (Pesos)'!H46/Inversion!$C$28 -> 326116.6164 | O46: =O45*(1+Inversion!$C$27) -> 458.6561677
A47: =IF(A46<Inversion!$C$23,A46+1,"-") -> 42 | B47: =IF(A47<>"-",DATE(YEAR(Inversion!$C$7),MONTH(Inversion!$C$7)+A47,DAY(Inversion!$C$7)),"-") -> 2029-01-10 | C47: ='Hipotecario (Pesos)'!C47 -> 122574028.4 | D47: 316585.5264 | E47: 1175566.923 | F47: 1492152.449 | G47: 149986877.8 | I47: 325429.714 | J47: ='Hipotecario (Pesos)'!F47/Inversion!$C$28 -> 686.9023399 | K47: ='Hipotecario (Pesos)'!G47/Inversion!$C$28 -> 2550.652519 | L47: ='Hipotecario (Pesos)'!E47/Inversion!$C$28 -> 3237.554859 | M47: ='Hipotecario (Pesos)'!H47/Inversion!$C$28 -> 325429.714 | O47: =O46*(1+Inversion!$C$27) -> 460.8886998
A48: =IF(A47<Inversion!$C$23,A47+1,"-") -> 43 | B48: =IF(A48<>"-",DATE(YEAR(Inversion!$C$7),MONTH(Inversion!$C$7)+A48,DAY(Inversion!$C$7)),"-") -> 2029-02-10 | C48: ='Hipotecario (Pesos)'!C48 -> 122315849.6 | D48: 320614.6821 | E48: 1178800.895 | F48: 1499415.577 | G48: 150396331.8 | I48: 324737.4392 | J48: ='Hipotecario (Pesos)'!F48/Inversion!$C$28 -> 692.2748021 | K48: ='Hipotecario (Pesos)'!G48/Inversion!$C$28 -> 2545.280056 | L48: ='Hipotecario (Pesos)'!E48/Inversion!$C$28 -> 3237.554859 | M48: ='Hipotecario (Pesos)'!H48/Inversion!$C$28 -> 324737.4392 | O48: =O47*(1+Inversion!$C$27) -> 463.1320989
A49: =IF(A48<Inversion!$C$23,A48+1,"-") -> 44 | B49: =IF(A49<>"-",DATE(YEAR(Inversion!$C$7),MONTH(Inversion!$C$7)+A49,DAY(Inversion!$C$7)),"-") -> 2029-03-10 | C49: ='Hipotecario (Pesos)'!C49 -> 122055651.5 | D49: 324695.1165 | E49: 1182018.941 | F49: 1506714.058 | G49: 150803698.5 | I49: 324039.75 | J49: ='Hipotecario (Pesos)'!F49/Inversion!$C$28 -> 697.6892839 | K49: ='Hipotecario (Pesos)'!G49/Inversion!$C$28 -> 2539.865575 | L49: ='Hipotecario (Pesos)'!E49/Inversion!$C$28 -> 3237.554859 | M49: ='Hipotecario (Pesos)'!H49/Inversion!$C$28 -> 324039.75 | O49: =O48*(1+Inversion!$C$27) -> 465.3864178
A50: =IF(A49<Inversion!$C$23,A49+1,"-") -> 45 | B50: =IF(A50<>"-",DATE(YEAR(Inversion!$C$7),MONTH(Inversion!$C$7)+A50,DAY(Inversion!$C$7)),"-") -> 2029-04-10 | C50: ='Hipotecario (Pesos)'!C50 -> 121793418.4 | D50: 328827.4823 | E50: 1185220.583 | F50: 1514048.065 | G50: 151208915.6 | I50: 323336.6038 | J50: ='Hipotecario (Pesos)'!F50/Inversion!$C$28 -> 703.1461138 | K50: ='Hipotecario (Pesos)'!G50/Inversion!$C$28 -> 2534.408745 | L50: ='Hipotecario (Pesos)'!E50/Inversion!$C$28 -> 3237.554859 | M50: ='Hipotecario (Pesos)'!H50/Inversion!$C$28 -> 323336.6038 | O50: =O49*(1+Inversion!$C$27) -> 467.6517097
A51: =IF(A50<Inversion!$C$23,A50+1,"-") -> 46 | B51: =IF(A51<>"-",DATE(YEAR(Inversion!$C$7),MONTH(Inversion!$C$7)+A51,DAY(Inversion!$C$7)),"-") -> 2029-05-10 | C51: ='Hipotecario (Pesos)'!C51 -> 121529134.3 | D51: 333012.4403 | E51: 1188405.33 | F51: 1521417.77 | G51: 151611920.2 | I51: 322627.9582 | J51: ='Hipotecario (Pesos)'!F51/Inversion!$C$28 -> 708.6456233 | K51: ='Hipotecario (Pesos)'!G51/Inversion!$C$28 -> 2528.909235 | L51: ='Hipotecario (Pesos)'!E51/Inversion!$C$28 -> 3237.554859 | M51: ='Hipotecario (Pesos)'!H51/Inversion!$C$28 -> 322627.9582 | O51: =O50*(1+Inversion!$C$27) -> 469.928028
A52: =IF(A51<Inversion!$C$23,A51+1,"-") -> 47 | B52: =IF(A52<>"-",DATE(YEAR(Inversion!$C$7),MONTH(Inversion!$C$7)+A52,DAY(Inversion!$C$7)),"-") -> 2029-06-10 | C52: ='Hipotecario (Pesos)'!C52 -> 121262783.1 | D52: 337250.6599 | E52: 1191572.688 | F52: 1528823.348 | G52: 152012648.2 | I52: 321913.7701 | J52: ='Hipotecario (Pesos)'!F52/Inversion!$C$28 -> 714.1881459 | K52: ='Hipotecario (Pesos)'!G52/Inversion!$C$28 -> 2523.366713 | L52: ='Hipotecario (Pesos)'!E52/Inversion!$C$28 -> 3237.554859 | M52: ='Hipotecario (Pesos)'!H52/Inversion!$C$28 -> 321913.7701 | O52: =O51*(1+Inversion!$C$27) -> 472.2154265
A53: =IF(A52<Inversion!$C$23,A52+1,"-") -> 48 | B53: =IF(A53<>"-",DATE(YEAR(Inversion!$C$7),MONTH(Inversion!$C$7)+A53,DAY(Inversion!$C$7)),"-") -> 2029-07-10 | C53: ='Hipotecario (Pesos)'!C53 -> 120994348.7 | D53: 341542.819 | E53: 1194722.154 | F53: 1536264.973 | G53: 152411034.7 | I53: 321193.9961 | J53: ='Hipotecario (Pesos)'!F53/Inversion!$C$28 -> 719.7740183 | K53: ='Hipotecario (Pesos)'!G53/Inversion!$C$28 -> 2517.78084 | L53: ='Hipotecario (Pesos)'!E53/Inversion!$C$28 -> 3237.554859 | M53: ='Hipotecario (Pesos)'!H53/Inversion!$C$28 -> 321193.9961 | O53: =O52*(1+Inversion!$C$27) -> 474.5139589
A54: =IF(A53<Inversion!$C$23,A53+1,"-") -> 49 | B54: =IF(A54<>"-",DATE(YEAR(Inversion!$C$7),MONTH(Inversion!$C$7)+A54,DAY(Inversion!$C$7)),"-") -> 2029-08-10 | C54: ='Hipotecario (Pesos)'!C54 -> 120723814.8 | D54: 345889.6039 | E54: 1197853.217 | F54: 1543742.821 | G54: 152807013.5 | I54: 320468.5925 | J54: ='Hipotecario (Pesos)'!F54/Inversion!$C$28 -> 725.4035794 | K54: ='Hipotecario (Pesos)'!G54/Inversion!$C$28 -> 2512.151279 | L54: ='Hipotecario (Pesos)'!E54/Inversion!$C$28 -> 3237.554859 | M54: ='Hipotecario (Pesos)'!H54/Inversion!$C$28 -> 320468.5925 | O54: =O53*(1+Inversion!$C$27) -> 476.8236796
A55: =IF(A54<Inversion!$C$23,A54+1,"-") -> 50 | B55: =IF(A55<>"-",DATE(YEAR(Inversion!$C$7),MONTH(Inversion!$C$7)+A55,DAY(Inversion!$C$7)),"-") -> 2029-09-10 | C55: ='Hipotecario (Pesos)'!C55 -> 120451164.9 | D55: 350291.7101 | E55: 1200965.357 | F55: 1551257.067 | G55: 153200517.6 | I55: 319737.5153 | J55: ='Hipotecario (Pesos)'!F55/Inversion!$C$28 -> 731.0771709 | K55: ='Hipotecario (Pesos)'!G55/Inversion!$C$28 -> 2506.477688 | L55: ='Hipotecario (Pesos)'!E55/Inversion!$C$28 -> 3237.554859 | M55: ='Hipotecario (Pesos)'!H55/Inversion!$C$28 -> 319737.5153 | O55: =O54*(1+Inversion!$C$27) -> 479.144643
A56: =IF(A55<Inversion!$C$23,A55+1,"-") -> 51 | B56: =IF(A56<>"-",DATE(YEAR(Inversion!$C$7),MONTH(Inversion!$C$7)+A56,DAY(Inversion!$C$7)),"-") -> 2029-10-10 | C56: ='Hipotecario (Pesos)'!C56 -> 120176382.6 | D56: 354749.8414 | E56: 1204058.048 | F56: 1558807.889 | G56: 153591479.1 | I56: 319000.7202 | J56: ='Hipotecario (Pesos)'!F56/Inversion!$C$28 -> 736.7951372 | K56: ='Hipotecario (Pesos)'!G56/Inversion!$C$28 -> 2500.759721 | L56: ='Hipotecario (Pesos)'!E56/Inversion!$C$28 -> 3237.554859 | M56: ='Hipotecario (Pesos)'!H56/Inversion!$C$28 -> 319000.7202 | O56: =O55*(1+Inversion!$C$27) -> 481.4769038
A57: =IF(A56<Inversion!$C$23,A56+1,"-") -> 52 | B57: =IF(A57<>"-",DATE(YEAR(Inversion!$C$7),MONTH(Inversion!$C$7)+A57,DAY(Inversion!$C$7)),"-") -> 2029-11-10 | C57: ='Hipotecario (Pesos)'!C57 -> 119899451.2 | D57: 359264.711 | E57: 1207130.754 | F57: 1566395.465 | G57: 153979828.6 | I57: 318258.1623 | J57: ='Hipotecario (Pesos)'!F57/Inversion!$C$28 -> 742.5578254 | K57: ='Hipotecario (Pesos)'!G57/Inversion!$C$28 -> 2494.997033 | L57: ='Hipotecario (Pesos)'!E57/Inversion!$C$28 -> 3237.554859 | M57: ='Hipotecario (Pesos)'!H57/Inversion!$C$28 -> 318258.1623 | O57: =O56*(1+Inversion!$C$27) -> 483.820517
A58: =IF(A57<Inversion!$C$23,A57+1,"-") -> 53 | B58: =IF(A58<>"-",DATE(YEAR(Inversion!$C$7),MONTH(Inversion!$C$7)+A58,DAY(Inversion!$C$7)),"-") -> 2029-12-10 | C58: ='Hipotecario (Pesos)'!C58 -> 119620353.8 | D58: 363837.0409 | E58: 1210182.934 | F58: 1574019.975 | G58: 154365496.2 | I58: 317509.7968 | J58: ='Hipotecario (Pesos)'!F58/Inversion!$C$28 -> 748.3655852 | K58: ='Hipotecario (Pesos)'!G58/Inversion!$C$28 -> 2489.189273 | L58: ='Hipotecario (Pesos)'!E58/Inversion!$C$28 -> 3237.554859 | M58: ='Hipotecario (Pesos)'!H58/Inversion!$C$28 -> 317509.7968 | O58: =O57*(1+Inversion!$C$27) -> 486.1755378
A59: =IF(A58<Inversion!$C$23,A58+1,"-") -> 54 | B59: =IF(A59<>"-",DATE(YEAR(Inversion!$C$7),MONTH(Inversion!$C$7)+A59,DAY(Inversion!$C$7)),"-") -> 2030-01-10 | C59: ='Hipotecario (Pesos)'!C59 -> 119339073.5 | D59: 368467.5624 | E59: 1213214.034 | F59: 1581681.596 | G59: 154748410.5 | I59: 316755.578 | J59: ='Hipotecario (Pesos)'!F59/Inversion!$C$28 -> 754.2187693 | K59: ='Hipotecario (Pesos)'!G59/Inversion!$C$28 -> 2483.336089 | L59: ='Hipotecario (Pesos)'!E59/Inversion!$C$28 -> 3237.554859 | M59: ='Hipotecario (Pesos)'!H59/Inversion!$C$28 -> 316755.578 | O59: =O58*(1+Inversion!$C$27) -> 488.5420218
A60: =IF(A59<Inversion!$C$23,A59+1,"-") -> 55 | B60: =IF(A60<>"-",DATE(YEAR(Inversion!$C$7),MONTH(Inversion!$C$7)+A60,DAY(Inversion!$C$7)),"-") -> 2030-02-10 | C60: ='Hipotecario (Pesos)'!C60 -> 119055593.2 | D60: 373157.0162 | E60: 1216223.495 | F60: 1589380.511 | G60: 155128499.2 | I60: 315995.4603 | J60: ='Hipotecario (Pesos)'!F60/Inversion!$C$28 -> 760.1177327 | K60: ='Hipotecario (Pesos)'!G60/Inversion!$C$28 -> 2477.437126 | L60: ='Hipotecario (Pesos)'!E60/Inversion!$C$28 -> 3237.554859 | M60: ='Hipotecario (Pesos)'!H60/Inversion!$C$28 -> 315995.4603 | O60: =O59*(1+Inversion!$C$27) -> 490.9200248
A61: =IF(A60<Inversion!$C$23,A60+1,"-") -> 56 | B61: =IF(A61<>"-",DATE(YEAR(Inversion!$C$7),MONTH(Inversion!$C$7)+A61,DAY(Inversion!$C$7)),"-") -> 2030-03-10 | C61: ='Hipotecario (Pesos)'!C61 -> 118769895.7 | D61: 377906.1522 | E61: 1219210.749 | F61: 1597116.901 | G61: 155505688.8 | I61: 315229.3974 | J61: ='Hipotecario (Pesos)'!F61/Inversion!$C$28 -> 766.0628337 | K61: ='Hipotecario (Pesos)'!G61/Inversion!$C$28 -> 2471.492025 | L61: ='Hipotecario (Pesos)'!E61/Inversion!$C$28 -> 3237.554859 | M61: ='Hipotecario (Pesos)'!H61/Inversion!$C$28 -> 315229.3974 | O61: =O60*(1+Inversion!$C$27) -> 493.3096028
A62: =IF(A61<Inversion!$C$23,A61+1,"-") -> 57 | B62: =IF(A62<>"-",DATE(YEAR(Inversion!$C$7),MONTH(Inversion!$C$7)+A62,DAY(Inversion!$C$7)),"-") -> 2030-04-10 | C62: ='Hipotecario (Pesos)'!C62 -> 118481963.7 | D62: 382715.7301 | E62: 1222175.219 | F62: 1604890.949 | G62: 155879904.9 | I62: 314457.343 | J62: ='Hipotecario (Pesos)'!F62/Inversion!$C$28 -> 772.054433 | K62: ='Hipotecario (Pesos)'!G62/Inversion!$C$28 -> 2465.500426 | L62: ='Hipotecario (Pesos)'!E62/Inversion!$C$28 -> 3237.554859 | M62: ='Hipotecario (Pesos)'!H62/Inversion!$C$28 -> 314457.343 | O62: =O61*(1+Inversion!$C$27) -> 495.7108123
A63: =IF(A62<Inversion!$C$23,A62+1,"-") -> 58 | B63: =IF(A63<>"-",DATE(YEAR(Inversion!$C$7),MONTH(Inversion!$C$7)+A63,DAY(Inversion!$C$7)),"-") -> 2030-05-10 | C63: ='Hipotecario (Pesos)'!C63 -> 118191779.7 | D63: 387586.519 | E63: 1225116.318 | F63: 1612702.837 | G63: 156251071.7 | I63: 313679.2501 | J63: ='Hipotecario (Pesos)'!F63/Inversion!$C$28 -> 778.0928943 | K63: ='Hipotecario (Pesos)'!G63/Inversion!$C$28 -> 2459.461964 | L63: ='Hipotecario (Pesos)'!E63/Inversion!$C$28 -> 3237.554859 | M63: ='Hipotecario (Pesos)'!H63/Inversion!$C$28 -> 313679.2501 | O63: =O62*(1+Inversion!$C$27) -> 498.1237097
A64: =IF(A63<Inversion!$C$23,A63+1,"-") -> 59 | B64: =IF(A64<>"-",DATE(YEAR(Inversion!$C$7),MONTH(Inversion!$C$7)+A64,DAY(Inversion!$C$7)),"-") -> 2030-06-10 | C64: ='Hipotecario (Pesos)'!C64 -> 117899326.1 | D64: 392519.2981 | E64: 1228033.451 | F64: 1620552.749 | G64: 156619112.4 | I64: 312895.0715 | J64: ='Hipotecario (Pesos)'!F64/Inversion!$C$28 -> 784.1785843 | K64: ='Hipotecario (Pesos)'!G64/Inversion!$C$28 -> 2453.376274 | L64: ='Hipotecario (Pesos)'!E64/Inversion!$C$28 -> 3237.554859 | M64: ='Hipotecario (Pesos)'!H64/Inversion!$C$28 -> 312895.0715 | O64: =O63*(1+Inversion!$C$27) -> 500.5483521
A65: =IF(A64<Inversion!$C$23,A64+1,"-") -> 60 | B65: =IF(A65<>"-",DATE(YEAR(Inversion!$C$7),MONTH(Inversion!$C$7)+A65,DAY(Inversion!$C$7)),"-") -> 2030-07-10 | C65: ='Hipotecario (Pesos)'!C65 -> 117604585.1 | D65: 397514.8561 | E65: 1230926.016 | F65: 1628440.872 | G65: 156983949 | I65: 312104.7596 | J65: ='Hipotecario (Pesos)'!F65/Inversion!$C$28 -> 790.3118721 | K65: ='Hipotecario (Pesos)'!G65/Inversion!$C$28 -> 2447.242986 | L65: ='Hipotecario (Pesos)'!E65/Inversion!$C$28 -> 3237.554859 | M65: ='Hipotecario (Pesos)'!H65/Inversion!$C$28 -> 312104.7596 | O65: =O64*(1+Inversion!$C$27) -> 502.9847965
A66: =IF(A65<Inversion!$C$23,A65+1,"-") -> 61 | B66: =IF(A66<>"-",DATE(YEAR(Inversion!$C$7),MONTH(Inversion!$C$7)+A66,DAY(Inversion!$C$7)),"-") -> 2030-08-10 | C66: ='Hipotecario (Pesos)'!C66 -> 117307538.9 | D66: 402573.9922 | E66: 1233793.398 | F66: 1636367.39 | G66: 157345502.3 | I66: 311308.2665 | J66: ='Hipotecario (Pesos)'!F66/Inversion!$C$28 -> 796.4931302 | K66: ='Hipotecario (Pesos)'!G66/Inversion!$C$28 -> 2441.061728 | L66: ='Hipotecario (Pesos)'!E66/Inversion!$C$28 -> 3237.554859 | M66: ='Hipotecario (Pesos)'!H66/Inversion!$C$28 -> 311308.2665 | O66: =O65*(1+Inversion!$C$27) -> 505.4331004
A67: =IF(A66<Inversion!$C$23,A66+1,"-") -> 62 | B67: =IF(A67<>"-",DATE(YEAR(Inversion!$C$7),MONTH(Inversion!$C$7)+A67,DAY(Inversion!$C$7)),"-") -> 2030-09-10 | C67: ='Hipotecario (Pesos)'!C67 -> 117008169.4 | D67: 407697.5155 | E67: 1236634.975 | F67: 1644332.491 | G67: 157703692 | I67: 310505.5438 | J67: ='Hipotecario (Pesos)'!F67/Inversion!$C$28 -> 802.7227337 | K67: ='Hipotecario (Pesos)'!G67/Inversion!$C$28 -> 2434.832125 | L67: ='Hipotecario (Pesos)'!E67/Inversion!$C$28 -> 3237.554859 | M67: ='Hipotecario (Pesos)'!H67/Inversion!$C$28 -> 310505.5438 | O67: =O66*(1+Inversion!$C$27) -> 507.8933216
A68: =IF(A67<Inversion!$C$23,A67+1,"-") -> 63 | B68: =IF(A68<>"-",DATE(YEAR(Inversion!$C$7),MONTH(Inversion!$C$7)+A68,DAY(Inversion!$C$7)),"-") -> 2030-10-10 | C68: ='Hipotecario (Pesos)'!C68 -> 116706458.4 | D68: 412886.2454 | E68: 1239450.117 | F68: 1652336.363 | G68: 158058436.5 | I68: 309696.5427 | J68: ='Hipotecario (Pesos)'!F68/Inversion!$C$28 -> 809.0010607 | K68: ='Hipotecario (Pesos)'!G68/Inversion!$C$28 -> 2428.553798 | L68: ='Hipotecario (Pesos)'!E68/Inversion!$C$28 -> 3237.554859 | M68: ='Hipotecario (Pesos)'!H68/Inversion!$C$28 -> 309696.5427 | O68: =O67*(1+Inversion!$C$27) -> 510.365518
A69: =IF(A68<Inversion!$C$23,A68+1,"-") -> 64 | B69: =IF(A69<>"-",DATE(YEAR(Inversion!$C$7),MONTH(Inversion!$C$7)+A69,DAY(Inversion!$C$7)),"-") -> 2030-11-10 | C69: ='Hipotecario (Pesos)'!C69 -> 116402387.7 | D69: 418141.0118 | E69: 1242238.182 | F69: 1660379.193 | G69: 158409652.9 | I69: 308881.2142 | J69: ='Hipotecario (Pesos)'!F69/Inversion!$C$28 -> 815.3284923 | K69: ='Hipotecario (Pesos)'!G69/Inversion!$C$28 -> 2422.226366 | L69: ='Hipotecario (Pesos)'!E69/Inversion!$C$28 -> 3237.554859 | M69: ='Hipotecario (Pesos)'!H69/Inversion!$C$28 -> 308881.2142 | O69: =O68*(1+Inversion!$C$27) -> 512.849748
A70: =IF(A69<Inversion!$C$23,A69+1,"-") -> 65 | B70: =IF(A70<>"-",DATE(YEAR(Inversion!$C$7),MONTH(Inversion!$C$7)+A70,DAY(Inversion!$C$7)),"-") -> 2030-12-10 | C70: ='Hipotecario (Pesos)'!C70 -> 116095938.7 | D70: =J70*O70 -> 423462.6551 | E70: =K70*O70 -> 1244998.518 | F70: =L70*O70 -> 1668461.173 | G70: =M70*O70 -> 158757257.2 | I70: 308059.5088 | J70: ='Hipotecario (Pesos)'!F70/Inversion!$C$28 -> 821.7054126 | K70: ='Hipotecario (Pesos)'!G70/Inversion!$C$28 -> 2415.849446 | L70: ='Hipotecario (Pesos)'!E70/Inversion!$C$28 -> 3237.554859 | M70: ='Hipotecario (Pesos)'!H70/Inversion!$C$28 -> 308059.5088 | O70: =O69*(1+Inversion!$C$27) -> 515.3460701
A71: =IF(A70<Inversion!$C$23,A70+1,"-") -> 66 | B71: =IF(A71<>"-",DATE(YEAR(Inversion!$C$7),MONTH(Inversion!$C$7)+A71,DAY(Inversion!$C$7)),"-") -> 2031-01-10 | C71: ='Hipotecario (Pesos)'!C71 -> 115787093 | D71: 428852.0265 | E71: 1247730.466 | F71: 1676582.492 | G71: 159101164.2 | I71: 307231.3766 | J71: ='Hipotecario (Pesos)'!F71/Inversion!$C$28 -> 828.1322086 | K71: ='Hipotecario (Pesos)'!G71/Inversion!$C$28 -> 2409.42265 | L71: ='Hipotecario (Pesos)'!E71/Inversion!$C$28 -> 3237.554859 | M71: ='Hipotecario (Pesos)'!H71/Inversion!$C$28 -> 307231.3766 | O71: =O70*(1+Inversion!$C$27) -> 517.8545431
A72: =IF(A71<Inversion!$C$23,A71+1,"-") -> 67 | B72: =IF(A72<>"-",DATE(YEAR(Inversion!$C$7),MONTH(Inversion!$C$7)+A72,DAY(Inversion!$C$7)),"-") -> 2031-02-10 | C72: ='Hipotecario (Pesos)'!C72 -> 115475831.6 | D72: 434309.988 | E72: 1250433.354 | F72: 1684743.342 | G72: 159441287.1 | I72: =I71-J72 -> 306396.7673 | J72: ='Hipotecario (Pesos)'!F72/Inversion!$C$28 -> 834.6092705 | K72: ='Hipotecario (Pesos)'!G72/Inversion!$C$28 -> 2402.945588 | L72: ='Hipotecario (Pesos)'!E72/Inversion!$C$28 -> 3237.554859 | M72: ='Hipotecario (Pesos)'!H72/Inversion!$C$28 -> 306396.7673 | O72: =O71*(1+Inversion!$C$27) -> 520.3752263
A73: =IF(A72<Inversion!$C$23,A72+1,"-") -> 68 | B73: =IF(A73<>"-",DATE(YEAR(Inversion!$C$7),MONTH(Inversion!$C$7)+A73,DAY(Inversion!$C$7)),"-") -> 2031-03-10 | C73: ='Hipotecario (Pesos)'!C73 -> 115162135.8 | D73: 439837.4125 | E73: 1253106.503 | F73: 1692943.916 | G73: 159777538.2 | I73: 305555.6303 | J73: ='Hipotecario (Pesos)'!F73/Inversion!$C$28 -> 841.1369914 | K73: ='Hipotecario (Pesos)'!G73/Inversion!$C$28 -> 2396.417867 | L73: ='Hipotecario (Pesos)'!E73/Inversion!$C$28 -> 3237.554859 | M73: ='Hipotecario (Pesos)'!H73/Inversion!$C$28 -> 305555.6303 | O73: =O72*(1+Inversion!$C$27) -> 522.908179
A74: =IF(A73<Inversion!$C$23,A73+1,"-") -> 69 | B74: =IF(A74<>"-",DATE(YEAR(Inversion!$C$7),MONTH(Inversion!$C$7)+A74,DAY(Inversion!$C$7)),"-") -> 2031-04-10 | C74: ='Hipotecario (Pesos)'!C74 -> 114845986.4 | D74: 445435.184 | E74: 1255749.222 | F74: 1701184.406 | G74: 160109828.3 | I74: 304707.9146 | J74: ='Hipotecario (Pesos)'!F74/Inversion!$C$28 -> 847.7157674 | K74: ='Hipotecario (Pesos)'!G74/Inversion!$C$28 -> 2389.839091 | L74: ='Hipotecario (Pesos)'!E74/Inversion!$C$28 -> 3237.554859 | M74: ='Hipotecario (Pesos)'!H74/Inversion!$C$28 -> 304707.9146 | O74: =O73*(1+Inversion!$C$27) -> 525.453461
A75: =IF(A74<Inversion!$C$23,A74+1,"-") -> 70 | B75: =IF(A75<>"-",DATE(YEAR(Inversion!$C$7),MONTH(Inversion!$C$7)+A75,DAY(Inversion!$C$7)),"-") -> 2031-05-10 | C75: ='Hipotecario (Pesos)'!C75 -> 114527364.4 | D75: 451104.1978 | E75: 1258360.809 | F75: 1709465.007 | G75: 160438066.8 | I75: 303853.5686 | J75: ='Hipotecario (Pesos)'!F75/Inversion!$C$28 -> 854.345998 | K75: ='Hipotecario (Pesos)'!G75/Inversion!$C$28 -> 2383.208861 | L75: ='Hipotecario (Pesos)'!E75/Inversion!$C$28 -> 3237.554859 | M75: ='Hipotecario (Pesos)'!H75/Inversion!$C$28 -> 303853.5686 | O75: =O74*(1+Inversion!$C$27) -> 528.0111323
A76: =IF(A75<Inversion!$C$23,A75+1,"-") -> 71 | B76: =IF(A76<>"-",DATE(YEAR(Inversion!$C$7),MONTH(Inversion!$C$7)+A76,DAY(Inversion!$C$7)),"-") -> 2031-06-10 | C76: ='Hipotecario (Pesos)'!C76 -> 114206250.4 | D76: 456845.3606 | E76: 1260940.554 | F76: 1717785.914 | G76: 160762161.8 | I76: 302992.5405 | J76: ='Hipotecario (Pesos)'!F76/Inversion!$C$28 -> 861.0280855 | K76: ='Hipotecario (Pesos)'!G76/Inversion!$C$28 -> 2376.526773 | L76: ='Hipotecario (Pesos)'!E76/Inversion!$C$28 -> 3237.554859 | M76: ='Hipotecario (Pesos)'!H76/Inversion!$C$28 -> 302992.5405 | O76: =O75*(1+Inversion!$C$27) -> 530.5812532
A77: =IF(A76<Inversion!$C$23,A76+1,"-") -> 72 | B77: =IF(A77<>"-",DATE(YEAR(Inversion!$C$7),MONTH(Inversion!$C$7)+A77,DAY(Inversion!$C$7)),"-") -> 2031-07-10 | C77: ='Hipotecario (Pesos)'!C77 -> 113882624.8 | D77: 462659.5908 | E77: 1263487.733 | F77: 1726147.324 | G77: 161082020.2 | I77: 302124.7781 | J77: ='Hipotecario (Pesos)'!F77/Inversion!$C$28 -> 867.7624356 | K77: ='Hipotecario (Pesos)'!G77/Inversion!$C$28 -> 2369.792423 | L77: ='Hipotecario (Pesos)'!E77/Inversion!$C$28 -> 3237.554859 | M77: ='Hipotecario (Pesos)'!H77/Inversion!$C$28 -> 302124.7781 | O77: =O76*(1+Inversion!$C$27) -> 533.1638843
A78: =IF(A77<Inversion!$C$23,A77+1,"-") -> 73 | B78: =IF(A78<>"-",DATE(YEAR(Inversion!$C$7),MONTH(Inversion!$C$7)+A78,DAY(Inversion!$C$7)),"-") -> 2031-08-10 | C78: ='Hipotecario (Pesos)'!C78 -> 113556468 | D78: 468547.8181 | E78: 1266001.615 | F78: 1734549.433 | G78: 161397547.3 | I78: 301250.2286 | J78: ='Hipotecario (Pesos)'!F78/Inversion!$C$28 -> 874.5494569 | K78: ='Hipotecario (Pesos)'!G78/Inversion!$C$28 -> 2363.005402 | L78: ='Hipotecario (Pesos)'!E78/Inversion!$C$28 -> 3237.554859 | M78: ='Hipotecario (Pesos)'!H78/Inversion!$C$28 -> 301250.2286 | O78: =O77*(1+Inversion!$C$27) -> 535.7590864
A79: =IF(A78<Inversion!$C$23,A78+1,"-") -> 74 | B79: =IF(A79<>"-",DATE(YEAR(Inversion!$C$7),MONTH(Inversion!$C$7)+A79,DAY(Inversion!$C$7)),"-") -> 2031-09-10 | C79: ='Hipotecario (Pesos)'!C79 -> 113227760.3 | D79: 474510.9844 | E79: 1268481.456 | F79: 1742992.44 | G79: 161708647 | I79: 300368.839 | J79: ='Hipotecario (Pesos)'!F79/Inversion!$C$28 -> 881.3895616 | K79: ='Hipotecario (Pesos)'!G79/Inversion!$C$28 -> 2356.165297 | L79: ='Hipotecario (Pesos)'!E79/Inversion!$C$28 -> 3237.554859 | M79: ='Hipotecario (Pesos)'!H79/Inversion!$C$28 -> 300368.839 | O79: =O78*(1+Inversion!$C$27) -> 538.3669209
A80: =IF(A79<Inversion!$C$23,A79+1,"-") -> 75 | B80: =IF(A80<>"-",DATE(YEAR(Inversion!$C$7),MONTH(Inversion!$C$7)+A80,DAY(Inversion!$C$7)),"-") -> 2031-10-10 | C80: ='Hipotecario (Pesos)'!C80 -> 112896481.7 | D80: 480550.0433 | E80: 1270926.501 | F80: 1751476.544 | G80: 162015222 | I80: 299480.5559 | J80: ='Hipotecario (Pesos)'!F80/Inversion!$C$28 -> 888.2831646 | K80: ='Hipotecario (Pesos)'!G80/Inversion!$C$28 -> 2349.271694 | L80: ='Hipotecario (Pesos)'!E80/Inversion!$C$28 -> 3237.554859 | M80: ='Hipotecario (Pesos)'!H80/Inversion!$C$28 -> 299480.5559 | O80: =O79*(1+Inversion!$C$27) -> 540.9874491
A81: =IF(A80<Inversion!$C$23,A80+1,"-") -> 76 | B81: =IF(A81<>"-",DATE(YEAR(Inversion!$C$7),MONTH(Inversion!$C$7)+A81,DAY(Inversion!$C$7)),"-") -> 2031-11-10 | C81: ='Hipotecario (Pesos)'!C81 -> 112562612 | D81: 486665.9608 | E81: 1273335.984 | F81: 1760001.945 | G81: 162317173.3 | I81: 298585.3252 | J81: ='Hipotecario (Pesos)'!F81/Inversion!$C$28 -> 895.2306845 | K81: ='Hipotecario (Pesos)'!G81/Inversion!$C$28 -> 2342.324174 | L81: ='Hipotecario (Pesos)'!E81/Inversion!$C$28 -> 3237.554859 | M81: ='Hipotecario (Pesos)'!H81/Inversion!$C$28 -> 298585.3252 | O81: =O80*(1+Inversion!$C$27) -> 543.6207329
A82: =IF(A81<Inversion!$C$23,A81+1,"-") -> 77 | B82: =IF(A82<>"-",DATE(YEAR(Inversion!$C$7),MONTH(Inversion!$C$7)+A82,DAY(Inversion!$C$7)),"-") -> 2031-12-10 | C82: ='Hipotecario (Pesos)'!C82 -> 112226131 | D82: 492859.7151 | E82: 1275709.128 | F82: 1768568.843 | G82: 162614400.6 | I82: 297683.0926 | J82: ='Hipotecario (Pesos)'!F82/Inversion!$C$28 -> 902.232543 | K82: ='Hipotecario (Pesos)'!G82/Inversion!$C$28 -> 2335.322316 | L82: ='Hipotecario (Pesos)'!E82/Inversion!$C$28 -> 3237.554859 | M82: ='Hipotecario (Pesos)'!H82/Inversion!$C$28 -> 297683.0926 | O82: =O81*(1+Inversion!$C$27) -> 546.2668343
A83: =IF(A82<Inversion!$C$23,A82+1,"-") -> 78 | B83: =IF(A83<>"-",DATE(YEAR(Inversion!$C$7),MONTH(Inversion!$C$7)+A83,DAY(Inversion!$C$7)),"-") -> 2032-01-10 | C83: ='Hipotecario (Pesos)'!C83 -> 111887018.4 | D83: 499132.2967 | E83: 1278045.145 | F83: 1777177.442 | G83: 162906802.2 | I83: 296773.8035 | J83: ='Hipotecario (Pesos)'!F83/Inversion!$C$28 -> 909.2891651 | K83: ='Hipotecario (Pesos)'!G83/Inversion!$C$28 -> 2328.265694 | L83: ='Hipotecario (Pesos)'!E83/Inversion!$C$28 -> 3237.554859 | M83: ='Hipotecario (Pesos)'!H83/Inversion!$C$28 -> 296773.8035 | O83: =O82*(1+Inversion!$C$27) -> 548.9258157
A84: =IF(A83<Inversion!$C$23,A83+1,"-") -> 79 | B84: =IF(A84<>"-",DATE(YEAR(Inversion!$C$7),MONTH(Inversion!$C$7)+A84,DAY(Inversion!$C$7)),"-") -> 2032-02-10 | C84: ='Hipotecario (Pesos)'!C84 -> 111545253.4 | D84: 505484.7088 | E84: 1280343.234 | F84: 1785827.943 | G84: 163194274.5 | I84: 295857.4025 | J84: ='Hipotecario (Pesos)'!F84/Inversion!$C$28 -> 916.400979 | K84: ='Hipotecario (Pesos)'!G84/Inversion!$C$28 -> 2321.15388 | L84: ='Hipotecario (Pesos)'!E84/Inversion!$C$28 -> 3237.554859 | M84: ='Hipotecario (Pesos)'!H84/Inversion!$C$28 -> 295857.4025 | O84: =O83*(1+Inversion!$C$27) -> 551.5977399
A85: =IF(A84<Inversion!$C$23,A84+1,"-") -> 80 | B85: =IF(A85<>"-",DATE(YEAR(Inversion!$C$7),MONTH(Inversion!$C$7)+A85,DAY(Inversion!$C$7)),"-") -> 2032-03-10 | C85: ='Hipotecario (Pesos)'!C85 -> 111200815.4 | D85: 511917.9676 | E85: 1282602.583 | F85: 1794520.551 | G85: 163476713 | I85: 294933.8341 | J85: ='Hipotecario (Pesos)'!F85/Inversion!$C$28 -> 923.5684165 | K85: ='Hipotecario (Pesos)'!G85/Inversion!$C$28 -> 2313.986442 | L85: ='Hipotecario (Pesos)'!E85/Inversion!$C$28 -> 3237.554859 | M85: ='Hipotecario (Pesos)'!H85/Inversion!$C$28 -> 294933.8341 | O85: =O84*(1+Inversion!$C$27) -> 554.2826698
A86: =IF(A85<Inversion!$C$23,A85+1,"-") -> 81 | B86: =IF(A86<>"-",DATE(YEAR(Inversion!$C$7),MONTH(Inversion!$C$7)+A86,DAY(Inversion!$C$7)),"-") -> 2032-04-10 | C86: ='Hipotecario (Pesos)'!C86 -> 110853683.4 | D86: 518433.1019 | E86: 1284822.368 | F86: 1803255.47 | G86: 163754011 | I86: 294003.0422 | J86: ='Hipotecario (Pesos)'!F86/Inversion!$C$28 -> 930.7919126 | K86: ='Hipotecario (Pesos)'!G86/Inversion!$C$28 -> 2306.762946 | L86: ='Hipotecario (Pesos)'!E86/Inversion!$C$28 -> 3237.554859 | M86: ='Hipotecario (Pesos)'!H86/Inversion!$C$28 -> 294003.0422 | O86: =O85*(1+Inversion!$C$27) -> 556.9806687
A87: =IF(A86<Inversion!$C$23,A86+1,"-") -> 82 | B87: =IF(A87<>"-",DATE(YEAR(Inversion!$C$7),MONTH(Inversion!$C$7)+A87,DAY(Inversion!$C$7)),"-") -> 2032-05-10 | C87: ='Hipotecario (Pesos)'!C87 -> 110503836.4 | D87: 525031.1537 | E87: 1287001.753 | F87: 1812032.907 | G87: 164026060.8 | I87: 293064.9703 | J87: ='Hipotecario (Pesos)'!F87/Inversion!$C$28 -> 938.0719058 | K87: ='Hipotecario (Pesos)'!G87/Inversion!$C$28 -> 2299.482953 | L87: ='Hipotecario (Pesos)'!E87/Inversion!$C$28 -> 3237.554859 | M87: ='Hipotecario (Pesos)'!H87/Inversion!$C$28 -> 293064.9703 | O87: =O86*(1+Inversion!$C$27) -> 559.6918002
A88: =IF(A87<Inversion!$C$23,A87+1,"-") -> 83 | B88: =IF(A88<>"-",DATE(YEAR(Inversion!$C$7),MONTH(Inversion!$C$7)+A88,DAY(Inversion!$C$7)),"-") -> 2032-06-10 | C88: ='Hipotecario (Pesos)'!C88 -> 110151253.2 | D88: 531713.1783 | E88: 1289139.891 | F88: 1820853.069 | G88: 164292752.8 | I88: 292119.5614 | J88: ='Hipotecario (Pesos)'!F88/Inversion!$C$28 -> 945.4088379 | K88: ='Hipotecario (Pesos)'!G88/Inversion!$C$28 -> 2292.146021 | L88: ='Hipotecario (Pesos)'!E88/Inversion!$C$28 -> 3237.554859 | M88: ='Hipotecario (Pesos)'!H88/Inversion!$C$28 -> 292119.5614 | O88: =O87*(1+Inversion!$C$27) -> 562.4161284
A89: =IF(A88<Inversion!$C$23,A88+1,"-") -> 84 | B89: =IF(A89<>"-",DATE(YEAR(Inversion!$C$7),MONTH(Inversion!$C$7)+A89,DAY(Inversion!$C$7)),"-") -> 2032-07-10 | C89: ='Hipotecario (Pesos)'!C89 -> 109795912.3 | D89: 538480.2445 | E89: 1291235.919 | F89: 1829716.163 | G89: 164553975.8 | I89: 291166.7583 | J89: ='Hipotecario (Pesos)'!F89/Inversion!$C$28 -> 952.8031543 | K89: ='Hipotecario (Pesos)'!G89/Inversion!$C$28 -> 2284.751704 | L89: ='Hipotecario (Pesos)'!E89/Inversion!$C$28 -> 3237.554859 | M89: ='Hipotecario (Pesos)'!H89/Inversion!$C$28 -> 291166.7583 | O89: =O88*(1+Inversion!$C$27) -> 565.1537173
A90: =IF(A89<Inversion!$C$23,A89+1,"-") -> 85 | B90: =IF(A90<>"-",DATE(YEAR(Inversion!$C$7),MONTH(Inversion!$C$7)+A90,DAY(Inversion!$C$7)),"-") -> 2032-08-10 | C90: ='Hipotecario (Pesos)'!C90 -> 109437792.2 | D90: 545333.4345 | E90: 1293288.965 | F90: 1838622.399 | G90: 164809617.2 | I90: 290206.503 | J90: ='Hipotecario (Pesos)'!F90/Inversion!$C$28 -> 960.2553037 | K90: ='Hipotecario (Pesos)'!G90/Inversion!$C$28 -> 2277.299555 | L90: ='Hipotecario (Pesos)'!E90/Inversion!$C$28 -> 3237.554859 | M90: ='Hipotecario (Pesos)'!H90/Inversion!$C$28 -> 290206.503 | O90: =O89*(1+Inversion!$C$27) -> 567.9046316
A91: =IF(A90<Inversion!$C$23,A90+1,"-") -> 86 | B91: =IF(A91<>"-",DATE(YEAR(Inversion!$C$7),MONTH(Inversion!$C$7)+A91,DAY(Inversion!$C$7)),"-") -> 2032-09-10 | C91: ='Hipotecario (Pesos)'!C91 -> 109076871.1 | D91: 552273.8445 | E91: 1295298.142 | F91: 1847571.987 | G91: 165059562.5 | I91: 289238.7372 | J91: ='Hipotecario (Pesos)'!F91/Inversion!$C$28 -> 967.7657386 | K91: ='Hipotecario (Pesos)'!G91/Inversion!$C$28 -> 2269.78912 | L91: ='Hipotecario (Pesos)'!E91/Inversion!$C$28 -> 3237.554859 | M91: ='Hipotecario (Pesos)'!H91/Inversion!$C$28 -> 289238.7372 | O91: =O90*(1+Inversion!$C$27) -> 570.6689361
A92: =IF(A91<Inversion!$C$23,A91+1,"-") -> 87 | B92: =IF(A92<>"-",DATE(YEAR(Inversion!$C$7),MONTH(Inversion!$C$7)+A92,DAY(Inversion!$C$7)),"-") -> 2032-10-10 | C92: ='Hipotecario (Pesos)'!C92 -> 108713127.2 | D92: 559302.5844 | E92: 1297262.553 | F92: 1856565.137 | G92: 165303695.6 | I92: 288263.4023 | J92: ='Hipotecario (Pesos)'!F92/Inversion!$C$28 -> 975.3349147 | K92: ='Hipotecario (Pesos)'!G92/Inversion!$C$28 -> 2262.219944 | L92: ='Hipotecario (Pesos)'!E92/Inversion!$C$28 -> 3237.554859 | M92: ='Hipotecario (Pesos)'!H92/Inversion!$C$28 -> 288263.4023 | O92: =O91*(1+Inversion!$C$27) -> 573.446696
A93: =IF(A92<Inversion!$C$23,A92+1,"-") -> 88 | B93: =IF(A93<>"-",DATE(YEAR(Inversion!$C$7),MONTH(Inversion!$C$7)+A93,DAY(Inversion!$C$7)),"-") -> 2032-11-10 | C93: ='Hipotecario (Pesos)'!C93 -> 108346538.3 | D93: 566420.7785 | E93: 1299181.283 | F93: 1865602.062 | G93: 165541899 | I93: 287280.439 | J93: ='Hipotecario (Pesos)'!F93/Inversion!$C$28 -> 982.9632916 | K93: ='Hipotecario (Pesos)'!G93/Inversion!$C$28 -> 2254.591567 | L93: ='Hipotecario (Pesos)'!E93/Inversion!$C$28 -> 3237.554859 | M93: ='Hipotecario (Pesos)'!H93/Inversion!$C$28 -> 287280.439 | O93: =O92*(1+Inversion!$C$27) -> 576.2379768
A94: =IF(A93<Inversion!$C$23,A93+1,"-") -> 89 | B94: =IF(A94<>"-",DATE(YEAR(Inversion!$C$7),MONTH(Inversion!$C$7)+A94,DAY(Inversion!$C$7)),"-") -> 2032-12-10 | C94: ='Hipotecario (Pesos)'!C94 -> 107977082.2 | D94: 573629.5652 | E94: 1301053.409 | F94: 1874682.974 | G94: 165774053 | I94: 286289.7877 | J94: ='Hipotecario (Pesos)'!F94/Inversion!$C$28 -> 990.6513323 | K94: ='Hipotecario (Pesos)'!G94/Inversion!$C$28 -> 2246.903526 | L94: ='Hipotecario (Pesos)'!E94/Inversion!$C$28 -> 3237.554859 | M94: ='Hipotecario (Pesos)'!H94/Inversion!$C$28 -> 286289.7877 | O94: =O93*(1+Inversion!$C$27) -> 579.0428443
A95: =IF(A94<Inversion!$C$23,A94+1,"-") -> 90 | B95: =IF(A95<>"-",DATE(YEAR(Inversion!$C$7),MONTH(Inversion!$C$7)+A95,DAY(Inversion!$C$7)),"-") -> 2033-01-10 | C95: ='Hipotecario (Pesos)'!C95 -> 107604736.5 | D95: 580930.0974 | E95: 1302877.991 | F95: 1883808.088 | G95: 166000036.5 | I95: 285291.3882 | J95: ='Hipotecario (Pesos)'!F95/Inversion!$C$28 -> 998.3995033 | K95: ='Hipotecario (Pesos)'!G95/Inversion!$C$28 -> 2239.155355 | L95: ='Hipotecario (Pesos)'!E95/Inversion!$C$28 -> 3237.554859 | M95: ='Hipotecario (Pesos)'!H95/Inversion!$C$28 -> 285291.3882 | O95: =O94*(1+Inversion!$C$27) -> 581.8613646
A96: =IF(A95<Inversion!$C$23,A95+1,"-") -> 91 | B96: =IF(A96<>"-",DATE(YEAR(Inversion!$C$7),MONTH(Inversion!$C$7)+A96,DAY(Inversion!$C$7)),"-") -> 2033-02-10 | C96: ='Hipotecario (Pesos)'!C96 -> 107229478.5 | D96: 588323.5429 | E96: 1304654.076 | F96: 1892977.619 | G96: 166219726.5 | I96: 284285.1799 | J96: ='Hipotecario (Pesos)'!F96/Inversion!$C$28 -> 1006.208275 | K96: ='Hipotecario (Pesos)'!G96/Inversion!$C$28 -> 2231.346584 | L96: ='Hipotecario (Pesos)'!E96/Inversion!$C$28 -> 3237.554859 | M96: ='Hipotecario (Pesos)'!H96/Inversion!$C$28 -> 284285.1799 | O96: =O95*(1+Inversion!$C$27) -> 584.6936043
A97: =IF(A96<Inversion!$C$23,A96+1,"-") -> 92 | B97: =IF(A97<>"-",DATE(YEAR(Inversion!$C$7),MONTH(Inversion!$C$7)+A97,DAY(Inversion!$C$7)),"-") -> 2033-03-10 | C97: ='Hipotecario (Pesos)'!C97 -> 106851285.6 | D97: 595811.0841 | E97: 1306380.699 | F97: 1902191.784 | G97: 166432998.3 | I97: 283271.1018 | J97: ='Hipotecario (Pesos)'!F97/Inversion!$C$28 -> 1014.078121 | K97: ='Hipotecario (Pesos)'!G97/Inversion!$C$28 -> 2223.476737 | L97: ='Hipotecario (Pesos)'!E97/Inversion!$C$28 -> 3237.554859 | M97: ='Hipotecario (Pesos)'!H97/Inversion!$C$28 -> 283271.1018 | O97: =O96*(1+Inversion!$C$27) -> 587.5396299
A98: =IF(A97<Inversion!$C$23,A97+1,"-") -> 93 | B98: =IF(A98<>"-",DATE(YEAR(Inversion!$C$7),MONTH(Inversion!$C$7)+A98,DAY(Inversion!$C$7)),"-") -> 2033-04-10 | C98: ='Hipotecario (Pesos)'!C98 -> 106470134.7 | D98: 603393.9186 | E98: 1308056.88 | F98: 1911450.798 | G98: 166639725.4 | I98: 282249.0923 | J98: ='Hipotecario (Pesos)'!F98/Inversion!$C$28 -> 1022.00952 | K98: ='Hipotecario (Pesos)'!G98/Inversion!$C$28 -> 2215.545339 | L98: ='Hipotecario (Pesos)'!E98/Inversion!$C$28 -> 3237.554859 | M98: ='Hipotecario (Pesos)'!H98/Inversion!$C$28 -> 282249.0923 | O98: =O97*(1+Inversion!$C$27) -> 590.3995088
A99: =IF(A98<Inversion!$C$23,A98+1,"-") -> 94 | B99: =IF(A99<>"-",DATE(YEAR(Inversion!$C$7),MONTH(Inversion!$C$7)+A99,DAY(Inversion!$C$7)),"-") -> 2033-05-10 | C99: ='Hipotecario (Pesos)'!C99 -> 106086002.7 | D99: 611073.2592 | E99: 1309681.622 | F99: 1920754.882 | G99: 166839779.5 | I99: 281219.0893 | J99: ='Hipotecario (Pesos)'!F99/Inversion!$C$28 -> 1030.002953 | K99: ='Hipotecario (Pesos)'!G99/Inversion!$C$28 -> 2207.551906 | L99: ='Hipotecario (Pesos)'!E99/Inversion!$C$28 -> 3237.554859 | M99: ='Hipotecario (Pesos)'!H99/Inversion!$C$28 -> 281219.0893 | O99: =O98*(1+Inversion!$C$27) -> 593.2733083
A100: =IF(A99<Inversion!$C$23,A99+1,"-") -> 95 | B100: =IF(A100<>"-",DATE(YEAR(Inversion!$C$7),MONTH(Inversion!$C$7)+A100,DAY(Inversion!$C$7)),"-") -> 2033-06-10 | C100: ='Hipotecario (Pesos)'!C100 -> 105698866.3 | D100: 618850.334 | E100: 1311253.919 | F100: 1930104.253 | G100: 167033030.2 | I100: 280181.0304 | J100: ='Hipotecario (Pesos)'!F100/Inversion!$C$28 -> 1038.058904 | K100: ='Hipotecario (Pesos)'!G100/Inversion!$C$28 -> 2199.495955 | L100: ='Hipotecario (Pesos)'!E100/Inversion!$C$28 -> 3237.554859 | M100: ='Hipotecario (Pesos)'!H100/Inversion!$C$28 -> 280181.0304 | O100: =O99*(1+Inversion!$C$27) -> 596.1610961
A101: =IF(A100<Inversion!$C$23,A100+1,"-") -> 96 | B101: =IF(A101<>"-",DATE(YEAR(Inversion!$C$7),MONTH(Inversion!$C$7)+A101,DAY(Inversion!$C$7)),"-") -> 2033-07-10 | C101: ='Hipotecario (Pesos)'!C101 -> 105308702 | D101: 626726.387 | E101: 1312772.746 | F101: 1939499.133 | G101: 167219345.5 | I101: 279134.8526 | J101: ='Hipotecario (Pesos)'!F101/Inversion!$C$28 -> 1046.177863 | K101: ='Hipotecario (Pesos)'!G101/Inversion!$C$28 -> 2191.376995 | L101: ='Hipotecario (Pesos)'!E101/Inversion!$C$28 -> 3237.554859 | M101: ='Hipotecario (Pesos)'!H101/Inversion!$C$28 -> 279134.8526 | O101: =O100*(1+Inversion!$C$27) -> 599.0629404
A102: =IF(A101<Inversion!$C$23,A101+1,"-") -> 97 | B102: =IF(A102<>"-",DATE(YEAR(Inversion!$C$7),MONTH(Inversion!$C$7)+A102,DAY(Inversion!$C$7)),"-") -> 2033-08-10 | C102: ='Hipotecario (Pesos)'!C102 -> 104915486.1 | D102: 634702.6778 | E102: 1314237.066 | F102: 1948939.743 | G102: 167398591.5 | I102: 278080.4922 | J102: ='Hipotecario (Pesos)'!F102/Inversion!$C$28 -> 1054.360323 | K102: ='Hipotecario (Pesos)'!G102/Inversion!$C$28 -> 2183.194535 | L102: ='Hipotecario (Pesos)'!E102/Inversion!$C$28 -> 3237.554859 | M102: ='Hipotecario (Pesos)'!H102/Inversion!$C$28 -> 278080.4922 | O102: =O101*(1+Inversion!$C$27) -> 601.9789095
A103: =IF(A102<Inversion!$C$23,A102+1,"-") -> 98 | B103: =IF(A103<>"-",DATE(YEAR(Inversion!$C$7),MONTH(Inversion!$C$7)+A103,DAY(Inversion!$C$7)),"-") -> 2033-09-10 | C103: ='Hipotecario (Pesos)'!C103 -> 104519194.8 | D103: 642780.4821 | E103: 1315645.824 | F103: 1958426.306 | G103: 167570632.1 | I103: 277017.8854 | J103: ='Hipotecario (Pesos)'!F103/Inversion!$C$28 -> 1062.606781 | K103: ='Hipotecario (Pesos)'!G103/Inversion!$C$28 -> 2174.948078 | L103: ='Hipotecario (Pesos)'!E103/Inversion!$C$28 -> 3237.554859 | M103: ='Hipotecario (Pesos)'!H103/Inversion!$C$28 -> 277017.8854 | O103: =O102*(1+Inversion!$C$27) -> 604.9090723
A104: =IF(A103<Inversion!$C$23,A103+1,"-") -> 99 | B104: =IF(A104<>"-",DATE(YEAR(Inversion!$C$7),MONTH(Inversion!$C$7)+A104,DAY(Inversion!$C$7)),"-") -> 2033-10-10 | C104: ='Hipotecario (Pesos)'!C104 -> 104119803.9 | D104: 650961.0919 | E104: 1316997.953 | F104: 1967959.045 | G104: 167735329.5 | I104: 275946.9677 | J104: ='Hipotecario (Pesos)'!F104/Inversion!$C$28 -> 1070.917736 | K104: ='Hipotecario (Pesos)'!G104/Inversion!$C$28 -> 2166.637122 | L104: ='Hipotecario (Pesos)'!E104/Inversion!$C$28 -> 3237.554859 | M104: ='Hipotecario (Pesos)'!H104/Inversion!$C$28 -> 275946.9677 | O104: =O103*(1+Inversion!$C$27) -> 607.8534978
A105: =IF(A104<Inversion!$C$23,A104+1,"-") -> 100 | B105: =IF(A105<>"-",DATE(YEAR(Inversion!$C$7),MONTH(Inversion!$C$7)+A105,DAY(Inversion!$C$7)),"-") -> 2033-11-10 | C105: ='Hipotecario (Pesos)'!C105 -> 103717289.3 | D105: 659245.8156 | E105: 1318292.37 | F105: 1977538.185 | G105: 167892543.9 | I105: 274867.674 | J105: ='Hipotecario (Pesos)'!F105/Inversion!$C$28 -> 1079.293694 | K105: ='Hipotecario (Pesos)'!G105/Inversion!$C$28 -> 2158.261164 | L105: ='Hipotecario (Pesos)'!E105/Inversion!$C$28 -> 3237.554859 | M105: ='Hipotecario (Pesos)'!H105/Inversion!$C$28 -> 274867.674 | O105: =O104*(1+Inversion!$C$27) -> 610.8122554
A106: =IF(A105<Inversion!$C$23,A105+1,"-") -> 101 | B106: =IF(A106<>"-",DATE(YEAR(Inversion!$C$7),MONTH(Inversion!$C$7)+A106,DAY(Inversion!$C$7)),"-") -> 2033-12-10 | C106: ='Hipotecario (Pesos)'!C106 -> 103311626.5 | D106: 667635.9783 | E106: 1319527.974 | F106: 1987163.952 | G106: 168042133.4 | I106: 273779.9389 | J106: ='Hipotecario (Pesos)'!F106/Inversion!$C$28 -> 1087.735163 | K106: ='Hipotecario (Pesos)'!G106/Inversion!$C$28 -> 2149.819696 | L106: ='Hipotecario (Pesos)'!E106/Inversion!$C$28 -> 3237.554859 | M106: ='Hipotecario (Pesos)'!H106/Inversion!$C$28 -> 273779.9389 | O106: =O105*(1+Inversion!$C$27) -> 613.785415
A107: =IF(A106<Inversion!$C$23,A106+1,"-") -> 102 | B107: =IF(A107<>"-",DATE(YEAR(Inversion!$C$7),MONTH(Inversion!$C$7)+A107,DAY(Inversion!$C$7)),"-") -> 2034-01-10 | C107: ='Hipotecario (Pesos)'!C107 -> 102902790.9 | D107: 676132.9218 | E107: 1320703.652 | F107: 1996836.573 | G107: 168183954 | I107: 272683.6962 | J107: ='Hipotecario (Pesos)'!F107/Inversion!$C$28 -> 1096.242655 | K107: ='Hipotecario (Pesos)'!G107/Inversion!$C$28 -> 2141.312204 | L107: ='Hipotecario (Pesos)'!E107/Inversion!$C$28 -> 3237.554859 | M107: ='Hipotecario (Pesos)'!H107/Inversion!$C$28 -> 272683.6962 | O107: =O106*(1+Inversion!$C$27) -> 616.7730465
A108: =IF(A107<Inversion!$C$23,A107+1,"-") -> 103 | B108: =IF(A108<>"-",DATE(YEAR(Inversion!$C$7),MONTH(Inversion!$C$7)+A108,DAY(Inversion!$C$7)),"-") -> 2034-02-10 | C108: ='Hipotecario (Pesos)'!C108 -> 102490757.7 | D108: 684738.0051 | E108: 1321818.271 | F108: 2006556.276 | G108: 168317859.9 | I108: 271578.8795 | J108: ='Hipotecario (Pesos)'!F108/Inversion!$C$28 -> 1104.816686 | K108: ='Hipotecario (Pesos)'!G108/Inversion!$C$28 -> 2132.738173 | L108: ='Hipotecario (Pesos)'!E108/Inversion!$C$28 -> 3237.554859 | M108: ='Hipotecario (Pesos)'!H108/Inversion!$C$28 -> 271578.8795 | O108: =O107*(1+Inversion!$C$27) -> 619.7752205
A109: =IF(A108<Inversion!$C$23,A108+1,"-") -> 104 | B109: =IF(A109<>"-",DATE(YEAR(Inversion!$C$7),MONTH(Inversion!$C$7)+A109,DAY(Inversion!$C$7)),"-") -> 2034-03-10 | C109: ='Hipotecario (Pesos)'!C109 -> 102075501.9 | D109: 693452.6046 | E109: 1322870.686 | F109: 2016323.291 | G109: 168443703 | I109: 270465.4217 | J109: ='Hipotecario (Pesos)'!F109/Inversion!$C$28 -> 1113.457777 | K109: ='Hipotecario (Pesos)'!G109/Inversion!$C$28 -> 2124.097081 | L109: ='Hipotecario (Pesos)'!E109/Inversion!$C$28 -> 3237.554859 | M109: ='Hipotecario (Pesos)'!H109/Inversion!$C$28 -> 270465.4217 | O109: =O108*(1+Inversion!$C$27) -> 622.7920077
A110: =IF(A109<Inversion!$C$23,A109+1,"-") -> 105 | B110: =IF(A110<>"-",DATE(YEAR(Inversion!$C$7),MONTH(Inversion!$C$7)+A110,DAY(Inversion!$C$7)),"-") -> 2034-04-10 | C110: ='Hipotecario (Pesos)'!C110 -> 101656998.2 | D110: 702278.114 | E110: 1323859.732 | F110: 2026137.846 | G110: 168561333.2 | I110: 269343.2553 | J110: ='Hipotecario (Pesos)'!F110/Inversion!$C$28 -> 1122.166453 | K110: ='Hipotecario (Pesos)'!G110/Inversion!$C$28 -> 2115.388406 | L110: ='Hipotecario (Pesos)'!E110/Inversion!$C$28 -> 3237.554859 | M110: ='Hipotecario (Pesos)'!H110/Inversion!$C$28 -> 269343.2553 | O110: =O109*(1+Inversion!$C$27) -> 625.8234793
A111: =IF(A110<Inversion!$C$23,A110+1,"-") -> 106 | B111: =IF(A111<>"-",DATE(YEAR(Inversion!$C$7),MONTH(Inversion!$C$7)+A111,DAY(Inversion!$C$7)),"-") -> 2034-05-10 | C111: ='Hipotecario (Pesos)'!C111 -> 101235221.3 | D111: 711215.9449 | E111: 1324784.23 | F111: 2036000.175 | G111: 168670598 | I111: 268212.312 | J111: ='Hipotecario (Pesos)'!F111/Inversion!$C$28 -> 1130.943242 | K111: ='Hipotecario (Pesos)'!G111/Inversion!$C$28 -> 2106.611617 | L111: ='Hipotecario (Pesos)'!E111/Inversion!$C$28 -> 3237.554859 | M111: ='Hipotecario (Pesos)'!H111/Inversion!$C$28 -> 268212.312 | O111: =O110*(1+Inversion!$C$27) -> 628.8697068
A112: =IF(A111<Inversion!$C$23,A111+1,"-") -> 107 | B112: =IF(A112<>"-",DATE(YEAR(Inversion!$C$7),MONTH(Inversion!$C$7)+A112,DAY(Inversion!$C$7)),"-") -> 2034-06-10 | C112: ='Hipotecario (Pesos)'!C112 -> 100810145.5 | D112: 720267.5268 | E112: 1325642.982 | F112: 2045910.508 | G112: 168771343.2 | I112: 267072.5234 | J112: ='Hipotecario (Pesos)'!F112/Inversion!$C$28 -> 1139.788677 | K112: ='Hipotecario (Pesos)'!G112/Inversion!$C$28 -> 2097.766182 | L112: ='Hipotecario (Pesos)'!E112/Inversion!$C$28 -> 3237.554859 | M112: ='Hipotecario (Pesos)'!H112/Inversion!$C$28 -> 267072.5234 | O112: =O111*(1+Inversion!$C$27) -> 631.9307619
A113: =IF(A112<Inversion!$C$23,A112+1,"-") -> 108 | B113: =IF(A113<>"-",DATE(YEAR(Inversion!$C$7),MONTH(Inversion!$C$7)+A113,DAY(Inversion!$C$7)),"-") -> 2034-07-10 | C113: ='Hipotecario (Pesos)'!C113 -> 100381745.1 | D113: 729434.3073 | E113: 1326434.774 | F113: 2055869.081 | G113: 168863411.9 | I113: 265923.8201 | J113: ='Hipotecario (Pesos)'!F113/Inversion!$C$28 -> 1148.703294 | K113: ='Hipotecario (Pesos)'!G113/Inversion!$C$28 -> 2088.851565 | L113: ='Hipotecario (Pesos)'!E113/Inversion!$C$28 -> 3237.554859 | M113: ='Hipotecario (Pesos)'!H113/Inversion!$C$28 -> 265923.8201 | O113: =O112*(1+Inversion!$C$27) -> 635.0067168
A114: =IF(A113<Inversion!$C$23,A113+1,"-") -> 109 | B114: =IF(A114<>"-",DATE(YEAR(Inversion!$C$7),MONTH(Inversion!$C$7)+A114,DAY(Inversion!$C$7)),"-") -> 2034-08-10 | C114: ='Hipotecario (Pesos)'!C114 -> 99949994.05 | D114: 738717.7526 | E114: 1327158.375 | F114: 2065876.128 | G114: 168946645.3 | I114: 264766.1324 | J114: ='Hipotecario (Pesos)'!F114/Inversion!$C$28 -> 1157.687635 | K114: ='Hipotecario (Pesos)'!G114/Inversion!$C$28 -> 2079.867223 | L114: ='Hipotecario (Pesos)'!E114/Inversion!$C$28 -> 3237.554859 | M114: ='Hipotecario (Pesos)'!H114/Inversion!$C$28 -> 264766.1324 | O114: =O113*(1+Inversion!$C$27) -> 638.0976441
A115: =IF(A114<Inversion!$C$23,A114+1,"-") -> 110 | B115: =IF(A115<>"-",DATE(YEAR(Inversion!$C$7),MONTH(Inversion!$C$7)+A115,DAY(Inversion!$C$7)),"-") -> 2034-09-10 | C115: ='Hipotecario (Pesos)'!C115 -> 99514866.15 | D115: 748119.3475 | E115: 1327812.537 | F115: 2075931.884 | G115: 169020882.3 | I115: 263599.3902 | J115: ='Hipotecario (Pesos)'!F115/Inversion!$C$28 -> 1166.742245 | K115: ='Hipotecario (Pesos)'!G115/Inversion!$C$28 -> 2070.812613 | L115: ='Hipotecario (Pesos)'!E115/Inversion!$C$28 -> 3237.554859 | M115: ='Hipotecario (Pesos)'!H115/Inversion!$C$28 -> 263599.3902 | O115: =O114*(1+Inversion!$C$27) -> 641.2036166
A116: =IF(A115<Inversion!$C$23,A115+1,"-") -> 111 | B116: =IF(A116<>"-",DATE(YEAR(Inversion!$C$7),MONTH(Inversion!$C$7)+A116,DAY(Inversion!$C$7)),"-") -> 2034-10-10 | C116: ='Hipotecario (Pesos)'!C116 -> 99076335 | D116: 757640.5957 | E116: 1328395.992 | F116: 2086036.588 | G116: 169085959.4 | I116: 262423.5225 | J116: ='Hipotecario (Pesos)'!F116/Inversion!$C$28 -> 1175.867675 | K116: ='Hipotecario (Pesos)'!G116/Inversion!$C$28 -> 2061.687184 | L116: ='Hipotecario (Pesos)'!E116/Inversion!$C$28 -> 3237.554859 | M116: ='Hipotecario (Pesos)'!H116/Inversion!$C$28 -> 262423.5225 | O116: =O115*(1+Inversion!$C$27) -> 644.3247077
A117: =IF(A116<Inversion!$C$23,A116+1,"-") -> 112 | B117: =IF(A117<>"-",DATE(YEAR(Inversion!$C$7),MONTH(Inversion!$C$7)+A117,DAY(Inversion!$C$7)),"-") -> 2034-11-10 | C117: ='Hipotecario (Pesos)'!C117 -> 98634373.96 | D117: 767283.0199 | E117: 1328907.456 | F117: 2096190.476 | G117: 169141710.9 | I117: 261238.458 | J117: ='Hipotecario (Pesos)'!F117/Inversion!$C$28 -> 1185.064476 | K117: ='Hipotecario (Pesos)'!G117/Inversion!$C$28 -> 2052.490382 | L117: ='Hipotecario (Pesos)'!E117/Inversion!$C$28 -> 3237.554859 | M117: ='Hipotecario (Pesos)'!H117/Inversion!$C$28 -> 261238.458 | O117: =O116*(1+Inversion!$C$27) -> 647.4609908
A118: =IF(A117<Inversion!$C$23,A117+1,"-") -> 113 | B118: =IF(A118<>"-",DATE(YEAR(Inversion!$C$7),MONTH(Inversion!$C$7)+A118,DAY(Inversion!$C$7)),"-") -> 2034-12-10 | C118: ='Hipotecario (Pesos)'!C118 -> 98188956.22 | D118: 777048.1624 | E118: 1329345.627 | F118: 2106393.79 | G118: 169187968.5 | I118: 260044.1248 | J118: ='Hipotecario (Pesos)'!F118/Inversion!$C$28 -> 1194.333209 | K118: ='Hipotecario (Pesos)'!G118/Inversion!$C$28 -> 2043.22165 | L118: ='Hipotecario (Pesos)'!E118/Inversion!$C$28 -> 3237.554859 | M118: ='Hipotecario (Pesos)'!H118/Inversion!$C$28 -> 260044.1248 | O118: =O117*(1+Inversion!$C$27) -> 650.6125399
A119: =IF(A118<Inversion!$C$23,A118+1,"-") -> 114 | B119: =IF(A119<>"-",DATE(YEAR(Inversion!$C$7),MONTH(Inversion!$C$7)+A119,DAY(Inversion!$C$7)),"-") -> 2035-01-10 | C119: ='Hipotecario (Pesos)'!C119 -> 97740054.74 | D119: 786937.585 | E119: 1329709.183 | F119: 2116646.768 | G119: 169224561.9 | I119: 258840.4504 | J119: ='Hipotecario (Pesos)'!F119/Inversion!$C$28 -> 1203.674435 | K119: ='Hipotecario (Pesos)'!G119/Inversion!$C$28 -> 2033.880424 | L119: ='Hipotecario (Pesos)'!E119/Inversion!$C$28 -> 3237.554859 | M119: ='Hipotecario (Pesos)'!H119/Inversion!$C$28 -> 258840.4504 | O119: =O118*(1+Inversion!$C$27) -> 653.7794293
A120: =IF(A119<Inversion!$C$23,A119+1,"-") -> 115 | B120: =IF(A120<>"-",DATE(YEAR(Inversion!$C$7),MONTH(Inversion!$C$7)+A120,DAY(Inversion!$C$7)),"-") -> 2035-02-10 | C120: ='Hipotecario (Pesos)'!C120 -> 97287642.27 | D120: 796952.8694 | E120: 1329996.784 | F120: 2126949.653 | G120: 169251318.2 | I120: 257627.3617 | J120: ='Hipotecario (Pesos)'!F120/Inversion!$C$28 -> 1213.088721 | K120: ='Hipotecario (Pesos)'!G120/Inversion!$C$28 -> 2024.466137 | L120: ='Hipotecario (Pesos)'!E120/Inversion!$C$28 -> 3237.554859 | M120: ='Hipotecario (Pesos)'!H120/Inversion!$C$28 -> 257627.3617 | O120: =O119*(1+Inversion!$C$27) -> 656.9617337
A121: =IF(A120<Inversion!$C$23,A120+1,"-") -> 116 | B121: =IF(A121<>"-",DATE(YEAR(Inversion!$C$7),MONTH(Inversion!$C$7)+A121,DAY(Inversion!$C$7)),"-") -> 2035-03-10 | C121: ='Hipotecario (Pesos)'!C121 -> 96831691.35 | D121: 807095.6175 | E121: 1330207.071 | F121: 2137302.688 | G121: 169268061.9 | I121: 256404.785 | J121: ='Hipotecario (Pesos)'!F121/Inversion!$C$28 -> 1222.576639 | K121: ='Hipotecario (Pesos)'!G121/Inversion!$C$28 -> 2014.978219 | L121: ='Hipotecario (Pesos)'!E121/Inversion!$C$28 -> 3237.554859 | M121: ='Hipotecario (Pesos)'!H121/Inversion!$C$28 -> 256404.785 | O121: =O120*(1+Inversion!$C$27) -> 660.1595282
A122: =IF(A121<Inversion!$C$23,A121+1,"-") -> 117 | B122: =IF(A122<>"-",DATE(YEAR(Inversion!$C$7),MONTH(Inversion!$C$7)+A122,DAY(Inversion!$C$7)),"-") -> 2035-04-10 | C122: ='Hipotecario (Pesos)'!C122 -> 96372174.3 | D122: 817367.4514 | E122: 1330338.666 | F122: 2147706.117 | G122: 169274615.3 | I122: 255172.6463 | J122: ='Hipotecario (Pesos)'!F122/Inversion!$C$28 -> 1232.138765 | K122: ='Hipotecario (Pesos)'!G122/Inversion!$C$28 -> 2005.416093 | L122: ='Hipotecario (Pesos)'!E122/Inversion!$C$28 -> 3237.554859 | M122: ='Hipotecario (Pesos)'!H122/Inversion!$C$28 -> 255172.6463 | O122: =O121*(1+Inversion!$C$27) -> 663.3728881
A123: =IF(A122<Inversion!$C$23,A122+1,"-") -> 118 | B123: =IF(A123<>"-",DATE(YEAR(Inversion!$C$7),MONTH(Inversion!$C$7)+A123,DAY(Inversion!$C$7)),"-") -> 2035-05-10 | C123: ='Hipotecario (Pesos)'!C123 -> 95909063.24 | D123: 827770.014 | E123: 1330390.171 | F123: 2158160.185 | G123: 169270798.1 | I123: 253930.8706 | J123: ='Hipotecario (Pesos)'!F123/Inversion!$C$28 -> 1241.77568 | K123: ='Hipotecario (Pesos)'!G123/Inversion!$C$28 -> 1995.779179 | L123: ='Hipotecario (Pesos)'!E123/Inversion!$C$28 -> 3237.554859 | M123: ='Hipotecario (Pesos)'!H123/Inversion!$C$28 -> 253930.8706 | O123: =O122*(1+Inversion!$C$27) -> 666.6018892
A124: =IF(A123<Inversion!$C$23,A123+1,"-") -> 119 | B124: =IF(A124<>"-",DATE(YEAR(Inversion!$C$7),MONTH(Inversion!$C$7)+A124,DAY(Inversion!$C$7)),"-") -> 2035-06-10 | C124: ='Hipotecario (Pesos)'!C124 -> 95442330.05 | D124: 838304.969 | E124: 1330360.17 | F124: 2168665.139 | G124: 169256427.3 | I124: 252679.3826 | J124: ='Hipotecario (Pesos)'!F124/Inversion!$C$28 -> 1251.487967 | K124: ='Hipotecario (Pesos)'!G124/Inversion!$C$28 -> 1986.066892 | L124: ='Hipotecario (Pesos)'!E124/Inversion!$C$28 -> 3237.554859 | M124: ='Hipotecario (Pesos)'!H124/Inversion!$C$28 -> 252679.3826 | O124: =O123*(1+Inversion!$C$27) -> 669.8466076
A125: =IF(A124<Inversion!$C$23,A124+1,"-") -> 120 | B125: =IF(A125<>"-",DATE(YEAR(Inversion!$C$7),MONTH(Inversion!$C$7)+A125,DAY(Inversion!$C$7)),"-") -> 2035-07-10 | C125: ='Hipotecario (Pesos)'!C125 -> 94971946.41 | D125: 848974.0016 | E125: 1330247.225 | F125: 2179221.226 | G125: 169231317.5 | I125: 251418.1064 | J125: ='Hipotecario (Pesos)'!F125/Inversion!$C$28 -> 1261.276217 | K125: ='Hipotecario (Pesos)'!G125/Inversion!$C$28 -> 1976.278642 | L125: ='Hipotecario (Pesos)'!E125/Inversion!$C$28 -> 3237.554859 | M125: ='Hipotecario (Pesos)'!H125/Inversion!$C$28 -> 251418.1064 | O125: =O124*(1+Inversion!$C$27) -> 673.1071198
A126: =IF(A125<Inversion!$C$23,A125+1,"-") -> 121 | B126: =IF(A126<>"-",DATE(YEAR(Inversion!$C$7),MONTH(Inversion!$C$7)+A126,DAY(Inversion!$C$7)),"-") -> 2035-08-10 | C126: ='Hipotecario (Pesos)'!C126 -> 94497883.77 | D126: 859778.8179 | E126: 1330049.878 | F126: 2189828.696 | G126: 169195280.6 | I126: 250146.9654 | J126: ='Hipotecario (Pesos)'!F126/Inversion!$C$28 -> 1271.141023 | K126: ='Hipotecario (Pesos)'!G126/Inversion!$C$28 -> 1966.413835 | L126: ='Hipotecario (Pesos)'!E126/Inversion!$C$28 -> 3237.554859 | M126: ='Hipotecario (Pesos)'!H126/Inversion!$C$28 -> 250146.9654 | O126: =O125*(1+Inversion!$C$27) -> 676.3835027
A127: =IF(A126<Inversion!$C$23,A126+1,"-") -> 122 | B127: =IF(A127<>"-",DATE(YEAR(Inversion!$C$7),MONTH(Inversion!$C$7)+A127,DAY(Inversion!$C$7)),"-") -> 2035-09-10 | C127: ='Hipotecario (Pesos)'!C127 -> 94020113.34 | D127: 870721.1462 | E127: 1329766.651 | F127: 2200487.797 | G127: 169148126.1 | I127: 248865.8824 | J127: ='Hipotecario (Pesos)'!F127/Inversion!$C$28 -> 1281.082986 | K127: ='Hipotecario (Pesos)'!G127/Inversion!$C$28 -> 1956.471873 | L127: ='Hipotecario (Pesos)'!E127/Inversion!$C$28 -> 3237.554859 | M127: ='Hipotecario (Pesos)'!H127/Inversion!$C$28 -> 248865.8824 | O127: =O126*(1+Inversion!$C$27) -> 679.6758336
A128: =IF(A127<Inversion!$C$23,A127+1,"-") -> 123 | B128: =IF(A128<>"-",DATE(YEAR(Inversion!$C$7),MONTH(Inversion!$C$7)+A128,DAY(Inversion!$C$7)),"-") -> 2035-10-10 | C128: ='Hipotecario (Pesos)'!C128 -> 93538606.13 | D128: 881802.7365 | E128: 1329396.047 | F128: 2211198.783 | G128: 169089660.4 | I128: 247574.7797 | J128: ='Hipotecario (Pesos)'!F128/Inversion!$C$28 -> 1291.102707 | K128: ='Hipotecario (Pesos)'!G128/Inversion!$C$28 -> 1946.452152 | L128: ='Hipotecario (Pesos)'!E128/Inversion!$C$28 -> 3237.554859 | M128: ='Hipotecario (Pesos)'!H128/Inversion!$C$28 -> 247574.7797 | O128: =O127*(1+Inversion!$C$27) -> 682.9841901
A129: =IF(A128<Inversion!$C$23,A128+1,"-") -> 124 | B129: =IF(A129<>"-",DATE(YEAR(Inversion!$C$7),MONTH(Inversion!$C$7)+A129,DAY(Inversion!$C$7)),"-") -> 2035-11-10 | C129: ='Hipotecario (Pesos)'!C129 -> 93053332.91 | D129: 893025.3612 | E129: 1328936.544 | F129: 2221961.905 | G129: 169019687.5 | I129: 246273.5789 | J129: ='Hipotecario (Pesos)'!F129/Inversion!$C$28 -> 1301.200795 | K129: ='Hipotecario (Pesos)'!G129/Inversion!$C$28 -> 1936.354064 | L129: ='Hipotecario (Pesos)'!E129/Inversion!$C$28 -> 3237.554859 | M129: ='Hipotecario (Pesos)'!H129/Inversion!$C$28 -> 246273.5789 | O129: =O128*(1+Inversion!$C$27) -> 686.3086502
A130: =IF(A129<Inversion!$C$23,A129+1,"-") -> 125 | B130: =IF(A130<>"-",DATE(YEAR(Inversion!$C$7),MONTH(Inversion!$C$7)+A130,DAY(Inversion!$C$7)),"-") -> 2035-12-10 | C130: ='Hipotecario (Pesos)'!C130 -> 92564264.23 | D130: 904390.8153 | E130: 1328386.602 | F130: 2232777.417 | G130: 168938008.6 | I130: 244962.201 | J130: ='Hipotecario (Pesos)'!F130/Inversion!$C$28 -> 1311.377863 | K130: ='Hipotecario (Pesos)'!G130/Inversion!$C$28 -> 1926.176995 | L130: ='Hipotecario (Pesos)'!E130/Inversion!$C$28 -> 3237.554859 | M130: ='Hipotecario (Pesos)'!H130/Inversion!$C$28 -> 244962.201 | O130: =O129*(1+Inversion!$C$27) -> 689.6492923
A131: =IF(A130<Inversion!$C$23,A130+1,"-") -> 126 | B131: =IF(A131<>"-",DATE(YEAR(Inversion!$C$7),MONTH(Inversion!$C$7)+A131,DAY(Inversion!$C$7)),"-") -> 2036-01-10 | C131: ='Hipotecario (Pesos)'!C131 -> 92071370.4 | D131: 915900.9165 | E131: 1327744.657 | F131: 2243645.574 | G131: 168844422 | I131: 243640.5665 | J131: ='Hipotecario (Pesos)'!F131/Inversion!$C$28 -> 1321.634529 | K131: ='Hipotecario (Pesos)'!G131/Inversion!$C$28 -> 1915.920329 | L131: ='Hipotecario (Pesos)'!E131/Inversion!$C$28 -> 3237.554859 | M131: ='Hipotecario (Pesos)'!H131/Inversion!$C$28 -> 243640.5665 | O131: =O130*(1+Inversion!$C$27) -> 693.0061951
A132: =IF(A131<Inversion!$C$23,A131+1,"-") -> 127 | B132: =IF(A132<>"-",DATE(YEAR(Inversion!$C$7),MONTH(Inversion!$C$7)+A132,DAY(Inversion!$C$7)),"-") -> 2036-02-10 | C132: ='Hipotecario (Pesos)'!C132 -> 91574621.51 | D132: 927557.5057 | E132: 1327009.126 | F132: 2254566.632 | G132: 168738723.2 | I132: 242308.5951 | J132: ='Hipotecario (Pesos)'!F132/Inversion!$C$28 -> 1331.971416 | K132: ='Hipotecario (Pesos)'!G132/Inversion!$C$28 -> 1905.583443 | L132: ='Hipotecario (Pesos)'!E132/Inversion!$C$28 -> 3237.554859 | M132: ='Hipotecario (Pesos)'!H132/Inversion!$C$28 -> 242308.5951 | O132: =O131*(1+Inversion!$C$27) -> 696.3794378
A133: =IF(A132<Inversion!$C$23,A132+1,"-") -> 128 | B133: =IF(A133<>"-",DATE(YEAR(Inversion!$C$7),MONTH(Inversion!$C$7)+A133,DAY(Inversion!$C$7)),"-") -> 2036-03-10 | C133: ='Hipotecario (Pesos)'!C133 -> 91073987.4 | D133: 939362.4473 | E133: 1326178.402 | F133: 2265540.849 | G133: 168620705 | I133: 240966.2059 | J133: ='Hipotecario (Pesos)'!F133/Inversion!$C$28 -> 1342.38915 | K133: ='Hipotecario (Pesos)'!G133/Inversion!$C$28 -> 1895.165709 | L133: ='Hipotecario (Pesos)'!E133/Inversion!$C$28 -> 3237.554859 | M133: ='Hipotecario (Pesos)'!H133/Inversion!$C$28 -> 240966.2059 | O133: =O132*(1+Inversion!$C$27) -> 699.7690999
A134: =IF(A133<Inversion!$C$23,A133+1,"-") -> 129 | B134: =IF(A134<>"-",DATE(YEAR(Inversion!$C$7),MONTH(Inversion!$C$7)+A134,DAY(Inversion!$C$7)),"-") -> 2036-04-10 | C134: ='Hipotecario (Pesos)'!C134 -> 90569437.68 | D134: =J134*O134 -> 951317.6293 | E134: =K134*O134 -> 1325250.855 | F134: =L134*O134 -> 2276568.484 | G134: =M134*O134 -> 168490157.2 | I134: 239613.3176 | J134: ='Hipotecario (Pesos)'!F134/Inversion!$C$28 -> 1352.888364 | K134: ='Hipotecario (Pesos)'!G134/Inversion!$C$28 -> 1884.666494 | L134: ='Hipotecario (Pesos)'!E134/Inversion!$C$28 -> 3237.554859 | M134: ='Hipotecario (Pesos)'!H134/Inversion!$C$28 -> 239613.3176 | O134: =O133*(1+Inversion!$C$27) -> 703.1752614
A135: =IF(A134<Inversion!$C$23,A134+1,"-") -> 130 | B135: =IF(A135<>"-",DATE(YEAR(Inversion!$C$7),MONTH(Inversion!$C$7)+A135,DAY(Inversion!$C$7)),"-") -> 2036-05-10 | C135: ='Hipotecario (Pesos)'!C135 -> 90060941.74 | D135: 963424.9638 | E135: 1324224.832 | F135: 2287649.796 | G135: 168346866.6 | I135: 238249.8479 | J135: ='Hipotecario (Pesos)'!F135/Inversion!$C$28 -> 1363.469696 | K135: ='Hipotecario (Pesos)'!G135/Inversion!$C$28 -> 1874.085162 | L135: ='Hipotecario (Pesos)'!E135/Inversion!$C$28 -> 3237.554859 | M135: ='Hipotecario (Pesos)'!H135/Inversion!$C$28 -> 238249.8479 | O135: =O134*(1+Inversion!$C$27) -> 706.5980025
A136: =IF(A135<Inversion!$C$23,A135+1,"-") -> 131 | B136: =IF(A136<>"-",DATE(YEAR(Inversion!$C$7),MONTH(Inversion!$C$7)+A136,DAY(Inversion!$C$7)),"-") -> 2036-06-10 | C136: ='Hipotecario (Pesos)'!C136 -> 89548468.7 | D136: 975686.3874 | E136: 1323098.66 | F136: 2298785.047 | G136: 168190617.1 | I136: =I135-J136 -> 236875.7141 | J136: ='Hipotecario (Pesos)'!F136/Inversion!$C$28 -> 1374.133788 | K136: ='Hipotecario (Pesos)'!G136/Inversion!$C$28 -> 1863.421071 | L136: ='Hipotecario (Pesos)'!E136/Inversion!$C$28 -> 3237.554859 | M136: ='Hipotecario (Pesos)'!H136/Inversion!$C$28 -> 236875.7141 | O136: =O135*(1+Inversion!$C$27) -> 710.037404
A137: =IF(A136<Inversion!$C$23,A136+1,"-") -> 132 | B137: =IF(A137<>"-",DATE(YEAR(Inversion!$C$7),MONTH(Inversion!$C$7)+A137,DAY(Inversion!$C$7)),"-") -> 2036-07-10 | C137: ='Hipotecario (Pesos)'!C137 -> 89031987.46 | D137: 988103.8609 | E137: 1321870.639 | F137: 2309974.5 | G137: 168021189.6 | I137: 235490.8328 | J137: ='Hipotecario (Pesos)'!F137/Inversion!$C$28 -> 1384.881286 | K137: ='Hipotecario (Pesos)'!G137/Inversion!$C$28 -> 1852.673573 | L137: ='Hipotecario (Pesos)'!E137/Inversion!$C$28 -> 3237.554859 | M137: ='Hipotecario (Pesos)'!H137/Inversion!$C$28 -> 235490.8328 | O137: =O136*(1+Inversion!$C$27) -> 713.493547
A138: =IF(A137<Inversion!$C$23,A137+1,"-") -> 133 | B138: =IF(A138<>"-",DATE(YEAR(Inversion!$C$7),MONTH(Inversion!$C$7)+A138,DAY(Inversion!$C$7)),"-") -> 2036-08-10 | C138: ='Hipotecario (Pesos)'!C138 -> 88511466.67 | D138: 1000679.371 | E138: 1320539.047 | F138: 2321218.417 | G138: 167838361.8 | I138: 234095.12 | J138: ='Hipotecario (Pesos)'!F138/Inversion!$C$28 -> 1395.712844 | K138: ='Hipotecario (Pesos)'!G138/Inversion!$C$28 -> 1841.842015 | L138: ='Hipotecario (Pesos)'!E138/Inversion!$C$28 -> 3237.554859 | M138: ='Hipotecario (Pesos)'!H138/Inversion!$C$28 -> 234095.12 | O138: =O137*(1+Inversion!$C$27) -> 716.9665129
A139: =IF(A138<Inversion!$C$23,A138+1,"-") -> 134 | B139: =IF(A139<>"-",DATE(YEAR(Inversion!$C$7),MONTH(Inversion!$C$7)+A139,DAY(Inversion!$C$7)),"-") -> 2036-09-10 | C139: ='Hipotecario (Pesos)'!C139 -> 87986874.74 | D139: 1013414.928 | E139: 1319102.138 | F139: 2332517.065 | G139: 167641908.6 | I139: 232688.4908 | J139: ='Hipotecario (Pesos)'!F139/Inversion!$C$28 -> 1406.629118 | K139: ='Hipotecario (Pesos)'!G139/Inversion!$C$28 -> 1830.92574 | L139: ='Hipotecario (Pesos)'!E139/Inversion!$C$28 -> 3237.554859 | M139: ='Hipotecario (Pesos)'!H139/Inversion!$C$28 -> 232688.4908 | O139: =O138*(1+Inversion!$C$27) -> 720.4563837
A140: =IF(A139<Inversion!$C$23,A139+1,"-") -> 135 | B140: =IF(A140<>"-",DATE(YEAR(Inversion!$C$7),MONTH(Inversion!$C$7)+A140,DAY(Inversion!$C$7)),"-") -> 2036-10-10 | C140: ='Hipotecario (Pesos)'!C140 -> 87458179.82 | D140: 1026312.569 | E140: 1317558.141 | F140: 2343870.71 | G140: 167431601.5 | I140: 231270.8601 | J140: ='Hipotecario (Pesos)'!F140/Inversion!$C$28 -> 1417.630772 | K140: ='Hipotecario (Pesos)'!G140/Inversion!$C$28 -> 1819.924087 | L140: ='Hipotecario (Pesos)'!E140/Inversion!$C$28 -> 3237.554859 | M140: ='Hipotecario (Pesos)'!H140/Inversion!$C$28 -> 231270.8601 | O140: =O139*(1+Inversion!$C$27) -> 723.9632415
A141: =IF(A140<Inversion!$C$23,A140+1,"-") -> 136 | B141: =IF(A141<>"-",DATE(YEAR(Inversion!$C$7),MONTH(Inversion!$C$7)+A141,DAY(Inversion!$C$7)),"-") -> 2036-11-10 | C141: ='Hipotecario (Pesos)'!C141 -> 86925349.83 | D141: 1039374.357 | E141: 1315905.262 | F141: 2355279.619 | G141: 167207209 | I141: 229842.1416 | J141: ='Hipotecario (Pesos)'!F141/Inversion!$C$28 -> 1428.718473 | K141: ='Hipotecario (Pesos)'!G141/Inversion!$C$28 -> 1808.836386 | L141: ='Hipotecario (Pesos)'!E141/Inversion!$C$28 -> 3237.554859 | M141: ='Hipotecario (Pesos)'!H141/Inversion!$C$28 -> 229842.1416 | O141: =O140*(1+Inversion!$C$27) -> 727.4871692
A142: =IF(A141<Inversion!$C$23,A141+1,"-") -> 137 | B142: =IF(A142<>"-",DATE(YEAR(Inversion!$C$7),MONTH(Inversion!$C$7)+A142,DAY(Inversion!$C$7)),"-") -> 2036-12-10 | C142: ='Hipotecario (Pesos)'!C142 -> 86388352.42 | D142: 1052602.382 | E142: 1314141.68 | F142: 2366744.062 | G142: 166968496.1 | I142: 228402.2487 | J142: ='Hipotecario (Pesos)'!F142/Inversion!$C$28 -> 1439.892894 | K142: ='Hipotecario (Pesos)'!G142/Inversion!$C$28 -> 1797.661965 | L142: ='Hipotecario (Pesos)'!E142/Inversion!$C$28 -> 3237.554859 | M142: ='Hipotecario (Pesos)'!H142/Inversion!$C$28 -> 228402.2487 | O142: =O141*(1+Inversion!$C$27) -> 731.0282498
A143: =IF(A142<Inversion!$C$23,A142+1,"-") -> 138 | B143: =IF(A143<>"-",DATE(YEAR(Inversion!$C$7),MONTH(Inversion!$C$7)+A143,DAY(Inversion!$C$7)),"-") -> 2037-01-10 | C143: ='Hipotecario (Pesos)'!C143 -> 85847155 | D143: 1065998.759 | E143: 1312265.55 | F143: 2378264.308 | G143: 166715225 | I143: 226951.094 | J143: ='Hipotecario (Pesos)'!F143/Inversion!$C$28 -> 1451.154713 | K143: ='Hipotecario (Pesos)'!G143/Inversion!$C$28 -> 1786.400145 | L143: ='Hipotecario (Pesos)'!E143/Inversion!$C$28 -> 3237.554859 | M143: ='Hipotecario (Pesos)'!H143/Inversion!$C$28 -> 226951.094 | O143: =O142*(1+Inversion!$C$27) -> 734.5865668
A144: =IF(A143<Inversion!$C$23,A143+1,"-") -> 139 | B144: =IF(A144<>"-",DATE(YEAR(Inversion!$C$7),MONTH(Inversion!$C$7)+A144,DAY(Inversion!$C$7)),"-") -> 2037-02-10 | C144: ='Hipotecario (Pesos)'!C144 -> 85301724.71 | D144: 1079565.63 | E144: 1310275 | F144: 2389840.63 | G144: 166447154.1 | I144: 225488.5894 | J144: ='Hipotecario (Pesos)'!F144/Inversion!$C$28 -> 1462.504615 | K144: ='Hipotecario (Pesos)'!G144/Inversion!$C$28 -> 1775.050244 | L144: ='Hipotecario (Pesos)'!E144/Inversion!$C$28 -> 3237.554859 | M144: ='Hipotecario (Pesos)'!H144/Inversion!$C$28 -> 225488.5894 | O144: =O143*(1+Inversion!$C$27) -> 738.162204
A145: =IF(A144<Inversion!$C$23,A144+1,"-") -> 140 | B145: =IF(A145<>"-",DATE(YEAR(Inversion!$C$7),MONTH(Inversion!$C$7)+A145,DAY(Inversion!$C$7)),"-") -> 2037-03-10 | C145: ='Hipotecario (Pesos)'!C145 -> 84752028.46 | D145: 1093305.165 | E145: 1308168.135 | F145: 2401473.3 | G145: 166164038.9 | I145: 224014.6461 | J145: ='Hipotecario (Pesos)'!F145/Inversion!$C$28 -> 1473.943287 | K145: ='Hipotecario (Pesos)'!G145/Inversion!$C$28 -> 1763.611572 | L145: ='Hipotecario (Pesos)'!E145/Inversion!$C$28 -> 3237.554859 | M145: ='Hipotecario (Pesos)'!H145/Inversion!$C$28 -> 224014.6461 | O145: =O144*(1+Inversion!$C$27) -> 741.7552459
A146: =IF(A145<Inversion!$C$23,A145+1,"-") -> 141 | B146: =IF(A146<>"-",DATE(YEAR(Inversion!$C$7),MONTH(Inversion!$C$7)+A146,DAY(Inversion!$C$7)),"-") -> 2037-04-10 | C146: ='Hipotecario (Pesos)'!C146 -> 84198032.87 | D146: 1107219.562 | E146: 1305943.031 | F146: 2413162.593 | G146: 165865631.2 | I146: 222529.1747 | J146: ='Hipotecario (Pesos)'!F146/Inversion!$C$28 -> 1485.471424 | K146: ='Hipotecario (Pesos)'!G146/Inversion!$C$28 -> 1752.083434 | L146: ='Hipotecario (Pesos)'!E146/Inversion!$C$28 -> 3237.554859 | M146: ='Hipotecario (Pesos)'!H146/Inversion!$C$28 -> 222529.1747 | O146: =O145*(1+Inversion!$C$27) -> 745.3657771
A147: =IF(A146<Inversion!$C$23,A146+1,"-") -> 142 | B147: =IF(A147<>"-",DATE(YEAR(Inversion!$C$7),MONTH(Inversion!$C$7)+A147,DAY(Inversion!$C$7)),"-") -> 2037-05-10 | C147: ='Hipotecario (Pesos)'!C147 -> 83639704.32 | D147: 1121311.047 | E147: 1303597.737 | F147: 2424908.784 | G147: 165551679.5 | I147: 221032.0849 | J147: ='Hipotecario (Pesos)'!F147/Inversion!$C$28 -> 1497.089726 | K147: ='Hipotecario (Pesos)'!G147/Inversion!$C$28 -> 1740.465132 | L147: ='Hipotecario (Pesos)'!E147/Inversion!$C$28 -> 3237.554859 | M147: ='Hipotecario (Pesos)'!H147/Inversion!$C$28 -> 221032.0849 | O147: =O146*(1+Inversion!$C$27) -> 748.9938827
A148: =IF(A147<Inversion!$C$23,A147+1,"-") -> 143 | B148: =IF(A148<>"-",DATE(YEAR(Inversion!$C$7),MONTH(Inversion!$C$7)+A148,DAY(Inversion!$C$7)),"-") -> 2037-06-10 | C148: ='Hipotecario (Pesos)'!C148 -> 83077008.93 | D148: 1135581.873 | E148: 1301130.277 | F148: 2436712.15 | G148: 165221928.8 | I148: 219523.286 | J148: ='Hipotecario (Pesos)'!F148/Inversion!$C$28 -> 1508.798899 | K148: ='Hipotecario (Pesos)'!G148/Inversion!$C$28 -> 1728.75596 | L148: ='Hipotecario (Pesos)'!E148/Inversion!$C$28 -> 3237.554859 | M148: ='Hipotecario (Pesos)'!H148/Inversion!$C$28 -> 219523.286 | O148: =O147*(1+Inversion!$C$27) -> 752.6396483
A149: =IF(A148<Inversion!$C$23,A148+1,"-") -> 144 | B149: =IF(A149<>"-",DATE(YEAR(Inversion!$C$7),MONTH(Inversion!$C$7)+A149,DAY(Inversion!$C$7)),"-") -> 2037-07-10 | C149: ='Hipotecario (Pesos)'!C149 -> 82509912.53 | D149: 1150034.322 | E149: 1298538.648 | F149: 2448572.97 | G149: 164876120.6 | I149: 218002.6864 | J149: ='Hipotecario (Pesos)'!F149/Inversion!$C$28 -> 1520.599652 | K149: ='Hipotecario (Pesos)'!G149/Inversion!$C$28 -> 1716.955207 | L149: ='Hipotecario (Pesos)'!E149/Inversion!$C$28 -> 3237.554859 | M149: ='Hipotecario (Pesos)'!H149/Inversion!$C$28 -> 218002.6864 | O149: =O148*(1+Inversion!$C$27) -> 756.3031598
A150: =IF(A149<Inversion!$C$23,A149+1,"-") -> 145 | B150: =IF(A150<>"-",DATE(YEAR(Inversion!$C$7),MONTH(Inversion!$C$7)+A150,DAY(Inversion!$C$7)),"-") -> 2037-08-10 | C150: ='Hipotecario (Pesos)'!C150 -> 81938380.7 | D150: 1164670.706 | E150: 1295820.817 | F150: 2460491.522 | G150: 164513992.7 | I150: 216470.1937 | J150: ='Hipotecario (Pesos)'!F150/Inversion!$C$28 -> 1532.492702 | K150: ='Hipotecario (Pesos)'!G150/Inversion!$C$28 -> 1705.062156 | L150: ='Hipotecario (Pesos)'!E150/Inversion!$C$28 -> 3237.554859 | M150: ='Hipotecario (Pesos)'!H150/Inversion!$C$28 -> 216470.1937 | O150: =O149*(1+Inversion!$C$27) -> 759.9845037
A151: =IF(A150<Inversion!$C$23,A150+1,"-") -> 146 | B151: =IF(A151<>"-",DATE(YEAR(Inversion!$C$7),MONTH(Inversion!$C$7)+A151,DAY(Inversion!$C$7)),"-") -> 2037-09-10 | C151: ='Hipotecario (Pesos)'!C151 -> 81362378.76 | D151: 1179493.366 | E151: 1292974.723 | F151: 2472468.089 | G151: 164135279.5 | I151: 214925.7149 | J151: ='Hipotecario (Pesos)'!F151/Inversion!$C$28 -> 1544.478772 | K151: ='Hipotecario (Pesos)'!G151/Inversion!$C$28 -> 1693.076087 | L151: ='Hipotecario (Pesos)'!E151/Inversion!$C$28 -> 3237.554859 | M151: ='Hipotecario (Pesos)'!H151/Inversion!$C$28 -> 214925.7149 | O151: =O150*(1+Inversion!$C$27) -> 763.6837667
A152: =IF(A151<Inversion!$C$23,A151+1,"-") -> 147 | B152: =IF(A152<>"-",DATE(YEAR(Inversion!$C$7),MONTH(Inversion!$C$7)+A152,DAY(Inversion!$C$7)),"-") -> 2037-10-10 | C152: ='Hipotecario (Pesos)'!C152 -> 80781871.74 | D152: 1194504.673 | E152: 1289998.28 | F152: 2484502.953 | G152: 163739711.6 | I152: 213369.1563 | J152: ='Hipotecario (Pesos)'!F152/Inversion!$C$28 -> 1556.558588 | K152: ='Hipotecario (Pesos)'!G152/Inversion!$C$28 -> 1680.996271 | L152: ='Hipotecario (Pesos)'!E152/Inversion!$C$28 -> 3237.554859 | M152: ='Hipotecario (Pesos)'!H152/Inversion!$C$28 -> 213369.1563 | O152: =O151*(1+Inversion!$C$27) -> 767.401036
A153: =IF(A152<Inversion!$C$23,A152+1,"-") -> 148 | B153: =IF(A153<>"-",DATE(YEAR(Inversion!$C$7),MONTH(Inversion!$C$7)+A153,DAY(Inversion!$C$7)),"-") -> 2037-11-10 | C153: ='Hipotecario (Pesos)'!C153 -> 80196824.41 | D153: 1209707.027 | E153: 1286889.369 | F153: 2496596.396 | G153: 163327015.9 | I153: 211800.4234 | J153: ='Hipotecario (Pesos)'!F153/Inversion!$C$28 -> 1568.732883 | K153: ='Hipotecario (Pesos)'!G153/Inversion!$C$28 -> 1668.821975 | L153: ='Hipotecario (Pesos)'!E153/Inversion!$C$28 -> 3237.554859 | M153: ='Hipotecario (Pesos)'!H153/Inversion!$C$28 -> 211800.4234 | O153: =O152*(1+Inversion!$C$27) -> 771.1363994
A154: =IF(A153<Inversion!$C$23,A153+1,"-") -> 149 | B154: =IF(A154<>"-",DATE(YEAR(Inversion!$C$7),MONTH(Inversion!$C$7)+A154,DAY(Inversion!$C$7)),"-") -> 2037-12-10 | C154: ='Hipotecario (Pesos)'!C154 -> 79607201.25 | D154: 1225102.86 | E154: 1283645.845 | F154: 2508748.706 | G154: 162896915.6 | I154: 210219.421 | J154: ='Hipotecario (Pesos)'!F154/Inversion!$C$28 -> 1581.002397 | K154: ='Hipotecario (Pesos)'!G154/Inversion!$C$28 -> 1656.552461 | L154: ='Hipotecario (Pesos)'!E154/Inversion!$C$28 -> 3237.554859 | M154: ='Hipotecario (Pesos)'!H154/Inversion!$C$28 -> 210219.421 | O154: =O153*(1+Inversion!$C$27) -> 774.8899448
A155: =IF(A154<Inversion!$C$23,A154+1,"-") -> 150 | B155: =IF(A155<>"-",DATE(YEAR(Inversion!$C$7),MONTH(Inversion!$C$7)+A155,DAY(Inversion!$C$7)),"-") -> 2038-01-10 | C155: ='Hipotecario (Pesos)'!C155 -> 79012966.48 | D155: 1240694.635 | E155: 1280265.532 | F155: 2520960.167 | G155: 162449129.9 | I155: 208626.0532 | J155: ='Hipotecario (Pesos)'!F155/Inversion!$C$28 -> 1593.367875 | K155: ='Hipotecario (Pesos)'!G155/Inversion!$C$28 -> 1644.186983 | L155: ='Hipotecario (Pesos)'!E155/Inversion!$C$28 -> 3237.554859 | M155: ='Hipotecario (Pesos)'!H155/Inversion!$C$28 -> 208626.0532 | O155: =O154*(1+Inversion!$C$27) -> 778.6617608
A156: =IF(A155<Inversion!$C$23,A155+1,"-") -> 151 | B156: =IF(A156<>"-",DATE(YEAR(Inversion!$C$7),MONTH(Inversion!$C$7)+A156,DAY(Inversion!$C$7)),"-") -> 2038-02-10 | C156: ='Hipotecario (Pesos)'!C156 -> 78414084.03 | D156: 1256484.845 | E156: 1276746.223 | F156: 2533231.068 | G156: 161983374.4 | I156: 207020.2231 | J156: ='Hipotecario (Pesos)'!F156/Inversion!$C$28 -> 1605.830067 | K156: ='Hipotecario (Pesos)'!G156/Inversion!$C$28 -> 1631.724792 | L156: ='Hipotecario (Pesos)'!E156/Inversion!$C$28 -> 3237.554859 | M156: ='Hipotecario (Pesos)'!H156/Inversion!$C$28 -> 207020.2231 | O156: =O155*(1+Inversion!$C$27) -> 782.4519363
A157: =IF(A156<Inversion!$C$23,A156+1,"-") -> 152 | B157: =IF(A157<>"-",DATE(YEAR(Inversion!$C$7),MONTH(Inversion!$C$7)+A157,DAY(Inversion!$C$7)),"-") -> 2038-03-10 | C157: ='Hipotecario (Pesos)'!C157 -> 77810517.55 | D157: 1272476.016 | E157: 1273085.683 | F157: 2545561.698 | G157: 161499360.7 | I157: 205401.8334 | J157: ='Hipotecario (Pesos)'!F157/Inversion!$C$28 -> 1618.389729 | K157: ='Hipotecario (Pesos)'!G157/Inversion!$C$28 -> 1619.16513 | L157: ='Hipotecario (Pesos)'!E157/Inversion!$C$28 -> 3237.554859 | M157: ='Hipotecario (Pesos)'!H157/Inversion!$C$28 -> 205401.8334 | O157: =O156*(1+Inversion!$C$27) -> 786.2605606
A158: =IF(A157<Inversion!$C$23,A157+1,"-") -> 153 | B158: =IF(A158<>"-",DATE(YEAR(Inversion!$C$7),MONTH(Inversion!$C$7)+A158,DAY(Inversion!$C$7)),"-") -> 2038-04-10 | C158: ='Hipotecario (Pesos)'!C158 -> 77202230.39 | D158: 1288670.704 | E158: 1269281.644 | F158: 2557952.349 | G158: 160996796.3 | I158: 203770.7858 | J158: ='Hipotecario (Pesos)'!F158/Inversion!$C$28 -> 1631.047624 | K158: ='Hipotecario (Pesos)'!G158/Inversion!$C$28 -> 1606.507235 | L158: ='Hipotecario (Pesos)'!E158/Inversion!$C$28 -> 3237.554859 | M158: ='Hipotecario (Pesos)'!H158/Inversion!$C$28 -> 203770.7858 | O158: =O157*(1+Inversion!$C$27) -> 790.0877237
A159: =IF(A158<Inversion!$C$23,A158+1,"-") -> 154 | B159: =IF(A159<>"-",DATE(YEAR(Inversion!$C$7),MONTH(Inversion!$C$7)+A159,DAY(Inversion!$C$7)),"-") -> 2038-05-10 | C159: ='Hipotecario (Pesos)'!C159 -> 76589185.65 | D159: 1305071.501 | E159: 1265331.81 | F159: 2570403.311 | G159: 160475384.8 | I159: 202126.9812 | J159: ='Hipotecario (Pesos)'!F159/Inversion!$C$28 -> 1643.80452 | K159: ='Hipotecario (Pesos)'!G159/Inversion!$C$28 -> 1593.750339 | L159: ='Hipotecario (Pesos)'!E159/Inversion!$C$28 -> 3237.554859 | M159: ='Hipotecario (Pesos)'!H159/Inversion!$C$28 -> 202126.9812 | O159: =O158*(1+Inversion!$C$27) -> 793.9335156
A160: =IF(A159<Inversion!$C$23,A159+1,"-") -> 155 | B160: =IF(A160<>"-",DATE(YEAR(Inversion!$C$7),MONTH(Inversion!$C$7)+A160,DAY(Inversion!$C$7)),"-") -> 2038-06-10 | C160: ='Hipotecario (Pesos)'!C160 -> 75971346.1 | D160: 1321681.03 | E160: 1261233.849 | F160: 2582914.879 | G160: 159934825.8 | I160: 200470.32 | J160: ='Hipotecario (Pesos)'!F160/Inversion!$C$28 -> 1656.661191 | K160: ='Hipotecario (Pesos)'!G160/Inversion!$C$28 -> 1580.893668 | L160: ='Hipotecario (Pesos)'!E160/Inversion!$C$28 -> 3237.554859 | M160: ='Hipotecario (Pesos)'!H160/Inversion!$C$28 -> 200470.32 | O160: =O159*(1+Inversion!$C$27) -> 797.7980272
A161: =IF(A160<Inversion!$C$23,A160+1,"-") -> 156 | B161: =IF(A161<>"-",DATE(YEAR(Inversion!$C$7),MONTH(Inversion!$C$7)+A161,DAY(Inversion!$C$7)),"-") -> 2038-07-10 | C161: ='Hipotecario (Pesos)'!C161 -> 75348674.26 | D161: 1338501.946 | E161: 1256985.401 | F161: 2595487.348 | G161: 159374814.7 | I161: 198800.7016 | J161: ='Hipotecario (Pesos)'!F161/Inversion!$C$28 -> 1669.618418 | K161: ='Hipotecario (Pesos)'!G161/Inversion!$C$28 -> 1567.936441 | L161: ='Hipotecario (Pesos)'!E161/Inversion!$C$28 -> 3237.554859 | M161: ='Hipotecario (Pesos)'!H161/Inversion!$C$28 -> 198800.7016 | O161: =O160*(1+Inversion!$C$27) -> 801.6813494
A162: =IF(A161<Inversion!$C$23,A161+1,"-") -> 157 | B162: =IF(A162<>"-",DATE(YEAR(Inversion!$C$7),MONTH(Inversion!$C$7)+A162,DAY(Inversion!$C$7)),"-") -> 2038-08-10 | C162: ='Hipotecario (Pesos)'!C162 -> 74721132.31 | D162: 1355536.941 | E162: 1252584.073 | F162: 2608121.014 | G162: 158795042.8 | I162: 197118.0246 | J162: ='Hipotecario (Pesos)'!F162/Inversion!$C$28 -> 1682.676987 | K162: ='Hipotecario (Pesos)'!G162/Inversion!$C$28 -> 1554.877871 | L162: ='Hipotecario (Pesos)'!E162/Inversion!$C$28 -> 3237.554859 | M162: ='Hipotecario (Pesos)'!H162/Inversion!$C$28 -> 197118.0246 | O162: =O161*(1+Inversion!$C$27) -> 805.5835739
A163: =IF(A162<Inversion!$C$23,A162+1,"-") -> 158 | B163: =IF(A163<>"-",DATE(YEAR(Inversion!$C$7),MONTH(Inversion!$C$7)+A163,DAY(Inversion!$C$7)),"-") -> 2038-09-10 | C163: ='Hipotecario (Pesos)'!C163 -> 74088682.18 | D163: 1372788.739 | E163: 1248027.436 | F163: 2620816.175 | G163: 158195196.9 | I163: 195422.1869 | J163: ='Hipotecario (Pesos)'!F163/Inversion!$C$28 -> 1695.837691 | K163: ='Hipotecario (Pesos)'!G163/Inversion!$C$28 -> 1541.717167 | L163: ='Hipotecario (Pesos)'!E163/Inversion!$C$28 -> 3237.554859 | M163: ='Hipotecario (Pesos)'!H163/Inversion!$C$28 -> 195422.1869 | O163: =O162*(1+Inversion!$C$27) -> 809.5047927
A164: =IF(A163<Inversion!$C$23,A163+1,"-") -> 159 | B164: =IF(A164<>"-",DATE(YEAR(Inversion!$C$7),MONTH(Inversion!$C$7)+A164,DAY(Inversion!$C$7)),"-") -> 2038-10-10 | C164: ='Hipotecario (Pesos)'!C164 -> 73451285.47 | D164: 1390260.099 | E164: 1243313.031 | F164: 2633573.13 | G164: 157574959.9 | I164: 193713.0856 | J164: ='Hipotecario (Pesos)'!F164/Inversion!$C$28 -> 1709.101329 | K164: ='Hipotecario (Pesos)'!G164/Inversion!$C$28 -> 1528.453529 | L164: ='Hipotecario (Pesos)'!E164/Inversion!$C$28 -> 3237.554859 | M164: ='Hipotecario (Pesos)'!H164/Inversion!$C$28 -> 193713.0856 | O164: =O163*(1+Inversion!$C$27) -> 813.4450982
A165: =IF(A164<Inversion!$C$23,A164+1,"-") -> 160 | B165: =IF(A165<>"-",DATE(YEAR(Inversion!$C$7),MONTH(Inversion!$C$7)+A165,DAY(Inversion!$C$7)),"-") -> 2038-11-10 | C165: ='Hipotecario (Pesos)'!C165 -> 72808903.5 | D165: 1407953.815 | E165: 1238438.366 | F165: 2646392.18 | G165: 156934010.2 | I165: 191990.6169 | J165: ='Hipotecario (Pesos)'!F165/Inversion!$C$28 -> 1722.468706 | K165: ='Hipotecario (Pesos)'!G165/Inversion!$C$28 -> 1515.086153 | L165: ='Hipotecario (Pesos)'!E165/Inversion!$C$28 -> 3237.554859 | M165: ='Hipotecario (Pesos)'!H165/Inversion!$C$28 -> 191990.6169 | O165: =O164*(1+Inversion!$C$27) -> 817.4045833
A166: =IF(A165<Inversion!$C$23,A165+1,"-") -> 161 | B166: =IF(A166<>"-",DATE(YEAR(Inversion!$C$7),MONTH(Inversion!$C$7)+A166,DAY(Inversion!$C$7)),"-") -> 2038-12-10 | C166: ='Hipotecario (Pesos)'!C166 -> 72161497.28 | D166: 1425872.717 | E166: 1233400.911 | F166: 2659273.628 | G166: 156272021.7 | I166: 190254.6763 | J166: ='Hipotecario (Pesos)'!F166/Inversion!$C$28 -> 1735.940632 | K166: ='Hipotecario (Pesos)'!G166/Inversion!$C$28 -> 1501.614226 | L166: ='Hipotecario (Pesos)'!E166/Inversion!$C$28 -> 3237.554859 | M166: ='Hipotecario (Pesos)'!H166/Inversion!$C$28 -> 190254.6763 | O166: =O165*(1+Inversion!$C$27) -> 821.3833415
A167: =IF(A166<Inversion!$C$23,A166+1,"-") -> 162 | B167: =IF(A167<>"-",DATE(YEAR(Inversion!$C$7),MONTH(Inversion!$C$7)+A167,DAY(Inversion!$C$7)),"-") -> 2039-01-10 | C167: ='Hipotecario (Pesos)'!C167 -> 71509027.5 | D167: 1444019.672 | E167: 1228198.105 | F167: 2672217.777 | G167: 155588664 | I167: 188505.1583 | J167: ='Hipotecario (Pesos)'!F167/Inversion!$C$28 -> 1749.517927 | K167: ='Hipotecario (Pesos)'!G167/Inversion!$C$28 -> 1488.036932 | L167: ='Hipotecario (Pesos)'!E167/Inversion!$C$28 -> 3237.554859 | M167: ='Hipotecario (Pesos)'!H167/Inversion!$C$28 -> 188505.1583 | O167: =O166*(1+Inversion!$C$27) -> 825.3814664
A168: =IF(A167<Inversion!$C$23,A167+1,"-") -> 163 | B168: =IF(A168<>"-",DATE(YEAR(Inversion!$C$7),MONTH(Inversion!$C$7)+A168,DAY(Inversion!$C$7)),"-") -> 2039-02-10 | C168: ='Hipotecario (Pesos)'!C168 -> 70851454.56 | D168: 1462397.582 | E168: 1222827.35 | F168: 2685224.932 | G168: 154883602.1 | I168: 186741.9569 | J168: ='Hipotecario (Pesos)'!F168/Inversion!$C$28 -> 1763.201413 | K168: ='Hipotecario (Pesos)'!G168/Inversion!$C$28 -> 1474.353445 | L168: ='Hipotecario (Pesos)'!E168/Inversion!$C$28 -> 3237.554859 | M168: ='Hipotecario (Pesos)'!H168/Inversion!$C$28 -> 186741.9569 | O168: =O167*(1+Inversion!$C$27) -> 829.3990525
A169: =IF(A168<Inversion!$C$23,A168+1,"-") -> 164 | B169: =IF(A169<>"-",DATE(YEAR(Inversion!$C$7),MONTH(Inversion!$C$7)+A169,DAY(Inversion!$C$7)),"-") -> 2039-03-10 | C169: ='Hipotecario (Pesos)'!C169 -> 70188738.56 | D169: 1481009.385 | E169: 1217286.015 | F169: 2698295.4 | G169: 154156496.5 | I169: 184964.965 | J169: ='Hipotecario (Pesos)'!F169/Inversion!$C$28 -> 1776.991922 | K169: ='Hipotecario (Pesos)'!G169/Inversion!$C$28 -> 1460.562936 | L169: ='Hipotecario (Pesos)'!E169/Inversion!$C$28 -> 3237.554859 | M169: ='Hipotecario (Pesos)'!H169/Inversion!$C$28 -> 184964.965 | O169: =O168*(1+Inversion!$C$27) -> 833.4361943
A170: =IF(A169<Inversion!$C$23,A169+1,"-") -> 165 | B170: =IF(A170<>"-",DATE(YEAR(Inversion!$C$7),MONTH(Inversion!$C$7)+A170,DAY(Inversion!$C$7)),"-") -> 2039-04-10 | C170: ='Hipotecario (Pesos)'!C170 -> 69520839.27 | D170: 1499858.059 | E170: 1211571.43 | F170: 2711429.489 | G170: 153407003 | I170: 183174.0747 | J170: ='Hipotecario (Pesos)'!F170/Inversion!$C$28 -> 1790.890291 | K170: ='Hipotecario (Pesos)'!G170/Inversion!$C$28 -> 1446.664568 | L170: ='Hipotecario (Pesos)'!E170/Inversion!$C$28 -> 3237.554859 | M170: ='Hipotecario (Pesos)'!H170/Inversion!$C$28 -> 183174.0747 | O170: =O169*(1+Inversion!$C$27) -> 837.4929871
A171: =IF(A170<Inversion!$C$23,A170+1,"-") -> 166 | B171: =IF(A171<>"-",DATE(YEAR(Inversion!$C$7),MONTH(Inversion!$C$7)+A171,DAY(Inversion!$C$7)),"-") -> 2039-05-10 | C171: ='Hipotecario (Pesos)'!C171 -> 68847716.14 | D171: 1518946.619 | E171: 1205680.891 | F171: 2724627.51 | G171: 152634772.7 | I171: 181369.1774 | J171: ='Hipotecario (Pesos)'!F171/Inversion!$C$28 -> 1804.897363 | K171: ='Hipotecario (Pesos)'!G171/Inversion!$C$28 -> 1432.657496 | L171: ='Hipotecario (Pesos)'!E171/Inversion!$C$28 -> 3237.554859 | M171: ='Hipotecario (Pesos)'!H171/Inversion!$C$28 -> 181369.1774 | O171: =O170*(1+Inversion!$C$27) -> 841.5695266
A172: =IF(A171<Inversion!$C$23,A171+1,"-") -> 167 | B172: =IF(A172<>"-",DATE(YEAR(Inversion!$C$7),MONTH(Inversion!$C$7)+A172,DAY(Inversion!$C$7)),"-") -> 2039-06-10 | C172: ='Hipotecario (Pesos)'!C172 -> 68169328.32 | D172: 1538278.117 | E172: 1199611.655 | F172: 2737889.772 | G172: 151839452.1 | I172: 179550.1634 | J172: ='Hipotecario (Pesos)'!F172/Inversion!$C$28 -> 1819.013988 | K172: ='Hipotecario (Pesos)'!G172/Inversion!$C$28 -> 1418.540871 | L172: ='Hipotecario (Pesos)'!E172/Inversion!$C$28 -> 3237.554859 | M172: ='Hipotecario (Pesos)'!H172/Inversion!$C$28 -> 179550.1634 | O172: =O171*(1+Inversion!$C$27) -> 845.6659088
A173: =IF(A172<Inversion!$C$23,A172+1,"-") -> 168 | B173: =IF(A173<>"-",DATE(YEAR(Inversion!$C$7),MONTH(Inversion!$C$7)+A173,DAY(Inversion!$C$7)),"-") -> 2039-07-10 | C173: ='Hipotecario (Pesos)'!C173 -> 67485634.63 | D173: 1557855.645 | E173: 1193360.943 | F173: 2751216.589 | G173: 151020682.6 | I173: 177716.9223 | J173: ='Hipotecario (Pesos)'!F173/Inversion!$C$28 -> 1833.241023 | K173: ='Hipotecario (Pesos)'!G173/Inversion!$C$28 -> 1404.313836 | L173: ='Hipotecario (Pesos)'!E173/Inversion!$C$28 -> 3237.554859 | M173: ='Hipotecario (Pesos)'!H173/Inversion!$C$28 -> 177716.9223 | O173: =O172*(1+Inversion!$C$27) -> 849.7822304
A174: =IF(A173<Inversion!$C$23,A173+1,"-") -> 169 | B174: =IF(A174<>"-",DATE(YEAR(Inversion!$C$7),MONTH(Inversion!$C$7)+A174,DAY(Inversion!$C$7)),"-") -> 2039-08-10 | C174: ='Hipotecario (Pesos)'!C174 -> 66796593.58 | D174: 1577682.335 | E174: 1186925.94 | F174: 2764608.275 | G174: 150178101.1 | I174: 175869.343 | J174: ='Hipotecario (Pesos)'!F174/Inversion!$C$28 -> 1847.579332 | K174: ='Hipotecario (Pesos)'!G174/Inversion!$C$28 -> 1389.975527 | L174: ='Hipotecario (Pesos)'!E174/Inversion!$C$28 -> 3237.554859 | M174: ='Hipotecario (Pesos)'!H174/Inversion!$C$28 -> 175869.343 | O174: =O173*(1+Inversion!$C$27) -> 853.9185883
A175: =IF(A174<Inversion!$C$23,A174+1,"-") -> 170 | B175: =IF(A175<>"-",DATE(YEAR(Inversion!$C$7),MONTH(Inversion!$C$7)+A175,DAY(Inversion!$C$7)),"-") -> 2039-09-10 | C175: ='Hipotecario (Pesos)'!C175 -> 66102163.33 | D175: 1597761.357 | E175: 1180303.788 | F175: 2778065.145 | G175: 149311339.3 | I175: 174007.3132 | J175: ='Hipotecario (Pesos)'!F175/Inversion!$C$28 -> 1862.029785 | K175: ='Hipotecario (Pesos)'!G175/Inversion!$C$28 -> 1375.525073 | L175: ='Hipotecario (Pesos)'!E175/Inversion!$C$28 -> 3237.554859 | M175: ='Hipotecario (Pesos)'!H175/Inversion!$C$28 -> 174007.3132 | O175: =O174*(1+Inversion!$C$27) -> 858.0750802
A176: =IF(A175<Inversion!$C$23,A175+1,"-") -> 171 | B176: =IF(A176<>"-",DATE(YEAR(Inversion!$C$7),MONTH(Inversion!$C$7)+A176,DAY(Inversion!$C$7)),"-") -> 2039-10-10 | C176: ='Hipotecario (Pesos)'!C176 -> 65402301.75 | D176: 1618095.923 | E176: 1173491.594 | F176: 2791587.518 | G176: 148420023.8 | I176: 172130.72 | J176: ='Hipotecario (Pesos)'!F176/Inversion!$C$28 -> 1876.593259 | K176: ='Hipotecario (Pesos)'!G176/Inversion!$C$28 -> 1360.961599 | L176: ='Hipotecario (Pesos)'!E176/Inversion!$C$28 -> 3237.554859 | M176: ='Hipotecario (Pesos)'!H176/Inversion!$C$28 -> 172130.72 | O176: =O175*(1+Inversion!$C$27) -> 862.2518041
A177: =IF(A176<Inversion!$C$23,A176+1,"-") -> 172 | B177: =IF(A177<>"-",DATE(YEAR(Inversion!$C$7),MONTH(Inversion!$C$7)+A177,DAY(Inversion!$C$7)),"-") -> 2039-11-10 | C177: ='Hipotecario (Pesos)'!C177 -> 64696966.34 | D177: 1638689.286 | E177: 1166486.425 | F177: 2805175.711 | G177: 147503776.5 | I177: 170239.4493 | J177: ='Hipotecario (Pesos)'!F177/Inversion!$C$28 -> 1891.270639 | K177: ='Hipotecario (Pesos)'!G177/Inversion!$C$28 -> 1346.28422 | L177: ='Hipotecario (Pesos)'!E177/Inversion!$C$28 -> 3237.554859 | M177: ='Hipotecario (Pesos)'!H177/Inversion!$C$28 -> 170239.4493 | O177: =O176*(1+Inversion!$C$27) -> 866.4488583
A178: =IF(A177<Inversion!$C$23,A177+1,"-") -> 173 | B178: =IF(A178<>"-",DATE(YEAR(Inversion!$C$7),MONTH(Inversion!$C$7)+A178,DAY(Inversion!$C$7)),"-") -> 2039-12-10 | C178: ='Hipotecario (Pesos)'!C178 -> 63986114.31 | D178: 1659544.738 | E178: 1159285.308 | F178: 2818830.046 | G178: 146562213.9 | I178: 168333.3865 | J178: ='Hipotecario (Pesos)'!F178/Inversion!$C$28 -> 1906.062814 | K178: ='Hipotecario (Pesos)'!G178/Inversion!$C$28 -> 1331.492044 | L178: ='Hipotecario (Pesos)'!E178/Inversion!$C$28 -> 3237.554859 | M178: ='Hipotecario (Pesos)'!H178/Inversion!$C$28 -> 168333.3865 | O178: =O177*(1+Inversion!$C$27) -> 870.666342
A179: =IF(A178<Inversion!$C$23,A178+1,"-") -> 174 | B179: =IF(A179<>"-",DATE(YEAR(Inversion!$C$7),MONTH(Inversion!$C$7)+A179,DAY(Inversion!$C$7)),"-") -> 2040-01-10 | C179: ='Hipotecario (Pesos)'!C179 -> 63269702.49 | D179: 1680665.616 | E179: 1151885.228 | F179: 2832550.843 | G179: 145594947.2 | I179: 166412.4158 | J179: ='Hipotecario (Pesos)'!F179/Inversion!$C$28 -> 1920.970684 | K179: ='Hipotecario (Pesos)'!G179/Inversion!$C$28 -> 1316.584175 | L179: ='Hipotecario (Pesos)'!E179/Inversion!$C$28 -> 3237.554859 | M179: ='Hipotecario (Pesos)'!H179/Inversion!$C$28 -> 166412.4158 | O179: =O178*(1+Inversion!$C$27) -> 874.9043544
A180: =IF(A179<Inversion!$C$23,A179+1,"-") -> 175 | B180: =IF(A180<>"-",DATE(YEAR(Inversion!$C$7),MONTH(Inversion!$C$7)+A180,DAY(Inversion!$C$7)),"-") -> 2040-02-10 | C180: ='Hipotecario (Pesos)'!C180 -> 62547687.41 | D180: 1702055.297 | E180: 1144283.131 | F180: 2846338.428 | G180: 144601582.7 | I180: 164476.4207 | J180: ='Hipotecario (Pesos)'!F180/Inversion!$C$28 -> 1935.995152 | K180: ='Hipotecario (Pesos)'!G180/Inversion!$C$28 -> 1301.559707 | L180: ='Hipotecario (Pesos)'!E180/Inversion!$C$28 -> 3237.554859 | M180: ='Hipotecario (Pesos)'!H180/Inversion!$C$28 -> 164476.4207 | O180: =O179*(1+Inversion!$C$27) -> 879.1629956
A181: =IF(A180<Inversion!$C$23,A180+1,"-") -> 176 | B181: =IF(A181<>"-",DATE(YEAR(Inversion!$C$7),MONTH(Inversion!$C$7)+A181,DAY(Inversion!$C$7)),"-") -> 2040-03-10 | C181: ='Hipotecario (Pesos)'!C181 -> 61820025.24 | D181: 1723717.203 | E181: 1136475.921 | F181: 2860193.124 | G181: 143581721 | I181: 162525.2836 | J181: ='Hipotecario (Pesos)'!F181/Inversion!$C$28 -> 1951.137131 | K181: ='Hipotecario (Pesos)'!G181/Inversion!$C$28 -> 1286.417728 | L181: ='Hipotecario (Pesos)'!E181/Inversion!$C$28 -> 3237.554859 | M181: ='Hipotecario (Pesos)'!H181/Inversion!$C$28 -> 162525.2836 | O181: =O180*(1+Inversion!$C$27) -> 883.4423659
A182: =IF(A181<Inversion!$C$23,A181+1,"-") -> 177 | B182: =IF(A182<>"-",DATE(YEAR(Inversion!$C$7),MONTH(Inversion!$C$7)+A182,DAY(Inversion!$C$7)),"-") -> 2040-04-10 | C182: ='Hipotecario (Pesos)'!C182 -> 61086671.81 | D182: 1745654.798 | E182: 1128460.461 | F182: 2874115.259 | G182: 142534957.5 | I182: 160558.886 | J182: ='Hipotecario (Pesos)'!F182/Inversion!$C$28 -> 1966.397539 | K182: ='Hipotecario (Pesos)'!G182/Inversion!$C$28 -> 1271.157319 | L182: ='Hipotecario (Pesos)'!E182/Inversion!$C$28 -> 3237.554859 | M182: ='Hipotecario (Pesos)'!H182/Inversion!$C$28 -> 160558.886 | O182: =O181*(1+Inversion!$C$27) -> 887.7425663
A183: =IF(A182<Inversion!$C$23,A182+1,"-") -> 178 | B183: =IF(A183<>"-",DATE(YEAR(Inversion!$C$7),MONTH(Inversion!$C$7)+A183,DAY(Inversion!$C$7)),"-") -> 2040-05-10 | C183: ='Hipotecario (Pesos)'!C183 -> 60347582.62 | D183: 1767871.591 | E183: 1120233.569 | F183: 2888105.16 | G183: 141460882 | I183: 158577.1087 | J183: ='Hipotecario (Pesos)'!F183/Inversion!$C$28 -> 1981.777304 | K183: ='Hipotecario (Pesos)'!G183/Inversion!$C$28 -> 1255.777554 | L183: ='Hipotecario (Pesos)'!E183/Inversion!$C$28 -> 3237.554859 | M183: ='Hipotecario (Pesos)'!H183/Inversion!$C$28 -> 158577.1087 | O183: =O182*(1+Inversion!$C$27) -> 892.0636982
A184: =IF(A183<Inversion!$C$23,A183+1,"-") -> 179 | B184: =IF(A184<>"-",DATE(YEAR(Inversion!$C$7),MONTH(Inversion!$C$7)+A184,DAY(Inversion!$C$7)),"-") -> 2040-06-10 | C184: ='Hipotecario (Pesos)'!C184 -> 59602712.79 | D184: 1790371.135 | E184: 1111792.023 | F184: 2902163.158 | G184: 140359078.9 | I184: 156579.8314 | J184: ='Hipotecario (Pesos)'!F184/Inversion!$C$28 -> 1997.277358 | K184: ='Hipotecario (Pesos)'!G184/Inversion!$C$28 -> 1240.2775 | L184: ='Hipotecario (Pesos)'!E184/Inversion!$C$28 -> 3237.554859 | M184: ='Hipotecario (Pesos)'!H184/Inversion!$C$28 -> 156579.8314 | O184: =O183*(1+Inversion!$C$27) -> 896.4058633
A185: =IF(A184<Inversion!$C$23,A184+1,"-") -> 180 | B185: =IF(A185<>"-",DATE(YEAR(Inversion!$C$7),MONTH(Inversion!$C$7)+A185,DAY(Inversion!$C$7)),"-") -> 2040-07-10 | C185: ='Hipotecario (Pesos)'!C185 -> 58852017.12 | D185: 1813157.028 | E185: 1103132.556 | F185: 2916289.584 | G185: 139229126.8 | I185: 154566.9327 | J185: ='Hipotecario (Pesos)'!F185/Inversion!$C$28 -> 2012.898643 | K185: ='Hipotecario (Pesos)'!G185/Inversion!$C$28 -> 1224.656215 | L185: ='Hipotecario (Pesos)'!E185/Inversion!$C$28 -> 3237.554859 | M185: ='Hipotecario (Pesos)'!H185/Inversion!$C$28 -> 154566.9327 | O185: =O184*(1+Inversion!$C$27) -> 900.7691642
A186: =IF(A185<Inversion!$C$23,A185+1,"-") -> 181 | B186: =IF(A186<>"-",DATE(YEAR(Inversion!$C$7),MONTH(Inversion!$C$7)+A186,DAY(Inversion!$C$7)),"-") -> 2040-08-10 | C186: ='Hipotecario (Pesos)'!C186 -> 58095450.04 | D186: 1836232.916 | E186: 1094251.855 | F186: 2930484.771 | G186: 138070598.7 | I186: 152538.2906 | J186: ='Hipotecario (Pesos)'!F186/Inversion!$C$28 -> 2028.642107 | K186: ='Hipotecario (Pesos)'!G186/Inversion!$C$28 -> 1208.912752 | L186: ='Hipotecario (Pesos)'!E186/Inversion!$C$28 -> 3237.554859 | M186: ='Hipotecario (Pesos)'!H186/Inversion!$C$28 -> 152538.2906 | O186: =O185*(1+Inversion!$C$27) -> 905.1537036
A187: =IF(A186<Inversion!$C$23,A186+1,"-") -> 182 | B187: =IF(A187<>"-",DATE(YEAR(Inversion!$C$7),MONTH(Inversion!$C$7)+A187,DAY(Inversion!$C$7)),"-") -> 2040-09-10 | C187: ='Hipotecario (Pesos)'!C187 -> 57332965.64 | D187: 1859602.488 | E187: 1085146.565 | F187: 2944749.054 | G187: 136883061.8 | I187: 150493.7819 | J187: ='Hipotecario (Pesos)'!F187/Inversion!$C$28 -> 2044.508704 | K187: ='Hipotecario (Pesos)'!G187/Inversion!$C$28 -> 1193.046155 | L187: ='Hipotecario (Pesos)'!E187/Inversion!$C$28 -> 3237.554859 | M187: ='Hipotecario (Pesos)'!H187/Inversion!$C$28 -> 150493.7819 | O187: =O186*(1+Inversion!$C$27) -> 909.5595851
A188: =IF(A187<Inversion!$C$23,A187+1,"-") -> 183 | B188: =IF(A188<>"-",DATE(YEAR(Inversion!$C$7),MONTH(Inversion!$C$7)+A188,DAY(Inversion!$C$7)),"-") -> 2040-10-10 | C188: ='Hipotecario (Pesos)'!C188 -> 56564517.62 | D188: 1883269.483 | E188: 1075813.285 | F188: 2959082.769 | G188: 135666077.6 | I188: 148433.2825 | J188: ='Hipotecario (Pesos)'!F188/Inversion!$C$28 -> 2060.499399 | K188: ='Hipotecario (Pesos)'!G188/Inversion!$C$28 -> 1177.05546 | L188: ='Hipotecario (Pesos)'!E188/Inversion!$C$28 -> 3237.554859 | M188: ='Hipotecario (Pesos)'!H188/Inversion!$C$28 -> 148433.2825 | O188: =O187*(1+Inversion!$C$27) -> 913.9869123
A189: =IF(A188<Inversion!$C$23,A188+1,"-") -> 184 | B189: =IF(A189<>"-",DATE(YEAR(Inversion!$C$7),MONTH(Inversion!$C$7)+A189,DAY(Inversion!$C$7)),"-") -> 2040-11-10 | C189: ='Hipotecario (Pesos)'!C189 -> 55790059.34 | D189: 1907237.686 | E189: 1066248.568 | F189: 2973486.254 | G189: 134419201.4 | I189: 146356.6673 | J189: ='Hipotecario (Pesos)'!F189/Inversion!$C$28 -> 2076.615161 | K189: ='Hipotecario (Pesos)'!G189/Inversion!$C$28 -> 1160.939697 | L189: ='Hipotecario (Pesos)'!E189/Inversion!$C$28 -> 3237.554859 | M189: ='Hipotecario (Pesos)'!H189/Inversion!$C$28 -> 146356.6673 | O189: =O188*(1+Inversion!$C$27) -> 918.4357898
A190: =IF(A189<Inversion!$C$23,A189+1,"-") -> 185 | B190: =IF(A190<>"-",DATE(YEAR(Inversion!$C$7),MONTH(Inversion!$C$7)+A190,DAY(Inversion!$C$7)),"-") -> 2040-12-10 | C190: ='Hipotecario (Pesos)'!C190 -> 55009543.81 | D190: 1931510.93 | E190: 1056448.919 | F190: 2987959.848 | G190: 133141982.7 | I190: 144263.8104 | J190: ='Hipotecario (Pesos)'!F190/Inversion!$C$28 -> 2092.85697 | K190: ='Hipotecario (Pesos)'!G190/Inversion!$C$28 -> 1144.697888 | L190: ='Hipotecario (Pesos)'!E190/Inversion!$C$28 -> 3237.554859 | M190: ='Hipotecario (Pesos)'!H190/Inversion!$C$28 -> 144263.8104 | O190: =O189*(1+Inversion!$C$27) -> 922.9063225
A191: =IF(A190<Inversion!$C$23,A190+1,"-") -> 186 | B191: =IF(A191<>"-",DATE(YEAR(Inversion!$C$7),MONTH(Inversion!$C$7)+A191,DAY(Inversion!$C$7)),"-") -> 2041-01-10 | C191: ='Hipotecario (Pesos)'!C191 -> 54222923.63 | D191: 1956093.097 | E191: 1046410.797 | F191: 3002503.894 | G191: 131833964.9 | I191: 142154.5846 | J191: ='Hipotecario (Pesos)'!F191/Inversion!$C$28 -> 2109.225811 | K191: ='Hipotecario (Pesos)'!G191/Inversion!$C$28 -> 1128.329048 | L191: ='Hipotecario (Pesos)'!E191/Inversion!$C$28 -> 3237.554859 | M191: ='Hipotecario (Pesos)'!H191/Inversion!$C$28 -> 142154.5846 | O191: =O190*(1+Inversion!$C$27) -> 927.3986157
A192: =IF(A191<Inversion!$C$23,A191+1,"-") -> 187 | B192: =IF(A192<>"-",DATE(YEAR(Inversion!$C$7),MONTH(Inversion!$C$7)+A192,DAY(Inversion!$C$7)),"-") -> 2041-02-10 | C192: ='Hipotecario (Pesos)'!C192 -> 53430151.07 | D192: 1980988.119 | E192: 1036130.614 | F192: 3017118.734 | G192: 130494685.3 | I192: 140028.8619 | J192: ='Hipotecario (Pesos)'!F192/Inversion!$C$28 -> 2125.722677 | K192: ='Hipotecario (Pesos)'!G192/Inversion!$C$28 -> 1111.832182 | L192: ='Hipotecario (Pesos)'!E192/Inversion!$C$28 -> 3237.554859 | M192: ='Hipotecario (Pesos)'!H192/Inversion!$C$28 -> 140028.8619 | O192: =O191*(1+Inversion!$C$27) -> 931.9127753
A193: =IF(A192<Inversion!$C$23,A192+1,"-") -> 188 | B193: =IF(A193<>"-",DATE(YEAR(Inversion!$C$7),MONTH(Inversion!$C$7)+A193,DAY(Inversion!$C$7)),"-") -> 2041-03-10 | C193: ='Hipotecario (Pesos)'!C193 -> 52631178.01 | D193: 2006199.978 | E193: 1025604.733 | F193: 3031804.712 | G193: 129123674.8 | I193: 137886.5133 | J193: ='Hipotecario (Pesos)'!F193/Inversion!$C$28 -> 2142.34857 | K193: ='Hipotecario (Pesos)'!G193/Inversion!$C$28 -> 1095.206289 | L193: ='Hipotecario (Pesos)'!E193/Inversion!$C$28 -> 3237.554859 | M193: ='Hipotecario (Pesos)'!H193/Inversion!$C$28 -> 137886.5133 | O193: =O192*(1+Inversion!$C$27) -> 936.4489079
A194: =IF(A193<Inversion!$C$23,A193+1,"-") -> 189 | B194: =IF(A194<>"-",DATE(YEAR(Inversion!$C$7),MONTH(Inversion!$C$7)+A194,DAY(Inversion!$C$7)),"-") -> 2041-04-10 | C194: ='Hipotecario (Pesos)'!C194 -> 51825955.95 | D194: 2031732.706 | E194: 1014829.468 | F194: 3046562.174 | G194: 127720458.1 | I194: 135727.4088 | J194: ='Hipotecario (Pesos)'!F194/Inversion!$C$28 -> 2159.104498 | K194: ='Hipotecario (Pesos)'!G194/Inversion!$C$28 -> 1078.45036 | L194: ='Hipotecario (Pesos)'!E194/Inversion!$C$28 -> 3237.554859 | M194: ='Hipotecario (Pesos)'!H194/Inversion!$C$28 -> 135727.4088 | O194: =O193*(1+Inversion!$C$27) -> 941.0071203
A195: =IF(A194<Inversion!$C$23,A194+1,"-") -> 190 | B195: =IF(A195<>"-",DATE(YEAR(Inversion!$C$7),MONTH(Inversion!$C$7)+A195,DAY(Inversion!$C$7)),"-") -> 2041-05-10 | C195: ='Hipotecario (Pesos)'!C195 -> 51014436.01 | D195: 2057590.387 | E195: 1003801.083 | F195: 3061391.47 | G195: 126284553.5 | I195: 133551.4173 | J195: ='Hipotecario (Pesos)'!F195/Inversion!$C$28 -> 2175.99148 | K195: ='Hipotecario (Pesos)'!G195/Inversion!$C$28 -> 1061.563379 | L195: ='Hipotecario (Pesos)'!E195/Inversion!$C$28 -> 3237.554859 | M195: ='Hipotecario (Pesos)'!H195/Inversion!$C$28 -> 133551.4173 | O195: =O194*(1+Inversion!$C$27) -> 945.58752
A196: =IF(A195<Inversion!$C$23,A195+1,"-") -> 191 | B196: =IF(A196<>"-",DATE(YEAR(Inversion!$C$7),MONTH(Inversion!$C$7)+A196,DAY(Inversion!$C$7)),"-") -> 2041-06-10 | C196: ='Hipotecario (Pesos)'!C196 -> 50196568.94 | D196: 2083777.156 | E196: 992515.7912 | F196: 3076292.948 | G196: 124815472.8 | I196: 131358.4068 | J196: ='Hipotecario (Pesos)'!F196/Inversion!$C$28 -> 2193.01054 | K196: ='Hipotecario (Pesos)'!G196/Inversion!$C$28 -> 1044.544319 | L196: ='Hipotecario (Pesos)'!E196/Inversion!$C$28 -> 3237.554859 | M196: ='Hipotecario (Pesos)'!H196/Inversion!$C$28 -> 131358.4068 | O196: =O195*(1+Inversion!$C$27) -> 950.1902151
A197: =IF(A196<Inversion!$C$23,A196+1,"-") -> 192 | B197: =IF(A197<>"-",DATE(YEAR(Inversion!$C$7),MONTH(Inversion!$C$7)+A197,DAY(Inversion!$C$7)),"-") -> 2041-07-10 | C197: ='Hipotecario (Pesos)'!C197 -> 49372305.1 | D197: 2110297.202 | E197: 980969.7568 | F197: 3091266.959 | G197: 123312721.2 | I197: 129148.2441 | J197: ='Hipotecario (Pesos)'!F197/Inversion!$C$28 -> 2210.16271 | K197: ='Hipotecario (Pesos)'!G197/Inversion!$C$28 -> 1027.392148 | L197: ='Hipotecario (Pesos)'!E197/Inversion!$C$28 -> 3237.554859 | M197: ='Hipotecario (Pesos)'!H197/Inversion!$C$28 -> 129148.2441 | O197: =O196*(1+Inversion!$C$27) -> 954.815314
A198: =IF(A197<Inversion!$C$23,A197+1,"-") -> 193 | B198: =IF(A198<>"-",DATE(YEAR(Inversion!$C$7),MONTH(Inversion!$C$7)+A198,DAY(Inversion!$C$7)),"-") -> 2041-08-10 | C198: ='Hipotecario (Pesos)'!C198 -> 48541594.45 | D198: =J198*O198 -> 2137154.766 | E198: =K198*O198 -> 969159.0909 | F198: =L198*O198 -> 3106313.857 | G198: =M198*O198 -> 121775797.4 | I198: 126920.7951 | J198: ='Hipotecario (Pesos)'!F198/Inversion!$C$28 -> 2227.449033 | K198: ='Hipotecario (Pesos)'!G198/Inversion!$C$28 -> 1010.105826 | L198: ='Hipotecario (Pesos)'!E198/Inversion!$C$28 -> 3237.554859 | M198: ='Hipotecario (Pesos)'!H198/Inversion!$C$28 -> 126920.7951 | O198: =O197*(1+Inversion!$C$27) -> 959.4629259
A199: =IF(A198<Inversion!$C$23,A198+1,"-") -> 194 | B199: =IF(A199<>"-",DATE(YEAR(Inversion!$C$7),MONTH(Inversion!$C$7)+A199,DAY(Inversion!$C$7)),"-") -> 2041-09-10 | C199: ='Hipotecario (Pesos)'!C199 -> 47704386.57 | D199: 2164354.144 | E199: 957079.8527 | F199: 3121433.997 | G199: 120204193.1 | I199: 124675.9245 | J199: ='Hipotecario (Pesos)'!F199/Inversion!$C$28 -> 2244.870557 | K199: ='Hipotecario (Pesos)'!G199/Inversion!$C$28 -> 992.6843016 | L199: ='Hipotecario (Pesos)'!E199/Inversion!$C$28 -> 3237.554859 | M199: ='Hipotecario (Pesos)'!H199/Inversion!$C$28 -> 124675.9245 | O199: =O198*(1+Inversion!$C$27) -> 964.1331602
A200: =IF(A199<Inversion!$C$23,A199+1,"-") -> 195 | B200: =IF(A200<>"-",DATE(YEAR(Inversion!$C$7),MONTH(Inversion!$C$7)+A200,DAY(Inversion!$C$7)),"-") -> 2041-10-10 | C200: ='Hipotecario (Pesos)'!C200 -> 46860630.64 | D200: 2191899.686 | E200: 944728.0485 | F200: 3136627.735 | G200: 118597393.4 | I200: =I199-J200 -> 122413.4962 | J200: ='Hipotecario (Pesos)'!F200/Inversion!$C$28 -> 2262.42834 | K200: ='Hipotecario (Pesos)'!G200/Inversion!$C$28 -> 975.1265187 | L200: ='Hipotecario (Pesos)'!E200/Inversion!$C$28 -> 3237.554859 | M200: ='Hipotecario (Pesos)'!H200/Inversion!$C$28 -> 122413.4962 | O200: =O199*(1+Inversion!$C$27) -> 968.8261271
A201: =IF(A200<Inversion!$C$23,A200+1,"-") -> 196 | B201: =IF(A201<>"-",DATE(YEAR(Inversion!$C$7),MONTH(Inversion!$C$7)+A201,DAY(Inversion!$C$7)),"-") -> 2041-11-10 | C201: ='Hipotecario (Pesos)'!C201 -> 46010275.46 | D201: 2219795.798 | E201: 932099.6309 | F201: 3151895.429 | G201: 116954876.4 | I201: 120133.3727 | J201: ='Hipotecario (Pesos)'!F201/Inversion!$C$28 -> 2280.123447 | K201: ='Hipotecario (Pesos)'!G201/Inversion!$C$28 -> 957.4314113 | L201: ='Hipotecario (Pesos)'!E201/Inversion!$C$28 -> 3237.554859 | M201: ='Hipotecario (Pesos)'!H201/Inversion!$C$28 -> 120133.3727 | O201: =O200*(1+Inversion!$C$27) -> 973.5419372
A202: =IF(A201<Inversion!$C$23,A201+1,"-") -> 197 | B202: =IF(A202<>"-",DATE(YEAR(Inversion!$C$7),MONTH(Inversion!$C$7)+A202,DAY(Inversion!$C$7)),"-") -> 2041-12-10 | C202: ='Hipotecario (Pesos)'!C202 -> 45153269.4 | D202: 2248046.941 | E202: 919190.4983 | F202: 3167237.439 | G202: 115276113.2 | I202: 117835.4158 | J202: ='Hipotecario (Pesos)'!F202/Inversion!$C$28 -> 2297.956953 | K202: ='Hipotecario (Pesos)'!G202/Inversion!$C$28 -> 939.5979054 | L202: ='Hipotecario (Pesos)'!E202/Inversion!$C$28 -> 3237.554859 | M202: ='Hipotecario (Pesos)'!H202/Inversion!$C$28 -> 117835.4158 | O202: =O201*(1+Inversion!$C$27) -> 978.2807018
... 165 more rows

Sheet Leasing H. (Pesos) (hidden)
A1: Leasing H. (Pesos) - Cuota Fija Esta es una simulación, los datos son aproximados
I3: Calculo Leasing | O3: Opcion de compra
A4: Mes | C4: Saldo inicial | D4: Cuota mensual sin seguros | E4: Capital mensual | F4: Intereses mensual | G4: Saldo final | I4: Saldo inicial | J4: Cuota mensual sin seguros | K4: Cuota parte financiada | L4: Capital mensual | M4: Intereses mensual parte financiada | N4: Saldo final | O4: Intereses mensual | P4: Saldo mensual
A5: 0 | B5: =IF(A5<>"-",DATE(YEAR(Inversion!$C$7),MONTH(Inversion!$C$7)+A5,DAY(Inversion!$C$7)),"-") -> 2025-07-10 | C5: 0 | D5: 0 | E5: 0 | F5: 0 | G5: 0 | I5: 0 | J5: 0 | K5: 0 | L5: 0 | M5: 0 | N5: =Inversion!C18-(Inversion!C18*Inversion!C25) -> 131600000 | O5: =#REF!-(#REF!*#REF!) ->  | P5: 0
A6: =IF(A5<Inversion!$C$23,A5+1,"-") -> 1 | B6: =IF(A6<>"-",DATE(YEAR(Inversion!$C$7),MONTH(Inversion!$C$7)+A6,DAY(Inversion!$C$7)),"-") -> 2025-08-10 | C6: =I6+P6 -> 131600000 | D6: =J6 -> 1216865.75 | E6: =L6 -> 187584.0315 | F6: =M6+O6 -> 1029281.719 | G6: =N6+P6 -> 131412416 | I6: =N5 -> 131600000 | J6: =K6+O6 -> 1216865.75 | K6: =PMT(Inversion!$C$22,Inversion!$C$23,-(Inversion!$C$18-(Inversion!$C$18*Inversion!$C$25))) -> 1216865.75 | L6: =IF(A6>Inversion!$C$23,0,(K6-M6)) -> 187584.0315 | M6: =(Inversion!$C$18-(Inversion!$C$18*Inversion!$C$25))*Inversion!$C$22 -> 1029281.719 | N6: =N5-L6 -> 131412416 | O6: =IF(I6=0,0,P6*Inversion!$C$22) -> 0 | P6: =IF(I6=0,0,Inversion!$C$18*Inversion!$C$25) -> 0
A7: =IF(A6<Inversion!$C$23,A6+1,"-") -> 2 | B7: =IF(A7<>"-",DATE(YEAR(Inversion!$C$7),MONTH(Inversion!$C$7)+A7,DAY(Inversion!$C$7)),"-") -> 2025-09-10 | C7: 131412416 | D7: =J7 -> 1216865.75 | E7: =L7 -> 189051.1806 | F7: =M7+O7 -> 1027814.57 | G7: =N7+P7 -> 131223364.8 | I7: =N6 -> 131412416 | J7: 1216865.75 | K7: =IF(N6<K6,(N6+M7),IF(N6<=0.01,0,K6)) -> 1216865.75 | L7: =IF(A7>Inversion!$C$23,0,(K7-M7)) -> 189051.1806 | M7: =IF(N6<=0.01,0,N6*Inversion!$C$22) -> 1027814.57 | N7: =N6-L7 -> 131223364.8 | O7: =IF(I7=0,0,P7*Inversion!$C$22) -> 0 | P7: =IF(I7=0,0,Inversion!$C$18*Inversion!$C$25) -> 0
A8: =IF(A7<Inversion!$C$23,A7+1,"-") -> 3 | B8: =IF(A8<>"-",DATE(YEAR(Inversion!$C$7),MONTH(Inversion!$C$7)+A8,DAY(Inversion!$C$7)),"-") -> 2025-10-10 | C8: 131223364.8 | D8: 1216865.75 | E8: 190529.8046 | F8: 1026335.946 | G8: 131032835 | I8: 131223364.8 | J8: 1216865.75 | K8: =IF(N7<K7,(N7+M8),IF(N7<=0.01,0,K7)) -> 1216865.75 | L8: =IF(A8>Inversion!$C$23,0,(K8-M8)) -> 190529.8046 | M8: =IF(N7<=0.01,0,N7*Inversion!$C$22) -> 1026335.946 | N8: =N7-L8 -> 131032835 | O8: =IF(I8=0,0,P8*Inversion!$C$22) -> 0 | P8: =IF(I8=0,0,Inversion!$C$18*Inversion!$C$25) -> 0
A9: =IF(A8<Inversion!$C$23,A8+1,"-") -> 4 | B9: =IF(A9<>"-",DATE(YEAR(Inversion!$C$7),MONTH(Inversion!$C$7)+A9,DAY(Inversion!$C$7)),"-") -> 2025-11-10 | C9: 131032835 | D9: 1216865.75 | E9: 192019.9934 | F9: 1024845.757 | G9: 130840815 | I9: 131032835 | J9: 1216865.75 | K9: 1216865.75 | L9: =IF(A9>Inversion!$C$23,0,(K9-M9)) -> 192019.9934 | M9: =IF(N8<=0.01,0,N8*Inversion!$C$22) -> 1024845.757 | N9: 130840815 | O9: =IF(I9=0,0,P9*Inversion!$C$22) -> 0 | P9: =IF(I9=0,0,Inversion!$C$18*Inversion!$C$25) -> 0
A10: =IF(A9<Inversion!$C$23,A9+1,"-") -> 5 | B10: =IF(A10<>"-",DATE(YEAR(Inversion!$C$7),MONTH(Inversion!$C$7)+A10,DAY(Inversion!$C$7)),"-") -> 2025-12-10 | C10: 130840815 | D10: 1216865.75 | E10: 193521.8374 | F10: 1023343.913 | G10: 130647293.2 | I10: 130840815 | J10: 1216865.75 | K10: 1216865.75 | L10: =IF(A10>Inversion!$C$23,0,(K10-M10)) -> 193521.8374 | M10: =IF(N9<=0.01,0,N9*Inversion!$C$22) -> 1023343.913 | N10: 130647293.2 | O10: =IF(I10=0,0,P10*Inversion!$C$22) -> 0 | P10: =IF(I10=0,0,Inversion!$C$18*Inversion!$C$25) -> 0
A11: =IF(A10<Inversion!$C$23,A10+1,"-") -> 6 | B11: =IF(A11<>"-",DATE(YEAR(Inversion!$C$7),MONTH(Inversion!$C$7)+A11,DAY(Inversion!$C$7)),"-") -> 2026-01-10 | C11: 130647293.2 | D11: 1216865.75 | E11: 195035.4278 | F11: 1021830.323 | G11: 130452257.7 | I11: 130647293.2 | J11: 1216865.75 | K11: 1216865.75 | L11: =IF(A11>Inversion!$C$23,0,(K11-M11)) -> 195035.4278 | M11: =IF(N10<=0.01,0,N10*Inversion!$C$22) -> 1021830.323 | N11: 130452257.7 | O11: =IF(I11=0,0,P11*Inversion!$C$22) -> 0 | P11: =IF(I11=0,0,Inversion!$C$18*Inversion!$C$25) -> 0
A12: =IF(A11<Inversion!$C$23,A11+1,"-") -> 7 | B12: =IF(A12<>"-",DATE(YEAR(Inversion!$C$7),MONTH(Inversion!$C$7)+A12,DAY(Inversion!$C$7)),"-") -> 2026-02-10 | C12: 130452257.7 | D12: 1216865.75 | E12: 196560.8563 | F12: 1020304.894 | G12: 130255696.9 | I12: 130452257.7 | J12: 1216865.75 | K12: 1216865.75 | L12: =IF(A12>Inversion!$C$23,0,(K12-M12)) -> 196560.8563 | M12: =IF(N11<=0.01,0,N11*Inversion!$C$22) -> 1020304.894 | N12: 130255696.9 | O12: =IF(I12=0,0,P12*Inversion!$C$22) -> 0 | P12: =IF(I12=0,0,Inversion!$C$18*Inversion!$C$25) -> 0
A13: =IF(A12<Inversion!$C$23,A12+1,"-") -> 8 | B13: =IF(A13<>"-",DATE(YEAR(Inversion!$C$7),MONTH(Inversion!$C$7)+A13,DAY(Inversion!$C$7)),"-") -> 2026-03-10 | C13: 130255696.9 | D13: 1216865.75 | E13: 198098.2157 | F13: 1018767.535 | G13: 130057598.7 | I13: 130255696.9 | J13: 1216865.75 | K13: 1216865.75 | L13: =IF(A13>Inversion!$C$23,0,(K13-M13)) -> 198098.2157 | M13: =IF(N12<=0.01,0,N12*Inversion!$C$22) -> 1018767.535 | N13: 130057598.7 | O13: =IF(I13=0,0,P13*Inversion!$C$22) -> 0 | P13: =IF(I13=0,0,Inversion!$C$18*Inversion!$C$25) -> 0
A14: =IF(A13<Inversion!$C$23,A13+1,"-") -> 9 | B14: =IF(A14<>"-",DATE(YEAR(Inversion!$C$7),MONTH(Inversion!$C$7)+A14,DAY(Inversion!$C$7)),"-") -> 2026-04-10 | C14: 130057598.7 | D14: 1216865.75 | E14: 199647.5992 | F14: 1017218.151 | G14: 129857951.1 | I14: 130057598.7 | J14: 1216865.75 | K14: 1216865.75 | L14: =IF(A14>Inversion!$C$23,0,(K14-M14)) -> 199647.5992 | M14: =IF(N13<=0.01,0,N13*Inversion!$C$22) -> 1017218.151 | N14: 129857951.1 | O14: =IF(I14=0,0,P14*Inversion!$C$22) -> 0 | P14: =IF(I14=0,0,Inversion!$C$18*Inversion!$C$25) -> 0
A15: =IF(A14<Inversion!$C$23,A14+1,"-") -> 10 | B15: =IF(A15<>"-",DATE(YEAR(Inversion!$C$7),MONTH(Inversion!$C$7)+A15,DAY(Inversion!$C$7)),"-") -> 2026-05-10 | C15: 129857951.1 | D15: 1216865.75 | E15: 201209.1009 | F15: 1015656.649 | G15: 129656742 | I15: 129857951.1 | J15: 1216865.75 | K15: 1216865.75 | L15: =IF(A15>Inversion!$C$23,0,(K15-M15)) -> 201209.1009 | M15: =IF(N14<=0.01,0,N14*Inversion!$C$22) -> 1015656.649 | N15: 129656742 | O15: =IF(I15=0,0,P15*Inversion!$C$22) -> 0 | P15: =IF(I15=0,0,Inversion!$C$18*Inversion!$C$25) -> 0
A16: =IF(A15<Inversion!$C$23,A15+1,"-") -> 11 | B16: =IF(A16<>"-",DATE(YEAR(Inversion!$C$7),MONTH(Inversion!$C$7)+A16,DAY(Inversion!$C$7)),"-") -> 2026-06-10 | C16: 129656742 | D16: 1216865.75 | E16: 202782.8156 | F16: 1014082.935 | G16: 129453959.1 | I16: 129656742 | J16: 1216865.75 | K16: 1216865.75 | L16: =IF(A16>Inversion!$C$23,0,(K16-M16)) -> 202782.8156 | M16: =IF(N15<=0.01,0,N15*Inversion!$C$22) -> 1014082.935 | N16: 129453959.1 | O16: =IF(I16=0,0,P16*Inversion!$C$22) -> 0 | P16: =IF(I16=0,0,Inversion!$C$18*Inversion!$C$25) -> 0
A17: =IF(A16<Inversion!$C$23,A16+1,"-") -> 12 | B17: =IF(A17<>"-",DATE(YEAR(Inversion!$C$7),MONTH(Inversion!$C$7)+A17,DAY(Inversion!$C$7)),"-") -> 2026-07-10 | C17: 129453959.1 | D17: 1216865.75 | E17: 204368.8387 | F17: 1012496.912 | G17: 129249590.3 | I17: 129453959.1 | J17: 1216865.75 | K17: 1216865.75 | L17: =IF(A17>Inversion!$C$23,0,(K17-M17)) -> 204368.8387 | M17: =IF(N16<=0.01,0,N16*Inversion!$C$22) -> 1012496.912 | N17: 129249590.3 | O17: =IF(I17=0,0,P17*Inversion!$C$22) -> 0 | P17: =IF(I17=0,0,Inversion!$C$18*Inversion!$C$25) -> 0
A18: =IF(A17<Inversion!$C$23,A17+1,"-") -> 13 | B18: =IF(A18<>"-",DATE(YEAR(Inversion!$C$7),MONTH(Inversion!$C$7)+A18,DAY(Inversion!$C$7)),"-") -> 2026-08-10 | C18: 129249590.3 | D18: 1216865.75 | E18: 205967.2666 | F18: 1010898.484 | G18: 129043623 | I18: 129249590.3 | J18: 1216865.75 | K18: 1216865.75 | L18: =IF(A18>Inversion!$C$23,0,(K18-M18)) -> 205967.2666 | M18: =IF(N17<=0.01,0,N17*Inversion!$C$22) -> 1010898.484 | N18: 129043623 | O18: =IF(I18=0,0,P18*Inversion!$C$22) -> 0 | P18: =IF(I18=0,0,Inversion!$C$18*Inversion!$C$25) -> 0
A19: =IF(A18<Inversion!$C$23,A18+1,"-") -> 14 | B19: =IF(A19<>"-",DATE(YEAR(Inversion!$C$7),MONTH(Inversion!$C$7)+A19,DAY(Inversion!$C$7)),"-") -> 2026-09-10 | C19: 129043623 | D19: 1216865.75 | E19: 207578.1963 | F19: 1009287.554 | G19: 128836044.8 | I19: 129043623 | J19: 1216865.75 | K19: 1216865.75 | L19: =IF(A19>Inversion!$C$23,0,(K19-M19)) -> 207578.1963 | M19: =IF(N18<=0.01,0,N18*Inversion!$C$22) -> 1009287.554 | N19: 128836044.8 | O19: =IF(I19=0,0,P19*Inversion!$C$22) -> 0 | P19: =IF(I19=0,0,Inversion!$C$18*Inversion!$C$25) -> 0
A20: =IF(A19<Inversion!$C$23,A19+1,"-") -> 15 | B20: =IF(A20<>"-",DATE(YEAR(Inversion!$C$7),MONTH(Inversion!$C$7)+A20,DAY(Inversion!$C$7)),"-") -> 2026-10-10 | C20: 128836044.8 | D20: 1216865.75 | E20: 209201.7255 | F20: 1007664.025 | G20: 128626843.1 | I20: 128836044.8 | J20: 1216865.75 | K20: 1216865.75 | L20: =IF(A20>Inversion!$C$23,0,(K20-M20)) -> 209201.7255 | M20: =IF(N19<=0.01,0,N19*Inversion!$C$22) -> 1007664.025 | N20: 128626843.1 | O20: =IF(I20=0,0,P20*Inversion!$C$22) -> 0 | P20: =IF(I20=0,0,Inversion!$C$18*Inversion!$C$25) -> 0
A21: =IF(A20<Inversion!$C$23,A20+1,"-") -> 16 | B21: =IF(A21<>"-",DATE(YEAR(Inversion!$C$7),MONTH(Inversion!$C$7)+A21,DAY(Inversion!$C$7)),"-") -> 2026-11-10 | C21: 128626843.1 | D21: 1216865.75 | E21: 210837.9528 | F21: 1006027.798 | G21: 128416005.2 | I21: 128626843.1 | J21: 1216865.75 | K21: 1216865.75 | L21: =IF(A21>Inversion!$C$23,0,(K21-M21)) -> 210837.9528 | M21: =IF(N20<=0.01,0,N20*Inversion!$C$22) -> 1006027.798 | N21: 128416005.2 | O21: =IF(I21=0,0,P21*Inversion!$C$22) -> 0 | P21: =IF(I21=0,0,Inversion!$C$18*Inversion!$C$25) -> 0
A22: =IF(A21<Inversion!$C$23,A21+1,"-") -> 17 | B22: =IF(A22<>"-",DATE(YEAR(Inversion!$C$7),MONTH(Inversion!$C$7)+A22,DAY(Inversion!$C$7)),"-") -> 2026-12-10 | C22: 128416005.2 | D22: 1216865.75 | E22: 212486.9775 | F22: 1004378.773 | G22: 128203518.2 | I22: 128416005.2 | J22: 1216865.75 | K22: 1216865.75 | L22: =IF(A22>Inversion!$C$23,0,(K22-M22)) -> 212486.9775 | M22: =IF(N21<=0.01,0,N21*Inversion!$C$22) -> 1004378.773 | N22: 128203518.2 | O22: =IF(I22=0,0,P22*Inversion!$C$22) -> 0 | P22: =IF(I22=0,0,Inversion!$C$18*Inversion!$C$25) -> 0
A23: =IF(A22<Inversion!$C$23,A22+1,"-") -> 18 | B23: =IF(A23<>"-",DATE(YEAR(Inversion!$C$7),MONTH(Inversion!$C$7)+A23,DAY(Inversion!$C$7)),"-") -> 2027-01-10 | C23: 128203518.2 | D23: 1216865.75 | E23: 214148.8997 | F23: 1002716.851 | G23: 127989369.3 | I23: 128203518.2 | J23: 1216865.75 | K23: 1216865.75 | L23: =IF(A23>Inversion!$C$23,0,(K23-M23)) -> 214148.8997 | M23: =IF(N22<=0.01,0,N22*Inversion!$C$22) -> 1002716.851 | N23: 127989369.3 | O23: =IF(I23=0,0,P23*Inversion!$C$22) -> 0 | P23: =IF(I23=0,0,Inversion!$C$18*Inversion!$C$25) -> 0
A24: =IF(A23<Inversion!$C$23,A23+1,"-") -> 19 | B24: =IF(A24<>"-",DATE(YEAR(Inversion!$C$7),MONTH(Inversion!$C$7)+A24,DAY(Inversion!$C$7)),"-") -> 2027-02-10 | C24: 127989369.3 | D24: 1216865.75 | E24: 215823.8202 | F24: 1001041.93 | G24: 127773545.5 | I24: 127989369.3 | J24: 1216865.75 | K24: 1216865.75 | L24: =IF(A24>Inversion!$C$23,0,(K24-M24)) -> 215823.8202 | M24: =IF(N23<=0.01,0,N23*Inversion!$C$22) -> 1001041.93 | N24: 127773545.5 | O24: =IF(I24=0,0,P24*Inversion!$C$22) -> 0 | P24: =IF(I24=0,0,Inversion!$C$18*Inversion!$C$25) -> 0
A25: =IF(A24<Inversion!$C$23,A24+1,"-") -> 20 | B25: =IF(A25<>"-",DATE(YEAR(Inversion!$C$7),MONTH(Inversion!$C$7)+A25,DAY(Inversion!$C$7)),"-") -> 2027-03-10 | C25: 127773545.5 | D25: 1216865.75 | E25: 217511.8409 | F25: 999353.9095 | G25: 127556033.6 | I25: 127773545.5 | J25: 1216865.75 | K25: 1216865.75 | L25: =IF(A25>Inversion!$C$23,0,(K25-M25)) -> 217511.8409 | M25: =IF(N24<=0.01,0,N24*Inversion!$C$22) -> 999353.9095 | N25: 127556033.6 | O25: =IF(I25=0,0,P25*Inversion!$C$22) -> 0 | P25: =IF(I25=0,0,Inversion!$C$18*Inversion!$C$25) -> 0
A26: =IF(A25<Inversion!$C$23,A25+1,"-") -> 21 | B26: =IF(A26<>"-",DATE(YEAR(Inversion!$C$7),MONTH(Inversion!$C$7)+A26,DAY(Inversion!$C$7)),"-") -> 2027-04-10 | C26: 127556033.6 | D26: 1216865.75 | E26: 219213.064 | F26: 997652.6864 | G26: 127336820.6 | I26: 127556033.6 | J26: 1216865.75 | K26: 1216865.75 | L26: =IF(A26>Inversion!$C$23,0,(K26-M26)) -> 219213.064 | M26: =IF(N25<=0.01,0,N25*Inversion!$C$22) -> 997652.6864 | N26: 127336820.6 | O26: =IF(I26=0,0,P26*Inversion!$C$22) -> 0 | P26: =IF(I26=0,0,Inversion!$C$18*Inversion!$C$25) -> 0
A27: =IF(A26<Inversion!$C$23,A26+1,"-") -> 22 | B27: =IF(A27<>"-",DATE(YEAR(Inversion!$C$7),MONTH(Inversion!$C$7)+A27,DAY(Inversion!$C$7)),"-") -> 2027-05-10 | C27: 127336820.6 | D27: 1216865.75 | E27: 220927.5928 | F27: 995938.1575 | G27: 127115893 | I27: 127336820.6 | J27: 1216865.75 | K27: 1216865.75 | L27: =IF(A27>Inversion!$C$23,0,(K27-M27)) -> 220927.5928 | M27: =IF(N26<=0.01,0,N26*Inversion!$C$22) -> 995938.1575 | N27: 127115893 | O27: =IF(I27=0,0,P27*Inversion!$C$22) -> 0 | P27: =IF(I27=0,0,Inversion!$C$18*Inversion!$C$25) -> 0
A28: =IF(A27<Inversion!$C$23,A27+1,"-") -> 23 | B28: =IF(A28<>"-",DATE(YEAR(Inversion!$C$7),MONTH(Inversion!$C$7)+A28,DAY(Inversion!$C$7)),"-") -> 2027-06-10 | C28: 127115893 | D28: 1216865.75 | E28: 222655.5315 | F28: 994210.2188 | G28: 126893237.4 | I28: 127115893 | J28: 1216865.75 | K28: 1216865.75 | L28: =IF(A28>Inversion!$C$23,0,(K28-M28)) -> 222655.5315 | M28: =IF(N27<=0.01,0,N27*Inversion!$C$22) -> 994210.2188 | N28: 126893237.4 | O28: =IF(I28=0,0,P28*Inversion!$C$22) -> 0 | P28: =IF(I28=0,0,Inversion!$C$18*Inversion!$C$25) -> 0
A29: =IF(A28<Inversion!$C$23,A28+1,"-") -> 24 | B29: =IF(A29<>"-",DATE(YEAR(Inversion!$C$7),MONTH(Inversion!$C$7)+A29,DAY(Inversion!$C$7)),"-") -> 2027-07-10 | C29: 126893237.4 | D29: 1216865.75 | E29: 224396.9849 | F29: 992468.7654 | G29: 126668840.4 | I29: 126893237.4 | J29: 1216865.75 | K29: 1216865.75 | L29: =IF(A29>Inversion!$C$23,0,(K29-M29)) -> 224396.9849 | M29: =IF(N28<=0.01,0,N28*Inversion!$C$22) -> 992468.7654 | N29: 126668840.4 | O29: =IF(I29=0,0,P29*Inversion!$C$22) -> 0 | P29: =IF(I29=0,0,Inversion!$C$18*Inversion!$C$25) -> 0
A30: =IF(A29<Inversion!$C$23,A29+1,"-") -> 25 | B30: =IF(A30<>"-",DATE(YEAR(Inversion!$C$7),MONTH(Inversion!$C$7)+A30,DAY(Inversion!$C$7)),"-") -> 2027-08-10 | C30: 126668840.4 | D30: 1216865.75 | E30: 226152.0588 | F30: 990713.6916 | G30: 126442688.4 | I30: 126668840.4 | J30: 1216865.75 | K30: 1216865.75 | L30: =IF(A30>Inversion!$C$23,0,(K30-M30)) -> 226152.0588 | M30: =IF(N29<=0.01,0,N29*Inversion!$C$22) -> 990713.6916 | N30: 126442688.4 | O30: =IF(I30=0,0,P30*Inversion!$C$22) -> 0 | P30: =IF(I30=0,0,Inversion!$C$18*Inversion!$C$25) -> 0
A31: =IF(A30<Inversion!$C$23,A30+1,"-") -> 26 | B31: =IF(A31<>"-",DATE(YEAR(Inversion!$C$7),MONTH(Inversion!$C$7)+A31,DAY(Inversion!$C$7)),"-") -> 2027-09-10 | C31: 126442688.4 | D31: 1216865.75 | E31: 227920.8595 | F31: 988944.8909 | G31: 126214767.5 | I31: 126442688.4 | J31: 1216865.75 | K31: 1216865.75 | L31: =IF(A31>Inversion!$C$23,0,(K31-M31)) -> 227920.8595 | M31: =IF(N30<=0.01,0,N30*Inversion!$C$22) -> 988944.8909 | N31: 126214767.5 | O31: =IF(I31=0,0,P31*Inversion!$C$22) -> 0 | P31: =IF(I31=0,0,Inversion!$C$18*Inversion!$C$25) -> 0
A32: =IF(A31<Inversion!$C$23,A31+1,"-") -> 27 | B32: =IF(A32<>"-",DATE(YEAR(Inversion!$C$7),MONTH(Inversion!$C$7)+A32,DAY(Inversion!$C$7)),"-") -> 2027-10-10 | C32: 126214767.5 | D32: 1216865.75 | E32: 229703.4946 | F32: 987162.2558 | G32: 125985064 | I32: 126214767.5 | J32: 1216865.75 | K32: 1216865.75 | L32: =IF(A32>Inversion!$C$23,0,(K32-M32)) -> 229703.4946 | M32: =IF(N31<=0.01,0,N31*Inversion!$C$22) -> 987162.2558 | N32: 125985064 | O32: =IF(I32=0,0,P32*Inversion!$C$22) -> 0 | P32: =IF(I32=0,0,Inversion!$C$18*Inversion!$C$25) -> 0
A33: =IF(A32<Inversion!$C$23,A32+1,"-") -> 28 | B33: =IF(A33<>"-",DATE(YEAR(Inversion!$C$7),MONTH(Inversion!$C$7)+A33,DAY(Inversion!$C$7)),"-") -> 2027-11-10 | C33: 125985064 | D33: 1216865.75 | E33: 231500.0721 | F33: 985365.6782 | G33: 125753564 | I33: 125985064 | J33: 1216865.75 | K33: 1216865.75 | L33: =IF(A33>Inversion!$C$23,0,(K33-M33)) -> 231500.0721 | M33: =IF(N32<=0.01,0,N32*Inversion!$C$22) -> 985365.6782 | N33: 125753564 | O33: =IF(I33=0,0,P33*Inversion!$C$22) -> 0 | P33: =IF(I33=0,0,Inversion!$C$18*Inversion!$C$25) -> 0
A34: =IF(A33<Inversion!$C$23,A33+1,"-") -> 29 | B34: =IF(A34<>"-",DATE(YEAR(Inversion!$C$7),MONTH(Inversion!$C$7)+A34,DAY(Inversion!$C$7)),"-") -> 2027-12-10 | C34: 125753564 | D34: 1216865.75 | E34: 233310.7013 | F34: 983555.0491 | G34: 125520253.3 | I34: 125753564 | J34: 1216865.75 | K34: 1216865.75 | L34: =IF(A34>Inversion!$C$23,0,(K34-M34)) -> 233310.7013 | M34: =IF(N33<=0.01,0,N33*Inversion!$C$22) -> 983555.0491 | N34: 125520253.3 | O34: =IF(I34=0,0,P34*Inversion!$C$22) -> 0 | P34: =IF(I34=0,0,Inversion!$C$18*Inversion!$C$25) -> 0
A35: =IF(A34<Inversion!$C$23,A34+1,"-") -> 30 | B35: =IF(A35<>"-",DATE(YEAR(Inversion!$C$7),MONTH(Inversion!$C$7)+A35,DAY(Inversion!$C$7)),"-") -> 2028-01-10 | C35: 125520253.3 | D35: 1216865.75 | E35: 235135.4918 | F35: 981730.2585 | G35: 125285117.8 | I35: 125520253.3 | J35: 1216865.75 | K35: 1216865.75 | L35: =IF(A35>Inversion!$C$23,0,(K35-M35)) -> 235135.4918 | M35: =IF(N34<=0.01,0,N34*Inversion!$C$22) -> 981730.2585 | N35: 125285117.8 | O35: =IF(I35=0,0,P35*Inversion!$C$22) -> 0 | P35: =IF(I35=0,0,Inversion!$C$18*Inversion!$C$25) -> 0
A36: =IF(A35<Inversion!$C$23,A35+1,"-") -> 31 | B36: =IF(A36<>"-",DATE(YEAR(Inversion!$C$7),MONTH(Inversion!$C$7)+A36,DAY(Inversion!$C$7)),"-") -> 2028-02-10 | C36: 125285117.8 | D36: 1216865.75 | E36: 236974.5546 | F36: 979891.1957 | G36: 125048143.2 | I36: 125285117.8 | J36: 1216865.75 | K36: 1216865.75 | L36: =IF(A36>Inversion!$C$23,0,(K36-M36)) -> 236974.5546 | M36: =IF(N35<=0.01,0,N35*Inversion!$C$22) -> 979891.1957 | N36: 125048143.2 | O36: =IF(I36=0,0,P36*Inversion!$C$22) -> 0 | P36: =IF(I36=0,0,Inversion!$C$18*Inversion!$C$25) -> 0
A37: =IF(A36<Inversion!$C$23,A36+1,"-") -> 32 | B37: =IF(A37<>"-",DATE(YEAR(Inversion!$C$7),MONTH(Inversion!$C$7)+A37,DAY(Inversion!$C$7)),"-") -> 2028-03-10 | C37: 125048143.2 | D37: 1216865.75 | E37: 238828.0013 | F37: 978037.7491 | G37: 124809315.2 | I37: 125048143.2 | J37: 1216865.75 | K37: 1216865.75 | L37: =IF(A37>Inversion!$C$23,0,(K37-M37)) -> 238828.0013 | M37: =IF(N36<=0.01,0,N36*Inversion!$C$22) -> 978037.7491 | N37: 124809315.2 | O37: =IF(I37=0,0,P37*Inversion!$C$22) -> 0 | P37: =IF(I37=0,0,Inversion!$C$18*Inversion!$C$25) -> 0
A38: =IF(A37<Inversion!$C$23,A37+1,"-") -> 33 | B38: =IF(A38<>"-",DATE(YEAR(Inversion!$C$7),MONTH(Inversion!$C$7)+A38,DAY(Inversion!$C$7)),"-") -> 2028-04-10 | C38: 124809315.2 | D38: 1216865.75 | E38: 240695.9442 | F38: 976169.8061 | G38: 124568619.3 | I38: 124809315.2 | J38: 1216865.75 | K38: 1216865.75 | L38: =IF(A38>Inversion!$C$23,0,(K38-M38)) -> 240695.9442 | M38: =IF(N37<=0.01,0,N37*Inversion!$C$22) -> 976169.8061 | N38: 124568619.3 | O38: =IF(I38=0,0,P38*Inversion!$C$22) -> 0 | P38: =IF(I38=0,0,Inversion!$C$18*Inversion!$C$25) -> 0
A39: =IF(A38<Inversion!$C$23,A38+1,"-") -> 34 | B39: =IF(A39<>"-",DATE(YEAR(Inversion!$C$7),MONTH(Inversion!$C$7)+A39,DAY(Inversion!$C$7)),"-") -> 2028-05-10 | C39: 124568619.3 | D39: 1216865.75 | E39: 242578.4969 | F39: 974287.2534 | G39: 124326040.8 | I39: 124568619.3 | J39: 1216865.75 | K39: 1216865.75 | L39: =IF(A39>Inversion!$C$23,0,(K39-M39)) -> 242578.4969 | M39: =IF(N38<=0.01,0,N38*Inversion!$C$22) -> 974287.2534 | N39: 124326040.8 | O39: =IF(I39=0,0,P39*Inversion!$C$22) -> 0 | P39: =IF(I39=0,0,Inversion!$C$18*Inversion!$C$25) -> 0
A40: =IF(A39<Inversion!$C$23,A39+1,"-") -> 35 | B40: =IF(A40<>"-",DATE(YEAR(Inversion!$C$7),MONTH(Inversion!$C$7)+A40,DAY(Inversion!$C$7)),"-") -> 2028-06-10 | C40: 124326040.8 | D40: 1216865.75 | E40: 244475.7736 | F40: 972389.9767 | G40: 124081565 | I40: 124326040.8 | J40: 1216865.75 | K40: 1216865.75 | L40: =IF(A40>Inversion!$C$23,0,(K40-M40)) -> 244475.7736 | M40: =IF(N39<=0.01,0,N39*Inversion!$C$22) -> 972389.9767 | N40: 124081565 | O40: =IF(I40=0,0,P40*Inversion!$C$22) -> 0 | P40: =IF(I40=0,0,Inversion!$C$18*Inversion!$C$25) -> 0
A41: =IF(A40<Inversion!$C$23,A40+1,"-") -> 36 | B41: =IF(A41<>"-",DATE(YEAR(Inversion!$C$7),MONTH(Inversion!$C$7)+A41,DAY(Inversion!$C$7)),"-") -> 2028-07-10 | C41: 124081565 | D41: 1216865.75 | E41: 246387.8895 | F41: 970477.8609 | G41: 123835177.1 | I41: 124081565 | J41: 1216865.75 | K41: 1216865.75 | L41: =IF(A41>Inversion!$C$23,0,(K41-M41)) -> 246387.8895 | M41: =IF(N40<=0.01,0,N40*Inversion!$C$22) -> 970477.8609 | N41: 123835177.1 | O41: =IF(I41=0,0,P41*Inversion!$C$22) -> 0 | P41: =IF(I41=0,0,Inversion!$C$18*Inversion!$C$25) -> 0
A42: =IF(A41<Inversion!$C$23,A41+1,"-") -> 37 | B42: =IF(A42<>"-",DATE(YEAR(Inversion!$C$7),MONTH(Inversion!$C$7)+A42,DAY(Inversion!$C$7)),"-") -> 2028-08-10 | C42: 123835177.1 | D42: 1216865.75 | E42: 248314.9605 | F42: 968550.7899 | G42: 123586862.1 | I42: 123835177.1 | J42: 1216865.75 | K42: 1216865.75 | L42: =IF(A42>Inversion!$C$23,0,(K42-M42)) -> 248314.9605 | M42: =IF(N41<=0.01,0,N41*Inversion!$C$22) -> 968550.7899 | N42: 123586862.1 | O42: =IF(I42=0,0,P42*Inversion!$C$22) -> 0 | P42: =IF(I42=0,0,Inversion!$C$18*Inversion!$C$25) -> 0
A43: =IF(A42<Inversion!$C$23,A42+1,"-") -> 38 | B43: =IF(A43<>"-",DATE(YEAR(Inversion!$C$7),MONTH(Inversion!$C$7)+A43,DAY(Inversion!$C$7)),"-") -> 2028-09-10 | C43: 123586862.1 | D43: 1216865.75 | E43: 250257.1037 | F43: 966608.6466 | G43: 123336605 | I43: 123586862.1 | J43: 1216865.75 | K43: 1216865.75 | L43: =IF(A43>Inversion!$C$23,0,(K43-M43)) -> 250257.1037 | M43: =IF(N42<=0.01,0,N42*Inversion!$C$22) -> 966608.6466 | N43: 123336605 | O43: =IF(I43=0,0,P43*Inversion!$C$22) -> 0 | P43: =IF(I43=0,0,Inversion!$C$18*Inversion!$C$25) -> 0
A44: =IF(A43<Inversion!$C$23,A43+1,"-") -> 39 | B44: =IF(A44<>"-",DATE(YEAR(Inversion!$C$7),MONTH(Inversion!$C$7)+A44,DAY(Inversion!$C$7)),"-") -> 2028-10-10 | C44: 123336605 | D44: 1216865.75 | E44: 252214.437 | F44: 964651.3133 | G44: 123084390.6 | I44: 123336605 | J44: 1216865.75 | K44: 1216865.75 | L44: =IF(A44>Inversion!$C$23,0,(K44-M44)) -> 252214.437 | M44: =IF(N43<=0.01,0,N43*Inversion!$C$22) -> 964651.3133 | N44: 123084390.6 | O44: =IF(I44=0,0,P44*Inversion!$C$22) -> 0 | P44: =IF(I44=0,0,Inversion!$C$18*Inversion!$C$25) -> 0
A45: =IF(A44<Inversion!$C$23,A44+1,"-") -> 40 | B45: =IF(A45<>"-",DATE(YEAR(Inversion!$C$7),MONTH(Inversion!$C$7)+A45,DAY(Inversion!$C$7)),"-") -> 2028-11-10 | C45: 123084390.6 | D45: 1216865.75 | E45: 254187.0792 | F45: 962678.6712 | G45: 122830203.5 | I45: 123084390.6 | J45: 1216865.75 | K45: 1216865.75 | L45: =IF(A45>Inversion!$C$23,0,(K45-M45)) -> 254187.0792 | M45: =IF(N44<=0.01,0,N44*Inversion!$C$22) -> 962678.6712 | N45: 122830203.5 | O45: =IF(I45=0,0,P45*Inversion!$C$22) -> 0 | P45: =IF(I45=0,0,Inversion!$C$18*Inversion!$C$25) -> 0
A46: =IF(A45<Inversion!$C$23,A45+1,"-") -> 41 | B46: =IF(A46<>"-",DATE(YEAR(Inversion!$C$7),MONTH(Inversion!$C$7)+A46,DAY(Inversion!$C$7)),"-") -> 2028-12-10 | C46: 122830203.5 | D46: 1216865.75 | E46: 256175.15 | F46: 960690.6004 | G46: 122574028.4 | I46: 122830203.5 | J46: 1216865.75 | K46: 1216865.75 | L46: =IF(A46>Inversion!$C$23,0,(K46-M46)) -> 256175.15 | M46: =IF(N45<=0.01,0,N45*Inversion!$C$22) -> 960690.6004 | N46: 122574028.4 | O46: =IF(I46=0,0,P46*Inversion!$C$22) -> 0 | P46: =IF(I46=0,0,Inversion!$C$18*Inversion!$C$25) -> 0
A47: =IF(A46<Inversion!$C$23,A46+1,"-") -> 42 | B47: =IF(A47<>"-",DATE(YEAR(Inversion!$C$7),MONTH(Inversion!$C$7)+A47,DAY(Inversion!$C$7)),"-") -> 2029-01-10 | C47: 122574028.4 | D47: 1216865.75 | E47: 258178.77 | F47: 958686.9803 | G47: 122315849.6 | I47: 122574028.4 | J47: 1216865.75 | K47: 1216865.75 | L47: =IF(A47>Inversion!$C$23,0,(K47-M47)) -> 258178.77 | M47: =IF(N46<=0.01,0,N46*Inversion!$C$22) -> 958686.9803 | N47: 122315849.6 | O47: =IF(I47=0,0,P47*Inversion!$C$22) -> 0 | P47: =IF(I47=0,0,Inversion!$C$18*Inversion!$C$25) -> 0
A48: =IF(A47<Inversion!$C$23,A47+1,"-") -> 43 | B48: =IF(A48<>"-",DATE(YEAR(Inversion!$C$7),MONTH(Inversion!$C$7)+A48,DAY(Inversion!$C$7)),"-") -> 2029-02-10 | C48: 122315849.6 | D48: 1216865.75 | E48: 260198.061 | F48: 956667.6894 | G48: 122055651.5 | I48: 122315849.6 | J48: 1216865.75 | K48: 1216865.75 | L48: =IF(A48>Inversion!$C$23,0,(K48-M48)) -> 260198.061 | M48: =IF(N47<=0.01,0,N47*Inversion!$C$22) -> 956667.6894 | N48: 122055651.5 | O48: =IF(I48=0,0,P48*Inversion!$C$22) -> 0 | P48: =IF(I48=0,0,Inversion!$C$18*Inversion!$C$25) -> 0
A49: =IF(A48<Inversion!$C$23,A48+1,"-") -> 44 | B49: =IF(A49<>"-",DATE(YEAR(Inversion!$C$7),MONTH(Inversion!$C$7)+A49,DAY(Inversion!$C$7)),"-") -> 2029-03-10 | C49: 122055651.5 | D49: 1216865.75 | E49: 262233.1454 | F49: 954632.605 | G49: 121793418.4 | I49: 122055651.5 | J49: 1216865.75 | K49: 1216865.75 | L49: =IF(A49>Inversion!$C$23,0,(K49-M49)) -> 262233.1454 | M49: =IF(N48<=0.01,0,N48*Inversion!$C$22) -> 954632.605 | N49: 121793418.4 | O49: =IF(I49=0,0,P49*Inversion!$C$22) -> 0 | P49: =IF(I49=0,0,Inversion!$C$18*Inversion!$C$25) -> 0
A50: =IF(A49<Inversion!$C$23,A49+1,"-") -> 45 | B50: =IF(A50<>"-",DATE(YEAR(Inversion!$C$7),MONTH(Inversion!$C$7)+A50,DAY(Inversion!$C$7)),"-") -> 2029-04-10 | C50: 121793418.4 | D50: 1216865.75 | E50: 264284.1468 | F50: 952581.6036 | G50: 121529134.3 | I50: 121793418.4 | J50: 1216865.75 | K50: 1216865.75 | L50: =IF(A50>Inversion!$C$23,0,(K50-M50)) -> 264284.1468 | M50: =IF(N49<=0.01,0,N49*Inversion!$C$22) -> 952581.6036 | N50: 121529134.3 | O50: =IF(I50=0,0,P50*Inversion!$C$22) -> 0 | P50: =IF(I50=0,0,Inversion!$C$18*Inversion!$C$25) -> 0
A51: =IF(A50<Inversion!$C$23,A50+1,"-") -> 46 | B51: =IF(A51<>"-",DATE(YEAR(Inversion!$C$7),MONTH(Inversion!$C$7)+A51,DAY(Inversion!$C$7)),"-") -> 2029-05-10 | C51: 121529134.3 | D51: 1216865.75 | E51: 266351.1896 | F51: 950514.5607 | G51: 121262783.1 | I51: 121529134.3 | J51: 1216865.75 | K51: 1216865.75 | L51: =IF(A51>Inversion!$C$23,0,(K51-M51)) -> 266351.1896 | M51: =IF(N50<=0.01,0,N50*Inversion!$C$22) -> 950514.5607 | N51: 121262783.1 | O51: =IF(I51=0,0,P51*Inversion!$C$22) -> 0 | P51: =IF(I51=0,0,Inversion!$C$18*Inversion!$C$25) -> 0
A52: =IF(A51<Inversion!$C$23,A51+1,"-") -> 47 | B52: =IF(A52<>"-",DATE(YEAR(Inversion!$C$7),MONTH(Inversion!$C$7)+A52,DAY(Inversion!$C$7)),"-") -> 2029-06-10 | C52: 121262783.1 | D52: 1216865.75 | E52: 268434.3994 | F52: 948431.3509 | G52: 120994348.7 | I52: 121262783.1 | J52: 1216865.75 | K52: 1216865.75 | L52: =IF(A52>Inversion!$C$23,0,(K52-M52)) -> 268434.3994 | M52: =IF(N51<=0.01,0,N51*Inversion!$C$22) -> 948431.3509 | N52: 120994348.7 | O52: =IF(I52=0,0,P52*Inversion!$C$22) -> 0 | P52: =IF(I52=0,0,Inversion!$C$18*Inversion!$C$25) -> 0
A53: =IF(A52<Inversion!$C$23,A52+1,"-") -> 48 | B53: =IF(A53<>"-",DATE(YEAR(Inversion!$C$7),MONTH(Inversion!$C$7)+A53,DAY(Inversion!$C$7)),"-") -> 2029-07-10 | C53: 120994348.7 | D53: 1216865.75 | E53: 270533.9026 | F53: 946331.8477 | G53: 120723814.8 | I53: 120994348.7 | J53: 1216865.75 | K53: 1216865.75 | L53: =IF(A53>Inversion!$C$23,0,(K53-M53)) -> 270533.9026 | M53: =IF(N52<=0.01,0,N52*Inversion!$C$22) -> 946331.8477 | N53: 120723814.8 | O53: =IF(I53=0,0,P53*Inversion!$C$22) -> 0 | P53: =IF(I53=0,0,Inversion!$C$18*Inversion!$C$25) -> 0
A54: =IF(A53<Inversion!$C$23,A53+1,"-") -> 49 | B54: =IF(A54<>"-",DATE(YEAR(Inversion!$C$7),MONTH(Inversion!$C$7)+A54,DAY(Inversion!$C$7)),"-") -> 2029-08-10 | C54: 120723814.8 | D54: 1216865.75 | E54: 272649.8266 | F54: 944215.9237 | G54: 120451164.9 | I54: 120723814.8 | J54: 1216865.75 | K54: 1216865.75 | L54: =IF(A54>Inversion!$C$23,0,(K54-M54)) -> 272649.8266 | M54: =IF(N53<=0.01,0,N53*Inversion!$C$22) -> 944215.9237 | N54: 120451164.9 | O54: =IF(I54=0,0,P54*Inversion!$C$22) -> 0 | P54: =IF(I54=0,0,Inversion!$C$18*Inversion!$C$25) -> 0
A55: =IF(A54<Inversion!$C$23,A54+1,"-") -> 50 | B55: =IF(A55<>"-",DATE(YEAR(Inversion!$C$7),MONTH(Inversion!$C$7)+A55,DAY(Inversion!$C$7)),"-") -> 2029-09-10 | C55: 120451164.9 | D55: 1216865.75 | E55: 274782.2999 | F55: 942083.4505 | G55: 120176382.6 | I55: 120451164.9 | J55: 1216865.75 | K55: 1216865.75 | L55: =IF(A55>Inversion!$C$23,0,(K55-M55)) -> 274782.2999 | M55: =IF(N54<=0.01,0,N54*Inversion!$C$22) -> 942083.4505 | N55: 120176382.6 | O55: =IF(I55=0,0,P55*Inversion!$C$22) -> 0 | P55: =IF(I55=0,0,Inversion!$C$18*Inversion!$C$25) -> 0
A56: =IF(A55<Inversion!$C$23,A55+1,"-") -> 51 | B56: =IF(A56<>"-",DATE(YEAR(Inversion!$C$7),MONTH(Inversion!$C$7)+A56,DAY(Inversion!$C$7)),"-") -> 2029-10-10 | C56: 120176382.6 | D56: 1216865.75 | E56: 276931.4519 | F56: 939934.2985 | G56: 119899451.2 | I56: 120176382.6 | J56: 1216865.75 | K56: 1216865.75 | L56: =IF(A56>Inversion!$C$23,0,(K56-M56)) -> 276931.4519 | M56: =IF(N55<=0.01,0,N55*Inversion!$C$22) -> 939934.2985 | N56: 119899451.2 | O56: =IF(I56=0,0,P56*Inversion!$C$22) -> 0 | P56: =IF(I56=0,0,Inversion!$C$18*Inversion!$C$25) -> 0
A57: =IF(A56<Inversion!$C$23,A56+1,"-") -> 52 | B57: =IF(A57<>"-",DATE(YEAR(Inversion!$C$7),MONTH(Inversion!$C$7)+A57,DAY(Inversion!$C$7)),"-") -> 2029-11-10 | C57: 119899451.2 | D57: 1216865.75 | E57: 279097.413 | F57: 937768.3374 | G57: 119620353.8 | I57: 119899451.2 | J57: 1216865.75 | K57: 1216865.75 | L57: =IF(A57>Inversion!$C$23,0,(K57-M57)) -> 279097.413 | M57: =IF(N56<=0.01,0,N56*Inversion!$C$22) -> 937768.3374 | N57: 119620353.8 | O57: =IF(I57=0,0,P57*Inversion!$C$22) -> 0 | P57: =IF(I57=0,0,Inversion!$C$18*Inversion!$C$25) -> 0
A58: =IF(A57<Inversion!$C$23,A57+1,"-") -> 53 | B58: =IF(A58<>"-",DATE(YEAR(Inversion!$C$7),MONTH(Inversion!$C$7)+A58,DAY(Inversion!$C$7)),"-") -> 2029-12-10 | C58: 119620353.8 | D58: 1216865.75 | E58: 281280.3147 | F58: 935585.4357 | G58: 119339073.5 | I58: 119620353.8 | J58: 1216865.75 | K58: 1216865.75 | L58: =IF(A58>Inversion!$C$23,0,(K58-M58)) -> 281280.3147 | M58: =IF(N57<=0.01,0,N57*Inversion!$C$22) -> 935585.4357 | N58: 119339073.5 | O58: =IF(I58=0,0,P58*Inversion!$C$22) -> 0 | P58: =IF(I58=0,0,Inversion!$C$18*Inversion!$C$25) -> 0
A59: =IF(A58<Inversion!$C$23,A58+1,"-") -> 54 | B59: =IF(A59<>"-",DATE(YEAR(Inversion!$C$7),MONTH(Inversion!$C$7)+A59,DAY(Inversion!$C$7)),"-") -> 2030-01-10 | C59: 119339073.5 | D59: 1216865.75 | E59: 283480.2895 | F59: 933385.4609 | G59: 119055593.2 | I59: 119339073.5 | J59: 1216865.75 | K59: 1216865.75 | L59: =IF(A59>Inversion!$C$23,0,(K59-M59)) -> 283480.2895 | M59: =IF(N58<=0.01,0,N58*Inversion!$C$22) -> 933385.4609 | N59: 119055593.2 | O59: =IF(I59=0,0,P59*Inversion!$C$22) -> 0 | P59: =IF(I59=0,0,Inversion!$C$18*Inversion!$C$25) -> 0
A60: =IF(A59<Inversion!$C$23,A59+1,"-") -> 55 | B60: =IF(A60<>"-",DATE(YEAR(Inversion!$C$7),MONTH(Inversion!$C$7)+A60,DAY(Inversion!$C$7)),"-") -> 2030-02-10 | C60: 119055593.2 | D60: 1216865.75 | E60: 285697.471 | F60: 931168.2794 | G60: 118769895.7 | I60: 119055593.2 | J60: 1216865.75 | K60: 1216865.75 | L60: =IF(A60>Inversion!$C$23,0,(K60-M60)) -> 285697.471 | M60: =IF(N59<=0.01,0,N59*Inversion!$C$22) -> 931168.2794 | N60: 118769895.7 | O60: =IF(I60=0,0,P60*Inversion!$C$22) -> 0 | P60: =IF(I60=0,0,Inversion!$C$18*Inversion!$C$25) -> 0
A61: =IF(A60<Inversion!$C$23,A60+1,"-") -> 56 | B61: =IF(A61<>"-",DATE(YEAR(Inversion!$C$7),MONTH(Inversion!$C$7)+A61,DAY(Inversion!$C$7)),"-") -> 2030-03-10 | C61: 118769895.7 | D61: 1216865.75 | E61: 287931.9936 | F61: 928933.7567 | G61: 118481963.7 | I61: 118769895.7 | J61: 1216865.75 | K61: 1216865.75 | L61: =IF(A61>Inversion!$C$23,0,(K61-M61)) -> 287931.9936 | M61: =IF(N60<=0.01,0,N60*Inversion!$C$22) -> 928933.7567 | N61: 118481963.7 | O61: =IF(I61=0,0,P61*Inversion!$C$22) -> 0 | P61: =IF(I61=0,0,Inversion!$C$18*Inversion!$C$25) -> 0
A62: =IF(A61<Inversion!$C$23,A61+1,"-") -> 57 | B62: =IF(A62<>"-",DATE(YEAR(Inversion!$C$7),MONTH(Inversion!$C$7)+A62,DAY(Inversion!$C$7)),"-") -> 2030-04-10 | C62: 118481963.7 | D62: 1216865.75 | E62: 290183.9932 | F62: 926681.7572 | G62: 118191779.7 | I62: 118481963.7 | J62: 1216865.75 | K62: 1216865.75 | L62: =IF(A62>Inversion!$C$23,0,(K62-M62)) -> 290183.9932 | M62: =IF(N61<=0.01,0,N61*Inversion!$C$22) -> 926681.7572 | N62: 118191779.7 | O62: =IF(I62=0,0,P62*Inversion!$C$22) -> 0 | P62: =IF(I62=0,0,Inversion!$C$18*Inversion!$C$25) -> 0
A63: =IF(A62<Inversion!$C$23,A62+1,"-") -> 58 | B63: =IF(A63<>"-",DATE(YEAR(Inversion!$C$7),MONTH(Inversion!$C$7)+A63,DAY(Inversion!$C$7)),"-") -> 2030-05-10 | C63: 118191779.7 | D63: 1216865.75 | E63: 292453.6062 | F63: 924412.1442 | G63: 117899326.1 | I63: 118191779.7 | J63: 1216865.75 | K63: 1216865.75 | L63: =IF(A63>Inversion!$C$23,0,(K63-M63)) -> 292453.6062 | M63: =IF(N62<=0.01,0,N62*Inversion!$C$22) -> 924412.1442 | N63: 117899326.1 | O63: =IF(I63=0,0,P63*Inversion!$C$22) -> 0 | P63: =IF(I63=0,0,Inversion!$C$18*Inversion!$C$25) -> 0
A64: =IF(A63<Inversion!$C$23,A63+1,"-") -> 59 | B64: =IF(A64<>"-",DATE(YEAR(Inversion!$C$7),MONTH(Inversion!$C$7)+A64,DAY(Inversion!$C$7)),"-") -> 2030-06-10 | C64: 117899326.1 | D64: 1216865.75 | E64: 294740.9706 | F64: 922124.7798 | G64: 117604585.1 | I64: 117899326.1 | J64: 1216865.75 | K64: 1216865.75 | L64: =IF(A64>Inversion!$C$23,0,(K64-M64)) -> 294740.9706 | M64: =IF(N63<=0.01,0,N63*Inversion!$C$22) -> 922124.7798 | N64: 117604585.1 | O64: =IF(I64=0,0,P64*Inversion!$C$22) -> 0 | P64: =IF(I64=0,0,Inversion!$C$18*Inversion!$C$25) -> 0
A65: =IF(A64<Inversion!$C$23,A64+1,"-") -> 60 | B65: =IF(A65<>"-",DATE(YEAR(Inversion!$C$7),MONTH(Inversion!$C$7)+A65,DAY(Inversion!$C$7)),"-") -> 2030-07-10 | C65: 117604585.1 | D65: 1216865.75 | E65: 297046.2251 | F65: 919819.5253 | G65: 117307538.9 | I65: 117604585.1 | J65: 1216865.75 | K65: 1216865.75 | L65: =IF(A65>Inversion!$C$23,0,(K65-M65)) -> 297046.2251 | M65: =IF(N64<=0.01,0,N64*Inversion!$C$22) -> 919819.5253 | N65: 117307538.9 | O65: =IF(I65=0,0,P65*Inversion!$C$22) -> 0 | P65: =IF(I65=0,0,Inversion!$C$18*Inversion!$C$25) -> 0
A66: =IF(A65<Inversion!$C$23,A65+1,"-") -> 61 | B66: =IF(A66<>"-",DATE(YEAR(Inversion!$C$7),MONTH(Inversion!$C$7)+A66,DAY(Inversion!$C$7)),"-") -> 2030-08-10 | C66: 117307538.9 | D66: 1216865.75 | E66: 299369.5097 | F66: 917496.2407 | G66: 117008169.4 | I66: 117307538.9 | J66: 1216865.75 | K66: 1216865.75 | L66: =IF(A66>Inversion!$C$23,0,(K66-M66)) -> 299369.5097 | M66: =IF(N65<=0.01,0,N65*Inversion!$C$22) -> 917496.2407 | N66: 117008169.4 | O66: =IF(I66=0,0,P66*Inversion!$C$22) -> 0 | P66: =IF(I66=0,0,Inversion!$C$18*Inversion!$C$25) -> 0
A67: =IF(A66<Inversion!$C$23,A66+1,"-") -> 62 | B67: =IF(A67<>"-",DATE(YEAR(Inversion!$C$7),MONTH(Inversion!$C$7)+A67,DAY(Inversion!$C$7)),"-") -> 2030-09-10 | C67: 117008169.4 | D67: 1216865.75 | E67: 301710.9653 | F67: 915154.7851 | G67: 116706458.4 | I67: 117008169.4 | J67: 1216865.75 | K67: 1216865.75 | L67: =IF(A67>Inversion!$C$23,0,(K67-M67)) -> 301710.9653 | M67: =IF(N66<=0.01,0,N66*Inversion!$C$22) -> 915154.7851 | N67: 116706458.4 | O67: =IF(I67=0,0,P67*Inversion!$C$22) -> 0 | P67: =IF(I67=0,0,Inversion!$C$18*Inversion!$C$25) -> 0
A68: =IF(A67<Inversion!$C$23,A67+1,"-") -> 63 | B68: =IF(A68<>"-",DATE(YEAR(Inversion!$C$7),MONTH(Inversion!$C$7)+A68,DAY(Inversion!$C$7)),"-") -> 2030-10-10 | C68: 116706458.4 | D68: 1216865.75 | E68: 304070.7342 | F68: 912795.0162 | G68: 116402387.7 | I68: 116706458.4 | J68: 1216865.75 | K68: 1216865.75 | L68: =IF(A68>Inversion!$C$23,0,(K68-M68)) -> 304070.7342 | M68: =IF(N67<=0.01,0,N67*Inversion!$C$22) -> 912795.0162 | N68: 116402387.7 | O68: =IF(I68=0,0,P68*Inversion!$C$22) -> 0 | P68: =IF(I68=0,0,Inversion!$C$18*Inversion!$C$25) -> 0
A69: =IF(A68<Inversion!$C$23,A68+1,"-") -> 64 | B69: =IF(A69<>"-",DATE(YEAR(Inversion!$C$7),MONTH(Inversion!$C$7)+A69,DAY(Inversion!$C$7)),"-") -> 2030-11-10 | C69: 116402387.7 | D69: 1216865.75 | E69: 306448.9594 | F69: 910416.7909 | G69: 116095938.7 | I69: 116402387.7 | J69: 1216865.75 | K69: 1216865.75 | L69: =IF(A69>Inversion!$C$23,0,(K69-M69)) -> 306448.9594 | M69: =IF(N68<=0.01,0,N68*Inversion!$C$22) -> 910416.7909 | N69: 116095938.7 | O69: =IF(I69=0,0,P69*Inversion!$C$22) -> 0 | P69: =IF(I69=0,0,Inversion!$C$18*Inversion!$C$25) -> 0
A70: =IF(A69<Inversion!$C$23,A69+1,"-") -> 65 | B70: =IF(A70<>"-",DATE(YEAR(Inversion!$C$7),MONTH(Inversion!$C$7)+A70,DAY(Inversion!$C$7)),"-") -> 2030-12-10 | C70: =I70+P70 -> 116095938.7 | D70: 1216865.75 | E70: 308845.7855 | F70: 908019.9648 | G70: 115787093 | I70: 116095938.7 | J70: =K70+O70 -> 1216865.75 | K70: 1216865.75 | L70: =IF(A70>Inversion!$C$23,0,(K70-M70)) -> 308845.7855 | M70: =IF(N69<=0.01,0,N69*Inversion!$C$22) -> 908019.9648 | N70: 115787093 | O70: =IF(I70=0,0,P70*Inversion!$C$22) -> 0 | P70: =IF(I70=0,0,Inversion!$C$18*Inversion!$C$25) -> 0
A71: =IF(A70<Inversion!$C$23,A70+1,"-") -> 66 | B71: =IF(A71<>"-",DATE(YEAR(Inversion!$C$7),MONTH(Inversion!$C$7)+A71,DAY(Inversion!$C$7)),"-") -> 2031-01-10 | C71: 115787093 | D71: =J71 -> 1216865.75 | E71: =L71 -> 311261.3579 | F71: =M71+O71 -> 905604.3925 | G71: =N71+P71 -> 115475831.6 | I71: =N70 -> 115787093 | J71: 1216865.75 | K71: 1216865.75 | L71: =IF(A71>Inversion!$C$23,0,(K71-M71)) -> 311261.3579 | M71: =IF(N70<=0.01,0,N70*Inversion!$C$22) -> 905604.3925 | N71: 115475831.6 | O71: =IF(I71=0,0,P71*Inversion!$C$22) -> 0 | P71: =IF(I71=0,0,Inversion!$C$18*Inversion!$C$25) -> 0
A72: =IF(A71<Inversion!$C$23,A71+1,"-") -> 67 | B72: =IF(A72<>"-",DATE(YEAR(Inversion!$C$7),MONTH(Inversion!$C$7)+A72,DAY(Inversion!$C$7)),"-") -> 2031-02-10 | C72: 115475831.6 | D72: 1216865.75 | E72: 313695.8231 | F72: 903169.9273 | G72: 115162135.8 | I72: 115475831.6 | J72: 1216865.75 | K72: =IF(N71<K71,(N71+M72),IF(N71<=0.01,0,K71)) -> 1216865.75 | L72: =IF(A72>Inversion!$C$23,0,(K72-M72)) -> 313695.8231 | M72: =IF(N71<=0.01,0,N71*Inversion!$C$22) -> 903169.9273 | N72: =N71-L72 -> 115162135.8 | O72: =IF(I72=0,0,P72*Inversion!$C$22) -> 0 | P72: =IF(I72=0,0,Inversion!$C$18*Inversion!$C$25) -> 0
A73: =IF(A72<Inversion!$C$23,A72+1,"-") -> 68 | B73: =IF(A73<>"-",DATE(YEAR(Inversion!$C$7),MONTH(Inversion!$C$7)+A73,DAY(Inversion!$C$7)),"-") -> 2031-03-10 | C73: 115162135.8 | D73: 1216865.75 | E73: 316149.329 | F73: 900716.4214 | G73: 114845986.4 | I73: 115162135.8 | J73: 1216865.75 | K73: 1216865.75 | L73: =IF(A73>Inversion!$C$23,0,(K73-M73)) -> 316149.329 | M73: =IF(N72<=0.01,0,N72*Inversion!$C$22) -> 900716.4214 | N73: 114845986.4 | O73: =IF(I73=0,0,P73*Inversion!$C$22) -> 0 | P73: =IF(I73=0,0,Inversion!$C$18*Inversion!$C$25) -> 0
A74: =IF(A73<Inversion!$C$23,A73+1,"-") -> 69 | B74: =IF(A74<>"-",DATE(YEAR(Inversion!$C$7),MONTH(Inversion!$C$7)+A74,DAY(Inversion!$C$7)),"-") -> 2031-04-10 | C74: 114845986.4 | D74: 1216865.75 | E74: 318622.0245 | F74: 898243.7259 | G74: 114527364.4 | I74: 114845986.4 | J74: 1216865.75 | K74: 1216865.75 | L74: =IF(A74>Inversion!$C$23,0,(K74-M74)) -> 318622.0245 | M74: =IF(N73<=0.01,0,N73*Inversion!$C$22) -> 898243.7259 | N74: 114527364.4 | O74: =IF(I74=0,0,P74*Inversion!$C$22) -> 0 | P74: =IF(I74=0,0,Inversion!$C$18*Inversion!$C$25) -> 0
A75: =IF(A74<Inversion!$C$23,A74+1,"-") -> 70 | B75: =IF(A75<>"-",DATE(YEAR(Inversion!$C$7),MONTH(Inversion!$C$7)+A75,DAY(Inversion!$C$7)),"-") -> 2031-05-10 | C75: 114527364.4 | D75: 1216865.75 | E75: 321114.0596 | F75: 895751.6907 | G75: 114206250.4 | I75: 114527364.4 | J75: 1216865.75 | K75: 1216865.75 | L75: =IF(A75>Inversion!$C$23,0,(K75-M75)) -> 321114.0596 | M75: =IF(N74<=0.01,0,N74*Inversion!$C$22) -> 895751.6907 | N75: 114206250.4 | O75: =IF(I75=0,0,P75*Inversion!$C$22) -> 0 | P75: =IF(I75=0,0,Inversion!$C$18*Inversion!$C$25) -> 0
A76: =IF(A75<Inversion!$C$23,A75+1,"-") -> 71 | B76: =IF(A76<>"-",DATE(YEAR(Inversion!$C$7),MONTH(Inversion!$C$7)+A76,DAY(Inversion!$C$7)),"-") -> 2031-06-10 | C76: 114206250.4 | D76: 1216865.75 | E76: 323625.5857 | F76: 893240.1647 | G76: 113882624.8 | I76: 114206250.4 | J76: 1216865.75 | K76: 1216865.75 | L76: =IF(A76>Inversion!$C$23,0,(K76-M76)) -> 323625.5857 | M76: =IF(N75<=0.01,0,N75*Inversion!$C$22) -> 893240.1647 | N76: 113882624.8 | O76: =IF(I76=0,0,P76*Inversion!$C$22) -> 0 | P76: =IF(I76=0,0,Inversion!$C$18*Inversion!$C$25) -> 0
A77: =IF(A76<Inversion!$C$23,A76+1,"-") -> 72 | B77: =IF(A77<>"-",DATE(YEAR(Inversion!$C$7),MONTH(Inversion!$C$7)+A77,DAY(Inversion!$C$7)),"-") -> 2031-07-10 | C77: 113882624.8 | D77: 1216865.75 | E77: 326156.7552 | F77: 890708.9952 | G77: 113556468 | I77: 113882624.8 | J77: 1216865.75 | K77: 1216865.75 | L77: =IF(A77>Inversion!$C$23,0,(K77-M77)) -> 326156.7552 | M77: =IF(N76<=0.01,0,N76*Inversion!$C$22) -> 890708.9952 | N77: 113556468 | O77: =IF(I77=0,0,P77*Inversion!$C$22) -> 0 | P77: =IF(I77=0,0,Inversion!$C$18*Inversion!$C$25) -> 0
A78: =IF(A77<Inversion!$C$23,A77+1,"-") -> 73 | B78: =IF(A78<>"-",DATE(YEAR(Inversion!$C$7),MONTH(Inversion!$C$7)+A78,DAY(Inversion!$C$7)),"-") -> 2031-08-10 | C78: 113556468 | D78: 1216865.75 | E78: 328707.7216 | F78: 888158.0288 | G78: 113227760.3 | I78: 113556468 | J78: 1216865.75 | K78: 1216865.75 | L78: =IF(A78>Inversion!$C$23,0,(K78-M78)) -> 328707.7216 | M78: =IF(N77<=0.01,0,N77*Inversion!$C$22) -> 888158.0288 | N78: 113227760.3 | O78: =IF(I78=0,0,P78*Inversion!$C$22) -> 0 | P78: =IF(I78=0,0,Inversion!$C$18*Inversion!$C$25) -> 0
A79: =IF(A78<Inversion!$C$23,A78+1,"-") -> 74 | B79: =IF(A79<>"-",DATE(YEAR(Inversion!$C$7),MONTH(Inversion!$C$7)+A79,DAY(Inversion!$C$7)),"-") -> 2031-09-10 | C79: 113227760.3 | D79: 1216865.75 | E79: 331278.6399 | F79: 885587.1105 | G79: 112896481.7 | I79: 113227760.3 | J79: 1216865.75 | K79: 1216865.75 | L79: =IF(A79>Inversion!$C$23,0,(K79-M79)) -> 331278.6399 | M79: =IF(N78<=0.01,0,N78*Inversion!$C$22) -> 885587.1105 | N79: 112896481.7 | O79: =IF(I79=0,0,P79*Inversion!$C$22) -> 0 | P79: =IF(I79=0,0,Inversion!$C$18*Inversion!$C$25) -> 0
A80: =IF(A79<Inversion!$C$23,A79+1,"-") -> 75 | B80: =IF(A80<>"-",DATE(YEAR(Inversion!$C$7),MONTH(Inversion!$C$7)+A80,DAY(Inversion!$C$7)),"-") -> 2031-10-10 | C80: 112896481.7 | D80: 1216865.75 | E80: 333869.6661 | F80: 882996.0843 | G80: 112562612 | I80: 112896481.7 | J80: 1216865.75 | K80: 1216865.75 | L80: =IF(A80>Inversion!$C$23,0,(K80-M80)) -> 333869.6661 | M80: =IF(N79<=0.01,0,N79*Inversion!$C$22) -> 882996.0843 | N80: 112562612 | O80: =IF(I80=0,0,P80*Inversion!$C$22) -> 0 | P80: =IF(I80=0,0,Inversion!$C$18*Inversion!$C$25) -> 0
A81: =IF(A80<Inversion!$C$23,A80+1,"-") -> 76 | B81: =IF(A81<>"-",DATE(YEAR(Inversion!$C$7),MONTH(Inversion!$C$7)+A81,DAY(Inversion!$C$7)),"-") -> 2031-11-10 | C81: 112562612 | D81: 1216865.75 | E81: 336480.9575 | F81: 880384.7929 | G81: 112226131 | I81: 112562612 | J81: 1216865.75 | K81: 1216865.75 | L81: =IF(A81>Inversion!$C$23,0,(K81-M81)) -> 336480.9575 | M81: =IF(N80<=0.01,0,N80*Inversion!$C$22) -> 880384.7929 | N81: 112226131 | O81: =IF(I81=0,0,P81*Inversion!$C$22) -> 0 | P81: =IF(I81=0,0,Inversion!$C$18*Inversion!$C$25) -> 0
A82: =IF(A81<Inversion!$C$23,A81+1,"-") -> 77 | B82: =IF(A82<>"-",DATE(YEAR(Inversion!$C$7),MONTH(Inversion!$C$7)+A82,DAY(Inversion!$C$7)),"-") -> 2031-12-10 | C82: 112226131 | D82: 1216865.75 | E82: 339112.6725 | F82: 877753.0779 | G82: 111887018.4 | I82: 112226131 | J82: 1216865.75 | K82: 1216865.75 | L82: =IF(A82>Inversion!$C$23,0,(K82-M82)) -> 339112.6725 | M82: =IF(N81<=0.01,0,N81*Inversion!$C$22) -> 877753.0779 | N82: 111887018.4 | O82: =IF(I82=0,0,P82*Inversion!$C$22) -> 0 | P82: =IF(I82=0,0,Inversion!$C$18*Inversion!$C$25) -> 0
A83: =IF(A82<Inversion!$C$23,A82+1,"-") -> 78 | B83: =IF(A83<>"-",DATE(YEAR(Inversion!$C$7),MONTH(Inversion!$C$7)+A83,DAY(Inversion!$C$7)),"-") -> 2032-01-10 | C83: 111887018.4 | D83: 1216865.75 | E83: 341764.9709 | F83: 875100.7794 | G83: 111545253.4 | I83: 111887018.4 | J83: 1216865.75 | K83: 1216865.75 | L83: =IF(A83>Inversion!$C$23,0,(K83-M83)) -> 341764.9709 | M83: =IF(N82<=0.01,0,N82*Inversion!$C$22) -> 875100.7794 | N83: 111545253.4 | O83: =IF(I83=0,0,P83*Inversion!$C$22) -> 0 | P83: =IF(I83=0,0,Inversion!$C$18*Inversion!$C$25) -> 0
A84: =IF(A83<Inversion!$C$23,A83+1,"-") -> 79 | B84: =IF(A84<>"-",DATE(YEAR(Inversion!$C$7),MONTH(Inversion!$C$7)+A84,DAY(Inversion!$C$7)),"-") -> 2032-02-10 | C84: 111545253.4 | D84: 1216865.75 | E84: 344438.0138 | F84: 872427.7366 | G84: 111200815.4 | I84: 111545253.4 | J84: 1216865.75 | K84: 1216865.75 | L84: =IF(A84>Inversion!$C$23,0,(K84-M84)) -> 344438.0138 | M84: =IF(N83<=0.01,0,N83*Inversion!$C$22) -> 872427.7366 | N84: 111200815.4 | O84: =IF(I84=0,0,P84*Inversion!$C$22) -> 0 | P84: =IF(I84=0,0,Inversion!$C$18*Inversion!$C$25) -> 0
A85: =IF(A84<Inversion!$C$23,A84+1,"-") -> 80 | B85: =IF(A85<>"-",DATE(YEAR(Inversion!$C$7),MONTH(Inversion!$C$7)+A85,DAY(Inversion!$C$7)),"-") -> 2032-03-10 | C85: 111200815.4 | D85: 1216865.75 | E85: 347131.9633 | F85: 869733.7871 | G85: 110853683.4 | I85: 111200815.4 | J85: 1216865.75 | K85: 1216865.75 | L85: =IF(A85>Inversion!$C$23,0,(K85-M85)) -> 347131.9633 | M85: =IF(N84<=0.01,0,N84*Inversion!$C$22) -> 869733.7871 | N85: 110853683.4 | O85: =IF(I85=0,0,P85*Inversion!$C$22) -> 0 | P85: =IF(I85=0,0,Inversion!$C$18*Inversion!$C$25) -> 0
A86: =IF(A85<Inversion!$C$23,A85+1,"-") -> 81 | B86: =IF(A86<>"-",DATE(YEAR(Inversion!$C$7),MONTH(Inversion!$C$7)+A86,DAY(Inversion!$C$7)),"-") -> 2032-04-10 | C86: 110853683.4 | D86: 1216865.75 | E86: 349846.9829 | F86: 867018.7675 | G86: 110503836.4 | I86: 110853683.4 | J86: 1216865.75 | K86: 1216865.75 | L86: =IF(A86>Inversion!$C$23,0,(K86-M86)) -> 349846.9829 | M86: =IF(N85<=0.01,0,N85*Inversion!$C$22) -> 867018.7675 | N86: 110503836.4 | O86: =IF(I86=0,0,P86*Inversion!$C$22) -> 0 | P86: =IF(I86=0,0,Inversion!$C$18*Inversion!$C$25) -> 0
A87: =IF(A86<Inversion!$C$23,A86+1,"-") -> 82 | B87: =IF(A87<>"-",DATE(YEAR(Inversion!$C$7),MONTH(Inversion!$C$7)+A87,DAY(Inversion!$C$7)),"-") -> 2032-05-10 | C87: 110503836.4 | D87: 1216865.75 | E87: 352583.2375 | F87: 864282.5129 | G87: 110151253.2 | I87: 110503836.4 | J87: 1216865.75 | K87: 1216865.75 | L87: =IF(A87>Inversion!$C$23,0,(K87-M87)) -> 352583.2375 | M87: =IF(N86<=0.01,0,N86*Inversion!$C$22) -> 864282.5129 | N87: 110151253.2 | O87: =IF(I87=0,0,P87*Inversion!$C$22) -> 0 | P87: =IF(I87=0,0,Inversion!$C$18*Inversion!$C$25) -> 0
A88: =IF(A87<Inversion!$C$23,A87+1,"-") -> 83 | B88: =IF(A88<>"-",DATE(YEAR(Inversion!$C$7),MONTH(Inversion!$C$7)+A88,DAY(Inversion!$C$7)),"-") -> 2032-06-10 | C88: 110151253.2 | D88: 1216865.75 | E88: 355340.8931 | F88: 861524.8573 | G88: 109795912.3 | I88: 110151253.2 | J88: 1216865.75 | K88: 1216865.75 | L88: =IF(A88>Inversion!$C$23,0,(K88-M88)) -> 355340.8931 | M88: =IF(N87<=0.01,0,N87*Inversion!$C$22) -> 861524.8573 | N88: 109795912.3 | O88: =IF(I88=0,0,P88*Inversion!$C$22) -> 0 | P88: =IF(I88=0,0,Inversion!$C$18*Inversion!$C$25) -> 0
A89: =IF(A88<Inversion!$C$23,A88+1,"-") -> 84 | B89: =IF(A89<>"-",DATE(YEAR(Inversion!$C$7),MONTH(Inversion!$C$7)+A89,DAY(Inversion!$C$7)),"-") -> 2032-07-10 | C89: 109795912.3 | D89: 1216865.75 | E89: 358120.1172 | F89: 858745.6332 | G89: 109437792.2 | I89: 109795912.3 | J89: 1216865.75 | K89: 1216865.75 | L89: =IF(A89>Inversion!$C$23,0,(K89-M89)) -> 358120.1172 | M89: =IF(N88<=0.01,0,N88*Inversion!$C$22) -> 858745.6332 | N89: 109437792.2 | O89: =IF(I89=0,0,P89*Inversion!$C$22) -> 0 | P89: =IF(I89=0,0,Inversion!$C$18*Inversion!$C$25) -> 0
A90: =IF(A89<Inversion!$C$23,A89+1,"-") -> 85 | B90: =IF(A90<>"-",DATE(YEAR(Inversion!$C$7),MONTH(Inversion!$C$7)+A90,DAY(Inversion!$C$7)),"-") -> 2032-08-10 | C90: 109437792.2 | D90: 1216865.75 | E90: 360921.0783 | F90: 855944.672 | G90: 109076871.1 | I90: 109437792.2 | J90: 1216865.75 | K90: 1216865.75 | L90: =IF(A90>Inversion!$C$23,0,(K90-M90)) -> 360921.0783 | M90: =IF(N89<=0.01,0,N89*Inversion!$C$22) -> 855944.672 | N90: 109076871.1 | O90: =IF(I90=0,0,P90*Inversion!$C$22) -> 0 | P90: =IF(I90=0,0,Inversion!$C$18*Inversion!$C$25) -> 0
A91: =IF(A90<Inversion!$C$23,A90+1,"-") -> 86 | B91: =IF(A91<>"-",DATE(YEAR(Inversion!$C$7),MONTH(Inversion!$C$7)+A91,DAY(Inversion!$C$7)),"-") -> 2032-09-10 | C91: 109076871.1 | D91: 1216865.75 | E91: 363743.9466 | F91: 853121.8038 | G91: 108713127.2 | I91: 109076871.1 | J91: 1216865.75 | K91: 1216865.75 | L91: =IF(A91>Inversion!$C$23,0,(K91-M91)) -> 363743.9466 | M91: =IF(N90<=0.01,0,N90*Inversion!$C$22) -> 853121.8038 | N91: 108713127.2 | O91: =IF(I91=0,0,P91*Inversion!$C$22) -> 0 | P91: =IF(I91=0,0,Inversion!$C$18*Inversion!$C$25) -> 0
A92: =IF(A91<Inversion!$C$23,A91+1,"-") -> 87 | B92: =IF(A92<>"-",DATE(YEAR(Inversion!$C$7),MONTH(Inversion!$C$7)+A92,DAY(Inversion!$C$7)),"-") -> 2032-10-10 | C92: 108713127.2 | D92: 1216865.75 | E92: 366588.8934 | F92: 850276.857 | G92: 108346538.3 | I92: 108713127.2 | J92: 1216865.75 | K92: 1216865.75 | L92: =IF(A92>Inversion!$C$23,0,(K92-M92)) -> 366588.8934 | M92: =IF(N91<=0.01,0,N91*Inversion!$C$22) -> 850276.857 | N92: 108346538.3 | O92: =IF(I92=0,0,P92*Inversion!$C$22) -> 0 | P92: =IF(I92=0,0,Inversion!$C$18*Inversion!$C$25) -> 0
A93: =IF(A92<Inversion!$C$23,A92+1,"-") -> 88 | B93: =IF(A93<>"-",DATE(YEAR(Inversion!$C$7),MONTH(Inversion!$C$7)+A93,DAY(Inversion!$C$7)),"-") -> 2032-11-10 | C93: 108346538.3 | D93: 1216865.75 | E93: 369456.0913 | F93: 847409.6591 | G93: 107977082.2 | I93: 108346538.3 | J93: 1216865.75 | K93: 1216865.75 | L93: =IF(A93>Inversion!$C$23,0,(K93-M93)) -> 369456.0913 | M93: =IF(N92<=0.01,0,N92*Inversion!$C$22) -> 847409.6591 | N93: 107977082.2 | O93: =IF(I93=0,0,P93*Inversion!$C$22) -> 0 | P93: =IF(I93=0,0,Inversion!$C$18*Inversion!$C$25) -> 0
A94: =IF(A93<Inversion!$C$23,A93+1,"-") -> 89 | B94: =IF(A94<>"-",DATE(YEAR(Inversion!$C$7),MONTH(Inversion!$C$7)+A94,DAY(Inversion!$C$7)),"-") -> 2032-12-10 | C94: 107977082.2 | D94: 1216865.75 | E94: 372345.7144 | F94: 844520.036 | G94: 107604736.5 | I94: 107977082.2 | J94: 1216865.75 | K94: 1216865.75 | L94: =IF(A94>Inversion!$C$23,0,(K94-M94)) -> 372345.7144 | M94: =IF(N93<=0.01,0,N93*Inversion!$C$22) -> 844520.036 | N94: 107604736.5 | O94: =IF(I94=0,0,P94*Inversion!$C$22) -> 0 | P94: =IF(I94=0,0,Inversion!$C$18*Inversion!$C$25) -> 0
A95: =IF(A94<Inversion!$C$23,A94+1,"-") -> 90 | B95: =IF(A95<>"-",DATE(YEAR(Inversion!$C$7),MONTH(Inversion!$C$7)+A95,DAY(Inversion!$C$7)),"-") -> 2033-01-10 | C95: 107604736.5 | D95: 1216865.75 | E95: 375257.9381 | F95: 841607.8123 | G95: 107229478.5 | I95: 107604736.5 | J95: 1216865.75 | K95: 1216865.75 | L95: =IF(A95>Inversion!$C$23,0,(K95-M95)) -> 375257.9381 | M95: =IF(N94<=0.01,0,N94*Inversion!$C$22) -> 841607.8123 | N95: 107229478.5 | O95: =IF(I95=0,0,P95*Inversion!$C$22) -> 0 | P95: =IF(I95=0,0,Inversion!$C$18*Inversion!$C$25) -> 0
A96: =IF(A95<Inversion!$C$23,A95+1,"-") -> 91 | B96: =IF(A96<>"-",DATE(YEAR(Inversion!$C$7),MONTH(Inversion!$C$7)+A96,DAY(Inversion!$C$7)),"-") -> 2033-02-10 | C96: 107229478.5 | D96: 1216865.75 | E96: 378192.9391 | F96: 838672.8112 | G96: 106851285.6 | I96: 107229478.5 | J96: 1216865.75 | K96: 1216865.75 | L96: =IF(A96>Inversion!$C$23,0,(K96-M96)) -> 378192.9391 | M96: =IF(N95<=0.01,0,N95*Inversion!$C$22) -> 838672.8112 | N96: 106851285.6 | O96: =IF(I96=0,0,P96*Inversion!$C$22) -> 0 | P96: =IF(I96=0,0,Inversion!$C$18*Inversion!$C$25) -> 0
A97: =IF(A96<Inversion!$C$23,A96+1,"-") -> 92 | B97: =IF(A97<>"-",DATE(YEAR(Inversion!$C$7),MONTH(Inversion!$C$7)+A97,DAY(Inversion!$C$7)),"-") -> 2033-03-10 | C97: 106851285.6 | D97: 1216865.75 | E97: 381150.8957 | F97: 835714.8547 | G97: 106470134.7 | I97: 106851285.6 | J97: 1216865.75 | K97: 1216865.75 | L97: =IF(A97>Inversion!$C$23,0,(K97-M97)) -> 381150.8957 | M97: =IF(N96<=0.01,0,N96*Inversion!$C$22) -> 835714.8547 | N97: 106470134.7 | O97: =IF(I97=0,0,P97*Inversion!$C$22) -> 0 | P97: =IF(I97=0,0,Inversion!$C$18*Inversion!$C$25) -> 0
A98: =IF(A97<Inversion!$C$23,A97+1,"-") -> 93 | B98: =IF(A98<>"-",DATE(YEAR(Inversion!$C$7),MONTH(Inversion!$C$7)+A98,DAY(Inversion!$C$7)),"-") -> 2033-04-10 | C98: 106470134.7 | D98: 1216865.75 | E98: 384131.9872 | F98: 832733.7632 | G98: 106086002.7 | I98: 106470134.7 | J98: 1216865.75 | K98: 1216865.75 | L98: =IF(A98>Inversion!$C$23,0,(K98-M98)) -> 384131.9872 | M98: =IF(N97<=0.01,0,N97*Inversion!$C$22) -> 832733.7632 | N98: 106086002.7 | O98: =IF(I98=0,0,P98*Inversion!$C$22) -> 0 | P98: =IF(I98=0,0,Inversion!$C$18*Inversion!$C$25) -> 0
A99: =IF(A98<Inversion!$C$23,A98+1,"-") -> 94 | B99: =IF(A99<>"-",DATE(YEAR(Inversion!$C$7),MONTH(Inversion!$C$7)+A99,DAY(Inversion!$C$7)),"-") -> 2033-05-10 | C99: 106086002.7 | D99: 1216865.75 | E99: 387136.3947 | F99: 829729.3556 | G99: 105698866.3 | I99: 106086002.7 | J99: 1216865.75 | K99: 1216865.75 | L99: =IF(A99>Inversion!$C$23,0,(K99-M99)) -> 387136.3947 | M99: =IF(N98<=0.01,0,N98*Inversion!$C$22) -> 829729.3556 | N99: 105698866.3 | O99: =IF(I99=0,0,P99*Inversion!$C$22) -> 0 | P99: =IF(I99=0,0,Inversion!$C$18*Inversion!$C$25) -> 0
A100: =IF(A99<Inversion!$C$23,A99+1,"-") -> 95 | B100: =IF(A100<>"-",DATE(YEAR(Inversion!$C$7),MONTH(Inversion!$C$7)+A100,DAY(Inversion!$C$7)),"-") -> 2033-06-10 | C100: 105698866.3 | D100: 1216865.75 | E100: 390164.3006 | F100: 826701.4497 | G100: 105308702 | I100: 105698866.3 | J100: 1216865.75 | K100: 1216865.75 | L100: =IF(A100>Inversion!$C$23,0,(K100-M100)) -> 390164.3006 | M100: =IF(N99<=0.01,0,N99*Inversion!$C$22) -> 826701.4497 | N100: 105308702 | O100: =IF(I100=0,0,P100*Inversion!$C$22) -> 0 | P100: =IF(I100=0,0,Inversion!$C$18*Inversion!$C$25) -> 0
A101: =IF(A100<Inversion!$C$23,A100+1,"-") -> 96 | B101: =IF(A101<>"-",DATE(YEAR(Inversion!$C$7),MONTH(Inversion!$C$7)+A101,DAY(Inversion!$C$7)),"-") -> 2033-07-10 | C101: 105308702 | D101: 1216865.75 | E101: 393215.8886 | F101: 823649.8617 | G101: 104915486.1 | I101: 105308702 | J101: 1216865.75 | K101: 1216865.75 | L101: =IF(A101>Inversion!$C$23,0,(K101-M101)) -> 393215.8886 | M101: =IF(N100<=0.01,0,N100*Inversion!$C$22) -> 823649.8617 | N101: 104915486.1 | O101: =IF(I101=0,0,P101*Inversion!$C$22) -> 0 | P101: =IF(I101=0,0,Inversion!$C$18*Inversion!$C$25) -> 0
A102: =IF(A101<Inversion!$C$23,A101+1,"-") -> 97 | B102: =IF(A102<>"-",DATE(YEAR(Inversion!$C$7),MONTH(Inversion!$C$7)+A102,DAY(Inversion!$C$7)),"-") -> 2033-08-10 | C102: 104915486.1 | D102: 1216865.75 | E102: 396291.344 | F102: 820574.4064 | G102: 104519194.8 | I102: 104915486.1 | J102: 1216865.75 | K102: 1216865.75 | L102: =IF(A102>Inversion!$C$23,0,(K102-M102)) -> 396291.344 | M102: =IF(N101<=0.01,0,N101*Inversion!$C$22) -> 820574.4064 | N102: 104519194.8 | O102: =IF(I102=0,0,P102*Inversion!$C$22) -> 0 | P102: =IF(I102=0,0,Inversion!$C$18*Inversion!$C$25) -> 0
A103: =IF(A102<Inversion!$C$23,A102+1,"-") -> 98 | B103: =IF(A103<>"-",DATE(YEAR(Inversion!$C$7),MONTH(Inversion!$C$7)+A103,DAY(Inversion!$C$7)),"-") -> 2033-09-10 | C103: 104519194.8 | D103: 1216865.75 | E103: 399390.8534 | F103: 817474.897 | G103: 104119803.9 | I103: 104519194.8 | J103: 1216865.75 | K103: 1216865.75 | L103: =IF(A103>Inversion!$C$23,0,(K103-M103)) -> 399390.8534 | M103: =IF(N102<=0.01,0,N102*Inversion!$C$22) -> 817474.897 | N103: 104119803.9 | O103: =IF(I103=0,0,P103*Inversion!$C$22) -> 0 | P103: =IF(I103=0,0,Inversion!$C$18*Inversion!$C$25) -> 0
A104: =IF(A103<Inversion!$C$23,A103+1,"-") -> 99 | B104: =IF(A104<>"-",DATE(YEAR(Inversion!$C$7),MONTH(Inversion!$C$7)+A104,DAY(Inversion!$C$7)),"-") -> 2033-10-10 | C104: 104119803.9 | D104: 1216865.75 | E104: 402514.6049 | F104: 814351.1454 | G104: 103717289.3 | I104: 104119803.9 | J104: 1216865.75 | K104: 1216865.75 | L104: =IF(A104>Inversion!$C$23,0,(K104-M104)) -> 402514.6049 | M104: =IF(N103<=0.01,0,N103*Inversion!$C$22) -> 814351.1454 | N104: 103717289.3 | O104: =IF(I104=0,0,P104*Inversion!$C$22) -> 0 | P104: =IF(I104=0,0,Inversion!$C$18*Inversion!$C$25) -> 0
A105: =IF(A104<Inversion!$C$23,A104+1,"-") -> 100 | B105: =IF(A105<>"-",DATE(YEAR(Inversion!$C$7),MONTH(Inversion!$C$7)+A105,DAY(Inversion!$C$7)),"-") -> 2033-11-10 | C105: 103717289.3 | D105: 1216865.75 | E105: 405662.7883 | F105: 811202.9621 | G105: 103311626.5 | I105: 103717289.3 | J105: 1216865.75 | K105: 1216865.75 | L105: =IF(A105>Inversion!$C$23,0,(K105-M105)) -> 405662.7883 | M105: =IF(N104<=0.01,0,N104*Inversion!$C$22) -> 811202.9621 | N105: 103311626.5 | O105: =IF(I105=0,0,P105*Inversion!$C$22) -> 0 | P105: =IF(I105=0,0,Inversion!$C$18*Inversion!$C$25) -> 0
A106: =IF(A105<Inversion!$C$23,A105+1,"-") -> 101 | B106: =IF(A106<>"-",DATE(YEAR(Inversion!$C$7),MONTH(Inversion!$C$7)+A106,DAY(Inversion!$C$7)),"-") -> 2033-12-10 | C106: 103311626.5 | D106: 1216865.75 | E106: 408835.5944 | F106: 808030.1559 | G106: 102902790.9 | I106: 103311626.5 | J106: 1216865.75 | K106: 1216865.75 | L106: =IF(A106>Inversion!$C$23,0,(K106-M106)) -> 408835.5944 | M106: =IF(N105<=0.01,0,N105*Inversion!$C$22) -> 808030.1559 | N106: 102902790.9 | O106: =IF(I106=0,0,P106*Inversion!$C$22) -> 0 | P106: =IF(I106=0,0,Inversion!$C$18*Inversion!$C$25) -> 0
A107: =IF(A106<Inversion!$C$23,A106+1,"-") -> 102 | B107: =IF(A107<>"-",DATE(YEAR(Inversion!$C$7),MONTH(Inversion!$C$7)+A107,DAY(Inversion!$C$7)),"-") -> 2034-01-10 | C107: 102902790.9 | D107: 1216865.75 | E107: 412033.216 | F107: 804832.5343 | G107: 102490757.7 | I107: 102902790.9 | J107: 1216865.75 | K107: 1216865.75 | L107: =IF(A107>Inversion!$C$23,0,(K107-M107)) -> 412033.216 | M107: =IF(N106<=0.01,0,N106*Inversion!$C$22) -> 804832.5343 | N107: 102490757.7 | O107: =IF(I107=0,0,P107*Inversion!$C$22) -> 0 | P107: =IF(I107=0,0,Inversion!$C$18*Inversion!$C$25) -> 0
A108: =IF(A107<Inversion!$C$23,A107+1,"-") -> 103 | B108: =IF(A108<>"-",DATE(YEAR(Inversion!$C$7),MONTH(Inversion!$C$7)+A108,DAY(Inversion!$C$7)),"-") -> 2034-02-10 | C108: 102490757.7 | D108: 1216865.75 | E108: 415255.8472 | F108: 801609.9032 | G108: 102075501.9 | I108: 102490757.7 | J108: 1216865.75 | K108: 1216865.75 | L108: =IF(A108>Inversion!$C$23,0,(K108-M108)) -> 415255.8472 | M108: =IF(N107<=0.01,0,N107*Inversion!$C$22) -> 801609.9032 | N108: 102075501.9 | O108: =IF(I108=0,0,P108*Inversion!$C$22) -> 0 | P108: =IF(I108=0,0,Inversion!$C$18*Inversion!$C$25) -> 0
A109: =IF(A108<Inversion!$C$23,A108+1,"-") -> 104 | B109: =IF(A109<>"-",DATE(YEAR(Inversion!$C$7),MONTH(Inversion!$C$7)+A109,DAY(Inversion!$C$7)),"-") -> 2034-03-10 | C109: 102075501.9 | D109: 1216865.75 | E109: 418503.6834 | F109: 798362.0669 | G109: 101656998.2 | I109: 102075501.9 | J109: 1216865.75 | K109: 1216865.75 | L109: =IF(A109>Inversion!$C$23,0,(K109-M109)) -> 418503.6834 | M109: =IF(N108<=0.01,0,N108*Inversion!$C$22) -> 798362.0669 | N109: 101656998.2 | O109: =IF(I109=0,0,P109*Inversion!$C$22) -> 0 | P109: =IF(I109=0,0,Inversion!$C$18*Inversion!$C$25) -> 0
A110: =IF(A109<Inversion!$C$23,A109+1,"-") -> 105 | B110: =IF(A110<>"-",DATE(YEAR(Inversion!$C$7),MONTH(Inversion!$C$7)+A110,DAY(Inversion!$C$7)),"-") -> 2034-04-10 | C110: 101656998.2 | D110: 1216865.75 | E110: 421776.922 | F110: 795088.8284 | G110: 101235221.3 | I110: 101656998.2 | J110: 1216865.75 | K110: 1216865.75 | L110: =IF(A110>Inversion!$C$23,0,(K110-M110)) -> 421776.922 | M110: =IF(N109<=0.01,0,N109*Inversion!$C$22) -> 795088.8284 | N110: 101235221.3 | O110: =IF(I110=0,0,P110*Inversion!$C$22) -> 0 | P110: =IF(I110=0,0,Inversion!$C$18*Inversion!$C$25) -> 0
A111: =IF(A110<Inversion!$C$23,A110+1,"-") -> 106 | B111: =IF(A111<>"-",DATE(YEAR(Inversion!$C$7),MONTH(Inversion!$C$7)+A111,DAY(Inversion!$C$7)),"-") -> 2034-05-10 | C111: 101235221.3 | D111: 1216865.75 | E111: 425075.7614 | F111: 791789.9889 | G111: 100810145.5 | I111: 101235221.3 | J111: 1216865.75 | K111: 1216865.75 | L111: =IF(A111>Inversion!$C$23,0,(K111-M111)) -> 425075.7614 | M111: =IF(N110<=0.01,0,N110*Inversion!$C$22) -> 791789.9889 | N111: 100810145.5 | O111: =IF(I111=0,0,P111*Inversion!$C$22) -> 0 | P111: =IF(I111=0,0,Inversion!$C$18*Inversion!$C$25) -> 0
A112: =IF(A111<Inversion!$C$23,A111+1,"-") -> 107 | B112: =IF(A112<>"-",DATE(YEAR(Inversion!$C$7),MONTH(Inversion!$C$7)+A112,DAY(Inversion!$C$7)),"-") -> 2034-06-10 | C112: 100810145.5 | D112: 1216865.75 | E112: 428400.4021 | F112: 788465.3483 | G112: 100381745.1 | I112: 100810145.5 | J112: 1216865.75 | K112: 1216865.75 | L112: =IF(A112>Inversion!$C$23,0,(K112-M112)) -> 428400.4021 | M112: =IF(N111<=0.01,0,N111*Inversion!$C$22) -> 788465.3483 | N112: 100381745.1 | O112: =IF(I112=0,0,P112*Inversion!$C$22) -> 0 | P112: =IF(I112=0,0,Inversion!$C$18*Inversion!$C$25) -> 0
A113: =IF(A112<Inversion!$C$23,A112+1,"-") -> 108 | B113: =IF(A113<>"-",DATE(YEAR(Inversion!$C$7),MONTH(Inversion!$C$7)+A113,DAY(Inversion!$C$7)),"-") -> 2034-07-10 | C113: 100381745.1 | D113: 1216865.75 | E113: 431751.0457 | F113: 785114.7046 | G113: 99949994.05 | I113: 100381745.1 | J113: 1216865.75 | K113: 1216865.75 | L113: =IF(A113>Inversion!$C$23,0,(K113-M113)) -> 431751.0457 | M113: =IF(N112<=0.01,0,N112*Inversion!$C$22) -> 785114.7046 | N113: 99949994.05 | O113: =IF(I113=0,0,P113*Inversion!$C$22) -> 0 | P113: =IF(I113=0,0,Inversion!$C$18*Inversion!$C$25) -> 0
A114: =IF(A113<Inversion!$C$23,A113+1,"-") -> 109 | B114: =IF(A114<>"-",DATE(YEAR(Inversion!$C$7),MONTH(Inversion!$C$7)+A114,DAY(Inversion!$C$7)),"-") -> 2034-08-10 | C114: 99949994.05 | D114: 1216865.75 | E114: 435127.8957 | F114: 781737.8547 | G114: 99514866.15 | I114: 99949994.05 | J114: 1216865.75 | K114: 1216865.75 | L114: =IF(A114>Inversion!$C$23,0,(K114-M114)) -> 435127.8957 | M114: =IF(N113<=0.01,0,N113*Inversion!$C$22) -> 781737.8547 | N114: 99514866.15 | O114: =IF(I114=0,0,P114*Inversion!$C$22) -> 0 | P114: =IF(I114=0,0,Inversion!$C$18*Inversion!$C$25) -> 0
A115: =IF(A114<Inversion!$C$23,A114+1,"-") -> 110 | B115: =IF(A115<>"-",DATE(YEAR(Inversion!$C$7),MONTH(Inversion!$C$7)+A115,DAY(Inversion!$C$7)),"-") -> 2034-09-10 | C115: 99514866.15 | D115: 1216865.75 | E115: 438531.157 | F115: 778334.5934 | G115: 99076335 | I115: 99514866.15 | J115: 1216865.75 | K115: 1216865.75 | L115: =IF(A115>Inversion!$C$23,0,(K115-M115)) -> 438531.157 | M115: =IF(N114<=0.01,0,N114*Inversion!$C$22) -> 778334.5934 | N115: 99076335 | O115: =IF(I115=0,0,P115*Inversion!$C$22) -> 0 | P115: =IF(I115=0,0,Inversion!$C$18*Inversion!$C$25) -> 0
A116: =IF(A115<Inversion!$C$23,A115+1,"-") -> 111 | B116: =IF(A116<>"-",DATE(YEAR(Inversion!$C$7),MONTH(Inversion!$C$7)+A116,DAY(Inversion!$C$7)),"-") -> 2034-10-10 | C116: 99076335 | D116: 1216865.75 | E116: 441961.0362 | F116: 774904.7141 | G116: 98634373.96 | I116: 99076335 | J116: 1216865.75 | K116: 1216865.75 | L116: =IF(A116>Inversion!$C$23,0,(K116-M116)) -> 441961.0362 | M116: =IF(N115<=0.01,0,N115*Inversion!$C$22) -> 774904.7141 | N116: 98634373.96 | O116: =IF(I116=0,0,P116*Inversion!$C$22) -> 0 | P116: =IF(I116=0,0,Inversion!$C$18*Inversion!$C$25) -> 0
A117: =IF(A116<Inversion!$C$23,A116+1,"-") -> 112 | B117: =IF(A117<>"-",DATE(YEAR(Inversion!$C$7),MONTH(Inversion!$C$7)+A117,DAY(Inversion!$C$7)),"-") -> 2034-11-10 | C117: 98634373.96 | D117: 1216865.75 | E117: 445417.7415 | F117: 771448.0089 | G117: 98188956.22 | I117: 98634373.96 | J117: 1216865.75 | K117: 1216865.75 | L117: =IF(A117>Inversion!$C$23,0,(K117-M117)) -> 445417.7415 | M117: =IF(N116<=0.01,0,N116*Inversion!$C$22) -> 771448.0089 | N117: 98188956.22 | O117: =IF(I117=0,0,P117*Inversion!$C$22) -> 0 | P117: =IF(I117=0,0,Inversion!$C$18*Inversion!$C$25) -> 0
A118: =IF(A117<Inversion!$C$23,A117+1,"-") -> 113 | B118: =IF(A118<>"-",DATE(YEAR(Inversion!$C$7),MONTH(Inversion!$C$7)+A118,DAY(Inversion!$C$7)),"-") -> 2034-12-10 | C118: 98188956.22 | D118: 1216865.75 | E118: 448901.4827 | F118: 767964.2677 | G118: 97740054.74 | I118: 98188956.22 | J118: 1216865.75 | K118: 1216865.75 | L118: =IF(A118>Inversion!$C$23,0,(K118-M118)) -> 448901.4827 | M118: =IF(N117<=0.01,0,N117*Inversion!$C$22) -> 767964.2677 | N118: 97740054.74 | O118: =IF(I118=0,0,P118*Inversion!$C$22) -> 0 | P118: =IF(I118=0,0,Inversion!$C$18*Inversion!$C$25) -> 0
A119: =IF(A118<Inversion!$C$23,A118+1,"-") -> 114 | B119: =IF(A119<>"-",DATE(YEAR(Inversion!$C$7),MONTH(Inversion!$C$7)+A119,DAY(Inversion!$C$7)),"-") -> 2035-01-10 | C119: 97740054.74 | D119: 1216865.75 | E119: 452412.4712 | F119: 764453.2792 | G119: 97287642.27 | I119: 97740054.74 | J119: 1216865.75 | K119: 1216865.75 | L119: =IF(A119>Inversion!$C$23,0,(K119-M119)) -> 452412.4712 | M119: =IF(N118<=0.01,0,N118*Inversion!$C$22) -> 764453.2792 | N119: 97287642.27 | O119: =IF(I119=0,0,P119*Inversion!$C$22) -> 0 | P119: =IF(I119=0,0,Inversion!$C$18*Inversion!$C$25) -> 0
A120: =IF(A119<Inversion!$C$23,A119+1,"-") -> 115 | B120: =IF(A120<>"-",DATE(YEAR(Inversion!$C$7),MONTH(Inversion!$C$7)+A120,DAY(Inversion!$C$7)),"-") -> 2035-02-10 | C120: 97287642.27 | D120: 1216865.75 | E120: 455950.9202 | F120: 760914.8302 | G120: 96831691.35 | I120: 97287642.27 | J120: 1216865.75 | K120: 1216865.75 | L120: =IF(A120>Inversion!$C$23,0,(K120-M120)) -> 455950.9202 | M120: =IF(N119<=0.01,0,N119*Inversion!$C$22) -> 760914.8302 | N120: 96831691.35 | O120: =IF(I120=0,0,P120*Inversion!$C$22) -> 0 | P120: =IF(I120=0,0,Inversion!$C$18*Inversion!$C$25) -> 0
A121: =IF(A120<Inversion!$C$23,A120+1,"-") -> 116 | B121: =IF(A121<>"-",DATE(YEAR(Inversion!$C$7),MONTH(Inversion!$C$7)+A121,DAY(Inversion!$C$7)),"-") -> 2035-03-10 | C121: 96831691.35 | D121: 1216865.75 | E121: 459517.0444 | F121: 757348.706 | G121: 96372174.3 | I121: 96831691.35 | J121: 1216865.75 | K121: 1216865.75 | L121: =IF(A121>Inversion!$C$23,0,(K121-M121)) -> 459517.0444 | M121: =IF(N120<=0.01,0,N120*Inversion!$C$22) -> 757348.706 | N121: 96372174.3 | O121: =IF(I121=0,0,P121*Inversion!$C$22) -> 0 | P121: =IF(I121=0,0,Inversion!$C$18*Inversion!$C$25) -> 0
A122: =IF(A121<Inversion!$C$23,A121+1,"-") -> 117 | B122: =IF(A122<>"-",DATE(YEAR(Inversion!$C$7),MONTH(Inversion!$C$7)+A122,DAY(Inversion!$C$7)),"-") -> 2035-04-10 | C122: 96372174.3 | D122: 1216865.75 | E122: 463111.0603 | F122: 753754.6901 | G122: 95909063.24 | I122: 96372174.3 | J122: 1216865.75 | K122: 1216865.75 | L122: =IF(A122>Inversion!$C$23,0,(K122-M122)) -> 463111.0603 | M122: =IF(N121<=0.01,0,N121*Inversion!$C$22) -> 753754.6901 | N122: 95909063.24 | O122: =IF(I122=0,0,P122*Inversion!$C$22) -> 0 | P122: =IF(I122=0,0,Inversion!$C$18*Inversion!$C$25) -> 0
A123: =IF(A122<Inversion!$C$23,A122+1,"-") -> 118 | B123: =IF(A123<>"-",DATE(YEAR(Inversion!$C$7),MONTH(Inversion!$C$7)+A123,DAY(Inversion!$C$7)),"-") -> 2035-05-10 | C123: 95909063.24 | D123: 1216865.75 | E123: 466733.1861 | F123: 750132.5643 | G123: 95442330.05 | I123: 95909063.24 | J123: 1216865.75 | K123: 1216865.75 | L123: =IF(A123>Inversion!$C$23,0,(K123-M123)) -> 466733.1861 | M123: =IF(N122<=0.01,0,N122*Inversion!$C$22) -> 750132.5643 | N123: 95442330.05 | O123: =IF(I123=0,0,P123*Inversion!$C$22) -> 0 | P123: =IF(I123=0,0,Inversion!$C$18*Inversion!$C$25) -> 0
A124: =IF(A123<Inversion!$C$23,A123+1,"-") -> 119 | B124: =IF(A124<>"-",DATE(YEAR(Inversion!$C$7),MONTH(Inversion!$C$7)+A124,DAY(Inversion!$C$7)),"-") -> 2035-06-10 | C124: 95442330.05 | D124: 1216865.75 | E124: 470383.6415 | F124: 746482.1089 | G124: 94971946.41 | I124: 95442330.05 | J124: 1216865.75 | K124: 1216865.75 | L124: =IF(A124>Inversion!$C$23,0,(K124-M124)) -> 470383.6415 | M124: =IF(N123<=0.01,0,N123*Inversion!$C$22) -> 746482.1089 | N124: 94971946.41 | O124: =IF(I124=0,0,P124*Inversion!$C$22) -> 0 | P124: =IF(I124=0,0,Inversion!$C$18*Inversion!$C$25) -> 0
A125: =IF(A124<Inversion!$C$23,A124+1,"-") -> 120 | B125: =IF(A125<>"-",DATE(YEAR(Inversion!$C$7),MONTH(Inversion!$C$7)+A125,DAY(Inversion!$C$7)),"-") -> 2035-07-10 | C125: 94971946.41 | D125: 1216865.75 | E125: 474062.6482 | F125: 742803.1022 | G125: 94497883.77 | I125: 94971946.41 | J125: 1216865.75 | K125: 1216865.75 | L125: =IF(A125>Inversion!$C$23,0,(K125-M125)) -> 474062.6482 | M125: =IF(N124<=0.01,0,N124*Inversion!$C$22) -> 742803.1022 | N125: 94497883.77 | O125: =IF(I125=0,0,P125*Inversion!$C$22) -> 0 | P125: =IF(I125=0,0,Inversion!$C$18*Inversion!$C$25) -> 0
A126: =IF(A125<Inversion!$C$23,A125+1,"-") -> 121 | B126: =IF(A126<>"-",DATE(YEAR(Inversion!$C$7),MONTH(Inversion!$C$7)+A126,DAY(Inversion!$C$7)),"-") -> 2035-08-10 | C126: 94497883.77 | D126: 1216865.75 | E126: 477770.4295 | F126: 739095.3209 | G126: 94020113.34 | I126: 94497883.77 | J126: 1216865.75 | K126: 1216865.75 | L126: =IF(A126>Inversion!$C$23,0,(K126-M126)) -> 477770.4295 | M126: =IF(N125<=0.01,0,N125*Inversion!$C$22) -> 739095.3209 | N126: 94020113.34 | O126: =IF(I126=0,0,P126*Inversion!$C$22) -> 0 | P126: =IF(I126=0,0,Inversion!$C$18*Inversion!$C$25) -> 0
A127: =IF(A126<Inversion!$C$23,A126+1,"-") -> 122 | B127: =IF(A127<>"-",DATE(YEAR(Inversion!$C$7),MONTH(Inversion!$C$7)+A127,DAY(Inversion!$C$7)),"-") -> 2035-09-10 | C127: 94020113.34 | D127: 1216865.75 | E127: 481507.2104 | F127: 735358.54 | G127: 93538606.13 | I127: 94020113.34 | J127: 1216865.75 | K127: 1216865.75 | L127: =IF(A127>Inversion!$C$23,0,(K127-M127)) -> 481507.2104 | M127: =IF(N126<=0.01,0,N126*Inversion!$C$22) -> 735358.54 | N127: 93538606.13 | O127: =IF(I127=0,0,P127*Inversion!$C$22) -> 0 | P127: =IF(I127=0,0,Inversion!$C$18*Inversion!$C$25) -> 0
A128: =IF(A127<Inversion!$C$23,A127+1,"-") -> 123 | B128: =IF(A128<>"-",DATE(YEAR(Inversion!$C$7),MONTH(Inversion!$C$7)+A128,DAY(Inversion!$C$7)),"-") -> 2035-10-10 | C128: 93538606.13 | D128: 1216865.75 | E128: 485273.2178 | F128: 731592.5326 | G128: 93053332.91 | I128: 93538606.13 | J128: 1216865.75 | K128: 1216865.75 | L128: =IF(A128>Inversion!$C$23,0,(K128-M128)) -> 485273.2178 | M128: =IF(N127<=0.01,0,N127*Inversion!$C$22) -> 731592.5326 | N128: 93053332.91 | O128: =IF(I128=0,0,P128*Inversion!$C$22) -> 0 | P128: =IF(I128=0,0,Inversion!$C$18*Inversion!$C$25) -> 0
A129: =IF(A128<Inversion!$C$23,A128+1,"-") -> 124 | B129: =IF(A129<>"-",DATE(YEAR(Inversion!$C$7),MONTH(Inversion!$C$7)+A129,DAY(Inversion!$C$7)),"-") -> 2035-11-10 | C129: 93053332.91 | D129: 1216865.75 | E129: 489068.6802 | F129: 727797.0702 | G129: 92564264.23 | I129: 93053332.91 | J129: 1216865.75 | K129: 1216865.75 | L129: =IF(A129>Inversion!$C$23,0,(K129-M129)) -> 489068.6802 | M129: =IF(N128<=0.01,0,N128*Inversion!$C$22) -> 727797.0702 | N129: 92564264.23 | O129: =IF(I129=0,0,P129*Inversion!$C$22) -> 0 | P129: =IF(I129=0,0,Inversion!$C$18*Inversion!$C$25) -> 0
A130: =IF(A129<Inversion!$C$23,A129+1,"-") -> 125 | B130: =IF(A130<>"-",DATE(YEAR(Inversion!$C$7),MONTH(Inversion!$C$7)+A130,DAY(Inversion!$C$7)),"-") -> 2035-12-10 | C130: 92564264.23 | D130: 1216865.75 | E130: 492893.828 | F130: 723971.9224 | G130: 92071370.4 | I130: 92564264.23 | J130: 1216865.75 | K130: 1216865.75 | L130: =IF(A130>Inversion!$C$23,0,(K130-M130)) -> 492893.828 | M130: =IF(N129<=0.01,0,N129*Inversion!$C$22) -> 723971.9224 | N130: 92071370.4 | O130: =IF(I130=0,0,P130*Inversion!$C$22) -> 0 | P130: =IF(I130=0,0,Inversion!$C$18*Inversion!$C$25) -> 0
A131: =IF(A130<Inversion!$C$23,A130+1,"-") -> 126 | B131: =IF(A131<>"-",DATE(YEAR(Inversion!$C$7),MONTH(Inversion!$C$7)+A131,DAY(Inversion!$C$7)),"-") -> 2036-01-10 | C131: 92071370.4 | D131: 1216865.75 | E131: 496748.8934 | F131: 720116.857 | G131: 91574621.51 | I131: 92071370.4 | J131: 1216865.75 | K131: 1216865.75 | L131: =IF(A131>Inversion!$C$23,0,(K131-M131)) -> 496748.8934 | M131: =IF(N130<=0.01,0,N130*Inversion!$C$22) -> 720116.857 | N131: 91574621.51 | O131: =IF(I131=0,0,P131*Inversion!$C$22) -> 0 | P131: =IF(I131=0,0,Inversion!$C$18*Inversion!$C$25) -> 0
A132: =IF(A131<Inversion!$C$23,A131+1,"-") -> 127 | B132: =IF(A132<>"-",DATE(YEAR(Inversion!$C$7),MONTH(Inversion!$C$7)+A132,DAY(Inversion!$C$7)),"-") -> 2036-02-10 | C132: 91574621.51 | D132: 1216865.75 | E132: 500634.1104 | F132: 716231.64 | G132: 91073987.4 | I132: 91574621.51 | J132: 1216865.75 | K132: 1216865.75 | L132: =IF(A132>Inversion!$C$23,0,(K132-M132)) -> 500634.1104 | M132: =IF(N131<=0.01,0,N131*Inversion!$C$22) -> 716231.64 | N132: 91073987.4 | O132: =IF(I132=0,0,P132*Inversion!$C$22) -> 0 | P132: =IF(I132=0,0,Inversion!$C$18*Inversion!$C$25) -> 0
A133: =IF(A132<Inversion!$C$23,A132+1,"-") -> 128 | B133: =IF(A133<>"-",DATE(YEAR(Inversion!$C$7),MONTH(Inversion!$C$7)+A133,DAY(Inversion!$C$7)),"-") -> 2036-03-10 | C133: 91073987.4 | D133: 1216865.75 | E133: 504549.7148 | F133: 712316.0356 | G133: 90569437.68 | I133: 91073987.4 | J133: 1216865.75 | K133: 1216865.75 | L133: =IF(A133>Inversion!$C$23,0,(K133-M133)) -> 504549.7148 | M133: =IF(N132<=0.01,0,N132*Inversion!$C$22) -> 712316.0356 | N133: 90569437.68 | O133: =IF(I133=0,0,P133*Inversion!$C$22) -> 0 | P133: =IF(I133=0,0,Inversion!$C$18*Inversion!$C$25) -> 0
A134: =IF(A133<Inversion!$C$23,A133+1,"-") -> 129 | B134: =IF(A134<>"-",DATE(YEAR(Inversion!$C$7),MONTH(Inversion!$C$7)+A134,DAY(Inversion!$C$7)),"-") -> 2036-04-10 | C134: =I134+P134 -> 90569437.68 | D134: 1216865.75 | E134: 508495.9442 | F134: 708369.8062 | G134: 90060941.74 | I134: 90569437.68 | J134: =K134+O134 -> 1216865.75 | K134: 1216865.75 | L134: =IF(A134>Inversion!$C$23,0,(K134-M134)) -> 508495.9442 | M134: =IF(N133<=0.01,0,N133*Inversion!$C$22) -> 708369.8062 | N134: 90060941.74 | O134: =IF(I134=0,0,P134*Inversion!$C$22) -> 0 | P134: =IF(I134=0,0,Inversion!$C$18*Inversion!$C$25) -> 0
A135: =IF(A134<Inversion!$C$23,A134+1,"-") -> 130 | B135: =IF(A135<>"-",DATE(YEAR(Inversion!$C$7),MONTH(Inversion!$C$7)+A135,DAY(Inversion!$C$7)),"-") -> 2036-05-10 | C135: 90060941.74 | D135: =J135 -> 1216865.75 | E135: =L135 -> 512473.0383 | F135: =M135+O135 -> 704392.7121 | G135: =N135+P135 -> 89548468.7 | I135: =N134 -> 90060941.74 | J135: 1216865.75 | K135: 1216865.75 | L135: =IF(A135>Inversion!$C$23,0,(K135-M135)) -> 512473.0383 | M135: =IF(N134<=0.01,0,N134*Inversion!$C$22) -> 704392.7121 | N135: 89548468.7 | O135: =IF(I135=0,0,P135*Inversion!$C$22) -> 0 | P135: =IF(I135=0,0,Inversion!$C$18*Inversion!$C$25) -> 0
A136: =IF(A135<Inversion!$C$23,A135+1,"-") -> 131 | B136: =IF(A136<>"-",DATE(YEAR(Inversion!$C$7),MONTH(Inversion!$C$7)+A136,DAY(Inversion!$C$7)),"-") -> 2036-06-10 | C136: 89548468.7 | D136: 1216865.75 | E136: 516481.2384 | F136: 700384.512 | G136: 89031987.46 | I136: 89548468.7 | J136: 1216865.75 | K136: =IF(N135<K135,(N135+M136),IF(N135<=0.01,0,K135)) -> 1216865.75 | L136: =IF(A136>Inversion!$C$23,0,(K136-M136)) -> 516481.2384 | M136: =IF(N135<=0.01,0,N135*Inversion!$C$22) -> 700384.512 | N136: =N135-L136 -> 89031987.46 | O136: =IF(I136=0,0,P136*Inversion!$C$22) -> 0 | P136: =IF(I136=0,0,Inversion!$C$18*Inversion!$C$25) -> 0
A137: =IF(A136<Inversion!$C$23,A136+1,"-") -> 132 | B137: =IF(A137<>"-",DATE(YEAR(Inversion!$C$7),MONTH(Inversion!$C$7)+A137,DAY(Inversion!$C$7)),"-") -> 2036-07-10 | C137: 89031987.46 | D137: 1216865.75 | E137: 520520.7877 | F137: 696344.9626 | G137: 88511466.67 | I137: 89031987.46 | J137: 1216865.75 | K137: 1216865.75 | L137: =IF(A137>Inversion!$C$23,0,(K137-M137)) -> 520520.7877 | M137: =IF(N136<=0.01,0,N136*Inversion!$C$22) -> 696344.9626 | N137: 88511466.67 | O137: =IF(I137=0,0,P137*Inversion!$C$22) -> 0 | P137: =IF(I137=0,0,Inversion!$C$18*Inversion!$C$25) -> 0
A138: =IF(A137<Inversion!$C$23,A137+1,"-") -> 133 | B138: =IF(A138<>"-",DATE(YEAR(Inversion!$C$7),MONTH(Inversion!$C$7)+A138,DAY(Inversion!$C$7)),"-") -> 2036-08-10 | C138: 88511466.67 | D138: 1216865.75 | E138: 524591.9316 | F138: 692273.8188 | G138: 87986874.74 | I138: 88511466.67 | J138: 1216865.75 | K138: 1216865.75 | L138: =IF(A138>Inversion!$C$23,0,(K138-M138)) -> 524591.9316 | M138: =IF(N137<=0.01,0,N137*Inversion!$C$22) -> 692273.8188 | N138: 87986874.74 | O138: =IF(I138=0,0,P138*Inversion!$C$22) -> 0 | P138: =IF(I138=0,0,Inversion!$C$18*Inversion!$C$25) -> 0
A139: =IF(A138<Inversion!$C$23,A138+1,"-") -> 134 | B139: =IF(A139<>"-",DATE(YEAR(Inversion!$C$7),MONTH(Inversion!$C$7)+A139,DAY(Inversion!$C$7)),"-") -> 2036-09-10 | C139: 87986874.74 | D139: 1216865.75 | E139: 528694.917 | F139: 688170.8333 | G139: 87458179.82 | I139: 87986874.74 | J139: 1216865.75 | K139: 1216865.75 | L139: =IF(A139>Inversion!$C$23,0,(K139-M139)) -> 528694.917 | M139: =IF(N138<=0.01,0,N138*Inversion!$C$22) -> 688170.8333 | N139: 87458179.82 | O139: =IF(I139=0,0,P139*Inversion!$C$22) -> 0 | P139: =IF(I139=0,0,Inversion!$C$18*Inversion!$C$25) -> 0
A140: =IF(A139<Inversion!$C$23,A139+1,"-") -> 135 | B140: =IF(A140<>"-",DATE(YEAR(Inversion!$C$7),MONTH(Inversion!$C$7)+A140,DAY(Inversion!$C$7)),"-") -> 2036-10-10 | C140: 87458179.82 | D140: 1216865.75 | E140: 532829.9931 | F140: 684035.7573 | G140: 86925349.83 | I140: 87458179.82 | J140: 1216865.75 | K140: 1216865.75 | L140: =IF(A140>Inversion!$C$23,0,(K140-M140)) -> 532829.9931 | M140: =IF(N139<=0.01,0,N139*Inversion!$C$22) -> 684035.7573 | N140: 86925349.83 | O140: =IF(I140=0,0,P140*Inversion!$C$22) -> 0 | P140: =IF(I140=0,0,Inversion!$C$18*Inversion!$C$25) -> 0
A141: =IF(A140<Inversion!$C$23,A140+1,"-") -> 136 | B141: =IF(A141<>"-",DATE(YEAR(Inversion!$C$7),MONTH(Inversion!$C$7)+A141,DAY(Inversion!$C$7)),"-") -> 2036-11-10 | C141: 86925349.83 | D141: 1216865.75 | E141: 536997.4108 | F141: 679868.3395 | G141: 86388352.42 | I141: 86925349.83 | J141: 1216865.75 | K141: 1216865.75 | L141: =IF(A141>Inversion!$C$23,0,(K141-M141)) -> 536997.4108 | M141: =IF(N140<=0.01,0,N140*Inversion!$C$22) -> 679868.3395 | N141: 86388352.42 | O141: =IF(I141=0,0,P141*Inversion!$C$22) -> 0 | P141: =IF(I141=0,0,Inversion!$C$18*Inversion!$C$25) -> 0
A142: =IF(A141<Inversion!$C$23,A141+1,"-") -> 137 | B142: =IF(A142<>"-",DATE(YEAR(Inversion!$C$7),MONTH(Inversion!$C$7)+A142,DAY(Inversion!$C$7)),"-") -> 2036-12-10 | C142: 86388352.42 | D142: 1216865.75 | E142: 541197.4231 | F142: 675668.3272 | G142: 85847155 | I142: 86388352.42 | J142: 1216865.75 | K142: 1216865.75 | L142: =IF(A142>Inversion!$C$23,0,(K142-M142)) -> 541197.4231 | M142: =IF(N141<=0.01,0,N141*Inversion!$C$22) -> 675668.3272 | N142: 85847155 | O142: =IF(I142=0,0,P142*Inversion!$C$22) -> 0 | P142: =IF(I142=0,0,Inversion!$C$18*Inversion!$C$25) -> 0
A143: =IF(A142<Inversion!$C$23,A142+1,"-") -> 138 | B143: =IF(A143<>"-",DATE(YEAR(Inversion!$C$7),MONTH(Inversion!$C$7)+A143,DAY(Inversion!$C$7)),"-") -> 2037-01-10 | C143: 85847155 | D143: 1216865.75 | E143: 545430.2849 | F143: 671435.4654 | G143: 85301724.71 | I143: 85847155 | J143: 1216865.75 | K143: 1216865.75 | L143: =IF(A143>Inversion!$C$23,0,(K143-M143)) -> 545430.2849 | M143: =IF(N142<=0.01,0,N142*Inversion!$C$22) -> 671435.4654 | N143: 85301724.71 | O143: =IF(I143=0,0,P143*Inversion!$C$22) -> 0 | P143: =IF(I143=0,0,Inversion!$C$18*Inversion!$C$25) -> 0
A144: =IF(A143<Inversion!$C$23,A143+1,"-") -> 139 | B144: =IF(A144<>"-",DATE(YEAR(Inversion!$C$7),MONTH(Inversion!$C$7)+A144,DAY(Inversion!$C$7)),"-") -> 2037-02-10 | C144: 85301724.71 | D144: 1216865.75 | E144: 549696.2532 | F144: 667169.4972 | G144: 84752028.46 | I144: 85301724.71 | J144: 1216865.75 | K144: 1216865.75 | L144: =IF(A144>Inversion!$C$23,0,(K144-M144)) -> 549696.2532 | M144: =IF(N143<=0.01,0,N143*Inversion!$C$22) -> 667169.4972 | N144: 84752028.46 | O144: =IF(I144=0,0,P144*Inversion!$C$22) -> 0 | P144: =IF(I144=0,0,Inversion!$C$18*Inversion!$C$25) -> 0
A145: =IF(A144<Inversion!$C$23,A144+1,"-") -> 140 | B145: =IF(A145<>"-",DATE(YEAR(Inversion!$C$7),MONTH(Inversion!$C$7)+A145,DAY(Inversion!$C$7)),"-") -> 2037-03-10 | C145: 84752028.46 | D145: 1216865.75 | E145: 553995.5868 | F145: 662870.1636 | G145: 84198032.87 | I145: 84752028.46 | J145: 1216865.75 | K145: 1216865.75 | L145: =IF(A145>Inversion!$C$23,0,(K145-M145)) -> 553995.5868 | M145: =IF(N144<=0.01,0,N144*Inversion!$C$22) -> 662870.1636 | N145: 84198032.87 | O145: =IF(I145=0,0,P145*Inversion!$C$22) -> 0 | P145: =IF(I145=0,0,Inversion!$C$18*Inversion!$C$25) -> 0
A146: =IF(A145<Inversion!$C$23,A145+1,"-") -> 141 | B146: =IF(A146<>"-",DATE(YEAR(Inversion!$C$7),MONTH(Inversion!$C$7)+A146,DAY(Inversion!$C$7)),"-") -> 2037-04-10 | C146: 84198032.87 | D146: 1216865.75 | E146: 558328.5468 | F146: 658537.2036 | G146: 83639704.32 | I146: 84198032.87 | J146: 1216865.75 | K146: 1216865.75 | L146: =IF(A146>Inversion!$C$23,0,(K146-M146)) -> 558328.5468 | M146: =IF(N145<=0.01,0,N145*Inversion!$C$22) -> 658537.2036 | N146: 83639704.32 | O146: =IF(I146=0,0,P146*Inversion!$C$22) -> 0 | P146: =IF(I146=0,0,Inversion!$C$18*Inversion!$C$25) -> 0
A147: =IF(A146<Inversion!$C$23,A146+1,"-") -> 142 | B147: =IF(A147<>"-",DATE(YEAR(Inversion!$C$7),MONTH(Inversion!$C$7)+A147,DAY(Inversion!$C$7)),"-") -> 2037-05-10 | C147: 83639704.32 | D147: 1216865.75 | E147: 562695.396 | F147: 654170.3543 | G147: 83077008.93 | I147: 83639704.32 | J147: 1216865.75 | K147: 1216865.75 | L147: =IF(A147>Inversion!$C$23,0,(K147-M147)) -> 562695.396 | M147: =IF(N146<=0.01,0,N146*Inversion!$C$22) -> 654170.3543 | N147: 83077008.93 | O147: =IF(I147=0,0,P147*Inversion!$C$22) -> 0 | P147: =IF(I147=0,0,Inversion!$C$18*Inversion!$C$25) -> 0
A148: =IF(A147<Inversion!$C$23,A147+1,"-") -> 143 | B148: =IF(A148<>"-",DATE(YEAR(Inversion!$C$7),MONTH(Inversion!$C$7)+A148,DAY(Inversion!$C$7)),"-") -> 2037-06-10 | C148: 83077008.93 | D148: 1216865.75 | E148: 567096.3997 | F148: 649769.3507 | G148: 82509912.53 | I148: 83077008.93 | J148: 1216865.75 | K148: 1216865.75 | L148: =IF(A148>Inversion!$C$23,0,(K148-M148)) -> 567096.3997 | M148: =IF(N147<=0.01,0,N147*Inversion!$C$22) -> 649769.3507 | N148: 82509912.53 | O148: =IF(I148=0,0,P148*Inversion!$C$22) -> 0 | P148: =IF(I148=0,0,Inversion!$C$18*Inversion!$C$25) -> 0
A149: =IF(A148<Inversion!$C$23,A148+1,"-") -> 144 | B149: =IF(A149<>"-",DATE(YEAR(Inversion!$C$7),MONTH(Inversion!$C$7)+A149,DAY(Inversion!$C$7)),"-") -> 2037-07-10 | C149: 82509912.53 | D149: 1216865.75 | E149: 571531.8249 | F149: 645333.9254 | G149: 81938380.7 | I149: 82509912.53 | J149: 1216865.75 | K149: 1216865.75 | L149: =IF(A149>Inversion!$C$23,0,(K149-M149)) -> 571531.8249 | M149: =IF(N148<=0.01,0,N148*Inversion!$C$22) -> 645333.9254 | N149: 81938380.7 | O149: =IF(I149=0,0,P149*Inversion!$C$22) -> 0 | P149: =IF(I149=0,0,Inversion!$C$18*Inversion!$C$25) -> 0
A150: =IF(A149<Inversion!$C$23,A149+1,"-") -> 145 | B150: =IF(A150<>"-",DATE(YEAR(Inversion!$C$7),MONTH(Inversion!$C$7)+A150,DAY(Inversion!$C$7)),"-") -> 2037-08-10 | C150: 81938380.7 | D150: 1216865.75 | E150: 576001.9409 | F150: 640863.8095 | G150: 81362378.76 | I150: 81938380.7 | J150: 1216865.75 | K150: 1216865.75 | L150: =IF(A150>Inversion!$C$23,0,(K150-M150)) -> 576001.9409 | M150: =IF(N149<=0.01,0,N149*Inversion!$C$22) -> 640863.8095 | N150: 81362378.76 | O150: =IF(I150=0,0,P150*Inversion!$C$22) -> 0 | P150: =IF(I150=0,0,Inversion!$C$18*Inversion!$C$25) -> 0
A151: =IF(A150<Inversion!$C$23,A150+1,"-") -> 146 | B151: =IF(A151<>"-",DATE(YEAR(Inversion!$C$7),MONTH(Inversion!$C$7)+A151,DAY(Inversion!$C$7)),"-") -> 2037-09-10 | C151: 81362378.76 | D151: 1216865.75 | E151: 580507.0189 | F151: 636358.7315 | G151: 80781871.74 | I151: 81362378.76 | J151: 1216865.75 | K151: 1216865.75 | L151: =IF(A151>Inversion!$C$23,0,(K151-M151)) -> 580507.0189 | M151: =IF(N150<=0.01,0,N150*Inversion!$C$22) -> 636358.7315 | N151: 80781871.74 | O151: =IF(I151=0,0,P151*Inversion!$C$22) -> 0 | P151: =IF(I151=0,0,Inversion!$C$18*Inversion!$C$25) -> 0
A152: =IF(A151<Inversion!$C$23,A151+1,"-") -> 147 | B152: =IF(A152<>"-",DATE(YEAR(Inversion!$C$7),MONTH(Inversion!$C$7)+A152,DAY(Inversion!$C$7)),"-") -> 2037-10-10 | C152: 80781871.74 | D152: 1216865.75 | E152: 585047.3324 | F152: 631818.4179 | G152: 80196824.41 | I152: 80781871.74 | J152: 1216865.75 | K152: 1216865.75 | L152: =IF(A152>Inversion!$C$23,0,(K152-M152)) -> 585047.3324 | M152: =IF(N151<=0.01,0,N151*Inversion!$C$22) -> 631818.4179 | N152: 80196824.41 | O152: =IF(I152=0,0,P152*Inversion!$C$22) -> 0 | P152: =IF(I152=0,0,Inversion!$C$18*Inversion!$C$25) -> 0
A153: =IF(A152<Inversion!$C$23,A152+1,"-") -> 148 | B153: =IF(A153<>"-",DATE(YEAR(Inversion!$C$7),MONTH(Inversion!$C$7)+A153,DAY(Inversion!$C$7)),"-") -> 2037-11-10 | C153: 80196824.41 | D153: 1216865.75 | E153: 589623.1571 | F153: 627242.5933 | G153: 79607201.25 | I153: 80196824.41 | J153: 1216865.75 | K153: 1216865.75 | L153: =IF(A153>Inversion!$C$23,0,(K153-M153)) -> 589623.1571 | M153: =IF(N152<=0.01,0,N152*Inversion!$C$22) -> 627242.5933 | N153: 79607201.25 | O153: =IF(I153=0,0,P153*Inversion!$C$22) -> 0 | P153: =IF(I153=0,0,Inversion!$C$18*Inversion!$C$25) -> 0
A154: =IF(A153<Inversion!$C$23,A153+1,"-") -> 149 | B154: =IF(A154<>"-",DATE(YEAR(Inversion!$C$7),MONTH(Inversion!$C$7)+A154,DAY(Inversion!$C$7)),"-") -> 2037-12-10 | C154: 79607201.25 | D154: 1216865.75 | E154: 594234.7706 | F154: 622630.9798 | G154: 79012966.48 | I154: 79607201.25 | J154: 1216865.75 | K154: 1216865.75 | L154: =IF(A154>Inversion!$C$23,0,(K154-M154)) -> 594234.7706 | M154: =IF(N153<=0.01,0,N153*Inversion!$C$22) -> 622630.9798 | N154: 79012966.48 | O154: =IF(I154=0,0,P154*Inversion!$C$22) -> 0 | P154: =IF(I154=0,0,Inversion!$C$18*Inversion!$C$25) -> 0
A155: =IF(A154<Inversion!$C$23,A154+1,"-") -> 150 | B155: =IF(A155<>"-",DATE(YEAR(Inversion!$C$7),MONTH(Inversion!$C$7)+A155,DAY(Inversion!$C$7)),"-") -> 2038-01-10 | C155: 79012966.48 | D155: 1216865.75 | E155: 598882.4529 | F155: 617983.2975 | G155: 78414084.03 | I155: 79012966.48 | J155: 1216865.75 | K155: 1216865.75 | L155: =IF(A155>Inversion!$C$23,0,(K155-M155)) -> 598882.4529 | M155: =IF(N154<=0.01,0,N154*Inversion!$C$22) -> 617983.2975 | N155: 78414084.03 | O155: =IF(I155=0,0,P155*Inversion!$C$22) -> 0 | P155: =IF(I155=0,0,Inversion!$C$18*Inversion!$C$25) -> 0
